Workbook

Sheet Hoja2 (hidden)
B4: SOPORTE | E4: RUBRO | G4: TIPO IDENTIFICACIÓN | J4: PAGO
B5: Factura | E5: Talento Humano | G5: --- | J5: SI
B6: Nota Contable | E6: Componente nutricional | G6: CC | J6: NO
B7: Documento soporte | E7: Dotación lúdico deportiva (Por reposición) | G7: NIT
B8: Nomina | E8: Menaje y Alimentación (Por Reposición)
B9: Recibo de caja | E9: Dotación de aseo e higiene personal
B10: QQQ | E10: Botiquín
E11: Material de Consumo
E12: Materiales, Acciones de movilización social
E13: Transporte (para nnya)
E14: Otros gastos administrativos, operativos y financieros
E16: =+E9&" "&E10&" "&E11&" "&E12&" "&E13 -> Dotación de aseo e higiene personal Botiquín Material de Consumo Materiales, Acciones de movilización social Transporte (para nnya)

Sheet TR (hidden)
C4: ALISTAMIENTO | D4: ATENCIÓN | E4: CIERRE | F4: CCM (Promedio) | I4: CCM | J4: 350000 | R4: ALISTAMIENTO | S4: ATENCIÓN | T4: CIERRE | U4: CCM (Promedio)
C5: =+C10+C22+C40+C48+C50+C66+C78+C28+C38+C36+C57+C60 -> 1 | D5: =+D10+D22+D40+D48+D50+D66+D78+D28+D38+D36+D57+D60 -> 1 | E5: =+E10+E22+E40+E48+E50+E66+E78+E28+E38+E36+E57+E60 -> 1 | F5: =+F10+F22+F40+F48+F50+F66+F78+F28+F38+F36+F57+F60 -> 0.9999902232 | R5: =+R10+R22+R40+R48+R50+R66+R78+R28+R38+R36+R57+R60 -> 1 | S5: =+S10+S22+S40+S48+S50+S66+S78+S28+S38+S36+S57+S60 -> 1.0001 | T5: =+T10+T22+T40+T48+T50+T66+T78+T28+T38+T36+T57+T60 -> 1.0001 | U5: =+U10+U22+U40+U48+U50+U66+U78+U28+U38+U36+U57+U60 -> 1.000066667
B8: COMUNITARIOS PROPIOS CATATUMNO NORTE DE SANTANDER _ | I8: EXPERIENCIAS | Q8: COMUNITARIOS PROPIOS CATATUMNO CESAR
A9: COD | C9: ALISTAMIENTO | D9: ATENCIÓN | E9: CIERRE | F9: CCM (Regional/etapa) | G9: COD | H9: COD | J9: PREPARACIÓN | K9: IMPLEMENTACIÓN | L9: CIERRE | M9: CCM (Promedio/Regional) | P9: COD | R9: ALISTAMIENTO | S9: ATENCIÓN | T9: CIERRE | U9: CCM (Regional/etapa) | V9: COD
A10: 2100 | B10: TALENTO HUMANO | C10: =+SUM(C11:C19) -> 0.6371750126 | D10: =SUM(D11:D19) -> 0.372632157 | E10: =SUM(E11:E19) -> 0.7756960238 | F10: =(C10+D10+E10)/3 -> 0.5951677311 | G10: 2100 | H10: 2100 | I10: TALENTO HUMANO | P10: 2100 | Q10: TALENTO HUMANO | R10: =+SUM(R11:R19) -> 0.6371750126 | S10: =SUM(S11:S19) -> 0.3752 | T10: =SUM(T11:T19) -> 0.7758 | U10: =(R10+S10+T10)/3 -> 0.5960583375 | V10: 2100
A11: 2101 | B11: Coordinador(a) | C11: 0.07670196463 | D11: 0.04877073323 | E11: 0.1061557004 | G11: 2101 | H11: 2101 | I11: Auxiliar Administrativo y logistico | J11: 0 | K11: 0 | L11: 0 | P11: 2101 | Q11: Coordinador(a) | R11: 0.07670196463 | S11: 0.0491 | T11: 0.1062 | V11: 2101
A12: 2102 | B12: Pedagogo | C12: 0.05752647347 | D12: 0.03657804993 | E12: 0.07961677532 | G12: 2102 | H12: 2102 | I12: Referente de la experiencia comunitaria | J12: 0 | K12: 0 | L12: 0 | P12: 2102 | Q12: Pedagogo | R12: 0.05752647347 | S12: 0.0368 | T12: 0.0796 | V12: 2102
A13: 2103 | B13: Nutricionista | C13: 0.07670196463 | D13: 0.01625691108 | E13: 0 | G13: 2103 | H13: 2103 | P13: 2103 | Q13: Nutricionista | R13: 0.07670196463 | S13: 0.0164 | T13: 0 | V13: 2103
A14: 2104 | B14: Psicólogo(a) | C14: 0.1725794204 | D14: 0.1097341498 | E14: 0.238850326 | G14: 2104 | H14: 2104 | P14: 2104 | Q14: Psicólogo(a) | R14: 0.1725794204 | S14: 0.1105 | T14: 0.2389 | V14: 2104
A15: 2105 | B15: Psicosocial | C15: 0 | E15: 0 | G15: 2105 | H15: 2105 | P15: 2105 | Q15: Psicosocial | R15: 0 | S15: 0 | T15: 0 | V15: 2105
A16: 2106 | B16: Gestor(a) de Experiencias 1 | C16: 0.1725794204 | D16: 0.1097341498 | E16: 0.238850326 | G16: 2106 | H16: 2106 | P16: 2106 | Q16: Gestor(a) de Experiencias 1 | R16: 0.1725794204 | S16: 0.1105 | T16: 0.2389 | V16: 2106
A17: 2107 | B17: Gestor(a) de Experiencias 2 | C17: 0 | E17: 0 | G17: 2107 | H17: 2107 | P17: 2107 | Q17: Gestor(a) de Experiencias 2 | R17: 0 | S17: 0 | T17: 0 | V17: 2107
A18: 2108 | B18: Dinamizador(a) comunitario | C18: 0.0294400203 | D18: 0.01871935593 | E18: 0.04074505771 | G18: 2108 | H18: 2108 | P18: 2108 | Q18: Dinamizador(a) comunitario | R18: 0.0294400203 | S18: 0.0188 | T18: 0.0407 | V18: 2108
A19: 2109 | B19: Auxiliar Administrativo | C19: 0.05164574875 | D19: 0.03283880728 | E19: 0.0714778384 | G19: 2109 | H19: 2109 | P19: 2109 | Q19: Auxiliar Administrativo | R19: 0.05164574875 | S19: 0.0331 | T19: 0.0715 | V19: 2109
G20: 2110 | H20: 2110 | V20: 2110
A22: 2110 | B22: TRANSPORTE Y VIAJES DEL TH | C22: =SUM(C23:C26) -> 0.1612734729 | D22: =SUM(D23:D26) -> 0.08283422063 | E22: =SUM(E23:E26) -> 0.1407052535 | F22: =(C22+D22+E22)/3 -> 0.1282709823 | G22: 2110 | H22: 2110 | I22: N/A | P22: 2110 | Q22: TRANSPORTE Y VIAJES DEL TH | R22: =SUM(R23:R26) -> 0.1612734729 | S22: =SUM(S23:S26) -> 0.0834 | T22: =SUM(T23:T26) -> 0.1407 | U22: =(R22+S22+T22)/3 -> 0.1284578243 | V22: 2110
A23: 2111 | B23: Coordinador General | C23: 0.03409282657 | D23: 0.02167783 | E23: 0.0471845526 | G23: 2111 | H23: 2111 | I23: N/A | J23: 0 | K23: 0 | L23: 0 | P23: 2111 | Q23: Coordinador General | R23: 0.03409282657 | S23: 0.0218 | T23: 0.0472 | V23: 2111
A24: 2112 | B24: Pedagogo (a) | C24: 0.05103034888 | D24: 0.04055938371 | E24: 0.03531306176 | G24: 2112 | H24: 2112 | I24: N/A | J24: 0 | K24: 0 | L24: 0 | P24: 2112 | Q24: Pedagogo (a) | R24: 0.05103034888 | S24: 0.0408 | T24: 0.0353 | V24: 2112
A25: 2113 | B25: Nutricionista Dietista | C25: 0.03409282657 | D25: 0.007225943334 | E25: 0 | G25: 2113 | H25: 2113 | I25: N/A | J25: 0 | K25: 0 | L25: 0 | P25: 2113 | Q25: Nutricionista Dietista | R25: 0.03409282657 | S25: 0.0073 | T25: 0 | V25: 2113
A26: 2114 | B26: Dinamizador(a) Comunitario | C26: 0.04205747085 | D26: 0.01337106358 | E26: 0.05820763912 | G26: 2114 | H26: 2114 | I26: N/A | J26: 0 | K26: 0 | L26: 0 | P26: 2114 | Q26: Dinamizador(a) Comunitario | R26: 0.04205747085 | S26: 0.0135 | T26: 0.0582 | V26: 2114
A28: 2200 | B28: APOYOS NUTRICIONALES | C28: 0 | D28: =SUM(D29:D32) -> 0.3100626357 | E28: 0 | F28: =(C28+D28+E28)/3 -> 0.1033542119 | G28: 2200 | H28: 2200 | I28: COMPLEMENTACIÓN ALIMENTARIA Y NUTRICIONAL | P28: 2200 | Q28: APOYOS NUTRICIONALES | R28: 0 | S28: =SUM(S29:S32) -> 0.306 | T28: 0 | U28: =(R28+S28+T28)/3 -> 0.102 | V28: 2200
A29: 2201 | B29: Refrigerio reforzado (Encuentros entre pares) | C29: 0 | D29: 0.229249442 | G29: 2201 | H29: 2201 | I29: Refrigerio reforzado (Encuentros grupales) | J29: 0 | K29: 0 | L29: 0 | P29: 2201 | Q29: Refrigerio reforzado (Encuentrosentre pares) | R29: 0 | S29: 0.2257 | V29: 2201
A30: 2202 | B30: Refrigerio reforzado (Encuentros comunitarios) | C30: 0 | D30: 0.0573123605 | G30: 2202 | H30: 2202 | I30: Refrigerio reforzado (Encuentros Familiares) | J30: 0 | K30: 0 | L30: 0 | P30: 2202 | Q30: Refrigerio reforzado (Encuentros comunitarios) | R30: 0 | S30: 0.0564 | V30: 2202
A31: 2203 | B31: Olla comunitaria | C31: 0 | D31: 0.02350083318 | E31: 0 | G31: 2203 | H31: 2203 | I31: Olla comunitaria | J31: 0 | K31: 0 | L31: 0 | P31: 2203 | Q31: Olla comunitaria | R31: 0 | S31: 0.0239 | T31: 0 | V31: 2203
H32: 2204
A36: 2202 | B36: N/A | C36: 0 | D36: 0 | E36: 0 | F36: 0 | G36: 2202 | H36: 2202 | I36: N/A | J36: 0 | K36: 0 | L36: 0 | P36: 2202 | Q36: N/A | R36: 0 | S36: 0 | T36: 0 | U36: 0 | V36: 2202
A38: 2203 | B38: MATERIAL DE CONSUMO | C38: 0 | D38: 0.128040238 | E38: 0 | F38: =(C38+D38+E38)/3 -> 0.04268007932 | G38: 2203 | H38: 2203 | I38: MATERIALES E INSUMOS | J38: 0 | K38: 0 | L38: 0 | P38: 2203 | Q38: MATERIAL DE CONSUMO | R38: 0 | S38: 0.1289 | T38: 0 | U38: =(R38+S38+T38)/3 -> 0.04296666667 | V38: 2203
A40: 2204 | B40: DOTACIÓN | C40: 0.01895138032 | D40: =+D41+D42 -> 0.004228221124 | E40: =+E41+E42 -> 0.0184065215 | F40: =(C40+D40+E40)/3 -> 0.01386204098 | G40: 2204 | H40: 2204 | I40: BOTIQUÍN | J40: 0 | K40: 0 | L40: 0 | P40: 2204 | Q40: DOTACIÓN | R40: 0.01895138032 | S40: =+S41+S42 -> 0.0043 | T40: =+T41+T42 -> 0.0184 | U40: =(R40+S40+T40)/3 -> 0.01388379344 | V40: 2204
A41: 220401 | B41: Botiquín | C41: 0.01895138032 | D41: 0 | E41: 0 | F41: 0.001075015841 | G41: 220401 | H41: 220401 | I41: Botiquín | J41: 0 | K41: 0 | L41: 0 | P41: 220401 | Q41: Botiquín | R41: 0.01895138032 | S41: 0 | T41: 0 | U41: 0.001075015841 | V41: 220401
A42: 220402 | B42: Kit de aseo personal | C42: 0 | D42: 0.004228221124 | E42: 0.0184065215 | F42: 0.004526492449 | G42: 220402 | H42: 220402 | P42: 220402 | Q42: Kit de aseo personal | R42: 0 | S42: 0.0043 | T42: 0.0184 | U42: 0.004526492449 | V42: 220402
A43: 220403 | G43: 220403 | H43: 220403 | P43: 220403 | V43: 220403
A44: 220404 | G44: 220404 | H44: 220404 | P44: 220404 | V44: 220404
A45: 220405 | G45: 220405 | H45: 220405 | P45: 220405 | V45: 220405
A48: 2205 | B48: SERVICIO DE COMUNICACIÓN MÓBIL E NTERNET | C48: 0.006290796502 | D48: 0.00375756228 | E48: 0.007914979305 | F48: =(C48+D48+E48)/3 -> 0.005987779362 | G48: 2205 | H48: 2205 | I48: N/A | J48: 0 | K48: 0 | L48: 0 | P48: 2205 | Q48: SERVICIO DE COMUNICACIÓN MÓBIL E NTERNET | R48: 0.006290796502 | S48: 0.0038 | T48: 0.0079 | U48: =(R48+S48+T48)/3 -> 0.005996932167 | V48: 2205
A50: 2206 | B50: MATERIAL IDENTIFICACIÓN | C50: =SUM(C51:C55) -> 0.1265861947 | D50: 0 | E50: 0 | F50: =(C50+D50+E50)/3 -> 0.04219539823 | G50: 2206 | H50: 2206 | I50: MATERIAL IDENTIFICACIÓN | J50: 0 | K50: 0 | L50: 0 | P50: 2206 | Q50: MATERIAL IDENTIFICACIÓN | R50: =SUM(R51:R55) -> 0.1265861947 | S50: 0 | T50: 0 | U50: =(R50+S50+T50)/3 -> 0.04219539823 | V50: 2206
A51: 220601 | B51: Chalecos | C51: 0.05484379848 | G51: 220601 | H51: 220601 | I51: Camisetas (Participantes) | J51: 0 | K51: 0 | L51: 0 | P51: 220601 | Q51: Chalecos | R51: 0.05484379848 | V51: 220601
A52: 220602 | B52: Gorras | C52: 0.01467029205 | G52: 220602 | H52: 220602 | I52: Pendón | J52: 0 | K52: 0 | L52: 0 | P52: 220602 | Q52: Gorras | R52: 0.01467029205 | V52: 220602
A53: 220603 | B53: Camisetas | C53: 0.04428921957 | G53: 220603 | H53: 220603 | P53: 220603 | Q53: Camisetas | R53: 0.04428921957 | V53: 220603
A54: 220604 | B54: Carné | C54: 0.006729894095 | G54: 220604 | H54: 220604 | P54: 220604 | Q54: Carné | R54: 0.006729894095 | V54: 220604
A55: 220605 | B55: Pendón | C55: 0.006052990481 | G55: 220605 | H55: 220605 | P55: 220605 | Q55: Pendón | R55: 0.006052990481 | V55: 220605
A57: 2207 | B57: SEGURO | C57: 0 | D57: 0.003470543422 | E57: 0.007554078921 | F57: =(C57+D57+E57)/3 -> 0.003674874114 | G57: 2207 | H57: 2207 | I57: SEGURO | J57: 0 | K57: 0 | L57: 0 | P57: 2207 | Q57: SEGURO | R57: 0 | S57: 0.0035 | T57: 0.0076 | U57: =(R57+S57+T57)/3 -> 0.0037 | V57: 2207
A59: 2208 | B59: APOYO A INICIATIVAS | C59: 0 | D59: 0.0474293303 | E59: 0 | F59: =(C59+D59+E59)/3 -> 0.01580977677 | G59: 2208 | H59: 2208 | I59: ENCUENTROS EXPERIENCIAS OPORTUNIDADES | J59: 0 | K59: 0 | L59: 0 | P59: 2208 | Q59: APOYO A INICIATIVAS | R59: 0 | S59: 0.0474293303 | T59: 0 | U59: =(R59+S59+T59)/3 -> 0.01580977677 | V59: 2208
A60: 220801 | B60: Apoyo Iniciativas | C60: 0 | D60: 0.0474293303 | E60: 0 | F60: 0.0158 | G60: 220801 | H60: 220801 | P60: 220801 | Q60: Apoyo Iniciativas | R60: 0 | S60: 0.0474 | T60: 0 | U60: 0.0158 | V60: 220801
A61: 220802 | G61: 220802 | H61: 220802 | P61: 220802 | V61: 220802
A62: 220803 | G62: 220803 | H62: 220803 | P62: 220803 | V62: 220803
A63: 220804 | G63: 220804 | H63: 220804 | P63: 220804 | V63: 220804
A64: 220805 | G64: 220805 | H64: 220805 | P64: 220805 | V64: 220805
A66: 2300 | B66: GASTOS OPERATIVOS | C66: 0.04573907924 | D66: 0.04356102785 | E66: 0.04573907924 | F66: =(C66+D66+E66)/3 -> 0.04501306211 | G66: 2300 | H66: 2300 | I66: GASTOS OPERATIVOS | J66: 0 | K66: 0 | L66: 0 | P66: 2300 | Q66: GASTOS OPERATIVOS | R66: 0.04573907924 | S66: 0.0436 | T66: 0.0457 | U66: =(R66+S66+T66)/3 -> 0.04501302641 | V66: 2300
A67: 230001 | G67: 230001 | H67: 230001 | P67: 230001 | V67: 230001
A68: 230002 | G68: 230002 | H68: 230002 | P68: 230002 | V68: 230002
A69: 230003 | G69: 230003 | H69: 230003 | P69: 230003 | V69: 230003
A70: 230004 | G70: 230004 | H70: 230004 | P70: 230004 | V70: 230004
A71: 230005 | G71: 230005 | H71: 230005 | P71: 230005 | V71: 230005
A72: 230006 | G72: 230006 | H72: 230006 | P72: 230006 | V72: 230006
A73: 230007 | G73: 230007 | H73: 230007 | P73: 230007 | V73: 230007
A74: 230008 | G74: 230008 | H74: 230008 | P74: 230008 | V74: 230008
A75: 230008 | G75: 230009 | P75: 230008 | V75: 230009
A78: 2303 | B78: GRAVAMEN MOVIMIENTOS FINANCIEROS GMF | C78: 0.003984063745 | D78: 0.003984063745 | E78: 0.003984063745 | F78: =(C78+D78+E78)/3 -> 0.003984063745 | G78: 2303 | H78: 2303 | I78: GRAVAMEN MOVIMIENTOS FINANCIEROS GMF | J78: 0.004 | K78: 0.004 | L78: 0.004 | P78: 2303 | Q78: GRAVAMEN MOVIMIENTOS FINANCIEROS GMF | R78: 0.003984063745 | S78: 0.004 | T78: 0.004 | U78: =(R78+S78+T78)/3 -> 0.003994687915 | V78: 2303

Sheet Listas (hidden)
B1: Cód. Regional | C1: Regional | E1: Cód. Regional | F1: Regional | G1: Cód. Sucursal o Centro Zonal | H1: NOMBRE CENTRO ZONAL | J1: Cód. Regional | K1: Regional | L1: Cód. Sucursal o Centro Zonal | M1: NOMBRE CENTRO ZONAL | N1: Cód. Municipio | O1: NOMBRE MUNICIPIO | P1: Codigo DANE departamento | Q1: Nombre DANE Departamento | R1: Cód. DANE | S1: Nombre municipio/Centro poblado | T1: TIPO | V1: Formas | W1: Contrapartida | Y1: Tiempo Etapa | AC1: Meses | AD1: DETALLADA RECURSOS- LISTA DESPLEGABLE
B2: 20 | C2: CESAR | E2: 20 | F2: CESAR | G2: 2004 | H2: CZ AGUACHICA | J2: 20 | K2: CESAR | L2: 2004 | M2: CZ AGUACHICA | N2: 20310 | O2: GONZÁLEZ | P2: 20 | Q2: CESAR | R2: 20310 | S2: GONZÁLEZ | T2: Municipio | V2: COMUNITARIOS | W2: 0.03 | X2: ETAPA CONTRACTUAL | Y2: COMUNITARIOS | AC2: Mes 1 | AD2: FORMA ATENCIÓN | AE2: CONCEPTO | AF2: FORMA ATENCIÓN - CONCEPTO | AG2: FORMA ATENCIÓN | AH2: CONCEPTO | AI2: DETALLE
B3: 54 | C3: NORTE DE SANTANDER | E3: 54 | F3: NORTE DE SANTANDER | G3: 5401 | H3: CZ CUCUTA 1 | J3: 20 | K3: CESAR | L3: 2004 | M3: CZ AGUACHICA | N3: 20614 | O3: RÍO DE ORO | P3: 20 | Q3: CESAR | R3: 20614 | S3: RÍO DE ORO | T3: Municipio | X3: Alistamiento | Y3: 0.5 | AC3: Mes 2 | AD3: COMUNITARIOS | AE3: TALENTO HUMANO | AF3: COMUNITARIOS_TALENTO_HUMANO | AG3: COMUNITARIOS | AH3: TALENTO HUMANO | AI3: Coordinador(a)
E4: 54 | F4: NORTE DE SANTANDER | G4: 5402 | H4: CZ CUCUTA 2 | J4: 54 | K4: NORTE DE SANTANDER | L4: 5401 | M4: CZ CUCUTA 1 | N4: 54001 | O4: SAN JOSÉ DE CÚCUTA | P4: 54 | Q4: NORTE DE SANTANDER | R4: 54001 | S4: SAN JOSÉ DE CÚCUTA | T4: Municipio | X4: Atención | Y4: 5 | AC4: Mes 3 | AD4: COMUNITARIOS | AE4: TRANSPORTE Y VIAJES DEL TH | AF4: COMUNITARIOS_TALENTO_HUMANO | AG4: COMUNITARIOS | AH4: TALENTO HUMANO | AI4: Pedagogo
E5: 54 | F5: NORTE DE SANTANDER | G5: 5403 | H5: CZ CUCUTA 3 | J5: 54 | K5: NORTE DE SANTANDER | L5: 5404 | M5: CZ OCAÑA | N5: 54003 | O5: ABREGO | P5: 54 | Q5: NORTE DE SANTANDER | R5: 54003 | S5: ÁBREGO | T5: Municipio | X5: Cierre | Y5: 0.5 | AC5: Mes 4 | AD5: COMUNITARIOS | AE5: APOYOS NUTRICIONALES | AF5: COMUNITARIOS_TALENTO_HUMANO | AG5: COMUNITARIOS | AH5: TALENTO HUMANO | AI5: Nutricionista
E6: 54 | F6: NORTE DE SANTANDER | G6: 5404 | H6: CZ OCAÑA | J6: 54 | K6: NORTE DE SANTANDER | L6: 5404 | M6: CZ OCAÑA | N6: 54206 | O6: CONVENCIÓN | P6: 54 | Q6: NORTE DE SANTANDER | R6: 54206 | S6: CONVENCIÓN | T6: Municipio | X6: TOTAL TIEMPO | Y6: =SUM(Y3:Y5) -> 6 | AC6: Mes 5 | AD6: COMUNITARIOS | AE6: DOTACIÓN | AF6: COMUNITARIOS_TALENTO_HUMANO | AG6: COMUNITARIOS | AH6: TALENTO HUMANO | AI6: Psicólogo(a)
E7: 54 | F7: NORTE DE SANTANDER | G7: 5406 | H7: CZ TIBU | J7: 54 | K7: NORTE DE SANTANDER | L7: 5404 | M7: CZ OCAÑA | N7: 54245 | O7: EL CARMEN | P7: 54 | Q7: NORTE DE SANTANDER | R7: 54245 | S7: EL CARMEN | T7: Municipio | AC7: Mes 6 | AD7: COMUNITARIOS | AE7: SERVICIO DE COMUNICACIÓN MÓBIL E NTERNET | AF7: COMUNITARIOS_TALENTO_HUMANO | AG7: COMUNITARIOS | AH7: TALENTO HUMANO | AI7: Psicosocial
J8: 54 | K8: NORTE DE SANTANDER | L8: 5406 | M8: CZ TIBU | N8: 54250 | O8: EL TARRA | P8: 54 | Q8: NORTE DE SANTANDER | R8: 54250 | S8: EL TARRA | T8: Municipio | X8: Alistamiento | AC8: Mes 7 | AD8: COMUNITARIOS | AE8: MATERIAL IDENTIFICACIÓN | AF8: COMUNITARIOS_TALENTO_HUMANO | AG8: COMUNITARIOS | AH8: TALENTO HUMANO | AI8: Gestor(a) de Experiencias 1
J9: 54 | K9: NORTE DE SANTANDER | L9: 5401 | M9: CZ CUCUTA 1 | N9: 54261 | O9: EL ZULIA | P9: 54 | Q9: NORTE DE SANTANDER | R9: 54261 | S9: EL ZULIA | T9: Municipio | X9: Atención Mes 1 | AC9: Mes 8 | AD9: COMUNITARIOS | AE9: SEGURO | AF9: COMUNITARIOS_TALENTO_HUMANO | AG9: COMUNITARIOS | AH9: TALENTO HUMANO | AI9: Gestor(a) de Experiencias 2
J10: 54 | K10: NORTE DE SANTANDER | L10: 5404 | M10: CZ OCAÑA | N10: 54344 | O10: HACARÍ | P10: 54 | Q10: NORTE DE SANTANDER | R10: 54344 | S10: HACARÍ | T10: Municipio | X10: Atención Mes 2 | AC10: Mes 9 | AD10: COMUNITARIOS | AE10: APOYO A INICIATIVAS | AF10: COMUNITARIOS_TALENTO_HUMANO | AG10: COMUNITARIOS | AH10: TALENTO HUMANO | AI10: Dinamizador(a) comunitario
J11: 54 | K11: NORTE DE SANTANDER | L11: 5404 | M11: CZ OCAÑA | N11: 54398 | O11: LA PLAYA | P11: 54 | Q11: NORTE DE SANTANDER | R11: 54398 | S11: LA PLAYA | T11: Municipio | X11: Atención Mes 3 | AC11: Mes 10 | AD11: COMUNITARIOS | AE11: GASTOS OPERATIVOS | AF11: COMUNITARIOS_TALENTO_HUMANO | AG11: COMUNITARIOS | AH11: TALENTO HUMANO | AI11: Auxiliar Administrativo
J12: 54 | K12: NORTE DE SANTANDER | L12: 5401 | M12: CZ CUCUTA 1 | N12: 54405 | O12: LOS PATIOS | P12: 54 | Q12: NORTE DE SANTANDER | R12: 54405 | S12: LOS PATIOS | T12: Municipio | X12: Atención Mes 4 | AC12: Mes 11 | AD12: COMUNITARIOS | AE12: GRAVAMEN MOVIMIENTOS FINANCIEROS GMF | AF12: COMUNITARIOS_TRANSPORTE_Y_VIAJES_DEL_TH | AG12: COMUNITARIOS | AH12: TRANSPORTE Y VIAJES DEL TH | AI12: Coordinador General
J13: 54 | K13: NORTE DE SANTANDER | L13: 5404 | M13: CZ OCAÑA | N13: 54498 | O13: OCAÑA | P13: 54 | Q13: NORTE DE SANTANDER | R13: 54498 | S13: OCAÑA | T13: Municipio | X13: Atención Mes 5 | AC13: Mes 12 | AD13: COMUNITARIOS | AE13: MATERIAL DE CONSUMO | AF13: COMUNITARIOS_TRANSPORTE_Y_VIAJES_DEL_TH | AG13: COMUNITARIOS | AH13: TRANSPORTE Y VIAJES DEL TH | AI13: Pedagogo (a)
J14: 54 | K14: NORTE DE SANTANDER | L14: 5403 | M14: CZ CUCUTA 3 | N14: 54553 | O14: PUERTO SANTANDER | P14: 54 | Q14: NORTE DE SANTANDER | R14: 54553 | S14: PUERTO SANTANDER | T14: Municipio | X14: Atención Mes 6 | AF14: COMUNITARIOS_TRANSPORTE_Y_VIAJES_DEL_TH | AG14: COMUNITARIOS | AH14: TRANSPORTE Y VIAJES DEL TH | AI14: Nutricionista Dietista
J15: 54 | K15: NORTE DE SANTANDER | L15: 5404 | M15: CZ OCAÑA | N15: 54670 | O15: SAN CALIXTO | P15: 54 | Q15: NORTE DE SANTANDER | R15: 54670 | S15: SAN CALIXTO | T15: Municipio | X15: Atención Mes 7 | AF15: COMUNITARIOS_TRANSPORTE_Y_VIAJES_DEL_TH | AG15: COMUNITARIOS | AH15: TRANSPORTE Y VIAJES DEL TH | AI15: Dinamizador(a) Comunitario
J16: 54 | K16: NORTE DE SANTANDER | L16: 5401 | M16: CZ CUCUTA 1 | N16: 54673 | O16: SAN CAYETANO | P16: 54 | Q16: NORTE DE SANTANDER | R16: 54673 | S16: SAN CAYETANO | T16: Municipio | X16: Atención Mes 8 | AF16: COMUNITARIOS_APOYOS_NUTRICIONALES | AG16: COMUNITARIOS | AH16: APOYOS NUTRICIONALES | AI16: Refrigerio reforzado (Encuentros entre pares)
J17: 54 | K17: NORTE DE SANTANDER | L17: 5402 | M17: CZ CUCUTA 2 | N17: 54720 | O17: SARDINATA | P17: 54 | Q17: NORTE DE SANTANDER | R17: 54720 | S17: SARDINATA | T17: Municipio | X17: Atención Mes 9 | AF17: COMUNITARIOS_APOYOS_NUTRICIONALES | AG17: COMUNITARIOS | AH17: APOYOS NUTRICIONALES | AI17: Refrigerio reforzado (Encuentros comunitarios)
J18: 54 | K18: NORTE DE SANTANDER | L18: 5404 | M18: CZ OCAÑA | N18: 54800 | O18: TEORAMA | P18: 54 | Q18: NORTE DE SANTANDER | R18: 54800 | S18: TEORAMA | T18: Municipio | X18: Atención Mes 10 | AF18: COMUNITARIOS_APOYOS_NUTRICIONALES | AG18: COMUNITARIOS | AH18: APOYOS NUTRICIONALES | AI18: Olla comunitaria
J19: 54 | K19: NORTE DE SANTANDER | L19: 5406 | M19: CZ TIBU | N19: 54810 | O19: TIBÚ | P19: 54 | Q19: NORTE DE SANTANDER | R19: 54810 | S19: TIBÚ | T19: Municipio | X19: Atención Mes 11 | AF19: COMUNITARIOS_DOTACIÓN | AG19: COMUNITARIOS | AH19: DOTACIÓN | AI19: Botiquín
J20: 54 | K20: NORTE DE SANTANDER | L20: 5403 | M20: CZ CUCUTA 3 | N20: 54874 | O20: VILLA DEL ROSARIO | P20: 54 | Q20: NORTE DE SANTANDER | R20: 54874 | S20: VILLA DEL ROSARIO | T20: Municipio | X20: Atención Mes 12 | AF20: COMUNITARIOS_DOTACIÓN | AG20: COMUNITARIOS | AH20: DOTACIÓN | AI20: Kit de aseo personal
X21: Cierre | AF21: COMUNITARIOS_SERVICIO_DE_COMUNICACIÓN_MÓBIL_E_NTERNET | AG21: COMUNITARIOS | AH21: SERVICIO DE COMUNICACIÓN MÓBIL E NTERNET | AI21: Servicio de comunicación móbil e Internet
AF22: COMUNITARIOS_MATERIAL_IDENTIFICACIÓN | AG22: COMUNITARIOS | AH22: MATERIAL IDENTIFICACIÓN | AI22: Chalecos
AF23: COMUNITARIOS_MATERIAL_IDENTIFICACIÓN | AG23: COMUNITARIOS | AH23: MATERIAL IDENTIFICACIÓN | AI23: Gorras
AF24: COMUNITARIOS_MATERIAL_IDENTIFICACIÓN | AG24: COMUNITARIOS | AH24: MATERIAL IDENTIFICACIÓN | AI24: Camisetas
AF25: COMUNITARIOS_MATERIAL_IDENTIFICACIÓN | AG25: COMUNITARIOS | AH25: MATERIAL IDENTIFICACIÓN | AI25: Carné
AF26: COMUNITARIOS_MATERIAL_IDENTIFICACIÓN | AG26: COMUNITARIOS | AH26: MATERIAL IDENTIFICACIÓN | AI26: Pendón
AF27: COMUNITARIOS_SEGURO | AG27: COMUNITARIOS | AH27: SEGURO | AI27: Seguro
AF28: COMUNITARIOS_APOYO_A_INICIATIVAS | AG28: COMUNITARIOS | AH28: APOYO A INICIATIVAS | AI28: Apoyo Iniciativas
AF29: COMUNITARIOS_GASTOS_OPERATIVOS | AG29: COMUNITARIOS | AH29: GASTOS OPERATIVOS | AI29: GASTOS OPERATIVOS
AF30: COMUNITARIOS_GASTOS_OPERATIVOS | AG30: COMUNITARIOS | AH30: GASTOS OPERATIVOS | AI30: GASTOS OPERATIVOS
AF31: COMUNITARIOS_GRAVAMEN_MOVIMIENTOS_FINANCIEROS_GMF | AG31: COMUNITARIOS | AH31: GRAVAMEN MOVIMIENTOS FINANCIEROS GMF | AI31: Gravamen Movimientos Financieros GMF
AF32: COMUNITARIOS_MATERIAL_DE_CONSUMO | AG32: COMUNITARIOS | AH32: MATERIAL DE CONSUMO | AI32: Bolígrafos mina negra - Caja
AF33: COMUNITARIOS_MATERIAL_DE_CONSUMO | AG33: COMUNITARIOS | AH33: MATERIAL DE CONSUMO | AI33: Papel bond - Resma
AF34: COMUNITARIOS_MATERIAL_DE_CONSUMO | AG34: COMUNITARIOS | AH34: MATERIAL DE CONSUMO | AI34: Nota adhesiva - Block
AF35: COMUNITARIOS_MATERIAL_DE_CONSUMO | AG35: COMUNITARIOS | AH35: MATERIAL DE CONSUMO | AI35: Marcadores permanentes - Caja
AF36: COMUNITARIOS_MATERIAL_DE_CONSUMO | AG36: COMUNITARIOS | AH36: MATERIAL DE CONSUMO | AI36: Papel Kraft - Rollo
AF37: COMUNITARIOS_MATERIAL_DE_CONSUMO | AG37: COMUNITARIOS | AH37: MATERIAL DE CONSUMO | AI37: Cinta de enmascarar - Rollo
AF38: COMUNITARIOS_MATERIAL_DE_CONSUMO | AG38: COMUNITARIOS | AH38: MATERIAL DE CONSUMO | AI38: Temperas - Caja
AF39: COMUNITARIOS_MATERIAL_DE_CONSUMO | AG39: COMUNITARIOS | AH39: MATERIAL DE CONSUMO | AI39: Pinceles - Sets
AF40: COMUNITARIOS_MATERIAL_DE_CONSUMO | AG40: COMUNITARIOS | AH40: MATERIAL DE CONSUMO | AI40: Pegante en líquido - Unidad
AF41: COMUNITARIOS_MATERIAL_DE_CONSUMO | AG41: COMUNITARIOS | AH41: MATERIAL DE CONSUMO | AI41: Colores - Caja
AF42: COMUNITARIOS_MATERIAL_DE_CONSUMO | AG42: COMUNITARIOS | AH42: MATERIAL DE CONSUMO | AI42: Fichas bibliográficas - Paquete
AF43: COMUNITARIOS_MATERIAL_DE_CONSUMO | AG43: COMUNITARIOS | AH43: MATERIAL DE CONSUMO | AI43: Lana - Paquete
AF44: COMUNITARIOS_MATERIAL_DE_CONSUMO | AG44: COMUNITARIOS | AH44: MATERIAL DE CONSUMO | AI44: Lana Silvia - Paquete
AF45: COMUNITARIOS_MATERIAL_DE_CONSUMO | AG45: COMUNITARIOS | AH45: MATERIAL DE CONSUMO | AI45: Ovillo hilo algodón eco - Paquete
AF46: COMUNITARIOS_MATERIAL_DE_CONSUMO | AG46: COMUNITARIOS | AH46: MATERIAL DE CONSUMO | AI46: Plastilina - Caja
AF47: COMUNITARIOS_MATERIAL_DE_CONSUMO | AG47: COMUNITARIOS | AH47: MATERIAL DE CONSUMO | AI47: Lápices - Paquete
AF48: COMUNITARIOS_MATERIAL_DE_CONSUMO | AG48: COMUNITARIOS | AH48: MATERIAL DE CONSUMO | AI48: Taja Lápiz - Unidad
AF49: COMUNITARIOS_MATERIAL_DE_CONSUMO | AG49: COMUNITARIOS | AH49: MATERIAL DE CONSUMO | AI49: Tijeras punta roma - Unidad
AF50: COMUNITARIOS_MATERIAL_DE_CONSUMO | AG50: COMUNITARIOS | AH50: MATERIAL DE CONSUMO | AI50: Palillos tipo pincho - Paquete
AF51: COMUNITARIOS_MATERIAL_DE_CONSUMO | AG51: COMUNITARIOS | AH51: MATERIAL DE CONSUMO | AI51: Borradores - Caja
AF52: COMUNITARIOS_MATERIAL_DE_CONSUMO | AG52: COMUNITARIOS | AH52: MATERIAL DE CONSUMO | AI52: Clips estándar - Caja
AF53: COMUNITARIOS_MATERIAL_DE_CONSUMO | AG53: COMUNITARIOS | AH53: MATERIAL DE CONSUMO | AI53: Papel Crepé - Rollo
AF54: COMUNITARIOS_MATERIAL_DE_CONSUMO | AG54: COMUNITARIOS | AH54: MATERIAL DE CONSUMO | AI54: Bandas elásticas - Bolsa
AF55: COMUNITARIOS_MATERIAL_DE_CONSUMO | AG55: COMUNITARIOS | AH55: MATERIAL DE CONSUMO | AI55: Arcilla - Paquete
AF56: COMUNITARIOS_MATERIAL_DE_CONSUMO | AG56: COMUNITARIOS | AH56: MATERIAL DE CONSUMO | AI56: Cartón paja - Paquete
AF57: COMUNITARIOS_MATERIAL_DE_CONSUMO | AG57: COMUNITARIOS | AH57: MATERIAL DE CONSUMO | AI57: Cartulina - Paquete
AF58: COMUNITARIOS_MATERIAL_DE_CONSUMO | AG58: COMUNITARIOS | AH58: MATERIAL DE CONSUMO | AI58: Regla plástica - Paquete
AF59: COMUNITARIOS_MATERIAL_DE_CONSUMO | AG59: COMUNITARIOS | AH59: MATERIAL DE CONSUMO | AI59: Silicona Líquida - Unidad
AF60: COMUNITARIOS_MATERIAL_DE_CONSUMO | AG60: COMUNITARIOS | AH60: MATERIAL DE CONSUMO | AI60: Papel para origami - Block
AF61: COMUNITARIOS_MATERIAL_DE_CONSUMO | AG61: COMUNITARIOS | AH61: MATERIAL DE CONSUMO | AI61: Acuarelas - Unidad
AF62: COMUNITARIOS_MATERIAL_DE_CONSUMO | AG62: COMUNITARIOS | AH62: MATERIAL DE CONSUMO | AI62: Vinilos - Unidad
AF63: COMUNITARIOS_MATERIAL_DE_CONSUMO | AG63: COMUNITARIOS | AH63: MATERIAL DE CONSUMO | AI63: Papel iris - Block
AF64: COMUNITARIOS_MATERIAL_DE_CONSUMO | AG64: COMUNITARIOS | AH64: MATERIAL DE CONSUMO | AI64: Palos de paleta - Paquete
AF65: COMUNITARIOS_MATERIAL_DE_CONSUMO | AG65: COMUNITARIOS | AH65: MATERIAL DE CONSUMO | AI65: Block de dibujo - Block
AF66: COMUNITARIOS_MATERIAL_DE_CONSUMO | AG66: COMUNITARIOS | AH66: MATERIAL DE CONSUMO | AI66: Formato DIN A3 - Block
AF67: COMUNITARIOS_MATERIAL_DE_CONSUMO | AG67: COMUNITARIOS | AH67: MATERIAL DE CONSUMO | AI67: Tabla de dibujo formato DIN A3 - Unidad
AF68: COMUNITARIOS_MATERIAL_DE_CONSUMO | AG68: COMUNITARIOS | AH68: MATERIAL DE CONSUMO | AI68: Lápiz de dibujo HB - Caja
AF69: COMUNITARIOS_MATERIAL_DE_CONSUMO | AG69: COMUNITARIOS | AH69: MATERIAL DE CONSUMO | AI69: Lápiz de dibujo 2H - Caja
AF70: COMUNITARIOS_MATERIAL_DE_CONSUMO | AG70: COMUNITARIOS | AH70: MATERIAL DE CONSUMO | AI70: Cuaderno de dibujo - Unidad
AF71: COMUNITARIOS_MATERIAL_DE_CONSUMO | AG71: COMUNITARIOS | AH71: MATERIAL DE CONSUMO | AI71: Libreta de bocetos - Unidad
AF72: COMUNITARIOS_MATERIAL_DE_CONSUMO | AG72: COMUNITARIOS | AH72: MATERIAL DE CONSUMO | AI72: Plumas artificiales - Paquete
AF73: COMUNITARIOS_MATERIAL_DE_CONSUMO | AG73: COMUNITARIOS | AH73: MATERIAL DE CONSUMO | AI73: Lienzo con Bastidor - Unidad
AF74: COMUNITARIOS_MATERIAL_DE_CONSUMO | AG74: COMUNITARIOS | AH74: MATERIAL DE CONSUMO | AI74: Lápiz carboncillo charcoal Dixon Suave C / Pita - Unidad
AF75: COMUNITARIOS_MATERIAL_DE_CONSUMO | AG75: COMUNITARIOS | AH75: MATERIAL DE CONSUMO | AI75: Tinta china de colores - Caja
AF76: COMUNITARIOS_MATERIAL_DE_CONSUMO | AG76: COMUNITARIOS | AH76: MATERIAL DE CONSUMO | AI76: Set de plumones - Unidad
AF77: COMUNITARIOS_MATERIAL_DE_CONSUMO | AG77: COMUNITARIOS | AH77: MATERIAL DE CONSUMO | AI77: Masa porcelana fria - Unidad
AF78: COMUNITARIOS_MATERIAL_DE_CONSUMO | AG78: COMUNITARIOS | AH78: MATERIAL DE CONSUMO | AI78: Tiza oleo - Caja
AF79: COMUNITARIOS_MATERIAL_DE_CONSUMO | AG79: COMUNITARIOS | AH79: MATERIAL DE CONSUMO | AI79: Set óleo - Caja
AF80: COMUNITARIOS_MATERIAL_DE_CONSUMO | AG80: COMUNITARIOS | AH80: MATERIAL DE CONSUMO | AI80: Pintura para vidrios cristal visos - Caja
AF81: COMUNITARIOS_MATERIAL_DE_CONSUMO | AG81: COMUNITARIOS | AH81: MATERIAL DE CONSUMO | AI81: Secante Cobalto - Unidad
AF82: COMUNITARIOS_MATERIAL_DE_CONSUMO | AG82: COMUNITARIOS | AH82: MATERIAL DE CONSUMO | AI82: Barniz Super Brillante - Unidad
AF83: COMUNITARIOS_MATERIAL_DE_CONSUMO | AG83: COMUNITARIOS | AH83: MATERIAL DE CONSUMO | AI83: Disolvente Oleo - Unidad
AF84: COMUNITARIOS_MATERIAL_DE_CONSUMO | AG84: COMUNITARIOS | AH84: MATERIAL DE CONSUMO | AI84: Trementina o aguarrás - Unidad
AF85: COMUNITARIOS_MATERIAL_DE_CONSUMO | AG85: COMUNITARIOS | AH85: MATERIAL DE CONSUMO | AI85: Estuche acrílico - Caja
AF86: COMUNITARIOS_MATERIAL_DE_CONSUMO | AG86: COMUNITARIOS | AH86: MATERIAL DE CONSUMO | AI86: Papel filigrana - Paquete
AF87: COMUNITARIOS_MATERIAL_DE_CONSUMO | AG87: COMUNITARIOS | AH87: MATERIAL DE CONSUMO | AI87: Papel filigrana - Paquete
AF88: COMUNITARIOS_MATERIAL_DE_CONSUMO | AG88: COMUNITARIOS | AH88: MATERIAL DE CONSUMO | AI88: Kit de Miyuki - Kit
AF89: COMUNITARIOS_MATERIAL_DE_CONSUMO | AG89: COMUNITARIOS | AH89: MATERIAL DE CONSUMO | AI89: Kit de Bisuteria - Kit
AF90: COMUNITARIOS_MATERIAL_DE_CONSUMO | AG90: COMUNITARIOS | AH90: MATERIAL DE CONSUMO | AI90: Madejas de hilos - Kit
AF91: COMUNITARIOS_MATERIAL_DE_CONSUMO | AG91: COMUNITARIOS | AH91: MATERIAL DE CONSUMO | AI91: Agujas para bordar - Paquete
AF92: COMUNITARIOS_MATERIAL_DE_CONSUMO | AG92: COMUNITARIOS | AH92: MATERIAL DE CONSUMO | AI92: Balones de fútbol - Unidad
AF93: COMUNITARIOS_MATERIAL_DE_CONSUMO | AG93: COMUNITARIOS | AH93: MATERIAL DE CONSUMO | AI93: Balones de baloncesto - Unidad
AF94: COMUNITARIOS_MATERIAL_DE_CONSUMO | AG94: COMUNITARIOS | AH94: MATERIAL DE CONSUMO | AI94: Lazos - Unidad
AF95: COMUNITARIOS_MATERIAL_DE_CONSUMO | AG95: COMUNITARIOS | AH95: MATERIAL DE CONSUMO | AI95: Balón de voleibol - Unidad

Sheet Listas_COM (hidden)
B1: Cód. Regional | C1: Regional | E1: Cód. Regional | F1: Regional | G1: Cód. Sucursal o Centro Zonal | H1: NOMBRE CENTRO ZONAL | J1: Cód. Regional | K1: Regional | L1: Cód. Sucursal o Centro Zonal | M1: NOMBRE CENTRO ZONAL | N1: Cód. Municipio | O1: NOMBRE MUNICIPIO | P1: Codigo DANE departamento | Q1: Nombre DANE Departamento | R1: Cód. DANE | S1: Nombre municipio/Centro poblado | T1: TIPO | V1: Formas | W1: Contrapartida | Y1: Tiempo Etapa | Z1: Meses | AA1: DETALLADA RECURSOS- LISTA DESPLEGABLE
B2: 20 | C2: CESAR | E2: 20 | F2: CESAR | G2: 2004 | H2: CZ AGUACHICA | J2: 20 | K2: CESAR | L2: 2004 | M2: CZ AGUACHICA | N2: 20310 | O2: GONZÁLEZ | P2: 20 | Q2: CESAR | R2: 20310 | S2: GONZÁLEZ | T2: Municipio | V2: COMUNITARIOS | W2: 0.03 | X2: ETAPA CONTRACTUAL | Y2: COMUNITARIOS | Z2: Mes 1 | AA2: FORMA ATENCIÓN | AB2: CONCEPTO | AC2: FORMA ATENCIÓN - CONCEPTO | AD2: FORMA ATENCIÓN | AE2: CONCEPTO | AF2: DETALLE
B3: 54 | C3: NORTE DE SANTANDER | E3: 54 | F3: NORTE DE SANTANDER | G3: 5401 | H3: CZ CUCUTA 1 | J3: 20 | K3: CESAR | L3: 2004 | M3: CZ AGUACHICA | N3: 20614 | O3: RÍO DE ORO | P3: 20 | Q3: CESAR | R3: 20614 | S3: RÍO DE ORO | T3: Municipio | X3: Alistamiento | Y3: 0.5 | Z3: Mes 2 | AA3: COMUNITARIOS | AB3: TALENTO HUMANO | AC3: COMUNITARIOS_TALENTO_HUMANO | AD3: COMUNITARIOS | AE3: TALENTO HUMANO | AF3: Coordinador(a)
E4: 54 | F4: NORTE DE SANTANDER | G4: 5402 | H4: CZ CUCUTA 2 | J4: 54 | K4: NORTE DE SANTANDER | L4: 5401 | M4: CZ CUCUTA 1 | N4: 54001 | O4: SAN JOSÉ DE CÚCUTA | P4: 54 | Q4: NORTE DE SANTANDER | R4: 54001 | S4: SAN JOSÉ DE CÚCUTA | T4: Municipio | X4: Atención | Y4: 3 | Z4: Mes 3 | AA4: COMUNITARIOS | AB4: TRANSPORTE Y VIAJES DEL TH | AC4: COMUNITARIOS_TALENTO_HUMANO | AD4: COMUNITARIOS | AE4: TALENTO HUMANO | AF4: Pedagogo
E5: 54 | F5: NORTE DE SANTANDER | G5: 5403 | H5: CZ CUCUTA 3 | J5: 54 | K5: NORTE DE SANTANDER | L5: 5404 | M5: CZ OCAÑA | N5: 54003 | O5: ABREGO | P5: 54 | Q5: NORTE DE SANTANDER | R5: 54003 | S5: ÁBREGO | T5: Municipio | X5: Cierre | Y5: 0.5 | Z5: Mes 4 | AA5: COMUNITARIOS | AB5: APOYOS NUTRICIONALES | AC5: COMUNITARIOS_TALENTO_HUMANO | AD5: COMUNITARIOS | AE5: TALENTO HUMANO | AF5: Nutricionista
E6: 54 | F6: NORTE DE SANTANDER | G6: 5404 | H6: CZ OCAÑA | J6: 54 | K6: NORTE DE SANTANDER | L6: 5404 | M6: CZ OCAÑA | N6: 54206 | O6: CONVENCIÓN | P6: 54 | Q6: NORTE DE SANTANDER | R6: 54206 | S6: CONVENCIÓN | T6: Municipio | X6: TOTAL TIEMPO | Y6: =SUM(Y3:Y5) -> 4 | Z6: Mes 5 | AA6: COMUNITARIOS | AB6: DOTACIÓN | AC6: COMUNITARIOS_TALENTO_HUMANO | AD6: COMUNITARIOS | AE6: TALENTO HUMANO | AF6: Psicólogo(a)
E7: 54 | F7: NORTE DE SANTANDER | G7: 5406 | H7: CZ TIBU | J7: 54 | K7: NORTE DE SANTANDER | L7: 5404 | M7: CZ OCAÑA | N7: 54245 | O7: EL CARMEN | P7: 54 | Q7: NORTE DE SANTANDER | R7: 54245 | S7: EL CARMEN | T7: Municipio | Z7: Mes 6 | AA7: COMUNITARIOS | AB7: SERVICIO DE COMUNICACIÓN MÓBIL E NTERNET | AC7: COMUNITARIOS_TALENTO_HUMANO | AD7: COMUNITARIOS | AE7: TALENTO HUMANO | AF7: Psicosocial
J8: 54 | K8: NORTE DE SANTANDER | L8: 5406 | M8: CZ TIBU | N8: 54250 | O8: EL TARRA | P8: 54 | Q8: NORTE DE SANTANDER | R8: 54250 | S8: EL TARRA | T8: Municipio | X8: Alistamiento | Z8: Mes 7 | AA8: COMUNITARIOS | AB8: MATERIAL IDENTIFICACIÓN | AC8: COMUNITARIOS_TALENTO_HUMANO | AD8: COMUNITARIOS | AE8: TALENTO HUMANO | AF8: Gestor(a) de Experiencias 1
J9: 54 | K9: NORTE DE SANTANDER | L9: 5401 | M9: CZ CUCUTA 1 | N9: 54261 | O9: EL ZULIA | P9: 54 | Q9: NORTE DE SANTANDER | R9: 54261 | S9: EL ZULIA | T9: Municipio | X9: Atención Mes 1 | Z9: Mes 8 | AA9: COMUNITARIOS | AB9: SEGURO | AC9: COMUNITARIOS_TALENTO_HUMANO | AD9: COMUNITARIOS | AE9: TALENTO HUMANO | AF9: Gestor(a) de Experiencias 2
J10: 54 | K10: NORTE DE SANTANDER | L10: 5404 | M10: CZ OCAÑA | N10: 54344 | O10: HACARÍ | P10: 54 | Q10: NORTE DE SANTANDER | R10: 54344 | S10: HACARÍ | T10: Municipio | X10: Atención Mes 2 | Z10: Mes 9 | AA10: COMUNITARIOS | AB10: APOYO A INICIATIVAS | AC10: COMUNITARIOS_TALENTO_HUMANO | AD10: COMUNITARIOS | AE10: TALENTO HUMANO | AF10: Dinamizador(a) comunitario
J11: 54 | K11: NORTE DE SANTANDER | L11: 5404 | M11: CZ OCAÑA | N11: 54398 | O11: LA PLAYA | P11: 54 | Q11: NORTE DE SANTANDER | R11: 54398 | S11: LA PLAYA | T11: Municipio | X11: Atención Mes 3 | Z11: Mes 10 | AA11: COMUNITARIOS | AB11: GASTOS OPERATIVOS | AC11: COMUNITARIOS_TALENTO_HUMANO | AD11: COMUNITARIOS | AE11: TALENTO HUMANO | AF11: Auxiliar Administrativo
J12: 54 | K12: NORTE DE SANTANDER | L12: 5401 | M12: CZ CUCUTA 1 | N12: 54405 | O12: LOS PATIOS | P12: 54 | Q12: NORTE DE SANTANDER | R12: 54405 | S12: LOS PATIOS | T12: Municipio | X12: Atención Mes 4 | Z12: Mes 11 | AA12: COMUNITARIOS | AB12: GRAVAMEN MOVIMIENTOS FINANCIEROS GMF | AC12: COMUNITARIOS_TRANSPORTE_Y_VIAJES_DEL_TH | AD12: COMUNITARIOS | AE12: TRANSPORTE Y VIAJES DEL TH | AF12: Coordinador General
J13: 54 | K13: NORTE DE SANTANDER | L13: 5404 | M13: CZ OCAÑA | N13: 54498 | O13: OCAÑA | P13: 54 | Q13: NORTE DE SANTANDER | R13: 54498 | S13: OCAÑA | T13: Municipio | X13: Atención Mes 5 | Z13: Mes 12 | AA13: COMUNITARIOS | AB13: MATERIAL DE CONSUMO | AC13: COMUNITARIOS_TRANSPORTE_Y_VIAJES_DEL_TH | AD13: COMUNITARIOS | AE13: TRANSPORTE Y VIAJES DEL TH | AF13: Pedagogo (a)
J14: 54 | K14: NORTE DE SANTANDER | L14: 5403 | M14: CZ CUCUTA 3 | N14: 54553 | O14: PUERTO SANTANDER | P14: 54 | Q14: NORTE DE SANTANDER | R14: 54553 | S14: PUERTO SANTANDER | T14: Municipio | X14: Atención Mes 6 | AC14: COMUNITARIOS_TRANSPORTE_Y_VIAJES_DEL_TH | AD14: COMUNITARIOS | AE14: TRANSPORTE Y VIAJES DEL TH | AF14: Nutricionista Dietista
J15: 54 | K15: NORTE DE SANTANDER | L15: 5404 | M15: CZ OCAÑA | N15: 54670 | O15: SAN CALIXTO | P15: 54 | Q15: NORTE DE SANTANDER | R15: 54670 | S15: SAN CALIXTO | T15: Municipio | X15: Atención Mes 7 | AC15: COMUNITARIOS_TRANSPORTE_Y_VIAJES_DEL_TH | AD15: COMUNITARIOS | AE15: TRANSPORTE Y VIAJES DEL TH | AF15: Dinamizador(a) Comunitario
J16: 54 | K16: NORTE DE SANTANDER | L16: 5401 | M16: CZ CUCUTA 1 | N16: 54673 | O16: SAN CAYETANO | P16: 54 | Q16: NORTE DE SANTANDER | R16: 54673 | S16: SAN CAYETANO | T16: Municipio | X16: Atención Mes 8 | AC16: COMUNITARIOS_APOYOS_NUTRICIONALES | AD16: COMUNITARIOS | AE16: APOYOS NUTRICIONALES | AF16: Refrigerio reforzado (Encuentros entre pares)
J17: 54 | K17: NORTE DE SANTANDER | L17: 5402 | M17: CZ CUCUTA 2 | N17: 54720 | O17: SARDINATA | P17: 54 | Q17: NORTE DE SANTANDER | R17: 54720 | S17: SARDINATA | T17: Municipio | X17: Atención Mes 9 | AC17: COMUNITARIOS_APOYOS_NUTRICIONALES | AD17: COMUNITARIOS | AE17: APOYOS NUTRICIONALES | AF17: Refrigerio reforzado (Encuentros comunitarios)
J18: 54 | K18: NORTE DE SANTANDER | L18: 5404 | M18: CZ OCAÑA | N18: 54800 | O18: TEORAMA | P18: 54 | Q18: NORTE DE SANTANDER | R18: 54800 | S18: TEORAMA | T18: Municipio | X18: Atención Mes 10 | AC18: COMUNITARIOS_APOYOS_NUTRICIONALES | AD18: COMUNITARIOS | AE18: APOYOS NUTRICIONALES | AF18: Olla comunitaria
J19: 54 | K19: NORTE DE SANTANDER | L19: 5406 | M19: CZ TIBU | N19: 54810 | O19: TIBÚ | P19: 54 | Q19: NORTE DE SANTANDER | R19: 54810 | S19: TIBÚ | T19: Municipio | X19: Atención Mes 11 | AC19: COMUNITARIOS_DOTACIÓN | AD19: COMUNITARIOS | AE19: DOTACIÓN | AF19: Botiquín
J20: 54 | K20: NORTE DE SANTANDER | L20: 5403 | M20: CZ CUCUTA 3 | N20: 54874 | O20: VILLA DEL ROSARIO | P20: 54 | Q20: NORTE DE SANTANDER | R20: 54874 | S20: VILLA DEL ROSARIO | T20: Municipio | X20: Atención Mes 12 | AC20: COMUNITARIOS_DOTACIÓN | AD20: COMUNITARIOS | AE20: DOTACIÓN | AF20: Kit de aseo personal
X21: Cierre | AC21: COMUNITARIOS_SERVICIO_DE_COMUNICACIÓN_MÓBIL_E_NTERNET | AD21: COMUNITARIOS | AE21: SERVICIO DE COMUNICACIÓN MÓBIL E NTERNET | AF21: Servicio de comunicación móbil e Internet
AC22: COMUNITARIOS_MATERIAL_IDENTIFICACIÓN | AD22: COMUNITARIOS | AE22: MATERIAL IDENTIFICACIÓN | AF22: Chalecos
AC23: COMUNITARIOS_MATERIAL_IDENTIFICACIÓN | AD23: COMUNITARIOS | AE23: MATERIAL IDENTIFICACIÓN | AF23: Gorras
AC24: COMUNITARIOS_MATERIAL_IDENTIFICACIÓN | AD24: COMUNITARIOS | AE24: MATERIAL IDENTIFICACIÓN | AF24: Camisetas
AC25: COMUNITARIOS_MATERIAL_IDENTIFICACIÓN | AD25: COMUNITARIOS | AE25: MATERIAL IDENTIFICACIÓN | AF25: Carné
AC26: COMUNITARIOS_MATERIAL_IDENTIFICACIÓN | AD26: COMUNITARIOS | AE26: MATERIAL IDENTIFICACIÓN | AF26: Pendón
AC27: COMUNITARIOS_SEGURO | AD27: COMUNITARIOS | AE27: SEGURO | AF27: Seguro
AC28: COMUNITARIOS_APOYO_A_INICIATIVAS | AD28: COMUNITARIOS | AE28: APOYO A INICIATIVAS | AF28: Apoyo Iniciativas
AC29: COMUNITARIOS_GASTOS_OPERATIVOS | AD29: COMUNITARIOS | AE29: GASTOS OPERATIVOS | AF29: GASTOS OPERATIVOS
AC30: COMUNITARIOS_GASTOS_OPERATIVOS | AD30: COMUNITARIOS | AE30: GASTOS OPERATIVOS | AF30: GASTOS OPERATIVOS
AC31: COMUNITARIOS_GRAVAMEN_MOVIMIENTOS_FINANCIEROS_GMF | AD31: COMUNITARIOS | AE31: GRAVAMEN MOVIMIENTOS FINANCIEROS GMF | AF31: Gravamen Movimientos Financieros GMF
AC32: COMUNITARIOS_MATERIAL_DE_CONSUMO | AD32: COMUNITARIOS | AE32: MATERIAL DE CONSUMO | AF32: Bolígrafos mina negra - Caja
AC33: COMUNITARIOS_MATERIAL_DE_CONSUMO | AD33: COMUNITARIOS | AE33: MATERIAL DE CONSUMO | AF33: Papel bond - Resma
AC34: COMUNITARIOS_MATERIAL_DE_CONSUMO | AD34: COMUNITARIOS | AE34: MATERIAL DE CONSUMO | AF34: Nota adhesiva - Block
AC35: COMUNITARIOS_MATERIAL_DE_CONSUMO | AD35: COMUNITARIOS | AE35: MATERIAL DE CONSUMO | AF35: Marcadores permanentes - Caja
AC36: COMUNITARIOS_MATERIAL_DE_CONSUMO | AD36: COMUNITARIOS | AE36: MATERIAL DE CONSUMO | AF36: Papel Kraft - Rollo
AC37: COMUNITARIOS_MATERIAL_DE_CONSUMO | AD37: COMUNITARIOS | AE37: MATERIAL DE CONSUMO | AF37: Cinta de enmascarar - Rollo
AC38: COMUNITARIOS_MATERIAL_DE_CONSUMO | AD38: COMUNITARIOS | AE38: MATERIAL DE CONSUMO | AF38: Temperas - Caja
AC39: COMUNITARIOS_MATERIAL_DE_CONSUMO | AD39: COMUNITARIOS | AE39: MATERIAL DE CONSUMO | AF39: Pinceles - Sets
AC40: COMUNITARIOS_MATERIAL_DE_CONSUMO | AD40: COMUNITARIOS | AE40: MATERIAL DE CONSUMO | AF40: Pegante en líquido - Unidad
AC41: COMUNITARIOS_MATERIAL_DE_CONSUMO | AD41: COMUNITARIOS | AE41: MATERIAL DE CONSUMO | AF41: Colores - Caja
AC42: COMUNITARIOS_MATERIAL_DE_CONSUMO | AD42: COMUNITARIOS | AE42: MATERIAL DE CONSUMO | AF42: Fichas bibliográficas - Paquete
AC43: COMUNITARIOS_MATERIAL_DE_CONSUMO | AD43: COMUNITARIOS | AE43: MATERIAL DE CONSUMO | AF43: Lana - Paquete
AC44: COMUNITARIOS_MATERIAL_DE_CONSUMO | AD44: COMUNITARIOS | AE44: MATERIAL DE CONSUMO | AF44: Lana Silvia - Paquete
AC45: COMUNITARIOS_MATERIAL_DE_CONSUMO | AD45: COMUNITARIOS | AE45: MATERIAL DE CONSUMO | AF45: Ovillo hilo algodón eco - Paquete
AC46: COMUNITARIOS_MATERIAL_DE_CONSUMO | AD46: COMUNITARIOS | AE46: MATERIAL DE CONSUMO | AF46: Plastilina - Caja
AC47: COMUNITARIOS_MATERIAL_DE_CONSUMO | AD47: COMUNITARIOS | AE47: MATERIAL DE CONSUMO | AF47: Lápices - Paquete
AC48: COMUNITARIOS_MATERIAL_DE_CONSUMO | AD48: COMUNITARIOS | AE48: MATERIAL DE CONSUMO | AF48: Taja Lápiz - Unidad
AC49: COMUNITARIOS_MATERIAL_DE_CONSUMO | AD49: COMUNITARIOS | AE49: MATERIAL DE CONSUMO | AF49: Tijeras punta roma - Unidad
AC50: COMUNITARIOS_MATERIAL_DE_CONSUMO | AD50: COMUNITARIOS | AE50: MATERIAL DE CONSUMO | AF50: Palillos tipo pincho - Paquete
AC51: COMUNITARIOS_MATERIAL_DE_CONSUMO | AD51: COMUNITARIOS | AE51: MATERIAL DE CONSUMO | AF51: Borradores - Caja
AC52: COMUNITARIOS_MATERIAL_DE_CONSUMO | AD52: COMUNITARIOS | AE52: MATERIAL DE CONSUMO | AF52: Clips estándar - Caja
AC53: COMUNITARIOS_MATERIAL_DE_CONSUMO | AD53: COMUNITARIOS | AE53: MATERIAL DE CONSUMO | AF53: Papel Crepé - Rollo
AC54: COMUNITARIOS_MATERIAL_DE_CONSUMO | AD54: COMUNITARIOS | AE54: MATERIAL DE CONSUMO | AF54: Bandas elásticas - Bolsa
AC55: COMUNITARIOS_MATERIAL_DE_CONSUMO | AD55: COMUNITARIOS | AE55: MATERIAL DE CONSUMO | AF55: Arcilla - Paquete
AC56: COMUNITARIOS_MATERIAL_DE_CONSUMO | AD56: COMUNITARIOS | AE56: MATERIAL DE CONSUMO | AF56: Cartón paja - Paquete
AC57: COMUNITARIOS_MATERIAL_DE_CONSUMO | AD57: COMUNITARIOS | AE57: MATERIAL DE CONSUMO | AF57: Cartulina - Paquete
AC58: COMUNITARIOS_MATERIAL_DE_CONSUMO | AD58: COMUNITARIOS | AE58: MATERIAL DE CONSUMO | AF58: Regla plástica - Paquete
AC59: COMUNITARIOS_MATERIAL_DE_CONSUMO | AD59: COMUNITARIOS | AE59: MATERIAL DE CONSUMO | AF59: Silicona Líquida - Unidad
AC60: COMUNITARIOS_MATERIAL_DE_CONSUMO | AD60: COMUNITARIOS | AE60: MATERIAL DE CONSUMO | AF60: Papel para origami - Block
AC61: COMUNITARIOS_MATERIAL_DE_CONSUMO | AD61: COMUNITARIOS | AE61: MATERIAL DE CONSUMO | AF61: Acuarelas - Unidad
AC62: COMUNITARIOS_MATERIAL_DE_CONSUMO | AD62: COMUNITARIOS | AE62: MATERIAL DE CONSUMO | AF62: Vinilos - Unidad
AC63: COMUNITARIOS_MATERIAL_DE_CONSUMO | AD63: COMUNITARIOS | AE63: MATERIAL DE CONSUMO | AF63: Papel iris - Block
AC64: COMUNITARIOS_MATERIAL_DE_CONSUMO | AD64: COMUNITARIOS | AE64: MATERIAL DE CONSUMO | AF64: Palos de paleta - Paquete
AC65: COMUNITARIOS_MATERIAL_DE_CONSUMO | AD65: COMUNITARIOS | AE65: MATERIAL DE CONSUMO | AF65: Block de dibujo - Block
AC66: COMUNITARIOS_MATERIAL_DE_CONSUMO | AD66: COMUNITARIOS | AE66: MATERIAL DE CONSUMO | AF66: Formato DIN A3 - Block
AC67: COMUNITARIOS_MATERIAL_DE_CONSUMO | AD67: COMUNITARIOS | AE67: MATERIAL DE CONSUMO | AF67: Tabla de dibujo formato DIN A3 - Unidad
AC68: COMUNITARIOS_MATERIAL_DE_CONSUMO | AD68: COMUNITARIOS | AE68: MATERIAL DE CONSUMO | AF68: Lápiz de dibujo HB - Caja
AC69: COMUNITARIOS_MATERIAL_DE_CONSUMO | AD69: COMUNITARIOS | AE69: MATERIAL DE CONSUMO | AF69: Lápiz de dibujo 2H - Caja
AC70: COMUNITARIOS_MATERIAL_DE_CONSUMO | AD70: COMUNITARIOS | AE70: MATERIAL DE CONSUMO | AF70: Cuaderno de dibujo - Unidad
AC71: COMUNITARIOS_MATERIAL_DE_CONSUMO | AD71: COMUNITARIOS | AE71: MATERIAL DE CONSUMO | AF71: Libreta de bocetos - Unidad
AC72: COMUNITARIOS_MATERIAL_DE_CONSUMO | AD72: COMUNITARIOS | AE72: MATERIAL DE CONSUMO | AF72: Plumas artificiales - Paquete
AC73: COMUNITARIOS_MATERIAL_DE_CONSUMO | AD73: COMUNITARIOS | AE73: MATERIAL DE CONSUMO | AF73: Lienzo con Bastidor - Unidad
AC74: COMUNITARIOS_MATERIAL_DE_CONSUMO | AD74: COMUNITARIOS | AE74: MATERIAL DE CONSUMO | AF74: Lápiz carboncillo charcoal Dixon Suave C / Pita - Unidad
AC75: COMUNITARIOS_MATERIAL_DE_CONSUMO | AD75: COMUNITARIOS | AE75: MATERIAL DE CONSUMO | AF75: Tinta china de colores - Caja
AC76: COMUNITARIOS_MATERIAL_DE_CONSUMO | AD76: COMUNITARIOS | AE76: MATERIAL DE CONSUMO | AF76: Set de plumones - Unidad
AC77: COMUNITARIOS_MATERIAL_DE_CONSUMO | AD77: COMUNITARIOS | AE77: MATERIAL DE CONSUMO | AF77: Masa porcelana fria - Unidad
AC78: COMUNITARIOS_MATERIAL_DE_CONSUMO | AD78: COMUNITARIOS | AE78: MATERIAL DE CONSUMO | AF78: Tiza oleo - Caja
AC79: COMUNITARIOS_MATERIAL_DE_CONSUMO | AD79: COMUNITARIOS | AE79: MATERIAL DE CONSUMO | AF79: Set óleo - Caja
AC80: COMUNITARIOS_MATERIAL_DE_CONSUMO | AD80: COMUNITARIOS | AE80: MATERIAL DE CONSUMO | AF80: Pintura para vidrios cristal visos - Caja
AC81: COMUNITARIOS_MATERIAL_DE_CONSUMO | AD81: COMUNITARIOS | AE81: MATERIAL DE CONSUMO | AF81: Secante Cobalto - Unidad
AC82: COMUNITARIOS_MATERIAL_DE_CONSUMO | AD82: COMUNITARIOS | AE82: MATERIAL DE CONSUMO | AF82: Barniz Super Brillante - Unidad
AC83: COMUNITARIOS_MATERIAL_DE_CONSUMO | AD83: COMUNITARIOS | AE83: MATERIAL DE CONSUMO | AF83: Disolvente Oleo - Unidad
AC84: COMUNITARIOS_MATERIAL_DE_CONSUMO | AD84: COMUNITARIOS | AE84: MATERIAL DE CONSUMO | AF84: Trementina o aguarrás - Unidad
AC85: COMUNITARIOS_MATERIAL_DE_CONSUMO | AD85: COMUNITARIOS | AE85: MATERIAL DE CONSUMO | AF85: Estuche acrílico - Caja
AC86: COMUNITARIOS_MATERIAL_DE_CONSUMO | AD86: COMUNITARIOS | AE86: MATERIAL DE CONSUMO | AF86: Papel filigrana - Paquete
AC87: COMUNITARIOS_MATERIAL_DE_CONSUMO | AD87: COMUNITARIOS | AE87: MATERIAL DE CONSUMO | AF87: Papel filigrana - Paquete
AC88: COMUNITARIOS_MATERIAL_DE_CONSUMO | AD88: COMUNITARIOS | AE88: MATERIAL DE CONSUMO | AF88: Kit de Miyuki - Kit
AC89: COMUNITARIOS_MATERIAL_DE_CONSUMO | AD89: COMUNITARIOS | AE89: MATERIAL DE CONSUMO | AF89: Kit de Bisuteria - Kit
AC90: COMUNITARIOS_MATERIAL_DE_CONSUMO | AD90: COMUNITARIOS | AE90: MATERIAL DE CONSUMO | AF90: Madejas de hilos - Kit
AC91: COMUNITARIOS_MATERIAL_DE_CONSUMO | AD91: COMUNITARIOS | AE91: MATERIAL DE CONSUMO | AF91: Agujas para bordar - Paquete
AC92: COMUNITARIOS_MATERIAL_DE_CONSUMO | AD92: COMUNITARIOS | AE92: MATERIAL DE CONSUMO | AF92: Balones de fútbol - Unidad
AC93: COMUNITARIOS_MATERIAL_DE_CONSUMO | AD93: COMUNITARIOS | AE93: MATERIAL DE CONSUMO | AF93: Balones de baloncesto - Unidad
AC94: COMUNITARIOS_MATERIAL_DE_CONSUMO | AD94: COMUNITARIOS | AE94: MATERIAL DE CONSUMO | AF94: Lazos - Unidad
AC95: COMUNITARIOS_MATERIAL_DE_CONSUMO | AD95: COMUNITARIOS | AE95: MATERIAL DE CONSUMO | AF95: Balón de voleibol - Unidad

Sheet INSTRUCTIVO
B2: PROCESO PROMOCIÓN Y PREVENCIÓN FORMATO SEGUIMIENTO FINANCIERO ATRAPASUEÑOS | C2: F18.GO1.MT4.PP | D2: 2025-11-25
C3: =+'5. TABLA TOTALES EJECUTADOS'!M3 -> Versión 1 | D3: =+'4. DETALLADA-RECURSOS ICBF'!D3+1 -> 1
C4: Clasificación de la Información PÚBLICA
A5: INSTRUCTIVO
A6: HOJA 1
A7: 1. PRESUPUESTO
A8: OBJETIVO
A9: Dar a conocer en detalle el valor del presupuesto de ingresos y gastos presentado de acuerdo con la estructura del estudio de costos.
A10: FUENTE DE INFORMACION El estudio de costos para cada una de las formas de atención de la modalidad ATRAPASUEÑOS con sus anexos, propuesta, modificaciones en el marco del comité técnico.
A11: INFORMACIÓN GENERAL DEL CONTRATO/CONVENIO/INICIATIVA
A12: Forma de atención: seleccione en la lista desplegable la forma de atención.
A13: Regional: seleccione en la lista desplegable el nombre de la regional donde se desarrolla el contrato /convenio/ experiencia.
A14: Centro Zonal: seleccione en la lista desplegable el nombre del centro zonal donde se desarrolla el contrato /convenio/ experiencia.
A15: Zona: seleccione en la lista desplegable la zona donde se desarrolla el contrato /convenio/ experiencia.
A16: Municipio: digite el o los municipios donde se desarrolla el contrato /convenio/ experiencia.
A17: Entidad Contratista: Digite el nombre de la entidad.
A18: Nit: Digite el Nit de la entidad.
A19: N° del contrato: Ingrese número
A20: Fecha Inicio: Ingrese la fecha en la cual inicio el contrato /convenio/ experiencia.
A21: Fecha Final: Ingrese la fecha en la cual finaliza el contrato /convenio/ experiencia.
A22: Cupos contratados: Digite de acuerdo con la forma de atención registre el número de cupos contratados.
A23: Tiempo de atención: Digite de acuerdo con la forma de atención el tiempo de atención total (alistamiento, atención y cierre)
A24: Etapa contractual: valor que trae automáticamente el formato
A25: Costo cupo mes: valor que trae automáticamente el formato
A26: Valor mensual: valor que trae automáticamente el formato
A27: Tiempo por etapa: valor que trae automáticamente el formato
A28: Valor total contrato: valor que trae automáticamente el formato
A29: Valor total aporte: valor que trae automáticamente el formato
A30: 1. PRESUPUESTO DE INGRESOS: valor que trae automáticamente el formato.
A31: 2. PRESUPUESTO DE EGRESOS
A32: 2.1. PRESUPUESTO DE TALENTO HUMANO Y GASTOS DE VIAJE: Código, Componente del costo o gasto y Etapa de costo o gasto son valores que se traen automáticamente de la tabla de referencia del estudio de costos.
A33: 2.2. NIÑAS, NIÑOS Y ADOLESCENTES: Código, Componente del costo o gasto y Etapa de costo o gasto son valores que se traen automáticamente de la tabla de referencia del estudio de costos.
A34: 2.3. OTROS GASTOS ADMINISTRATIVOS, OPERATIVOS Y FINANCIEROS: Código, Componente del costo o gasto y Etapa de costo o gasto son valores que se traen automáticamente de la tabla de referencia del estudio de costos.
A35: TOTAL PRESUPUESTO DE GASTOS: es el total global de cada etapa (alistamiento, atención y cierre)
A36: DIFERENCIA: diferencia entre el valor de la etapa inicial según CCM y el total de la etapa por rubro.
A37: CONTROL DE VALORES: VERDADERO sin diferencia FALSO alerta, revisar la información ingresada.
A39: NOTA 1: Las Celdas con fondo verde claro son campos campos editables
A41: HOJA 2
A42: 2. INFORMACION GENERAL
A43: OBJETIVO
A44: Realizar seguimiento a la ejecución de los contratos asignados por cada una de las regiones y zonas para la atención de niñas niños y adolescentes de la modalidad ATRAPASUEÑOS
A45: FUENTE DE LA INFORMACION: hoja 1 PRESUPUESTO inicial
A46: Tener presente que la informacion basica la arrastra de lo señalado el la hoja 1 Presupesto
A47: Etapa de Alistamiento
A48: digite el valor ejecutado por cada uno de los rubros asignados
A49: TOTAL INEJECUCIONES MES (Inasistencias + No ejecutado + Diferencia Soportes): diligencie el valor de las inasistencias y lo no ejecutado en el tiempo asignado
A50: Etapa de Atencion
A51: digite el valor ejecutado por cada uno de los rubros asignados tenga presente que es mes vencido
A52: TOTAL INEJECUCIONES MES (Inasistencias + No ejecutado + Diferencia Soportes): diligencie el valor de las inasistencias y lo no ejecutado en el mes
A53: Etapa de cierre
A54: digite el valor ejecutado por cada uno de los rubros asignados
A55: TOTAL INEJECUCIONES MES (Inasistencias + No ejecutado + Diferencia Soportes): diligencie el valor de las inasistencias y lo no ejecutado en el mes
A56: Rendimientos Financieros
A57: fecha de inicio : coloque la fecha de ingreso de los recursos asignados por el ICBF
A58: Fecha de corte: ultimo dia del mes
A59: valor rendimientos: sume los valores reportados en el extracto teniendo en cuenta la etapa desarrollada
A60: Fecha de consignacion: se reintegrar a las cuentas del ICBF según corresponda la atención
A61: Reintegro
A62: fecha del reintegro: coloque la fecha en la cual realiza la consignación a la entidad y anexa el soporte
A64: NOTA 1: Las Celdas con fondo verde claro son campos campos editables
A65: NOTA 2: Para que la formulación de la hoja funcione de manera correcta, es necesario diligenciar la información de la columna "Programado" y no dejar campos en blanco.
A67: HOJA 3
A68: 3. CONTRAPARTIDA
A69: OBJETIVO
A70: Dar a conocer en detalle el valor de la contrapartida, que aportara el contratista indicando las líneas de atención, su valor inicial presupuestado, el valor ejecutado y el saldo final.
A71: FUENTE DE INFORMACIÓN
A72: Información contenida en la propuesta presentada por el operador u organizacion al ICBF, la información reportada por operador u organizacion.
A73: Detalles de la ejecución de la contrapartida
A74: Codigo: Corresponde al código asignado a cada la línea de inversión.
A75: Líneas de Inversión: nombre que está contenida en el estudio previo.
A76: Descripción: Corresponde al detalle de la línea de inversión por el cual se efectuará el gasto.
A77: Valor Presupuestado: Corresponde al valor asignado para ser ejecutado de acuerdo con la propuesta inicial presentada y las modificaciones autorizadas por el supervisor.
A78: Periodo mensual: Columna para cada uno de los periodos de la vigencia del contrato/convenio/experiencia donde se debe registrar el valor ejecutado en cada uno de ellos.
A79: Valor ejecutado a la fecha: Corresponde al valor que se ha ejecutado en el marco del contrato/convenio/experiencia. Contiene columnas por cada periodo que informe.
A80: Saldo por ejecutar: Corresponde al valor presupuestado menos el valor ejecutado a la fecha. Celda formulada
A82: NOTA 3: Este formato va acumulando la información por periodos en las celdas de valores Totales.
A85: HOJA 4
A86: 4. DETALLADA _RECURSOS ICBF
A87: OBJETIVO
A88: Realizar seguimiento a la ejecución de los contratos asignados por cada una de las regiones y zonas para la atención de niñas niños y adolescentes de la modalidad ATRAPASUEÑOS
A89: FUENTE DE LA INFORMACION: los operadores realizan el diligenciamiento en la etapa correspondiente
A90: Selecciona la etapa, digita fecha del soporte que se va a asignar de acuerdo con seleccionar en la fila que ingresa la información solicitada en cada una de las filas según descripción
A92: NOTA 4: Todos los ingresos y egresos ocasionados en los rubros anteriormente descritos y utilizados en la modalidad, deben ser registrados en su totalidad en el informe de ingresos y egresos, así como en la contabilidad de la entidad para su respectivo seguimiento y control.
A93: NOTA 5: El presupuesto debe ser firmado por el contador y/o revisor fiscal (cuando esté obligado a tenerlo) y el representante legal.
A94: NOTA 6: Todas las donaciones que se realicen a los programas del ICBF deben ser registradas en el informe de ingresos y egresos, si la entidad presta otros servicios y dicha donación se realizó a esos programas específicos, no se debe reportar la donación en los informes del ICBF.
A95: NOTA 7: Para que la formulación de la hoja funcione de manera correcta, es necesario diligenciar la información completa y no dejar campos en blanco.
A97: IMPORTANTE!!! Este archivo emplea Macros (herramienta útil Y eficiente que permite automatizar tareas, reducir el tiempo y permite concentrarte en el analisis y toma de decisisón).
A98: A continuación se encuentra un tutorial para activar las Macros :
A99: https://www.youtube.com/watch?v=iniQjS3MQa0&t=3s
A102: HOJA 5
A103: 5. TABLA TOTALES EJECUTADOS
A104: OBJETIVO
A105: Tabla Dinámica que permite validar la información de seguimiento a la ejecución de los contratos asignados por cada una de las regiones y zonas para la atención de niñas niños y adolescentes de la Modalidad ATRAPASUEÑOS
A106: FUENTE DE LA INFORMACION: los operadores Actualizan la información de la Tabla Dinamica, la cual toma datos de la Hoja 4. DETALLADA - RECURSOS ICBF
A111: ¡Antes de imprimir este documento… piense en el medio ambiente! Cualquier copia impresa de este documento se considera como COPIA NO CONTROLADA LOS DATOS PROPORCIONADOS SERÁN TRATADOS DE ACUERDO A LA POLÍTICA DE TRATAMIENTO DE DATOS PERSONALES DEL ICBF Y A LA LEY 1581 DE 2012

Sheet 1. PRESUPUESTO INICIAL
B2: PROCESO PROMOCIÓN Y PREVENCIÓN FORMATO SEGUIMIENTO FINANCIERO ATRAPASUEÑOS | E2: F18.GO1.MT4.PP | F2: 2025-11-25
E3: Versión 1 | F3: 1
E4: Clasificación de la Información PÚBLICA
A5: INFORMACIÓN GENERAL DEL CONTRATO/CONVENIO/INICIATIVA
A6: Forma de Atención | B6: COMUNITARIOS | C6: Regional | E6: MUNICIPIO (S) DE ATENCIÓN
A7: Centro Zonal | C7: Zona
A10: Entidad contratista | B10: Escribe la entidad Contratante | C10: Nit Entidad Contratista | E10: N° del Contrato
A11: Fecha de Inicio | D11: Fecha de Final
A12: Total Cupos Contratados | B12: 0 | C12: Tiempo de ejecución Meses | D12: 4 | E12: Valor contrato | F12: Valor total aportes ICBF
A13: ETAPA CONTRACTUAL | B13: Costo Cupo Mes (CCM) | C13: VALOR MENSUAL | D13: Tiempo por Etapa
A14: Alistamiento 2024 | B14: =IFERROR(IF($B$6="COMUNITARIOS",F14,IF($B$6="BID",F14,IF($B$6="APOYOS",#REF!,IF($B$6="EXPERIENCIAS",F14,0)))),0) ->  | C14: =IF(B14=F14,F14,IFERROR(B14*B12,0)) ->  | D14: =+IF(B14=F14,F14,(0.5*2)/15) ->  | E14: =+IFERROR(ROUND(C14*D14, ),F14) -> 
A15: Alistamiento 2025 | B15: =IFERROR(IF($B$6="COMUNITARIOS",F14,IF($B$6="BID",F14,IF($B$6="APOYOS",#REF!,IF($B$6="EXPERIENCIAS",F14,0)))),0) ->  | C15: =IF(B15=F14,F14,IFERROR(B15*B12,0)) ->  | D15: =+IF(B15=F14,F14,(0.5*13)/15) ->  | E15: =+IFERROR(ROUND(C15*D15, ),F14) -> 
A16: Alistamiento | B16: =IF($B$6="COMUNITARIOS", IFERROR(VLOOKUP($D$6, TR_COMU, 2, 0), 0), 0) -> 0 | C16: =IF(B16=F14,F14,IFERROR(B16*B12,0)) -> 0 | D16: =+IF(B16="",D14+D15,0.5) -> 0.5 | E16: =+ROUND(IF(B16=F14,E14+E15,C16*D16),0) -> 0 | F16: =+E16+E17+E18 -> 0
A17: =IF($B$6="BID","Atención / Cierre","Atención") -> Atención | B17: =IF($B$6="COMUNITARIOS", IFERROR(VLOOKUP($D$6, TR_COMU, 3, 0), 0), 0) -> 0 | C17: =IFERROR(B17*B12,0) -> 0 | D17: =IF(D12="","",IF(B6="BID",Listas_COM!Y4,D12-D16-D18)) -> 3 | E17: =ROUND(C17*D17,0) -> 0
A18: =IF($B$6="BID","","Cierre") -> Cierre | B18: =IF($B$6="COMUNITARIOS", IFERROR(VLOOKUP($D$6, TR_COMU, 4, 0), 0), 0) -> 0 | C18: =IFERROR(B18*B12,0) -> 0 | D18: =IF(D12="","",IF($B$6="BID",0,0.5)) -> 0.5 | E18: =+ROUND(C18*D18,0) -> 0
A19: 1. PRESUPUESTO DE INGRESOS
A20: CÓDIGO | B20: OBJETO DEL INGRESO | E20: INGRESOS | F20: % PART
A21: 1100 | B21: Aportes ICBF | E21: =+F16 -> 0 | F21: =IFERROR(E21/$E$25,0) -> 0
A22: 1200 | B22: Donaciones (Cuando aplique) | E22: 0 | F22: =IFERROR(E22/$E$25,0) -> 0
A23: 1300 | B23: Aportes contrapartida (Cuando aplique) | E23: =(E21*F23) -> 0 | F23: 0.04
A24: 1400 | B24: Otros Ingresos (Cuando aplique) | E24: 0 | F24: =IFERROR(E24/$E$25,0) -> 0
A25: TOTAL PRESUPUESTO DE INGRESOS | E25: =SUM(E21:E24) -> 0 | F25: =SUM(F21:F24) -> 0.04
A27: 2. PRESUPUESTO DE EGRESOS
A29: 2.1 PRESUPUESTO DE TALENTO HUMANO Y GASTOS DE VIAJE
A30: CÓDIGO | B30: COMPONENTE DEL COSTO O GASTO | D30: ETAPA COSTO O GASTO
A31: 2100 | B31: =IFERROR(IF($B$6="COMUNITARIOS",VLOOKUP(A31,TH_COMU,2,0),IF($B$6="BID",VLOOKUP(A31,TH_BID,2,0),IF($B$6="APOYOS",VLOOKUP(A31,TH_APOYOS,2,0),IF($B$6="EXPERIENCIAS",VLOOKUP(A31,TH_EXP,2,0))))),"") -> TALENTO HUMANO | D31: ALISTAMIENTO | E31: =IF($B$6="BID","ATENCIÓN / CIERRE","ATENCIÓN") -> ATENCIÓN | F31: =IF($B$6="BID","","CIERRE") -> CIERRE | G31: TOTAL
A32: 2101 | B32: =IFERROR(IF($B$6="COMUNITARIOS",VLOOKUP(A32,TH_COMU,2,0),""),"") -> Coordinador(a) | D32: =IF($B$6="COMUNITARIOS", ROUND(IFERROR(VLOOKUP(A32, TH_COMU, 3, 0) * $E$16, 0), 0), "") -> 0 | E32: =IF($B$6="COMUNITARIOS", ROUND(IFERROR(VLOOKUP(A32, TH_COMU, 4, 0) * $E$17, 0), 0), "") -> 0 | F32: =IF($B$6="COMUNITARIOS", ROUND(IFERROR(VLOOKUP(A32, TH_COMU, 5, 0) * $E$18, 0), 0), "") -> 0 | G32: =IFERROR(IF($B$6="COMUNITARIOS",D32+E32+F32),0) -> 0
A33: 2102 | B33: Pedagogo | D33: =IF($B$6="COMUNITARIOS", ROUND(IFERROR(VLOOKUP(A33, TH_COMU, 3, 0) * $E$16, 0), 0), "") -> 0 | E33: 0 | F33: 0 | G33: =IFERROR(IF($B$6="COMUNITARIOS",D33+E33+F33),0) -> 0
A34: 2103 | B34: Nutricionista | D34: =IF($B$6="COMUNITARIOS", ROUND(IFERROR(VLOOKUP(A34, TH_COMU, 3, 0) * $E$16, 0), 0), "") -> 0 | E34: 0 | F34: 0 | G34: =IFERROR(IF($B$6="COMUNITARIOS",D34+E34+F34),0) -> 0
A35: 2104 | B35: Psicólogo(a) | D35: =IF($B$6="COMUNITARIOS", ROUND(IFERROR(VLOOKUP(A35, TH_COMU, 3, 0) * $E$16, 0), 0), "") -> 0 | E35: 0 | F35: 0 | G35: =IFERROR(IF($B$6="COMUNITARIOS",D35+E35+F35),0) -> 0
A36: 2105 | B36: Psicosocial | D36: 0 | E36: 0 | F36: 0 | G36: 0
A37: 2106 | B37: Gestor(a) de Experiencias 1 | D37: 0 | E37: 0 | F37: 0 | G37: 0
A38: 2107 | B38: Gestor(a) de Experiencias 2 | D38: 0 | E38: 0 | F38: 0 | G38: 0
A39: 2108 | B39: Dinamizador(a) comunitario | D39: 0 | E39: 0 | F39: 0 | G39: 0
A40: 2109 | B40: Auxiliar Administrativo | D40: =IF($B$6="COMUNITARIOS", ROUND(IFERROR(VLOOKUP(A40, TH_COMU, 3, 0) * $E$16, 0), 0), "") -> 0 | E40: 0 | F40: 0 | G40: =IFERROR(IF($B$6="COMUNITARIOS",D40+E40+F40),0) -> 0
A41: 2110 | B41: =IFERROR(IF($B$6="COMUNITARIOS",VLOOKUP(A41,TH_COMU,2,0),IF($B$6="BID",VLOOKUP(A41,TH_BID,2,0),IF($B$6="APOYOS",VLOOKUP(A41,TH_APOYOS,2,0),IF($B$6="EXPERIENCIAS",VLOOKUP(A41,TH_EXP,2,0))))),"") ->  | D41: 0 | E41: 0 | F41: 0 | G41: =IFERROR(IF($B$6="BID",D41+E41,D41+E41+F41),0) -> 0
A42: SUBTOTAL PRESUPUESTO DE COSTOS TALENTO HUMANO | D42: =SUM(D32:D41) -> 0 | E42: =SUM(E32:E41) -> 0 | F42: =SUM(F32:F41) -> 0 | G42: =SUM(G32:G41) -> 0
A43: TOPE DE PARTICIPACIÓN TALENTO HUMANO | D43: =IF($B$6="COMUNITARIOS", IFERROR(TR!$C$10, ""), "") -> 0.6371750126 | E43: =IF($B$6="COMUNITARIOS", IFERROR(TR!$D$10, ""), "") -> 0.372632157 | F43: =IF($B$6="COMUNITARIOS", IFERROR(TR!$E$10, ""), "") -> 0.7756960238 | G43: =IF($B$6="COMUNITARIOS", IFERROR(TR!$F$10, ""), "") -> 0.5951677311
D44: =+$D$42/$E$16 ->  | E44: =+E42/E17 ->  | F44: =IFERROR($F$42/$E$18,0) -> 0
A45: 2110 | B45: =IFERROR(IF($B$6="COMUNITARIOS",VLOOKUP(A45,TRANS_COMU,2,0),IF($B$6="BID",VLOOKUP(A45,TRANS_BID,2,0),IF($B$6="APOYOS",VLOOKUP(A45,TRANS_APOYOS,2,0),IF($B$6="EXPERIENCIAS",VLOOKUP(A45,TRANS_EXP,2,0))))),"") -> TRANSPORTE Y VIAJES DEL TH | D45: ALISTAMIENTO | E45: =IF($B$6="BID","ATENCIÓN / CIERRE","ATENCIÓN") -> ATENCIÓN | F45: =IF($B$6="BID","","CIERRE") -> CIERRE | G45: TOTAL
A46: 2111 | B46: =IFERROR(IF($B$6="COMUNITARIOS",VLOOKUP(A46,TRANS_COMU,2,0),""),"") -> Coordinador General | D46: =IF($B$6="COMUNITARIOS", ROUND(IFERROR(VLOOKUP(A46, TRANS_COMU, 3, 0) * $E$16, 0), 0), "") -> 0 | E46: =IF($B$6="COMUNITARIOS", ROUND(IFERROR(VLOOKUP(A46, TRANS_COMU, 4, 0) * $E$17, 0), 0), "") -> 0 | F46: =IF($B$6="COMUNITARIOS", ROUND(IFERROR(VLOOKUP(A46, TRANS_COMU, 5, 0) * $E$18, 0), 0), "") -> 0 | G46: =IFERROR(IF($B$6="COMUNITARIOS",D46+E46+F46),0) -> 0
A47: 2112 | B47: =IFERROR(IF($B$6="COMUNITARIOS",VLOOKUP(A47,TRANS_COMU,2,0),""),"") -> Pedagogo (a) | D47: =IF($B$6="COMUNITARIOS", ROUND(IFERROR(VLOOKUP(A47, TRANS_COMU, 3, 0) * $E$16, 0), 0), "") -> 0 | E47: =IF($B$6="COMUNITARIOS", ROUND(IFERROR(VLOOKUP(A47, TRANS_COMU, 4, 0) * $E$17, 0), 0), "") -> 0 | F47: =IF($B$6="COMUNITARIOS", ROUND(IFERROR(VLOOKUP(A47, TRANS_COMU, 5, 0) * $E$18, 0), 0), "") -> 0 | G47: =IFERROR(IF($B$6="COMUNITARIOS",D47+E47+F47),0) -> 0
A48: 2113 | B48: =IFERROR(IF($B$6="COMUNITARIOS",VLOOKUP(A48,TRANS_COMU,2,0),""),"") -> Nutricionista Dietista | D48: =IF($B$6="COMUNITARIOS", ROUND(IFERROR(VLOOKUP(A48, TRANS_COMU, 3, 0) * $E$16, 0), 0), "") -> 0 | E48: =IF($B$6="COMUNITARIOS", ROUND(IFERROR(VLOOKUP(A48, TRANS_COMU, 4, 0) * $E$17, 0), 0), "") -> 0 | F48: =IF($B$6="COMUNITARIOS", ROUND(IFERROR(VLOOKUP(A48, TRANS_COMU, 5, 0) * $E$18, 0), 0), "") -> 0 | G48: =IFERROR(IF($B$6="COMUNITARIOS",D48+E48+F48),0) -> 0
A49: 2114 | B49: =IFERROR(IF($B$6="COMUNITARIOS",VLOOKUP(A49,TRANS_COMU,2,0),""),"") -> Dinamizador(a) Comunitario | D49: =IF($B$6="COMUNITARIOS", ROUND(IFERROR(VLOOKUP(A49, TRANS_COMU, 3, 0) * $E$16, 0), 0), "") -> 0 | E49: =IF($B$6="COMUNITARIOS", ROUND(IFERROR(VLOOKUP(A49, TRANS_COMU, 4, 0) * $E$17, 0), 0), "") -> 0 | F49: =IF($B$6="COMUNITARIOS", ROUND(IFERROR(VLOOKUP(A49, TRANS_COMU, 5, 0) * $E$18, 0), 0), "") -> 0 | G49: =IFERROR(IF($B$6="COMUNITARIOS",D49+E49+F49),0) -> 0
A50: SUBTOTAL PRESUPUESTO DE TRANSPORTE Y GASTOS DE VIAJE | D50: =SUM(D46:D49) -> 0 | E50: =SUM(E46:E49) -> 0 | F50: =SUM(F46:F49) -> 0 | G50: =SUM(G46:G49) -> 0
A51: =+CONCATENATE("TOPE DE PARTICIPACIÓN DE ",A50) -> TOPE DE PARTICIPACIÓN DE SUBTOTAL PRESUPUESTO DE TRANSPORTE Y GASTOS DE VIAJE | D51: =IF($B$6="COMUNITARIOS", IFERROR(TR!$C$22, ""), "") -> 0.1612734729 | E51: =IF($B$6="COMUNITARIOS", IFERROR(TR!$D$22, ""), "") -> 0.08283422063 | F51: =IF($B$6="COMUNITARIOS", IFERROR(TR!$E$22, ""), "") -> 0.1407052535 | G51: =IF($B$6="COMUNITARIOS", IFERROR(TR!$F$22, ""), "") -> 0.1282709823
D52: =+D50/$E$16 ->  | E52: =+E50/$E$17 ->  | F52: =IFERROR(F50/$E$18,0) -> 0
A53: 2.1 SUBTOTAL PRESUPUESTO DE TALENTO HUMANO, TRASPORTE Y GASTOS DE VIAJE | D53: =+D42+D50 -> 0 | E53: =+E42+E50 -> 0 | F53: =+F42+F50 -> 0 | G53: =+G42+G50 -> 0
A55: 2.2 NIÑAS, NIÑOS Y ADOLESCENTES
A56: 2200 | B56: =IFERROR(IF($B$6="COMUNITARIOS",VLOOKUP(A56,NUT_COMU,2,0),IF($B$6="BID",VLOOKUP(A56,NUT_BID,2,0), IF($B$6="APOYOS",VLOOKUP(A56,NUT_APOYOS,2,0),IF($B$6="EXPERIENCIAS",VLOOKUP(A56,NUT_EXP,2,0))))),"") -> APOYOS NUTRICIONALES | D56: ALISTAMIENTO | E56: =IF($B$6="BID","ATENCIÓN / CIERRE","ATENCIÓN") -> ATENCIÓN | F56: =IF($B$6="BID","","CIERRE") -> CIERRE | G56: TOTAL
A57: 2201 | B57: =IFERROR(IF($B$6="COMUNITARIOS", VLOOKUP(A57, NUT_COMU, 2, 0), ""), "") -> Refrigerio reforzado (Encuentros entre pares) | D57: =IF($B$6="COMUNITARIOS", ROUND(IFERROR(VLOOKUP(A57, NUT_COMU, 3, 0) * $E$16, 0), 0), "") -> 0 | E57: =IF($B$6="COMUNITARIOS", ROUND(IFERROR(VLOOKUP(A57, NUT_COMU, 4, 0) * $E$17, 0), 0), "") -> 0 | F57: =IF($B$6="COMUNITARIOS", ROUND(IFERROR(VLOOKUP(B57, NUT_COMU, 5, 0) * $E$17, 0), 0), "") -> 0 | G57: =IFERROR(IF($B$6="COMUNITARIOS",D57+E57+F57),0) -> 0
A58: 2202 | B58: =IFERROR(IF($B$6="COMUNITARIOS", VLOOKUP(A58, NUT_COMU, 2, 0), ""), "") -> Refrigerio reforzado (Encuentros comunitarios) | D58: =IF($B$6="COMUNITARIOS", ROUND(IFERROR(VLOOKUP(A58, NUT_COMU, 3, 0) * $E$16, 0), 0), "") -> 0 | E58: =IF($B$6="COMUNITARIOS", ROUND(IFERROR(VLOOKUP(A58, NUT_COMU, 4, 0) * $E$17, 0), 0), "") -> 0 | F58: =IF($B$6="COMUNITARIOS", ROUND(IFERROR(VLOOKUP(B58, NUT_COMU, 5, 0) * $E$17, 0), 0), "") -> 0 | G58: =IFERROR(IF($B$6="COMUNITARIOS",D58+E58+F58),0) -> 0
A59: 2203 | B59: =IFERROR(IF($B$6="COMUNITARIOS", VLOOKUP(A59, NUT_COMU, 2, 0), ""), "") -> Olla comunitaria | D59: =IF($B$6="COMUNITARIOS", ROUND(IFERROR(VLOOKUP(A59, NUT_COMU, 3, 0) * $E$16, 0), 0), "") -> 0 | E59: =IF($B$6="COMUNITARIOS", ROUND(IFERROR(VLOOKUP(A59, NUT_COMU, 4, 0) * $E$17, 0), 0), "") -> 0 | F59: =IF($B$6="COMUNITARIOS", ROUND(IFERROR(VLOOKUP(B59, NUT_COMU, 5, 0) * $E$17, 0), 0), "") -> 0 | G59: =IFERROR(IF($B$6="COMUNITARIOS",D59+E59+F59),0) -> 0
A60: 2204 | B60: =IFERROR(IF($B$6="COMUNITARIOS",VLOOKUP(A60,NUT_COMU,2,0),IF($B$6="BID",VLOOKUP(A60,NUT_BID,2,0), IF($B$6="APOYOS",VLOOKUP(A60,NUT_APOYOS,2,0),IF($B$6="EXPERIENCIAS",VLOOKUP(A60,NUT_EXP,2,0))))),"") ->  | D60: =IF($B$6="COMUNITARIOS", ROUND(IFERROR(VLOOKUP(#REF!, NUT_COMU, 3, 0) * $E$16, 0), 0), "") -> 0 | E60: =IFERROR(IF($B$6="COMUNITARIOS",(VLOOKUP(A60,NUT_COMU,4,0)* $E$17),IF($B$6="BID",(VLOOKUP(A60,NUT_BID,4,0)* $E$17), IF($B$6="APOYOS",(VLOOKUP(A60,NUT_APOYOS,4,0)* $E$17),IF($B$6="EXPERIENCIAS",(VLOOKUP(A60,NUT_EXP,4,0)* $E$17))))),"") ->  | F60: =IFERROR(IF($B$6="COMUNITARIOS",(VLOOKUP(A60,NUT_COMU,5,0)* $E$18),IF($B$6="BID","",IF($B$6="APOYOS",(VLOOKUP(A60,NUT_APOYOS,5,0)* $E$18),IF($B$6="EXPERIENCIAS",(VLOOKUP(A60,NUT_EXP,5,0)* $E$18))))),"") ->  | G60: =IFERROR(IF($B$6="COMUNITARIOS",D60+E60+F60),0) -> 0
A61: SUBTOTAL PRESUPUESTO DE COMPLEMENTACIÓN ALIMENTARIA Y NUTRICIONAL / APOYOS NUTRICIONALES | D61: =SUM(D57:D60) -> 0 | E61: =SUM(E57:E60) -> 0 | F61: =SUM(F57:F60) -> 0 | G61: =SUM(G57:G60) -> 0
A62: =+CONCATENATE("TOPE DE PARTICIPACIÓN DE ",A61) -> TOPE DE PARTICIPACIÓN DE SUBTOTAL PRESUPUESTO DE COMPLEMENTACIÓN ALIMENTARIA Y NUTRICIONAL / APOYOS NUTRICIONALES | D62: =IF($B$6="COMUNITARIOS", IFERROR(TR!$C$28, ""), "") -> 0 | E62: =IF($B$6="COMUNITARIOS", IFERROR(TR!$D$28, ""), "") -> 0.3100626357 | F62: =IF($B$6="COMUNITARIOS", IFERROR(TR!$E$28, ""), "") -> 0 | G62: =IFERROR(IF($B$6="COMUNITARIOS",TR!$F$28,IF($B$6="BID",TR!#REF!,IF($B$6="APOYOS",TR!#REF!,IF($B$6="EXPERIENCIAS",TR!$M$28)))),"") -> 0.1033542119
D63: =+$D$61/$E$16 ->  | E63: =ROUND($E$61/$E$17,3) ->  | F63: =ROUND(IFERROR($F$61/$E$18,0),3) -> 0
A64: 2202 | B64: =IFERROR(IF($B$6="COMUNITARIOS",VLOOKUP(A64,TRANS_NNA_COMU,2,0),IF($B$6="BID",VLOOKUP(A64,TRANS_NNA_BID,2,0), IF($B$6="APOYOS",VLOOKUP(A64,TRANS_NNA_APOYOS,2,0),IF($B$6="EXPERIENCIAS",VLOOKUP(A64,TRANS_NNA_EXP,2,0))))),"") -> N/A | D64: =ROUND(IFERROR(IF($B$6="COMUNITARIOS",(VLOOKUP(A64,TRANS_NNA_COMU,3,0)* $E$17),IF($B$6="BID",(VLOOKUP(A64,TRANS_NNA_BID,3,0)* $E$17), IF($B$6="APOYOS",(VLOOKUP(A64,TRANS_NNA_APOYOS,3,0)* $E$15)+(VLOOKUP(A64,APOYOS_TRANSPORTE_NNA_2024,3,0)*$E$14),IF($B$6="EXPERIENCIAS",(VLOOKUP(A64,TRANS_NNA_EXP,3,0)* $E$17))))),""),0) -> 0 | E64: =ROUND(IFERROR(IF($B$6="COMUNITARIOS",(VLOOKUP(A64,TRANS_NNA_COMU,4,0)* $E$17),IF($B$6="BID",(VLOOKUP(A64,TRANS_NNA_BID,4,0)* $E$17), IF($B$6="APOYOS",(VLOOKUP(A64,TRANS_NNA_APOYOS,4,0)* $E$17),IF($B$6="EXPERIENCIAS",(VLOOKUP(A64,TRANS_NNA_EXP,4,0)* $E$17))))),""),0) -> 0 | F64: =ROUND(IFERROR(IF($B$6="COMUNITARIOS",(VLOOKUP(A64,TRANS_NNA_COMU,5,0)* $E$18),IF($B$6="BID",0,IF($B$6="APOYOS",(VLOOKUP(A64,TRANS_NNA_APOYOS,5,0)* $E$18),IF($B$6="EXPERIENCIAS",(VLOOKUP(A64,TRANS_NNA_EXP,5,0)* $E$18))))),""),0) -> 0 | G64: =IFERROR(IF($B$6="BID",D64+E64,D64+E64+F64),0) -> 0
A65: =+CONCATENATE("TOPE DE PARTICIPACIÓN DE ",B64) -> TOPE DE PARTICIPACIÓN DE N/A | D65: =IFERROR(IF($B$6="COMUNITARIOS",TR!$C$36,IF($B$6="BID",TR!#REF!,IF($B$6="APOYOS",TR!#REF!,IF($B$6="EXPERIENCIAS",TR!$J$36)))),"") -> 0 | E65: =IFERROR(IF($B$6="COMUNITARIOS",TR!$D$36,IF($B$6="BID",TR!#REF!,IF($B$6="APOYOS",TR!#REF!,IF($B$6="EXPERIENCIAS",TR!$K$36)))),"") -> 0 | F65: =IFERROR(IF($B$6="COMUNITARIOS",TR!$E$36,IF($B$6="BID","",IF($B$6="APOYOS",TR!#REF!,IF($B$6="EXPERIENCIAS",TR!$L$36)))),"") -> 0 | G65: =IFERROR(IF($B$6="COMUNITARIOS",TR!$F$36,IF($B$6="BID",TR!#REF!,IF($B$6="APOYOS",TR!#REF!,IF($B$6="EXPERIENCIAS",TR!$M$36)))),"") -> 0
D66: =+$D$64/$E$16 ->  | E66: =+$E$64/$E$17 ->  | F66: =IFERROR($F$64/$E$18,0) -> 0
A67: 2203 | B67: =IFERROR(IF($B$6="COMUNITARIOS",VLOOKUP(A67,MATER_COMU,2,0),IF($B$6="BID",VLOOKUP(A67,MATER_BID,2,0),IF($B$6="APOYOS",VLOOKUP(A67,MATER_APOYOS,2,0),IF($B$6="EXPERIENCIAS",VLOOKUP(A67,MATER_EXP,2,0))))),"") -> MATERIAL DE CONSUMO | D67: 0 | E67: =IF($B$6="COMUNITARIOS", ROUND(IFERROR(VLOOKUP(A67, MATER_COMU, 4, 0) * $E$17, 0), 0), "") -> 0 | F67: =IF($B$6="COMUNITARIOS", ROUND(IFERROR(VLOOKUP(B67, MATER_COMU, 5, 0) * $E$18, 0), 0), "") -> 0 | G67: =IFERROR(IF($B$6="COMUNITARIOS",D67+E67+F67),0) -> 0
A68: =+CONCATENATE("TOPE DE PARTICIPACIÓN DE ",B67) -> TOPE DE PARTICIPACIÓN DE MATERIAL DE CONSUMO | D68: =IFERROR(IF($B$6="COMUNITARIOS",TR!$C$38,""),"") -> 0 | E68: =IFERROR(IF($B$6="COMUNITARIOS",TR!$D$38,""),"") -> 0.128040238 | F68: =IFERROR(IF($B$6="COMUNITARIOS",TR!$E$38,""),"") -> 0 | G68: =IFERROR(IF($B$6="COMUNITARIOS",TR!$F$38,""),"") -> 0.04268007932
D69: =+$D$67/$E$16 ->  | E69: =+ROUND($E$67/$E$17,3) ->  | F69: =IFERROR($F$67/$E$18,0) -> 0
A70: 2204 | B70: =IFERROR(IF($B$6="COMUNITARIOS",VLOOKUP(A70,DOT_COMU,2,0),IF($B$6="BID",VLOOKUP(A70,DOT_BID,2,0),IF($B$6="APOYOS",VLOOKUP(A70,DOT_APOYOS,2,0),IF($B$6="EXPERIENCIAS",VLOOKUP(A70,DOT_EXP,2,0))))),"") -> DOTACIÓN | D70: ALISTAMIENTO | E70: =IF($B$6="BID","ATENCIÓN / CIERRE","ATENCIÓN") -> ATENCIÓN | F70: =IF($B$6="BID","","CIERRE") -> CIERRE | G70: TOTAL
A71: 220401 | B71: =IFERROR(IF($B$6="COMUNITARIOS",VLOOKUP(A71,DOT_COMU,2,0),IF($B$6="BID",VLOOKUP(A71,DOT_BID,2,0),IF($B$6="APOYOS",VLOOKUP(A71,DOT_APOYOS,2,0),IF($B$6="EXPERIENCIAS",VLOOKUP(A71,DOT_EXP,2,0))))),"") -> Botiquín | D71: =IF($B$6="COMUNITARIOS",ROUND(IFERROR(VLOOKUP(A71,DOT_COMU,3,0)* $E$16,0),0),"") -> 0 | E71: =IF($B$6="COMUNITARIOS",ROUND(IFERROR(VLOOKUP(B71,DOT_COMU,4,0)* $E$16,0),0),"") -> 0 | F71: =IF($B$6="COMUNITARIOS",ROUND(IFERROR(VLOOKUP(C71,DOT_COMU,5,0)* $E$16,0),0),"") -> 0 | G71: =IFERROR(IF($B$6="COMUNITARIOS",D71+E71+F71),0) -> 0
A72: 220402 | B72: =IFERROR(IF($B$6="COMUNITARIOS",VLOOKUP(A72,DOT_COMU,2,0),IF($B$6="BID",VLOOKUP(A72,DOT_BID,2,0),IF($B$6="APOYOS",VLOOKUP(A72,DOT_APOYOS,2,0),IF($B$6="EXPERIENCIAS",VLOOKUP(A72,DOT_EXP,2,0))))),"") -> Kit de aseo personal | D72: =IF($B$6="COMUNITARIOS",ROUND(IFERROR(VLOOKUP(A72,DOT_COMU,3,0)* $E$16,0),0),"") -> 0 | E72: =IF($B$6="COMUNITARIOS",ROUND(IFERROR(VLOOKUP(A72,DOT_COMU,4,0)* $E$17,0),0),"") -> 0 | F72: =IF($B$6="COMUNITARIOS",ROUND(IFERROR(VLOOKUP(A72,DOT_COMU,5,0)* $E$18,0),0),"") -> 0 | G72: =IFERROR(IF($B$6="COMUNITARIOS",D72+E72+F72),0) -> 0
A73: SUBTOTAL PRESUPUESTO DE DOTACIÓN | D73: =SUM(D71:D72) -> 0 | E73: =SUM(E71:E72) -> 0 | F73: =SUM(F71:F72) -> 0 | G73: =SUM(G71:G72) -> 0
A74: =+CONCATENATE("TOPE DE PARTICIPACIÓN DE ",A73) -> TOPE DE PARTICIPACIÓN DE SUBTOTAL PRESUPUESTO DE DOTACIÓN | D74: =IFERROR(IF($B$6="COMUNITARIOS",TR!$C$40,""),"") -> 0.01895138032 | E74: =IFERROR(IF($B$6="COMUNITARIOS",TR!$D$40,""),"") -> 0.004228221124 | F74: =IFERROR(IF($B$6="COMUNITARIOS",TR!$E$40,""),"") -> 0.0184065215 | G74: =IFERROR(IF($B$6="COMUNITARIOS",TR!$F$40,""),"") -> 0.01386204098
D75: =+$D$73/$E$16 ->  | E75: =ROUND($E$73/$E$17,3) ->  | F75: =ROUND(IFERROR($F$73/$E$18,0),4) -> 0
A76: 2205 | B76: =IFERROR(IF($B$6="COMUNITARIOS",VLOOKUP(A76,INT_COMU,2,0),IF($B$6="BID",VLOOKUP(A76,INT_BID,2,0),IF($B$6="APOYOS",VLOOKUP(A76,INT_APOYOS,2,0),IF($B$6="EXPERIENCIAS",VLOOKUP(A76,INT_EXP,2,0))))),"") -> SERVICIO DE COMUNICACIÓN MÓBIL E NTERNET | D76: =IF($B$6="COMUNITARIOS",ROUND(IFERROR(VLOOKUP($A$76,INT_COMU,3,0)*$E$16,0),0),"") -> 0 | E76: =IF($B$6="COMUNITARIOS",ROUND(IFERROR(VLOOKUP($A$76,INT_COMU,4,0)*$E$17,0),0),"") -> 0 | F76: =IF($B$6="COMUNITARIOS",ROUND(IFERROR(VLOOKUP($A$76,INT_COMU,5,0)*$E$18,0),0),"") -> 0 | G76: =IFERROR(IF($B$6="COMUNITARIOS",D76+E76+F76),0) -> 0
A77: =+CONCATENATE("TOPE DE PARTICIPACIÓN DE ",B76) -> TOPE DE PARTICIPACIÓN DE SERVICIO DE COMUNICACIÓN MÓBIL E NTERNET | D77: =IFERROR(IF($B$6="COMUNITARIOS",TR!$C$48,),"") -> 0.006290796502 | E77: =IFERROR(IF($B$6="COMUNITARIOS",TR!$D$48,),"") -> 0.00375756228 | F77: =IFERROR(IF($B$6="COMUNITARIOS",TR!$E$48,),"") -> 0.007914979305 | G77: =IFERROR(IF($B$6="COMUNITARIOS",TR!$F$48,),"") -> 0.005987779362
D78: =+#REF!/$E$16 ->  | E78: =+$D$76/$E$17 ->  | F78: =IFERROR($F$76/$E$18,0) -> 0
A79: 2206 | B79: =IFERROR(IF($B$6="COMUNITARIOS",VLOOKUP(A79,MAT_COMU,2,0),IF($B$6="BID",VLOOKUP(A79,MAT_BID,2,0), IF($B$6="APOYOS",VLOOKUP(A79,MAT_APOYOS,2,0),IF($B$6="EXPERIENCIAS",VLOOKUP(A79,MAT_EXP,2,0))))),"") -> MATERIAL IDENTIFICACIÓN | D79: ALISTAMIENTO | E79: =IF($B$6="BID","ATENCIÓN / CIERRE","ATENCIÓN") -> ATENCIÓN | F79: =IF($B$6="BID","","CIERRE") -> CIERRE | G79: TOTAL
A80: 220601 | B80: Chalecos | D80: =IF($B$6="COMUNITARIOS",ROUND(IFERROR(VLOOKUP($A$80,MAT_COMU,3,0)*$E$16,0),0),"") -> 0 | E80: =IF($B$6="COMUNITARIOS",ROUND(IFERROR(VLOOKUP($A$80,MAT_COMU,4,0)*$E$17,0),0),"") -> 0 | F80: =IF($B$6="COMUNITARIOS",ROUND(IFERROR(VLOOKUP($A$80,MAT_COMU,5,0)*$E$18,0),0),"") -> 0 | G80: =IFERROR(IF($B$6="BID",D80+E80,D80+E80+F80),0) -> 0
A81: 220602 | B81: Gorras | D81: =IF($B$6="COMUNITARIOS",ROUND(IFERROR(VLOOKUP(A81,MAT_COMU,3,0)*$E$16,0),0),"") -> 0 | E81: =IF($B$6="COMUNITARIOS",ROUND(IFERROR(VLOOKUP($B$81,MAT_COMU,4,0)*$E$17,0),0),"") -> 0 | F81: =IF($B$6="COMUNITARIOS",ROUND(IFERROR(VLOOKUP($C$81,MAT_COMU,5,0)*$E$18,0),0),"") -> 0 | G81: =IFERROR(IF($B$6="BID",D81+E81,D81+E81+F81),0) -> 0
A82: 220603 | B82: Camisetas | D82: =IF($B$6="COMUNITARIOS",ROUND(IFERROR(VLOOKUP($A$82,MAT_COMU,3,0)*$E$16,0),0),"") -> 0 | E82: =IF($B$6="COMUNITARIOS",ROUND(IFERROR(VLOOKUP($A$82,MAT_COMU,4,0)*$E$17,0),0),"") -> 0 | F82: =IF($B$6="COMUNITARIOS",ROUND(IFERROR(VLOOKUP($A$82,MAT_COMU,5,0)*$E$18,0),0),"") -> 0 | G82: =IFERROR(IF($B$6="BID",D82+E82,D82+E82+F82),0) -> 0
A83: 220604 | B83: Carné | D83: =IF($B$6="COMUNITARIOS",ROUND(IFERROR(VLOOKUP($A$83,MAT_COMU,3,0)*$E$16,0),0),"") -> 0 | E83: =IF($B$6="COMUNITARIOS",ROUND(IFERROR(VLOOKUP($A$83,MAT_COMU,4,0)*$E$17,0),0),"") -> 0 | F83: =IF($B$6="COMUNITARIOS",ROUND(IFERROR(VLOOKUP($A$83,MAT_COMU,5,0)*$E$17,0),0),"") -> 0 | G83: =IFERROR(IF($B$6="BID",D83+E83,D83+E83+F83),0) -> 0
A84: 220605 | B84: Pendón | D84: =IF($B$6="COMUNITARIOS",ROUND(IFERROR(VLOOKUP(A84,MAT_COMU,3,0)*$E$16,0),0),"") -> 0 | E84: =IFERROR(IF($B$6="COMUNITARIOS",(VLOOKUP(A84,MAT_COMU,4,0)* $E$17),IF($B$6="BID",(VLOOKUP(A84,MAT_BID,4,0)* $E$17),IF($B$6="APOYOS",(VLOOKUP(A84,MAT_APOYOS,4,0)* $E$17),IF($B$6="EXPERIENCIAS",(VLOOKUP(A84,MAT_EXP,4,0)* $E$17))))),0) -> 0 | F84: =IFERROR(IF($B$6="COMUNITARIOS",(VLOOKUP(A84,MAT_COMU,5,0)* $E$18),IF($B$6="BID","",IF($B$6="APOYOS",(VLOOKUP(A84,MAT_APOYOS,5,0)* $E$18),IF($B$6="EXPERIENCIAS",(VLOOKUP(A84,MAT_EXP,5,0)* $E$18))))),0) -> 0 | G84: =IFERROR(IF($B$6="BID",D84+E84,D84+E84+F84),0) -> 0
A85: SUBTOTAL PRESUPUESTO DE MATERIAL IDENTIFICACIÓN | D85: =SUM(D80:D84) -> 0 | E85: =SUM(E80:E84) -> 0 | F85: =SUM(F80:F84) -> 0 | G85: =SUM(G80:G84) -> 0
A86: =+CONCATENATE("TOPE DE PARTICIPACIÓN DE ",A85) -> TOPE DE PARTICIPACIÓN DE SUBTOTAL PRESUPUESTO DE MATERIAL IDENTIFICACIÓN | D86: =IFERROR(IF($B$6="COMUNITARIOS",TR!$C$50,""),"") -> 0.1265861947 | E86: =IFERROR(IF($B$6="COMUNITARIOS",TR!$D$50,""),"") -> 0 | F86: =IFERROR(IF($B$6="COMUNITARIOS",TR!$E$50,""),"") -> 0 | G86: =IFERROR(IF($B$6="COMUNITARIOS",TR!$F$50,""),"") -> 0.04219539823
D87: =+$D$85/$E$16 ->  | E87: =+$E$85/$E$17 ->  | F87: =IFERROR($F$85/$E$18,0) -> 0
A88: 2207 | B88: =IFERROR(IF($B$6="COMUNITARIOS",VLOOKUP(A88,SEG_COMU,2,0),IF($B$6="BID",VLOOKUP(A88,SEG_BID,2,0),IF($B$6="APOYOS",VLOOKUP(A88,SEG_APOYOS,2,0),IF($B$6="EXPERIENCIAS",VLOOKUP(A88,SEG_EXP,2,0))))),"") -> SEGURO | D88: =IF($B$6="COMUNITARIOS",ROUND(IFERROR(VLOOKUP($A$88,SEG_COMU,3,0)*$E$16,0),0),"") -> 0 | E88: =IF($B$6="COMUNITARIOS",ROUND(IFERROR(VLOOKUP($A$88,SEG_COMU,4,0)*$E$17,0),0),"") -> 0 | F88: =IF($B$6="COMUNITARIOS",ROUND(IFERROR(VLOOKUP($A$88,SEG_COMU,5,0)*$E$18,0),0),"") -> 0 | G88: =IFERROR(IF($B$6="COMUNITARIOS",D88+E88+F88),0) -> 0
A89: =+CONCATENATE("TOPE DE PARTICIPACIÓN DE ",B88) -> TOPE DE PARTICIPACIÓN DE SEGURO | D89: =IFERROR(IF($B$6="COMUNITARIOS",TR!$C$57,""),"") -> 0 | E89: =IFERROR(IF($B$6="COMUNITARIOS",TR!$D$57,""),"") -> 0.003470543422 | F89: =IFERROR(IF($B$6="COMUNITARIOS",TR!$E$57,""),"") -> 0.007554078921 | G89: =IFERROR(IF($B$6="COMUNITARIOS",TR!$F$57,""),"") -> 0.003674874114
D90: =+$D$88/$E$16 ->  | E90: =+$E$88/$E$17 ->  | F90: =IFERROR($F$88/$E$18,0) -> 0
A91: 2208 | B91: =IFERROR(IF($B$6="COMUNITARIOS",VLOOKUP(A91,ENC_COMU,2,0),IF($B$6="BID",VLOOKUP(A91,ENC_BID_2,2,0),IF($B$6="APOYOS",VLOOKUP(A91,ENC_APOYOS,2,0),IF($B$6="EXPERIENCIAS",VLOOKUP(A91,ENC_EXP,2,0))))),"") -> APOYO A INICIATIVAS | D91: ALISTAMIENTO | E91: =IF($B$6="BID","ATENCIÓN / CIERRE","ATENCIÓN") -> ATENCIÓN | F91: =IF($B$6="BID","","CIERRE") -> CIERRE | G91: TOTAL
A92: 220801 | B92: =IFERROR(IF($B$6="COMUNITARIOS",VLOOKUP(A92,ENC_COMU,2,0),IF($B$6="BID",VLOOKUP(A92,ENC_BID_2,2,0),IF($B$6="APOYOS",VLOOKUP(A92,ENC_APOYOS,2,0),IF($B$6="EXPERIENCIAS",VLOOKUP(A92,ENC_EXP,2,0))))),"") -> Apoyo Iniciativas | D92: =ROUND(IFERROR(VLOOKUP(A92,ENC_COMU,3,0)*$E$17,""), 0) -> 0 | E92: =ROUND(IFERROR(VLOOKUP(A92,ENC_COMU,4,0)*$E$17,""), 0) -> 0 | F92: =ROUND(IFERROR(VLOOKUP(A92,ENC_COMU,5,0)*$E$17,""), 0) -> 0 | G92: =IFERROR(IF($B$6="COMUNITARIOS",D92+E92+F92),0) -> 0
A93: SUBTOTAL PRESUPUESTO DE ENCUENTROS, EXPERIENCIAS OPORTUNIDADES (APOYO A INICIATIVAS) | D93: =SUM(D92:D92) -> 0 | E93: =SUM(E92:E92) -> 0 | F93: =IF($B$6="BID",0,SUM(F92:F92)) -> 0 | G93: =SUM(G92:G92) -> 0
A94: =+CONCATENATE("TOPE DE PARTICIPACIÓN DE ",A93) -> TOPE DE PARTICIPACIÓN DE SUBTOTAL PRESUPUESTO DE ENCUENTROS, EXPERIENCIAS OPORTUNIDADES (APOYO A INICIATIVAS) | D94: =IFERROR(IF($B$6="COMUNITARIOS",TR!$C$60,""),"") -> 0 | E94: =IFERROR(IF($B$6="COMUNITARIOS",TR!$D$60,""),"") -> 0.0474293303 | F94: =IFERROR(IF($B$6="COMUNITARIOS",TR!$E$60,""),"") -> 0 | G94: =IFERROR(IF($B$6="COMUNITARIOS",TR!$F$60,""),"") -> 0.0158
D95: =+$D$93/$E$16 ->  | E95: =ROUND(+$E$93/$E$17,4) ->  | F95: =IFERROR($F$93/$E$18,0) -> 0
A96: 2.2 SUBTOTAL PRESUPUESTO DE GASTOS NIÑAS, NIÑOS Y ADOLESCENTES | D96: =+D61+D64+D67+D73+D85+D88+D93+D76 -> 0 | E96: =+E61+E64+E67+E73+E85+E88+E93+E76 -> 0 | F96: =+F61+F64+F67+F73+F85+F88+F93+F76 -> 0 | G96: =+G61+G64+G67+G73+G85+G88+G93+G76 -> 0
A98: 2.3. OTROS GASTOS ADMINISTRATIVOS, OPERATIVOS Y FINANCIEROS
A99: 2300 | B99: =IFERROR(IF($B$6="COMUNITARIOS",VLOOKUP(A99,GAST_OPE_COMU,2,0),IF($B$6="BID",VLOOKUP(A99,GAST_OPE_BID,2,0),IF($B$6="APOYOS",VLOOKUP(A99,GAST_OPE_APOYOS,2,0),IF($B$6="EXPERIENCIAS",VLOOKUP(A99,GAST_OPE_EXP,2,0))))),"") -> GASTOS OPERATIVOS | D99: ALISTAMIENTO | E99: =IF($B$6="BID","ATENCIÓN / CIERRE","ATENCIÓN") -> ATENCIÓN | F99: =IF($B$6="BID","","CIERRE") -> CIERRE | G99: TOTAL
A100: 2300 | B100: =IFERROR(IF($B$6="COMUNITARIOS",VLOOKUP(A100,GAST_OPE_COMU,2,0),IF($B$6="BID",VLOOKUP(A100,GAST_OPE_BID,2,0),IF($B$6="APOYOS",VLOOKUP(A100,GAST_OPE_APOYOS,2,0),IF($B$6="EXPERIENCIAS",VLOOKUP(A100,GAST_OPE_EXP,2,0))))),"") -> GASTOS OPERATIVOS | D100: =ROUND(IFERROR(VLOOKUP(A100,GAST_OPE_COMU,3,0)*$E$16, 0), 0) -> 0 | E100: =ROUND(IFERROR(VLOOKUP(A100,GAST_OPE_COMU,4,0)*$E$17, 0), 0) -> 0 | F100: =ROUND(IFERROR(VLOOKUP(A100,GAST_OPE_COMU,5,0)*$E$18, 0), 0) -> 0 | G100: =IFERROR(IF($B$6="COMUNITARIOS",D100+E100+F100),0) -> 0
A101: SUBTOTAL OTROS GASTOS ADMINISTRATIVOS Y OPERATIVOS | D101: =+D100 -> 0 | E101: =SUM(E100:E100) -> 0 | F101: =SUM(F100:F100) -> 0 | G101: =SUM(G100:G100) -> 0
A102: =+CONCATENATE("TOPE DE PARTICIPACIÓN DE ",B101) -> TOPE DE PARTICIPACIÓN DE | D102: =IFERROR(IF($B$6="COMUNITARIOS",TR!$C$66,""),"") -> 0.04573907924 | E102: =IFERROR(IF($B$6="COMUNITARIOS",TR!$D$66,""),"") -> 0.04356102785 | F102: =IFERROR(IF($B$6="COMUNITARIOS",TR!$E$66,""),"") -> 0.04573907924 | G102: =IFERROR(IF($B$6="COMUNITARIOS",TR!$F$66,""),"") -> 0.04501306211
D103: =+$D$101/$E$16 ->  | E103: =+$E$101/$E$17 ->  | F103: =IFERROR($F$101/$E$18,0) -> 0
A104: 2303 | B104: =IFERROR(IF($B$6="COMUNITARIOS",VLOOKUP(A104,GRAV_COMU,2,0),IF($B$6="BID",VLOOKUP(A104,GRAV_BID,2,0),IF($B$6="APOYOS",VLOOKUP(A104,GRAV_APOYOS,2,0),IF($B$6="EXPERIENCIAS",VLOOKUP(A104,GRAV_EXP,2,0))))),"") -> GRAVAMEN MOVIMIENTOS FINANCIEROS GMF | D104: =ROUND(IFERROR(IF($B$6="COMUNITARIOS", VLOOKUP(A104,GRAV_COMU,3,0)*$E$16, ""), 0), 0) -> 0 | E104: =ROUND(IFERROR(IF($B$6="COMUNITARIOS", VLOOKUP(A104,GRAV_COMU,4,0)*$E$17, ""), 0), 0) -> 0 | F104: =ROUND(IFERROR(IF($B$6="COMUNITARIOS", VLOOKUP(A104,GRAV_COMU,5,0)*$E$18, ""), 0), 0) -> 0 | G104: =IFERROR(D104+E104+F104,0) -> 0
A105: =+CONCATENATE("TOPE DE PARTICIPACIÓN DE ",B104) -> TOPE DE PARTICIPACIÓN DE GRAVAMEN MOVIMIENTOS FINANCIEROS GMF | D105: =IFERROR(IF($B$6="COMUNITARIOS",TR!$C$78,""),"") -> 0.003984063745 | E105: =IFERROR(IF($B$6="COMUNITARIOS",TR!$D$78,""),"") -> 0.003984063745 | F105: =IFERROR(IF($B$6="COMUNITARIOS",TR!$E$78,""),"") -> 0.003984063745 | G105: =IFERROR(IF($B$6="COMUNITARIOS",TR!$F$78,""),"") -> 0.003984063745
D106: =+$D$104/$E$16 ->  | E106: =ROUND(+$E$104/$E$17,5) ->  | F106: =IFERROR($F$104/$E$18,0) -> 0
A107: 2.2 SUBTOTAL PRESUPUESTO DE GASTOS NIÑAS, NIÑOS Y ADOLESCENTES | D107: =+D101+D104 -> 0 | E107: =+E101+E104 -> 0 | F107: =+F101+F104 -> 0 | G107: =+G101+G104 -> 0
A109: TOTAL PRESUPUESTO DE GASTOS | D109: =+D53+D96+D107 -> 0 | E109: =+E53+E96+E107 -> 0 | F109: =+F53+F96+F107 -> 0 | G109: =+G53+G96+G107 -> 0
D110: =+E16 -> 0 | E110: =+E17 -> 0 | F110: =+E18 -> 0 | G110: =+F16 -> 0
C111: Diferencia | D111: =+D109-D110 -> 0 | E111: =+E109-E110 -> 0 | F111: =+F109-F110 -> 0 | G111: =+G109-G110 -> 0
C112: Control de Valores | D112: =D109=D110 -> TRUE | E112: =E109=E110 -> TRUE | F112: =F109=F110 -> TRUE | G112: =G109=G110 -> TRUE
C114: % Total | D114: =IFERROR(+D44+D52+D63+D66+D69+D75+D78+D87+D90+D95+D103+#REF!+D106,"") ->  | E114: =IFERROR(+E44+E52+E63+E66+E69+E75+E78+E87+E90+E95+E103+#REF!+E106,"") ->  | F114: =IFERROR(+F44+F52+F63+F66+F69+F75+F78+F87+F90+F95+F103+#REF!+F106,"") -> 
A121: Contador/Revisor Fiscal (cuando aplique) | D121: Representante Legal
A122: Nombre: | D122: Nombre:
A123: C.C.: | D123: C.C.:
A124: Tarjeta profesional:
A126: ¡Antes de imprimir este documento… piense en el medio ambiente! Cualquier copia impresa de este documento se considera como COPIA NO CONTROLADA LOS DATOS PROPORCIONADOS SERÁN TRATADOS DE ACUERDO A LA POLÍTICA DE TRATAMIENTO DE DATOS PERSONALES DEL ICBF Y A LA LEY 1581 DE 2012

Sheet CCM-ZONAS COMUNITARIOS (hidden)
B2: REGIONAL | C2: ALISTAMIENTO (CCM) | D2: ATENCIÓN | E2: CIERRE | F2: CCM (Promedio)
B3: NORTE DE SANTANDER | C3: 183945 | D3: 289292 | E3: 132908 | F3: 256576
B4: CESAR | C4: 183945 | D4: 287347 | E4: 132908 | F4: 255117

Sheet 2. INFORMACION GENERAL
D2: PROCESO PROMOCIÓN Y PREVENCIÓN FORMATO SEGUIMIENTO FINANCIERO ATRAPASUEÑOS | AA2: F18.GO1.MT4.PP | AD2: 2025-11-25
AA3: =+'1. PRESUPUESTO INICIAL'!E3 -> Versión 1 | AD3: =+'1. PRESUPUESTO INICIAL'!F3+1 -> 2
AA4: Clasificación de la Información PÚBLICA
B5: 1. INFORMACIÓN GENERAL DEL CONTRATO
B6: Forma de Atención | D6: =+'1. PRESUPUESTO INICIAL'!B6 -> COMUNITARIOS | E6: ENTIDAD CONTRATISTA | G6: =+'1. PRESUPUESTO INICIAL'!B10 -> Escribe la entidad Contratante | J6: NIT ENTIDAD CONTRATISTA | K6: =+'1. PRESUPUESTO INICIAL'!D10 -> 0 | O6: CONTRATO N° | P6: =+'1. PRESUPUESTO INICIAL'!F10 -> 0 | Q6: DE | R6: AÑO | S6: FECHA LEGALIZACIÓN DEL CONTRATO | U6: DD/MM/AA | W6: FECHA INICIO | X6: ='1. PRESUPUESTO INICIAL'!C11 -> 00:00:00 | Z6: FECHA FIN | AA6: ='1. PRESUPUESTO INICIAL'!F11 -> 00:00:00 | AC6: TIEMPO DE ATENCIÓN | AE6: =+'1. PRESUPUESTO INICIAL'!D12 -> 4
B7: REGIONAL | D7: =+'1. PRESUPUESTO INICIAL'!D6 -> 0 | G7: CENTRO ZONAL | K7: MUNICIPIO (S) DE ATENCIÓN | M7: =+'1. PRESUPUESTO INICIAL'!F6 -> 0 | S7: PERIODO DEL INFORME | U7: DESDE - DD/MM/AA | W7: HASTA - DD/MM/AA | Y7: FECHA DE ELABORACIÓN INFORME FINANCIERO | AA7: DD/MM/AA | AC7: RESPONSABLE DE LA ELABORACIÓN
B8: 2. VALOR DEL CONTRATO
B9: # CUPOS CONTRATADOS | C9: =+'1. PRESUPUESTO INICIAL'!B12 -> 0 | D9: VALOR COSTO CUPO MES ALISTAMIENTO | F9: =+'1. PRESUPUESTO INICIAL'!B16 -> 0 | G9: VALOR APORTES | O9: VALOR ADICIONES | U9: VALOR DISMINUCIONES | AA9: VALOR TOTAL
B10: VALOR COSTO CUPO MES ATENCIÓN | C10: =+'1. PRESUPUESTO INICIAL'!B17 -> 0 | D10: VALOR COSTO CUPO MES CIERRE | F10: =+'1. PRESUPUESTO INICIAL'!B18 -> 0 | G10: APORTES ICBF | K10: OTROS APORTES | O10: APORTES ICBF | R10: OTRAS ADICIONES | U10: APORTES ICBF | X10: OTROS APORTES | AA10: APORTES ICBF | AD10: OTROS APORTES
B11: =UPPER('1. PRESUPUESTO INICIAL'!B21) -> APORTES ICBF | D11: =+'1. PRESUPUESTO INICIAL'!E21 -> 0 | G11: =D11 -> 0 | K11: =+D12 -> 0 | O11: 0 | R11: 0 | U11: 0 | X11: 0 | AA11: =+G11+O11+U11 -> 0 | AD11: =+K11+R11-X11 -> 0
B12: =+UPPER('1. PRESUPUESTO INICIAL'!B23) -> APORTES CONTRAPARTIDA (CUANDO APLIQUE) | D12: =+'1. PRESUPUESTO INICIAL'!E23 -> 0
B13: VALOR FINAL DEL CONTRATO | D13: =+D11+D12 -> 0 | AA13: =+AA11 -> 0 | AD13: =+AD11 -> 0
B14: 3. PRESUPUESTO DE INGRESOS APORTES ICBF
B15: Mes | D15: ALISTAMIENTO | G15: Mes 1 | J15: Mes 2 | M15: Mes 3 | O15: Mes 4 | Q15: Mes 5 | S15: Mes 6 | U15: Mes 7 | W15: Mes 8 | Y15: Mes 9 | AA15: Mes 10 | AC15: Mes 11 | AE15: Mes 12
B16: CUPOS CONTRATADOS | D16: =+C9 -> 0 | G16: =+D16 -> 0 | J16: =+G16 -> 0 | M16: =+J16 -> 0 | O16: =+M16 -> 0 | Q16: =+O16 -> 0 | S16: =+Q16 -> 0 | U16: =+S16 -> 0 | W16: =+U16 -> 0 | Y16: =+W16 -> 0 | AA16: =+Y16 -> 0 | AC16: =+AA16 -> 0 | AE16: =+AC16 -> 0
B17: CUPOS ATENDIDOS | D17: 0
B18: CUPOS NO ATENDIDOS | D18: =+D16-D17 -> 0 | G18: =+G16-G17 -> 0 | J18: =+J16-J17 -> 0 | M18: =+M16-M17 -> 0 | O18: =+O16-O17 -> 0 | Q18: =+Q16-Q17 -> 0 | S18: =+S16-S17 -> 0 | U18: =+U16-U17 -> 0 | W18: =+W16-W17 -> 0 | Y18: =+Y16-Y17 -> 0 | AA18: =+AA16-AA17 -> 0 | AC18: =+AC16-AC17 -> 0 | AE18: =+AE16-AE17 -> 0 | AG18: TOTAL
B19: VALOR MENSUAL PROGRAMADO | D19: =+D68 -> 0 | G19: =+G68 -> 0 | J19: =+J68 -> 0 | M19: =+M68 -> 0 | O19: =+P68 -> 0 | Q19: =+S68 -> 0 | S19: =+V68 -> 0 | U19: =+Y68 -> 0 | W19: =+AB68 -> 0 | Y19: =+AE68 -> 0 | AA19: =+AH68 -> 0 | AC19: =+AK68 -> 0 | AE19: =+AN68 -> 0 | AG19: =SUM(D19:AF19) -> 0
B20: VALOR INEJECUCIONES MENSUALES (Inasistencias) | D20: 0 | AG20: =+D20+G20+J20+M20+O20+Q20+S20+U20+W20+Y20+AA20+AC20+AE20 -> 0
B22: VALOR REINVERSIONES MENSUALES | G22: ALISTAMIENTO (Valor Aprobado) | H22: Acta y Fecha (Aprobación) | J22: =+G26 -> ATENCIÓN Mes 1 | K22: Acta y Fecha (Aprobación) | M22: =+J26 -> ATENCIÓN Mes 2 | N22: Acta y Fecha (Aprobación) | O22: =+M26 -> ATENCIÓN Mes 3 | P22: Acta y Fecha (Aprobación) | Q22: =+P26 -> ATENCIÓN Mes 4 | R22: Acta y Fecha (Aprobación) | S22: =+S26 -> ATENCIÓN Mes 5 | T22: Acta y Fecha (Aprobación) | U22: =+V26 -> ATENCIÓN Mes 6 | V22: Acta y Fecha (Aprobación) | W22: =+Y26 -> ATENCIÓN Mes 7 | X22: Acta y Fecha (Aprobación) | Y22: =+Y26 -> ATENCIÓN Mes 7 | Z22: Acta y Fecha (Aprobación) | AA22: =+AB26 -> ATENCIÓN Mes 8 | AB22: Acta y Fecha (Aprobación) | AC22: =+AE26 -> ATENCIÓN Mes 9 | AD22: Acta y Fecha (Aprobación) | AE22: =+AH26 -> ATENCIÓN Mes 10 | AF22: Acta y Fecha (Aprobación) | AG22: =+AK26 -> ATENCIÓN Mes 11 | AH22: Acta y Fecha (Aprobación) | AI22: TOTAL REINVERSIONES APROBADAS Y EJECUTADAS
G23: 14175517 | H23: 2024-01-13 | J23: 0 | M23: 0 | O23: 0 | Q23: 0 | S23: 0 | U23: 0 | W23: 0 | Y23: 0 | AA23: 0 | AC23: 0 | AE23: 0 | AG23: 0 | AI23: =+G23+J23+M23+O23+Q23+S23+U23+W23+Y23+AA23+AC23+AE23+AG23 -> 14175517
B24: 4. PRESUPUESTO DE GASTOS APORTES ICBF
B25: 4. PRESUPUESTO DE GASTOS APORTES ICBF
B26: ETAPA | D26: ALISTAMIENTO | G26: ATENCIÓN Mes 1 | J26: ATENCIÓN Mes 2 | M26: ATENCIÓN Mes 3 | P26: ATENCIÓN Mes 4 | S26: ATENCIÓN Mes 5 | V26: ATENCIÓN Mes 6 | Y26: ATENCIÓN Mes 7 | AB26: ATENCIÓN Mes 8 | AE26: ATENCIÓN Mes 9 | AH26: ATENCIÓN Mes 10 | AK26: ATENCIÓN Mes 11 | AN26: ATENCIÓN Mes 12 | AQ26: CIERRE | AT26: TOTAL
D27: PROGRAMADO | E27: EJECUTADO | F27: NO EJECUTADO | G27: PROGRAMADO | H27: EJECUTADO | I27: NO EJECUTADO | J27: PROGRAMADO | K27: EJECUTADO | L27: NO EJECUTADO | M27: PROGRAMADO | N27: EJECUTADO | O27: NO EJECUTADO | P27: PROGRAMADO | Q27: EJECUTADO | R27: NO EJECUTADO | S27: PROGRAMADO | T27: EJECUTADO | U27: NO EJECUTADO | V27: PROGRAMADO | W27: EJECUTADO | X27: NO EJECUTADO | Y27: PROGRAMADO | Z27: EJECUTADO | AA27: NO EJECUTADO | AB27: PROGRAMADO | AC27: EJECUTADO | AD27: NO EJECUTADO | AE27: PROGRAMADO | AF27: EJECUTADO | AG27: NO EJECUTADO | AH27: PROGRAMADO | AI27: EJECUTADO | AJ27: NO EJECUTADO | AK27: PROGRAMADO | AL27: EJECUTADO | AM27: NO EJECUTADO | AN27: PROGRAMADO | AO27: EJECUTADO | AP27: NO EJECUTADO | AQ27: PROGRAMADO | AR27: EJECUTADO | AS27: NO EJECUTADO | AT27: PROGRAMADO | AU27: EJECUTADO | AV27: NO EJECUTADO
A28: 2100 | B28: =IF('1. PRESUPUESTO INICIAL'!B31="","",'1. PRESUPUESTO INICIAL'!B31) -> TALENTO HUMANO | D28: =+SUM(D29:D38) -> 0 | E28: =+SUM(E29:E38) -> 0 | F28: =+SUM(F29:F38) -> 0 | G28: =+SUM(G29:G38) -> 0 | H28: 0 | I28: =+SUM(I29:I38) -> 0 | J28: =+SUM(J29:J38) -> 0 | K28: 0 | L28: =+SUM(L29:L38) -> 0 | M28: =+SUM(M29:M38) -> 0 | N28: 0 | O28: 0 | P28: =+SUM(P29:P38) -> 0 | Q28: 0 | R28: 0 | S28: =+SUM(S29:S38) -> 0 | T28: 0 | U28: 0 | V28: =+SUM(V29:V38) -> 0 | W28: 0 | X28: 0 | Y28: =+SUM(Y29:Y38) -> 0 | Z28: 0 | AA28: 0 | AB28: =+SUM(AB29:AB38) -> 0 | AC28: 0 | AD28: 0 | AE28: =+SUM(AE29:AE38) -> 0 | AF28: 0 | AG28: 0 | AH28: =+SUM(AH29:AH38) -> 0 | AI28: 0 | AJ28: 0 | AK28: =+SUM(AK29:AK38) -> 0 | AL28: 0 | AM28: 0 | AN28: =+SUM(AN29:AN38) -> 0 | AO28: 0 | AP28: 0 | AQ28: =+SUM(AQ29:AQ38) -> 0 | AR28: 0 | AS28: =+SUM(AS29:AS38) -> 0 | AT28: 0 | AU28: 0 | AV28: 0
A29: 2101 | B29: =IF('1. PRESUPUESTO INICIAL'!B32="","",'1. PRESUPUESTO INICIAL'!B32) -> Coordinador(a) | D29: =IF('1. PRESUPUESTO INICIAL'!D32="",0,'1. PRESUPUESTO INICIAL'!D32) -> 0 | E29: =IF(OR(B29="",D29=0),0,SUMIFS('4. DETALLADA-RECURSOS ICBF'!$M$10:$M$1300,'4. DETALLADA-RECURSOS ICBF'!$B$10:$B$1300,'2. INFORMACION GENERAL'!$D$26,'4. DETALLADA-RECURSOS ICBF'!$K$10:$K$1300,'2. INFORMACION GENERAL'!$B$28,'4. DETALLADA-RECURSOS ICBF'!$L$10:$L$1300,'2. INFORMACION GENERAL'!B29)) -> 0 | F29: =IFERROR(D29-E29,0) -> 0 | G29: 0 | H29: =IF(OR(B29="",G29=0),0,SUMIFS('4. DETALLADA-RECURSOS ICBF'!$M$10:$M$1300,'4. DETALLADA-RECURSOS ICBF'!$B$10:$B$1300,'2. INFORMACION GENERAL'!$G$26,'4. DETALLADA-RECURSOS ICBF'!$K$10:$K$1300,'2. INFORMACION GENERAL'!$B$28,'4. DETALLADA-RECURSOS ICBF'!$L$10:$L$1300,'2. INFORMACION GENERAL'!B29)) -> 0 | I29: =IFERROR(G29-H29,0) -> 0 | J29: 0 | K29: =IF(OR(B29="",J29=0),0,SUMIFS('4. DETALLADA-RECURSOS ICBF'!$M$10:$M$1300,'4. DETALLADA-RECURSOS ICBF'!$B$10:$B$1300,'2. INFORMACION GENERAL'!$J$26,'4. DETALLADA-RECURSOS ICBF'!$K$10:$K$1300,'2. INFORMACION GENERAL'!$B$28,'4. DETALLADA-RECURSOS ICBF'!$L$10:$L$1300,'2. INFORMACION GENERAL'!B29)) -> 0 | L29: =IFERROR(J29-K29,0) -> 0 | M29: 0 | N29: =IF(OR(B29="",M29=0),0,SUMIFS('4. DETALLADA-RECURSOS ICBF'!$M$10:$M$1300,'4. DETALLADA-RECURSOS ICBF'!$B$10:$B$1300,'2. INFORMACION GENERAL'!$M$26,'4. DETALLADA-RECURSOS ICBF'!$K$10:$K$1300,'2. INFORMACION GENERAL'!$B$28,'4. DETALLADA-RECURSOS ICBF'!$L$10:$L$1300,'2. INFORMACION GENERAL'!B29)) -> 0 | O29: =IFERROR(M29-N29,0) -> 0 | P29: 0 | Q29: =IF(OR(B29="",P29=0),0,SUMIFS('4. DETALLADA-RECURSOS ICBF'!$M$10:$M$1300,'4. DETALLADA-RECURSOS ICBF'!$B$10:$B$1300,'2. INFORMACION GENERAL'!$P$26,'4. DETALLADA-RECURSOS ICBF'!$K$10:$K$1300,'2. INFORMACION GENERAL'!$B$28,'4. DETALLADA-RECURSOS ICBF'!$L$10:$L$1300,'2. INFORMACION GENERAL'!B29)) -> 0 | R29: =IFERROR(P29-Q29,0) -> 0 | S29: 0 | T29: =IF(OR(B29="",S29=0),0,SUMIFS('4. DETALLADA-RECURSOS ICBF'!$M$10:$M$1300,'4. DETALLADA-RECURSOS ICBF'!$B$10:$B$1300,'2. INFORMACION GENERAL'!$S$26,'4. DETALLADA-RECURSOS ICBF'!$K$10:$K$1300,'2. INFORMACION GENERAL'!$B$28,'4. DETALLADA-RECURSOS ICBF'!$L$10:$L$1300,'2. INFORMACION GENERAL'!B29)) -> 0 | U29: =IFERROR(S29-T29,0) -> 0 | V29: 0 | W29: =IF(OR(B29="",V29=0),0,SUMIFS('4. DETALLADA-RECURSOS ICBF'!$M$10:$M$1300,'4. DETALLADA-RECURSOS ICBF'!$B$10:$B$1300,'2. INFORMACION GENERAL'!$V$26,'4. DETALLADA-RECURSOS ICBF'!$K$10:$K$1300,'2. INFORMACION GENERAL'!$B$28,'4. DETALLADA-RECURSOS ICBF'!$L$10:$L$1300,'2. INFORMACION GENERAL'!B29)) -> 0 | X29: =IFERROR(V29-W29,0) -> 0 | Y29: 0 | Z29: =IF(OR(B29="",Y29=0),0,SUMIFS('4. DETALLADA-RECURSOS ICBF'!$M$10:$M$1300,'4. DETALLADA-RECURSOS ICBF'!$B$10:$B$1300,'2. INFORMACION GENERAL'!$Y$26,'4. DETALLADA-RECURSOS ICBF'!$K$10:$K$1300,'2. INFORMACION GENERAL'!$B$28,'4. DETALLADA-RECURSOS ICBF'!$L$10:$L$1300,'2. INFORMACION GENERAL'!B29)) -> 0 | AA29: =IFERROR(Y29-Z29,0) -> 0 | AB29: 0 | AC29: =IF(OR(B29="",AB29=0),0,SUMIFS('4. DETALLADA-RECURSOS ICBF'!$M$10:$M$1300,'4. DETALLADA-RECURSOS ICBF'!$B$10:$B$1300,'2. INFORMACION GENERAL'!$AB$26,'4. DETALLADA-RECURSOS ICBF'!$K$10:$K$1300,'2. INFORMACION GENERAL'!$B$28,'4. DETALLADA-RECURSOS ICBF'!$L$10:$L$1300,'2. INFORMACION GENERAL'!B29)) -> 0 | AD29: =IFERROR(AB29-AC29,0) -> 0 | AE29: 0 | AF29: =IF(OR(B29="",AE29=0),0,SUMIFS('4. DETALLADA-RECURSOS ICBF'!$M$10:$M$1300,'4. DETALLADA-RECURSOS ICBF'!$B$10:$B$1300,'2. INFORMACION GENERAL'!$AE$26,'4. DETALLADA-RECURSOS ICBF'!$K$10:$K$1300,'2. INFORMACION GENERAL'!$B$28,'4. DETALLADA-RECURSOS ICBF'!$L$10:$L$1300,'2. INFORMACION GENERAL'!B29)) -> 0 | AG29: =IFERROR(AE29-AF29,0) -> 0 | AH29: 0 | AI29: =IF(OR(B29="",AH29=0),0,SUMIFS('4. DETALLADA-RECURSOS ICBF'!$M$10:$M$1300,'4. DETALLADA-RECURSOS ICBF'!$B$10:$B$1300,'2. INFORMACION GENERAL'!$AH$26,'4. DETALLADA-RECURSOS ICBF'!$K$10:$K$1300,'2. INFORMACION GENERAL'!$B$28,'4. DETALLADA-RECURSOS ICBF'!$L$10:$L$1300,'2. INFORMACION GENERAL'!B29)) -> 0 | AJ29: =IFERROR(AH29-AI29,0) -> 0 | AK29: 0 | AL29: =IF(OR(B29="",AK29=0),0,SUMIFS('4. DETALLADA-RECURSOS ICBF'!$M$10:$M$1300,'4. DETALLADA-RECURSOS ICBF'!$B$10:$B$1300,'2. INFORMACION GENERAL'!$AK$26,'4. DETALLADA-RECURSOS ICBF'!$K$10:$K$1300,'2. INFORMACION GENERAL'!$B$28,'4. DETALLADA-RECURSOS ICBF'!$L$10:$L$1300,'2. INFORMACION GENERAL'!B29)) -> 0 | AM29: =IFERROR(AK29-AL29,0) -> 0 | AN29: 0 | AO29: =IF(OR(B29="",AN29=0),0,SUMIFS('4. DETALLADA-RECURSOS ICBF'!$M$10:$M$1300,'4. DETALLADA-RECURSOS ICBF'!$B$10:$B$1300,'2. INFORMACION GENERAL'!$AN$26,'4. DETALLADA-RECURSOS ICBF'!$K$10:$K$1300,'2. INFORMACION GENERAL'!$B$28,'4. DETALLADA-RECURSOS ICBF'!$L$10:$L$1300,'2. INFORMACION GENERAL'!B29)) -> 0 | AP29: =IFERROR(AN29-AO29,0) -> 0 | AQ29: =IF('1. PRESUPUESTO INICIAL'!F32="",0,'1. PRESUPUESTO INICIAL'!F32) -> 0 | AR29: =IF(OR(B29="",AQ29=0),0,SUMIFS('4. DETALLADA-RECURSOS ICBF'!$M$10:$M$1300,'4. DETALLADA-RECURSOS ICBF'!$B$10:$B$1300,'2. INFORMACION GENERAL'!$AQ$26,'4. DETALLADA-RECURSOS ICBF'!$K$10:$K$1300,'2. INFORMACION GENERAL'!$B$28,'4. DETALLADA-RECURSOS ICBF'!$L$10:$L$1300,'2. INFORMACION GENERAL'!B29)) -> 0 | AS29: =IFERROR(AQ29-AR29,0) -> 0 | AT29: =+SUMIFS(D29:AS29,$D$27:$AS$27,$AT$27) -> 0 | AU29: =+SUMIFS(D29:AS29,$D$27:$AS$27,$AU$27) -> 0 | AV29: =+SUMIFS(D29:AS29,$D$27:$AS$27,$AV$27) -> 0
A30: 2102 | B30: =IF('1. PRESUPUESTO INICIAL'!B33="","",'1. PRESUPUESTO INICIAL'!B33) -> Pedagogo | D30: =IF('1. PRESUPUESTO INICIAL'!D33="",0,'1. PRESUPUESTO INICIAL'!D33) -> 0 | E30: =IF(OR(B30="",D30=0),0,SUMIFS('4. DETALLADA-RECURSOS ICBF'!$M$10:$M$1300,'4. DETALLADA-RECURSOS ICBF'!$B$10:$B$1300,'2. INFORMACION GENERAL'!$D$26,'4. DETALLADA-RECURSOS ICBF'!$K$10:$K$1300,'2. INFORMACION GENERAL'!$B$28,'4. DETALLADA-RECURSOS ICBF'!$L$10:$L$1300,'2. INFORMACION GENERAL'!B30)) -> 0 | F30: =IFERROR(D30-E30,0) -> 0 | G30: 0 | H30: =IF(OR(B30="",G30=0),0,SUMIFS('4. DETALLADA-RECURSOS ICBF'!$M$10:$M$1300,'4. DETALLADA-RECURSOS ICBF'!$B$10:$B$1300,'2. INFORMACION GENERAL'!$G$26,'4. DETALLADA-RECURSOS ICBF'!$K$10:$K$1300,'2. INFORMACION GENERAL'!$B$28,'4. DETALLADA-RECURSOS ICBF'!$L$10:$L$1300,'2. INFORMACION GENERAL'!B30)) -> 0 | I30: =IFERROR(G30-H30,0) -> 0 | J30: 0 | K30: =IF(OR(B30="",J30=0),0,SUMIFS('4. DETALLADA-RECURSOS ICBF'!$M$10:$M$1300,'4. DETALLADA-RECURSOS ICBF'!$B$10:$B$1300,'2. INFORMACION GENERAL'!$J$26,'4. DETALLADA-RECURSOS ICBF'!$K$10:$K$1300,'2. INFORMACION GENERAL'!$B$28,'4. DETALLADA-RECURSOS ICBF'!$L$10:$L$1300,'2. INFORMACION GENERAL'!B30)) -> 0 | L30: =IFERROR(J30-K30,0) -> 0 | M30: 0 | N30: =IF(OR(B30="",M30=0),0,SUMIFS('4. DETALLADA-RECURSOS ICBF'!$M$10:$M$1300,'4. DETALLADA-RECURSOS ICBF'!$B$10:$B$1300,'2. INFORMACION GENERAL'!$M$26,'4. DETALLADA-RECURSOS ICBF'!$K$10:$K$1300,'2. INFORMACION GENERAL'!$B$28,'4. DETALLADA-RECURSOS ICBF'!$L$10:$L$1300,'2. INFORMACION GENERAL'!B30)) -> 0 | O30: =IFERROR(M30-N30,0) -> 0 | P30: 0 | Q30: =IF(OR(B30="",P30=0),0,SUMIFS('4. DETALLADA-RECURSOS ICBF'!$M$10:$M$1300,'4. DETALLADA-RECURSOS ICBF'!$B$10:$B$1300,'2. INFORMACION GENERAL'!$P$26,'4. DETALLADA-RECURSOS ICBF'!$K$10:$K$1300,'2. INFORMACION GENERAL'!$B$28,'4. DETALLADA-RECURSOS ICBF'!$L$10:$L$1300,'2. INFORMACION GENERAL'!B30)) -> 0 | R30: =IFERROR(P30-Q30,0) -> 0 | S30: 0 | T30: =IF(OR(B30="",S30=0),0,SUMIFS('4. DETALLADA-RECURSOS ICBF'!$M$10:$M$1300,'4. DETALLADA-RECURSOS ICBF'!$B$10:$B$1300,'2. INFORMACION GENERAL'!$S$26,'4. DETALLADA-RECURSOS ICBF'!$K$10:$K$1300,'2. INFORMACION GENERAL'!$B$28,'4. DETALLADA-RECURSOS ICBF'!$L$10:$L$1300,'2. INFORMACION GENERAL'!B30)) -> 0 | U30: =IFERROR(S30-T30,0) -> 0 | V30: 0 | W30: =IF(OR(B30="",V30=0),0,SUMIFS('4. DETALLADA-RECURSOS ICBF'!$M$10:$M$1300,'4. DETALLADA-RECURSOS ICBF'!$B$10:$B$1300,'2. INFORMACION GENERAL'!$V$26,'4. DETALLADA-RECURSOS ICBF'!$K$10:$K$1300,'2. INFORMACION GENERAL'!$B$28,'4. DETALLADA-RECURSOS ICBF'!$L$10:$L$1300,'2. INFORMACION GENERAL'!B30)) -> 0 | X30: =IFERROR(V30-W30,0) -> 0 | Y30: 0 | Z30: =IF(OR(B30="",Y30=0),0,SUMIFS('4. DETALLADA-RECURSOS ICBF'!$M$10:$M$1300,'4. DETALLADA-RECURSOS ICBF'!$B$10:$B$1300,'2. INFORMACION GENERAL'!$Y$26,'4. DETALLADA-RECURSOS ICBF'!$K$10:$K$1300,'2. INFORMACION GENERAL'!$B$28,'4. DETALLADA-RECURSOS ICBF'!$L$10:$L$1300,'2. INFORMACION GENERAL'!B30)) -> 0 | AA30: =IFERROR(Y30-Z30,0) -> 0 | AB30: 0 | AC30: =IF(OR(B30="",AB30=0),0,SUMIFS('4. DETALLADA-RECURSOS ICBF'!$M$10:$M$1300,'4. DETALLADA-RECURSOS ICBF'!$B$10:$B$1300,'2. INFORMACION GENERAL'!$AB$26,'4. DETALLADA-RECURSOS ICBF'!$K$10:$K$1300,'2. INFORMACION GENERAL'!$B$28,'4. DETALLADA-RECURSOS ICBF'!$L$10:$L$1300,'2. INFORMACION GENERAL'!B30)) -> 0 | AD30: =IFERROR(AB30-AC30,0) -> 0 | AE30: 0 | AF30: =IF(OR(B30="",AE30=0),0,SUMIFS('4. DETALLADA-RECURSOS ICBF'!$M$10:$M$1300,'4. DETALLADA-RECURSOS ICBF'!$B$10:$B$1300,'2. INFORMACION GENERAL'!$AE$26,'4. DETALLADA-RECURSOS ICBF'!$K$10:$K$1300,'2. INFORMACION GENERAL'!$B$28,'4. DETALLADA-RECURSOS ICBF'!$L$10:$L$1300,'2. INFORMACION GENERAL'!B30)) -> 0 | AG30: =IFERROR(AE30-AF30,0) -> 0 | AH30: 0 | AI30: =IF(OR(B30="",AH30=0),0,SUMIFS('4. DETALLADA-RECURSOS ICBF'!$M$10:$M$1300,'4. DETALLADA-RECURSOS ICBF'!$B$10:$B$1300,'2. INFORMACION GENERAL'!$AH$26,'4. DETALLADA-RECURSOS ICBF'!$K$10:$K$1300,'2. INFORMACION GENERAL'!$B$28,'4. DETALLADA-RECURSOS ICBF'!$L$10:$L$1300,'2. INFORMACION GENERAL'!B30)) -> 0 | AJ30: =IFERROR(AH30-AI30,0) -> 0 | AK30: 0 | AL30: =IF(OR(B30="",AK30=0),0,SUMIFS('4. DETALLADA-RECURSOS ICBF'!$M$10:$M$1300,'4. DETALLADA-RECURSOS ICBF'!$B$10:$B$1300,'2. INFORMACION GENERAL'!$AK$26,'4. DETALLADA-RECURSOS ICBF'!$K$10:$K$1300,'2. INFORMACION GENERAL'!$B$28,'4. DETALLADA-RECURSOS ICBF'!$L$10:$L$1300,'2. INFORMACION GENERAL'!B30)) -> 0 | AM30: =IFERROR(AK30-AL30,0) -> 0 | AN30: 0 | AO30: =IF(OR(B30="",AN30=0),0,SUMIFS('4. DETALLADA-RECURSOS ICBF'!$M$10:$M$1300,'4. DETALLADA-RECURSOS ICBF'!$B$10:$B$1300,'2. INFORMACION GENERAL'!$AN$26,'4. DETALLADA-RECURSOS ICBF'!$K$10:$K$1300,'2. INFORMACION GENERAL'!$B$28,'4. DETALLADA-RECURSOS ICBF'!$L$10:$L$1300,'2. INFORMACION GENERAL'!B30)) -> 0 | AP30: =IFERROR(AN30-AO30,0) -> 0 | AQ30: =IF('1. PRESUPUESTO INICIAL'!F33="",0,'1. PRESUPUESTO INICIAL'!F33) -> 0 | AR30: =IF(OR(B30="",AQ30=0),0,SUMIFS('4. DETALLADA-RECURSOS ICBF'!$M$10:$M$1300,'4. DETALLADA-RECURSOS ICBF'!$B$10:$B$1300,'2. INFORMACION GENERAL'!$AQ$26,'4. DETALLADA-RECURSOS ICBF'!$K$10:$K$1300,'2. INFORMACION GENERAL'!$B$28,'4. DETALLADA-RECURSOS ICBF'!$L$10:$L$1300,'2. INFORMACION GENERAL'!B30)) -> 0 | AS30: =IFERROR(AQ30-AR30,0) -> 0 | AT30: =+SUMIFS(D30:AS30,$D$27:$AS$27,$AT$27) -> 0 | AU30: =+SUMIFS(D30:AS30,$D$27:$AS$27,$AU$27) -> 0 | AV30: =+SUMIFS(D30:AS30,$D$27:$AS$27,$AV$27) -> 0
A31: 2103 | B31: =IF('1. PRESUPUESTO INICIAL'!B34="","",'1. PRESUPUESTO INICIAL'!B34) -> Nutricionista | D31: =IF('1. PRESUPUESTO INICIAL'!D34="",0,'1. PRESUPUESTO INICIAL'!D34) -> 0 | E31: =IF(OR(B31="",D31=0),0,SUMIFS('4. DETALLADA-RECURSOS ICBF'!$M$10:$M$1300,'4. DETALLADA-RECURSOS ICBF'!$B$10:$B$1300,'2. INFORMACION GENERAL'!$D$26,'4. DETALLADA-RECURSOS ICBF'!$K$10:$K$1300,'2. INFORMACION GENERAL'!$B$28,'4. DETALLADA-RECURSOS ICBF'!$L$10:$L$1300,'2. INFORMACION GENERAL'!B31)) -> 0 | F31: =IFERROR(D31-E31,0) -> 0 | G31: 0 | H31: =IF(OR(B31="",G31=0),0,SUMIFS('4. DETALLADA-RECURSOS ICBF'!$M$10:$M$1300,'4. DETALLADA-RECURSOS ICBF'!$B$10:$B$1300,'2. INFORMACION GENERAL'!$G$26,'4. DETALLADA-RECURSOS ICBF'!$K$10:$K$1300,'2. INFORMACION GENERAL'!$B$28,'4. DETALLADA-RECURSOS ICBF'!$L$10:$L$1300,'2. INFORMACION GENERAL'!B31)) -> 0 | I31: 0 | J31: 0 | K31: =IF(OR(B31="",J31=0),0,SUMIFS('4. DETALLADA-RECURSOS ICBF'!$M$10:$M$1300,'4. DETALLADA-RECURSOS ICBF'!$B$10:$B$1300,'2. INFORMACION GENERAL'!$J$26,'4. DETALLADA-RECURSOS ICBF'!$K$10:$K$1300,'2. INFORMACION GENERAL'!$B$28,'4. DETALLADA-RECURSOS ICBF'!$L$10:$L$1300,'2. INFORMACION GENERAL'!B31)) -> 0 | L31: 0 | M31: 0 | N31: =IF(OR(B31="",M31=0),0,SUMIFS('4. DETALLADA-RECURSOS ICBF'!$M$10:$M$1300,'4. DETALLADA-RECURSOS ICBF'!$B$10:$B$1300,'2. INFORMACION GENERAL'!$M$26,'4. DETALLADA-RECURSOS ICBF'!$K$10:$K$1300,'2. INFORMACION GENERAL'!$B$28,'4. DETALLADA-RECURSOS ICBF'!$L$10:$L$1300,'2. INFORMACION GENERAL'!B31)) -> 0 | O31: =IFERROR(M31-N31,0) -> 0 | P31: 0 | Q31: =IF(OR(B31="",P31=0),0,SUMIFS('4. DETALLADA-RECURSOS ICBF'!$M$10:$M$1300,'4. DETALLADA-RECURSOS ICBF'!$B$10:$B$1300,'2. INFORMACION GENERAL'!$P$26,'4. DETALLADA-RECURSOS ICBF'!$K$10:$K$1300,'2. INFORMACION GENERAL'!$B$28,'4. DETALLADA-RECURSOS ICBF'!$L$10:$L$1300,'2. INFORMACION GENERAL'!B31)) -> 0 | R31: 0 | S31: 0 | T31: =IF(OR(B31="",S31=0),0,SUMIFS('4. DETALLADA-RECURSOS ICBF'!$M$10:$M$1300,'4. DETALLADA-RECURSOS ICBF'!$B$10:$B$1300,'2. INFORMACION GENERAL'!$S$26,'4. DETALLADA-RECURSOS ICBF'!$K$10:$K$1300,'2. INFORMACION GENERAL'!$B$28,'4. DETALLADA-RECURSOS ICBF'!$L$10:$L$1300,'2. INFORMACION GENERAL'!B31)) -> 0 | U31: 0 | V31: 0 | W31: =IF(OR(B31="",V31=0),0,SUMIFS('4. DETALLADA-RECURSOS ICBF'!$M$10:$M$1300,'4. DETALLADA-RECURSOS ICBF'!$B$10:$B$1300,'2. INFORMACION GENERAL'!$V$26,'4. DETALLADA-RECURSOS ICBF'!$K$10:$K$1300,'2. INFORMACION GENERAL'!$B$28,'4. DETALLADA-RECURSOS ICBF'!$L$10:$L$1300,'2. INFORMACION GENERAL'!B31)) -> 0 | X31: =IFERROR(V31-W31,0) -> 0 | Y31: 0 | Z31: =IF(OR(B31="",Y31=0),0,SUMIFS('4. DETALLADA-RECURSOS ICBF'!$M$10:$M$1300,'4. DETALLADA-RECURSOS ICBF'!$B$10:$B$1300,'2. INFORMACION GENERAL'!$Y$26,'4. DETALLADA-RECURSOS ICBF'!$K$10:$K$1300,'2. INFORMACION GENERAL'!$B$28,'4. DETALLADA-RECURSOS ICBF'!$L$10:$L$1300,'2. INFORMACION GENERAL'!B31)) -> 0 | AA31: =IFERROR(Y31-Z31,0) -> 0 | AB31: 0 | AC31: =IF(OR(B31="",AB31=0),0,SUMIFS('4. DETALLADA-RECURSOS ICBF'!$M$10:$M$1300,'4. DETALLADA-RECURSOS ICBF'!$B$10:$B$1300,'2. INFORMACION GENERAL'!$AB$26,'4. DETALLADA-RECURSOS ICBF'!$K$10:$K$1300,'2. INFORMACION GENERAL'!$B$28,'4. DETALLADA-RECURSOS ICBF'!$L$10:$L$1300,'2. INFORMACION GENERAL'!B31)) -> 0 | AD31: =IFERROR(AB31-AC31,0) -> 0 | AE31: 0 | AF31: =IF(OR(B31="",AE31=0),0,SUMIFS('4. DETALLADA-RECURSOS ICBF'!$M$10:$M$1300,'4. DETALLADA-RECURSOS ICBF'!$B$10:$B$1300,'2. INFORMACION GENERAL'!$AE$26,'4. DETALLADA-RECURSOS ICBF'!$K$10:$K$1300,'2. INFORMACION GENERAL'!$B$28,'4. DETALLADA-RECURSOS ICBF'!$L$10:$L$1300,'2. INFORMACION GENERAL'!B31)) -> 0 | AG31: =IFERROR(AE31-AF31,0) -> 0 | AH31: 0 | AI31: =IF(OR(B31="",AH31=0),0,SUMIFS('4. DETALLADA-RECURSOS ICBF'!$M$10:$M$1300,'4. DETALLADA-RECURSOS ICBF'!$B$10:$B$1300,'2. INFORMACION GENERAL'!$AH$26,'4. DETALLADA-RECURSOS ICBF'!$K$10:$K$1300,'2. INFORMACION GENERAL'!$B$28,'4. DETALLADA-RECURSOS ICBF'!$L$10:$L$1300,'2. INFORMACION GENERAL'!B31)) -> 0 | AJ31: =IFERROR(AH31-AI31,0) -> 0 | AK31: 0 | AL31: =IF(OR(B31="",AK31=0),0,SUMIFS('4. DETALLADA-RECURSOS ICBF'!$M$10:$M$1300,'4. DETALLADA-RECURSOS ICBF'!$B$10:$B$1300,'2. INFORMACION GENERAL'!$AK$26,'4. DETALLADA-RECURSOS ICBF'!$K$10:$K$1300,'2. INFORMACION GENERAL'!$B$28,'4. DETALLADA-RECURSOS ICBF'!$L$10:$L$1300,'2. INFORMACION GENERAL'!B31)) -> 0 | AM31: =IFERROR(AK31-AL31,0) -> 0 | AN31: 0 | AO31: =IF(OR(B31="",AN31=0),0,SUMIFS('4. DETALLADA-RECURSOS ICBF'!$M$10:$M$1300,'4. DETALLADA-RECURSOS ICBF'!$B$10:$B$1300,'2. INFORMACION GENERAL'!$AN$26,'4. DETALLADA-RECURSOS ICBF'!$K$10:$K$1300,'2. INFORMACION GENERAL'!$B$28,'4. DETALLADA-RECURSOS ICBF'!$L$10:$L$1300,'2. INFORMACION GENERAL'!B31)) -> 0 | AP31: =IFERROR(AN31-AO31,0) -> 0 | AQ31: =IF('1. PRESUPUESTO INICIAL'!F34="",0,'1. PRESUPUESTO INICIAL'!F34) -> 0 | AR31: =IF(OR(B31="",AQ31=0),0,SUMIFS('4. DETALLADA-RECURSOS ICBF'!$M$10:$M$1300,'4. DETALLADA-RECURSOS ICBF'!$B$10:$B$1300,'2. INFORMACION GENERAL'!$AQ$26,'4. DETALLADA-RECURSOS ICBF'!$K$10:$K$1300,'2. INFORMACION GENERAL'!$B$28,'4. DETALLADA-RECURSOS ICBF'!$L$10:$L$1300,'2. INFORMACION GENERAL'!B31)) -> 0 | AS31: 0 | AT31: 0 | AU31: 0 | AV31: 0
A32: 2104 | B32: =IF('1. PRESUPUESTO INICIAL'!B35="","",'1. PRESUPUESTO INICIAL'!B35) -> Psicólogo(a) | D32: =IF('1. PRESUPUESTO INICIAL'!D35="",0,'1. PRESUPUESTO INICIAL'!D35) -> 0 | E32: =IF(OR(B32="",D32=0),0,SUMIFS('4. DETALLADA-RECURSOS ICBF'!$M$10:$M$1300,'4. DETALLADA-RECURSOS ICBF'!$B$10:$B$1300,'2. INFORMACION GENERAL'!$D$26,'4. DETALLADA-RECURSOS ICBF'!$K$10:$K$1300,'2. INFORMACION GENERAL'!$B$28,'4. DETALLADA-RECURSOS ICBF'!$L$10:$L$1300,'2. INFORMACION GENERAL'!B32)) -> 0 | F32: =IFERROR(D32-E32,0) -> 0 | G32: 0 | H32: =IF(OR(B32="",G32=0),0,SUMIFS('4. DETALLADA-RECURSOS ICBF'!$M$10:$M$1300,'4. DETALLADA-RECURSOS ICBF'!$B$10:$B$1300,'2. INFORMACION GENERAL'!$G$26,'4. DETALLADA-RECURSOS ICBF'!$K$10:$K$1300,'2. INFORMACION GENERAL'!$B$28,'4. DETALLADA-RECURSOS ICBF'!$L$10:$L$1300,'2. INFORMACION GENERAL'!B32)) -> 0 | I32: 0 | J32: 0 | K32: =IF(OR(B32="",J32=0),0,SUMIFS('4. DETALLADA-RECURSOS ICBF'!$M$10:$M$1300,'4. DETALLADA-RECURSOS ICBF'!$B$10:$B$1300,'2. INFORMACION GENERAL'!$J$26,'4. DETALLADA-RECURSOS ICBF'!$K$10:$K$1300,'2. INFORMACION GENERAL'!$B$28,'4. DETALLADA-RECURSOS ICBF'!$L$10:$L$1300,'2. INFORMACION GENERAL'!B32)) -> 0 | L32: =IFERROR(J32-K32,0) -> 0 | M32: 0 | N32: =IF(OR(B32="",M32=0),0,SUMIFS('4. DETALLADA-RECURSOS ICBF'!$M$10:$M$1300,'4. DETALLADA-RECURSOS ICBF'!$B$10:$B$1300,'2. INFORMACION GENERAL'!$M$26,'4. DETALLADA-RECURSOS ICBF'!$K$10:$K$1300,'2. INFORMACION GENERAL'!$B$28,'4. DETALLADA-RECURSOS ICBF'!$L$10:$L$1300,'2. INFORMACION GENERAL'!B32)) -> 0 | O32: 0 | P32: 0 | Q32: =IF(OR(B32="",P32=0),0,SUMIFS('4. DETALLADA-RECURSOS ICBF'!$M$10:$M$1300,'4. DETALLADA-RECURSOS ICBF'!$B$10:$B$1300,'2. INFORMACION GENERAL'!$P$26,'4. DETALLADA-RECURSOS ICBF'!$K$10:$K$1300,'2. INFORMACION GENERAL'!$B$28,'4. DETALLADA-RECURSOS ICBF'!$L$10:$L$1300,'2. INFORMACION GENERAL'!B32)) -> 0 | R32: 0 | S32: 0 | T32: =IF(OR(B32="",S32=0),0,SUMIFS('4. DETALLADA-RECURSOS ICBF'!$M$10:$M$1300,'4. DETALLADA-RECURSOS ICBF'!$B$10:$B$1300,'2. INFORMACION GENERAL'!$S$26,'4. DETALLADA-RECURSOS ICBF'!$K$10:$K$1300,'2. INFORMACION GENERAL'!$B$28,'4. DETALLADA-RECURSOS ICBF'!$L$10:$L$1300,'2. INFORMACION GENERAL'!B32)) -> 0 | U32: 0 | V32: 0 | W32: =IF(OR(B32="",V32=0),0,SUMIFS('4. DETALLADA-RECURSOS ICBF'!$M$10:$M$1300,'4. DETALLADA-RECURSOS ICBF'!$B$10:$B$1300,'2. INFORMACION GENERAL'!$V$26,'4. DETALLADA-RECURSOS ICBF'!$K$10:$K$1300,'2. INFORMACION GENERAL'!$B$28,'4. DETALLADA-RECURSOS ICBF'!$L$10:$L$1300,'2. INFORMACION GENERAL'!B32)) -> 0 | X32: 0 | Y32: 0 | Z32: =IF(OR(B32="",Y32=0),0,SUMIFS('4. DETALLADA-RECURSOS ICBF'!$M$10:$M$1300,'4. DETALLADA-RECURSOS ICBF'!$B$10:$B$1300,'2. INFORMACION GENERAL'!$Y$26,'4. DETALLADA-RECURSOS ICBF'!$K$10:$K$1300,'2. INFORMACION GENERAL'!$B$28,'4. DETALLADA-RECURSOS ICBF'!$L$10:$L$1300,'2. INFORMACION GENERAL'!B32)) -> 0 | AA32: =IFERROR(Y32-Z32,0) -> 0 | AB32: 0 | AC32: =IF(OR(B32="",AB32=0),0,SUMIFS('4. DETALLADA-RECURSOS ICBF'!$M$10:$M$1300,'4. DETALLADA-RECURSOS ICBF'!$B$10:$B$1300,'2. INFORMACION GENERAL'!$AB$26,'4. DETALLADA-RECURSOS ICBF'!$K$10:$K$1300,'2. INFORMACION GENERAL'!$B$28,'4. DETALLADA-RECURSOS ICBF'!$L$10:$L$1300,'2. INFORMACION GENERAL'!B32)) -> 0 | AD32: =IFERROR(AB32-AC32,0) -> 0 | AE32: 0 | AF32: =IF(OR(B32="",AE32=0),0,SUMIFS('4. DETALLADA-RECURSOS ICBF'!$M$10:$M$1300,'4. DETALLADA-RECURSOS ICBF'!$B$10:$B$1300,'2. INFORMACION GENERAL'!$AE$26,'4. DETALLADA-RECURSOS ICBF'!$K$10:$K$1300,'2. INFORMACION GENERAL'!$B$28,'4. DETALLADA-RECURSOS ICBF'!$L$10:$L$1300,'2. INFORMACION GENERAL'!B32)) -> 0 | AG32: =IFERROR(AE32-AF32,0) -> 0 | AH32: 0 | AI32: =IF(OR(B32="",AH32=0),0,SUMIFS('4. DETALLADA-RECURSOS ICBF'!$M$10:$M$1300,'4. DETALLADA-RECURSOS ICBF'!$B$10:$B$1300,'2. INFORMACION GENERAL'!$AH$26,'4. DETALLADA-RECURSOS ICBF'!$K$10:$K$1300,'2. INFORMACION GENERAL'!$B$28,'4. DETALLADA-RECURSOS ICBF'!$L$10:$L$1300,'2. INFORMACION GENERAL'!B32)) -> 0 | AJ32: =IFERROR(AH32-AI32,0) -> 0 | AK32: 0 | AL32: =IF(OR(B32="",AK32=0),0,SUMIFS('4. DETALLADA-RECURSOS ICBF'!$M$10:$M$1300,'4. DETALLADA-RECURSOS ICBF'!$B$10:$B$1300,'2. INFORMACION GENERAL'!$AK$26,'4. DETALLADA-RECURSOS ICBF'!$K$10:$K$1300,'2. INFORMACION GENERAL'!$B$28,'4. DETALLADA-RECURSOS ICBF'!$L$10:$L$1300,'2. INFORMACION GENERAL'!B32)) -> 0 | AM32: =IFERROR(AK32-AL32,0) -> 0 | AN32: 0 | AO32: =IF(OR(B32="",AN32=0),0,SUMIFS('4. DETALLADA-RECURSOS ICBF'!$M$10:$M$1300,'4. DETALLADA-RECURSOS ICBF'!$B$10:$B$1300,'2. INFORMACION GENERAL'!$AN$26,'4. DETALLADA-RECURSOS ICBF'!$K$10:$K$1300,'2. INFORMACION GENERAL'!$B$28,'4. DETALLADA-RECURSOS ICBF'!$L$10:$L$1300,'2. INFORMACION GENERAL'!B32)) -> 0 | AP32: =IFERROR(AN32-AO32,0) -> 0 | AQ32: =IF('1. PRESUPUESTO INICIAL'!F35="",0,'1. PRESUPUESTO INICIAL'!F35) -> 0 | AR32: =IF(OR(B32="",AQ32=0),0,SUMIFS('4. DETALLADA-RECURSOS ICBF'!$M$10:$M$1300,'4. DETALLADA-RECURSOS ICBF'!$B$10:$B$1300,'2. INFORMACION GENERAL'!$AQ$26,'4. DETALLADA-RECURSOS ICBF'!$K$10:$K$1300,'2. INFORMACION GENERAL'!$B$28,'4. DETALLADA-RECURSOS ICBF'!$L$10:$L$1300,'2. INFORMACION GENERAL'!B32)) -> 0 | AS32: 0 | AT32: 0 | AU32: 0 | AV32: 0
A33: 2105 | B33: =IF('1. PRESUPUESTO INICIAL'!B36="","",'1. PRESUPUESTO INICIAL'!B36) -> Psicosocial | D33: =IF('1. PRESUPUESTO INICIAL'!D36="",0,'1. PRESUPUESTO INICIAL'!D36) -> 0 | E33: =IF(OR(B33="",D33=0),0,SUMIFS('4. DETALLADA-RECURSOS ICBF'!$M$10:$M$1300,'4. DETALLADA-RECURSOS ICBF'!$B$10:$B$1300,'2. INFORMACION GENERAL'!$D$26,'4. DETALLADA-RECURSOS ICBF'!$K$10:$K$1300,'2. INFORMACION GENERAL'!$B$28,'4. DETALLADA-RECURSOS ICBF'!$L$10:$L$1300,'2. INFORMACION GENERAL'!B33)) -> 0 | F33: 0 | G33: 0 | H33: =IF(OR(B33="",G33=0),0,SUMIFS('4. DETALLADA-RECURSOS ICBF'!$M$10:$M$1300,'4. DETALLADA-RECURSOS ICBF'!$B$10:$B$1300,'2. INFORMACION GENERAL'!$G$26,'4. DETALLADA-RECURSOS ICBF'!$K$10:$K$1300,'2. INFORMACION GENERAL'!$B$28,'4. DETALLADA-RECURSOS ICBF'!$L$10:$L$1300,'2. INFORMACION GENERAL'!B33)) -> 0 | I33: 0 | J33: 0 | K33: =IF(OR(B33="",J33=0),0,SUMIFS('4. DETALLADA-RECURSOS ICBF'!$M$10:$M$1300,'4. DETALLADA-RECURSOS ICBF'!$B$10:$B$1300,'2. INFORMACION GENERAL'!$J$26,'4. DETALLADA-RECURSOS ICBF'!$K$10:$K$1300,'2. INFORMACION GENERAL'!$B$28,'4. DETALLADA-RECURSOS ICBF'!$L$10:$L$1300,'2. INFORMACION GENERAL'!B33)) -> 0 | L33: 0 | M33: 0 | N33: =IF(OR(B33="",M33=0),0,SUMIFS('4. DETALLADA-RECURSOS ICBF'!$M$10:$M$1300,'4. DETALLADA-RECURSOS ICBF'!$B$10:$B$1300,'2. INFORMACION GENERAL'!$M$26,'4. DETALLADA-RECURSOS ICBF'!$K$10:$K$1300,'2. INFORMACION GENERAL'!$B$28,'4. DETALLADA-RECURSOS ICBF'!$L$10:$L$1300,'2. INFORMACION GENERAL'!B33)) -> 0 | O33: 0 | P33: 0 | Q33: =IF(OR(B33="",P33=0),0,SUMIFS('4. DETALLADA-RECURSOS ICBF'!$M$10:$M$1300,'4. DETALLADA-RECURSOS ICBF'!$B$10:$B$1300,'2. INFORMACION GENERAL'!$P$26,'4. DETALLADA-RECURSOS ICBF'!$K$10:$K$1300,'2. INFORMACION GENERAL'!$B$28,'4. DETALLADA-RECURSOS ICBF'!$L$10:$L$1300,'2. INFORMACION GENERAL'!B33)) -> 0 | R33: 0 | S33: 0 | T33: =IF(OR(B33="",S33=0),0,SUMIFS('4. DETALLADA-RECURSOS ICBF'!$M$10:$M$1300,'4. DETALLADA-RECURSOS ICBF'!$B$10:$B$1300,'2. INFORMACION GENERAL'!$S$26,'4. DETALLADA-RECURSOS ICBF'!$K$10:$K$1300,'2. INFORMACION GENERAL'!$B$28,'4. DETALLADA-RECURSOS ICBF'!$L$10:$L$1300,'2. INFORMACION GENERAL'!B33)) -> 0 | U33: 0 | V33: 0 | W33: =IF(OR(B33="",V33=0),0,SUMIFS('4. DETALLADA-RECURSOS ICBF'!$M$10:$M$1300,'4. DETALLADA-RECURSOS ICBF'!$B$10:$B$1300,'2. INFORMACION GENERAL'!$V$26,'4. DETALLADA-RECURSOS ICBF'!$K$10:$K$1300,'2. INFORMACION GENERAL'!$B$28,'4. DETALLADA-RECURSOS ICBF'!$L$10:$L$1300,'2. INFORMACION GENERAL'!B33)) -> 0 | X33: 0 | Y33: 0 | Z33: =IF(OR(B33="",Y33=0),0,SUMIFS('4. DETALLADA-RECURSOS ICBF'!$M$10:$M$1300,'4. DETALLADA-RECURSOS ICBF'!$B$10:$B$1300,'2. INFORMACION GENERAL'!$Y$26,'4. DETALLADA-RECURSOS ICBF'!$K$10:$K$1300,'2. INFORMACION GENERAL'!$B$28,'4. DETALLADA-RECURSOS ICBF'!$L$10:$L$1300,'2. INFORMACION GENERAL'!B33)) -> 0 | AA33: =IFERROR(Y33-Z33,0) -> 0 | AB33: 0 | AC33: =IF(OR(B33="",AB33=0),0,SUMIFS('4. DETALLADA-RECURSOS ICBF'!$M$10:$M$1300,'4. DETALLADA-RECURSOS ICBF'!$B$10:$B$1300,'2. INFORMACION GENERAL'!$AB$26,'4. DETALLADA-RECURSOS ICBF'!$K$10:$K$1300,'2. INFORMACION GENERAL'!$B$28,'4. DETALLADA-RECURSOS ICBF'!$L$10:$L$1300,'2. INFORMACION GENERAL'!B33)) -> 0 | AD33: 0 | AE33: 0 | AF33: =IF(OR(B33="",AE33=0),0,SUMIFS('4. DETALLADA-RECURSOS ICBF'!$M$10:$M$1300,'4. DETALLADA-RECURSOS ICBF'!$B$10:$B$1300,'2. INFORMACION GENERAL'!$AE$26,'4. DETALLADA-RECURSOS ICBF'!$K$10:$K$1300,'2. INFORMACION GENERAL'!$B$28,'4. DETALLADA-RECURSOS ICBF'!$L$10:$L$1300,'2. INFORMACION GENERAL'!B33)) -> 0 | AG33: 0 | AH33: 0 | AI33: =IF(OR(B33="",AH33=0),0,SUMIFS('4. DETALLADA-RECURSOS ICBF'!$M$10:$M$1300,'4. DETALLADA-RECURSOS ICBF'!$B$10:$B$1300,'2. INFORMACION GENERAL'!$AH$26,'4. DETALLADA-RECURSOS ICBF'!$K$10:$K$1300,'2. INFORMACION GENERAL'!$B$28,'4. DETALLADA-RECURSOS ICBF'!$L$10:$L$1300,'2. INFORMACION GENERAL'!B33)) -> 0 | AJ33: 0 | AK33: 0 | AL33: =IF(OR(B33="",AK33=0),0,SUMIFS('4. DETALLADA-RECURSOS ICBF'!$M$10:$M$1300,'4. DETALLADA-RECURSOS ICBF'!$B$10:$B$1300,'2. INFORMACION GENERAL'!$AK$26,'4. DETALLADA-RECURSOS ICBF'!$K$10:$K$1300,'2. INFORMACION GENERAL'!$B$28,'4. DETALLADA-RECURSOS ICBF'!$L$10:$L$1300,'2. INFORMACION GENERAL'!B33)) -> 0 | AM33: =IFERROR(AK33-AL33,0) -> 0 | AN33: 0 | AO33: =IF(OR(B33="",AN33=0),0,SUMIFS('4. DETALLADA-RECURSOS ICBF'!$M$10:$M$1300,'4. DETALLADA-RECURSOS ICBF'!$B$10:$B$1300,'2. INFORMACION GENERAL'!$AN$26,'4. DETALLADA-RECURSOS ICBF'!$K$10:$K$1300,'2. INFORMACION GENERAL'!$B$28,'4. DETALLADA-RECURSOS ICBF'!$L$10:$L$1300,'2. INFORMACION GENERAL'!B33)) -> 0 | AP33: 0 | AQ33: =IF('1. PRESUPUESTO INICIAL'!F36="",0,'1. PRESUPUESTO INICIAL'!F36) -> 0 | AR33: =IF(OR(B33="",AQ33=0),0,SUMIFS('4. DETALLADA-RECURSOS ICBF'!$M$10:$M$1300,'4. DETALLADA-RECURSOS ICBF'!$B$10:$B$1300,'2. INFORMACION GENERAL'!$AQ$26,'4. DETALLADA-RECURSOS ICBF'!$K$10:$K$1300,'2. INFORMACION GENERAL'!$B$28,'4. DETALLADA-RECURSOS ICBF'!$L$10:$L$1300,'2. INFORMACION GENERAL'!B33)) -> 0 | AS33: 0 | AT33: 0 | AU33: 0 | AV33: 0
A34: 2106 | B34: =IF('1. PRESUPUESTO INICIAL'!B37="","",'1. PRESUPUESTO INICIAL'!B37) -> Gestor(a) de Experiencias 1 | D34: =IF('1. PRESUPUESTO INICIAL'!D37="",0,'1. PRESUPUESTO INICIAL'!D37) -> 0 | E34: =IF(OR(B34="",D34=0),0,SUMIFS('4. DETALLADA-RECURSOS ICBF'!$M$10:$M$1300,'4. DETALLADA-RECURSOS ICBF'!$B$10:$B$1300,'2. INFORMACION GENERAL'!$D$26,'4. DETALLADA-RECURSOS ICBF'!$K$10:$K$1300,'2. INFORMACION GENERAL'!$B$28,'4. DETALLADA-RECURSOS ICBF'!$L$10:$L$1300,'2. INFORMACION GENERAL'!B34)) -> 0 | F34: 0 | G34: 0 | H34: =IF(OR(B34="",G34=0),0,SUMIFS('4. DETALLADA-RECURSOS ICBF'!$M$10:$M$1300,'4. DETALLADA-RECURSOS ICBF'!$B$10:$B$1300,'2. INFORMACION GENERAL'!$G$26,'4. DETALLADA-RECURSOS ICBF'!$K$10:$K$1300,'2. INFORMACION GENERAL'!$B$28,'4. DETALLADA-RECURSOS ICBF'!$L$10:$L$1300,'2. INFORMACION GENERAL'!B34)) -> 0 | I34: 0 | J34: 0 | K34: =IF(OR(B34="",J34=0),0,SUMIFS('4. DETALLADA-RECURSOS ICBF'!$M$10:$M$1300,'4. DETALLADA-RECURSOS ICBF'!$B$10:$B$1300,'2. INFORMACION GENERAL'!$J$26,'4. DETALLADA-RECURSOS ICBF'!$K$10:$K$1300,'2. INFORMACION GENERAL'!$B$28,'4. DETALLADA-RECURSOS ICBF'!$L$10:$L$1300,'2. INFORMACION GENERAL'!B34)) -> 0 | L34: 0 | M34: 0 | N34: =IF(OR(B34="",M34=0),0,SUMIFS('4. DETALLADA-RECURSOS ICBF'!$M$10:$M$1300,'4. DETALLADA-RECURSOS ICBF'!$B$10:$B$1300,'2. INFORMACION GENERAL'!$M$26,'4. DETALLADA-RECURSOS ICBF'!$K$10:$K$1300,'2. INFORMACION GENERAL'!$B$28,'4. DETALLADA-RECURSOS ICBF'!$L$10:$L$1300,'2. INFORMACION GENERAL'!B34)) -> 0 | O34: =IFERROR(M34-N34,0) -> 0 | P34: 0 | Q34: =IF(OR(B34="",P34=0),0,SUMIFS('4. DETALLADA-RECURSOS ICBF'!$M$10:$M$1300,'4. DETALLADA-RECURSOS ICBF'!$B$10:$B$1300,'2. INFORMACION GENERAL'!$P$26,'4. DETALLADA-RECURSOS ICBF'!$K$10:$K$1300,'2. INFORMACION GENERAL'!$B$28,'4. DETALLADA-RECURSOS ICBF'!$L$10:$L$1300,'2. INFORMACION GENERAL'!B34)) -> 0 | R34: 0 | S34: 0 | T34: =IF(OR(B34="",S34=0),0,SUMIFS('4. DETALLADA-RECURSOS ICBF'!$M$10:$M$1300,'4. DETALLADA-RECURSOS ICBF'!$B$10:$B$1300,'2. INFORMACION GENERAL'!$S$26,'4. DETALLADA-RECURSOS ICBF'!$K$10:$K$1300,'2. INFORMACION GENERAL'!$B$28,'4. DETALLADA-RECURSOS ICBF'!$L$10:$L$1300,'2. INFORMACION GENERAL'!B34)) -> 0 | U34: 0 | V34: 0 | W34: =IF(OR(B34="",V34=0),0,SUMIFS('4. DETALLADA-RECURSOS ICBF'!$M$10:$M$1300,'4. DETALLADA-RECURSOS ICBF'!$B$10:$B$1300,'2. INFORMACION GENERAL'!$V$26,'4. DETALLADA-RECURSOS ICBF'!$K$10:$K$1300,'2. INFORMACION GENERAL'!$B$28,'4. DETALLADA-RECURSOS ICBF'!$L$10:$L$1300,'2. INFORMACION GENERAL'!B34)) -> 0 | X34: 0 | Y34: 0 | Z34: =IF(OR(B34="",Y34=0),0,SUMIFS('4. DETALLADA-RECURSOS ICBF'!$M$10:$M$1300,'4. DETALLADA-RECURSOS ICBF'!$B$10:$B$1300,'2. INFORMACION GENERAL'!$Y$26,'4. DETALLADA-RECURSOS ICBF'!$K$10:$K$1300,'2. INFORMACION GENERAL'!$B$28,'4. DETALLADA-RECURSOS ICBF'!$L$10:$L$1300,'2. INFORMACION GENERAL'!B34)) -> 0 | AA34: 0 | AB34: 0 | AC34: =IF(OR(B34="",AB34=0),0,SUMIFS('4. DETALLADA-RECURSOS ICBF'!$M$10:$M$1300,'4. DETALLADA-RECURSOS ICBF'!$B$10:$B$1300,'2. INFORMACION GENERAL'!$AB$26,'4. DETALLADA-RECURSOS ICBF'!$K$10:$K$1300,'2. INFORMACION GENERAL'!$B$28,'4. DETALLADA-RECURSOS ICBF'!$L$10:$L$1300,'2. INFORMACION GENERAL'!B34)) -> 0 | AD34: 0 | AE34: 0 | AF34: =IF(OR(B34="",AE34=0),0,SUMIFS('4. DETALLADA-RECURSOS ICBF'!$M$10:$M$1300,'4. DETALLADA-RECURSOS ICBF'!$B$10:$B$1300,'2. INFORMACION GENERAL'!$AE$26,'4. DETALLADA-RECURSOS ICBF'!$K$10:$K$1300,'2. INFORMACION GENERAL'!$B$28,'4. DETALLADA-RECURSOS ICBF'!$L$10:$L$1300,'2. INFORMACION GENERAL'!B34)) -> 0 | AG34: 0 | AH34: 0 | AI34: =IF(OR(B34="",AH34=0),0,SUMIFS('4. DETALLADA-RECURSOS ICBF'!$M$10:$M$1300,'4. DETALLADA-RECURSOS ICBF'!$B$10:$B$1300,'2. INFORMACION GENERAL'!$AH$26,'4. DETALLADA-RECURSOS ICBF'!$K$10:$K$1300,'2. INFORMACION GENERAL'!$B$28,'4. DETALLADA-RECURSOS ICBF'!$L$10:$L$1300,'2. INFORMACION GENERAL'!B34)) -> 0 | AJ34: 0 | AK34: 0 | AL34: =IF(OR(B34="",AK34=0),0,SUMIFS('4. DETALLADA-RECURSOS ICBF'!$M$10:$M$1300,'4. DETALLADA-RECURSOS ICBF'!$B$10:$B$1300,'2. INFORMACION GENERAL'!$AK$26,'4. DETALLADA-RECURSOS ICBF'!$K$10:$K$1300,'2. INFORMACION GENERAL'!$B$28,'4. DETALLADA-RECURSOS ICBF'!$L$10:$L$1300,'2. INFORMACION GENERAL'!B34)) -> 0 | AM34: 0 | AN34: 0 | AO34: =IF(OR(B34="",AN34=0),0,SUMIFS('4. DETALLADA-RECURSOS ICBF'!$M$10:$M$1300,'4. DETALLADA-RECURSOS ICBF'!$B$10:$B$1300,'2. INFORMACION GENERAL'!$AN$26,'4. DETALLADA-RECURSOS ICBF'!$K$10:$K$1300,'2. INFORMACION GENERAL'!$B$28,'4. DETALLADA-RECURSOS ICBF'!$L$10:$L$1300,'2. INFORMACION GENERAL'!B34)) -> 0 | AP34: 0 | AQ34: =IF('1. PRESUPUESTO INICIAL'!F37="",0,'1. PRESUPUESTO INICIAL'!F37) -> 0 | AR34: =IF(OR(B34="",AQ34=0),0,SUMIFS('4. DETALLADA-RECURSOS ICBF'!$M$10:$M$1300,'4. DETALLADA-RECURSOS ICBF'!$B$10:$B$1300,'2. INFORMACION GENERAL'!$AQ$26,'4. DETALLADA-RECURSOS ICBF'!$K$10:$K$1300,'2. INFORMACION GENERAL'!$B$28,'4. DETALLADA-RECURSOS ICBF'!$L$10:$L$1300,'2. INFORMACION GENERAL'!B34)) -> 0 | AS34: 0 | AT34: 0 | AU34: =+SUMIFS(D34:AS34,$D$27:$AS$27,$AU$27) -> 0 | AV34: 0
A35: 2107 | B35: =IF('1. PRESUPUESTO INICIAL'!B38="","",'1. PRESUPUESTO INICIAL'!B38) -> Gestor(a) de Experiencias 2 | D35: =IF('1. PRESUPUESTO INICIAL'!D38="",0,'1. PRESUPUESTO INICIAL'!D38) -> 0 | E35: =IF(OR(B35="",D35=0),0,SUMIFS('4. DETALLADA-RECURSOS ICBF'!$M$10:$M$1300,'4. DETALLADA-RECURSOS ICBF'!$B$10:$B$1300,'2. INFORMACION GENERAL'!$D$26,'4. DETALLADA-RECURSOS ICBF'!$K$10:$K$1300,'2. INFORMACION GENERAL'!$B$28,'4. DETALLADA-RECURSOS ICBF'!$L$10:$L$1300,'2. INFORMACION GENERAL'!B35)) -> 0 | F35: 0 | G35: 0 | H35: =IF(OR(B35="",G35=0),0,SUMIFS('4. DETALLADA-RECURSOS ICBF'!$M$10:$M$1300,'4. DETALLADA-RECURSOS ICBF'!$B$10:$B$1300,'2. INFORMACION GENERAL'!$G$26,'4. DETALLADA-RECURSOS ICBF'!$K$10:$K$1300,'2. INFORMACION GENERAL'!$B$28,'4. DETALLADA-RECURSOS ICBF'!$L$10:$L$1300,'2. INFORMACION GENERAL'!B35)) -> 0 | I35: 0 | J35: 0 | K35: =IF(OR(B35="",J35=0),0,SUMIFS('4. DETALLADA-RECURSOS ICBF'!$M$10:$M$1300,'4. DETALLADA-RECURSOS ICBF'!$B$10:$B$1300,'2. INFORMACION GENERAL'!$J$26,'4. DETALLADA-RECURSOS ICBF'!$K$10:$K$1300,'2. INFORMACION GENERAL'!$B$28,'4. DETALLADA-RECURSOS ICBF'!$L$10:$L$1300,'2. INFORMACION GENERAL'!B35)) -> 0 | L35: 0 | M35: 0 | N35: =IF(OR(B35="",M35=0),0,SUMIFS('4. DETALLADA-RECURSOS ICBF'!$M$10:$M$1300,'4. DETALLADA-RECURSOS ICBF'!$B$10:$B$1300,'2. INFORMACION GENERAL'!$M$26,'4. DETALLADA-RECURSOS ICBF'!$K$10:$K$1300,'2. INFORMACION GENERAL'!$B$28,'4. DETALLADA-RECURSOS ICBF'!$L$10:$L$1300,'2. INFORMACION GENERAL'!B35)) -> 0 | O35: 0 | P35: 0 | Q35: =IF(OR(B35="",P35=0),0,SUMIFS('4. DETALLADA-RECURSOS ICBF'!$M$10:$M$1300,'4. DETALLADA-RECURSOS ICBF'!$B$10:$B$1300,'2. INFORMACION GENERAL'!$P$26,'4. DETALLADA-RECURSOS ICBF'!$K$10:$K$1300,'2. INFORMACION GENERAL'!$B$28,'4. DETALLADA-RECURSOS ICBF'!$L$10:$L$1300,'2. INFORMACION GENERAL'!B35)) -> 0 | R35: 0 | S35: 0 | T35: =IF(OR(B35="",S35=0),0,SUMIFS('4. DETALLADA-RECURSOS ICBF'!$M$10:$M$1300,'4. DETALLADA-RECURSOS ICBF'!$B$10:$B$1300,'2. INFORMACION GENERAL'!$S$26,'4. DETALLADA-RECURSOS ICBF'!$K$10:$K$1300,'2. INFORMACION GENERAL'!$B$28,'4. DETALLADA-RECURSOS ICBF'!$L$10:$L$1300,'2. INFORMACION GENERAL'!B35)) -> 0 | U35: 0 | V35: 0 | W35: =IF(OR(B35="",V35=0),0,SUMIFS('4. DETALLADA-RECURSOS ICBF'!$M$10:$M$1300,'4. DETALLADA-RECURSOS ICBF'!$B$10:$B$1300,'2. INFORMACION GENERAL'!$V$26,'4. DETALLADA-RECURSOS ICBF'!$K$10:$K$1300,'2. INFORMACION GENERAL'!$B$28,'4. DETALLADA-RECURSOS ICBF'!$L$10:$L$1300,'2. INFORMACION GENERAL'!B35)) -> 0 | X35: 0 | Y35: 0 | Z35: =IF(OR(B35="",Y35=0),0,SUMIFS('4. DETALLADA-RECURSOS ICBF'!$M$10:$M$1300,'4. DETALLADA-RECURSOS ICBF'!$B$10:$B$1300,'2. INFORMACION GENERAL'!$Y$26,'4. DETALLADA-RECURSOS ICBF'!$K$10:$K$1300,'2. INFORMACION GENERAL'!$B$28,'4. DETALLADA-RECURSOS ICBF'!$L$10:$L$1300,'2. INFORMACION GENERAL'!B35)) -> 0 | AA35: 0 | AB35: 0 | AC35: =IF(OR(B35="",AB35=0),0,SUMIFS('4. DETALLADA-RECURSOS ICBF'!$M$10:$M$1300,'4. DETALLADA-RECURSOS ICBF'!$B$10:$B$1300,'2. INFORMACION GENERAL'!$AB$26,'4. DETALLADA-RECURSOS ICBF'!$K$10:$K$1300,'2. INFORMACION GENERAL'!$B$28,'4. DETALLADA-RECURSOS ICBF'!$L$10:$L$1300,'2. INFORMACION GENERAL'!B35)) -> 0 | AD35: 0 | AE35: 0 | AF35: =IF(OR(B35="",AE35=0),0,SUMIFS('4. DETALLADA-RECURSOS ICBF'!$M$10:$M$1300,'4. DETALLADA-RECURSOS ICBF'!$B$10:$B$1300,'2. INFORMACION GENERAL'!$AE$26,'4. DETALLADA-RECURSOS ICBF'!$K$10:$K$1300,'2. INFORMACION GENERAL'!$B$28,'4. DETALLADA-RECURSOS ICBF'!$L$10:$L$1300,'2. INFORMACION GENERAL'!B35)) -> 0 | AG35: 0 | AH35: 0 | AI35: =IF(OR(B35="",AH35=0),0,SUMIFS('4. DETALLADA-RECURSOS ICBF'!$M$10:$M$1300,'4. DETALLADA-RECURSOS ICBF'!$B$10:$B$1300,'2. INFORMACION GENERAL'!$AH$26,'4. DETALLADA-RECURSOS ICBF'!$K$10:$K$1300,'2. INFORMACION GENERAL'!$B$28,'4. DETALLADA-RECURSOS ICBF'!$L$10:$L$1300,'2. INFORMACION GENERAL'!B35)) -> 0 | AJ35: 0 | AK35: 0 | AL35: =IF(OR(B35="",AK35=0),0,SUMIFS('4. DETALLADA-RECURSOS ICBF'!$M$10:$M$1300,'4. DETALLADA-RECURSOS ICBF'!$B$10:$B$1300,'2. INFORMACION GENERAL'!$AK$26,'4. DETALLADA-RECURSOS ICBF'!$K$10:$K$1300,'2. INFORMACION GENERAL'!$B$28,'4. DETALLADA-RECURSOS ICBF'!$L$10:$L$1300,'2. INFORMACION GENERAL'!B35)) -> 0 | AM35: 0 | AN35: 0 | AO35: =IF(OR(B35="",AN35=0),0,SUMIFS('4. DETALLADA-RECURSOS ICBF'!$M$10:$M$1300,'4. DETALLADA-RECURSOS ICBF'!$B$10:$B$1300,'2. INFORMACION GENERAL'!$AN$26,'4. DETALLADA-RECURSOS ICBF'!$K$10:$K$1300,'2. INFORMACION GENERAL'!$B$28,'4. DETALLADA-RECURSOS ICBF'!$L$10:$L$1300,'2. INFORMACION GENERAL'!B35)) -> 0 | AP35: 0 | AQ35: =IF('1. PRESUPUESTO INICIAL'!F38="",0,'1. PRESUPUESTO INICIAL'!F38) -> 0 | AR35: =IF(OR(B35="",AQ35=0),0,SUMIFS('4. DETALLADA-RECURSOS ICBF'!$M$10:$M$1300,'4. DETALLADA-RECURSOS ICBF'!$B$10:$B$1300,'2. INFORMACION GENERAL'!$AQ$26,'4. DETALLADA-RECURSOS ICBF'!$K$10:$K$1300,'2. INFORMACION GENERAL'!$B$28,'4. DETALLADA-RECURSOS ICBF'!$L$10:$L$1300,'2. INFORMACION GENERAL'!B35)) -> 0 | AS35: 0 | AT35: 0 | AU35: 0 | AV35: 0
A36: 2108 | B36: =IF('1. PRESUPUESTO INICIAL'!B39="","",'1. PRESUPUESTO INICIAL'!B39) -> Dinamizador(a) comunitario | D36: =IF('1. PRESUPUESTO INICIAL'!D39="",0,'1. PRESUPUESTO INICIAL'!D39) -> 0 | E36: =IF(OR(B36="",D36=0),0,SUMIFS('4. DETALLADA-RECURSOS ICBF'!$M$10:$M$1300,'4. DETALLADA-RECURSOS ICBF'!$B$10:$B$1300,'2. INFORMACION GENERAL'!$D$26,'4. DETALLADA-RECURSOS ICBF'!$K$10:$K$1300,'2. INFORMACION GENERAL'!$B$28,'4. DETALLADA-RECURSOS ICBF'!$L$10:$L$1300,'2. INFORMACION GENERAL'!B36)) -> 0 | F36: 0 | G36: 0 | H36: =IF(OR(B36="",G36=0),0,SUMIFS('4. DETALLADA-RECURSOS ICBF'!$M$10:$M$1300,'4. DETALLADA-RECURSOS ICBF'!$B$10:$B$1300,'2. INFORMACION GENERAL'!$G$26,'4. DETALLADA-RECURSOS ICBF'!$K$10:$K$1300,'2. INFORMACION GENERAL'!$B$28,'4. DETALLADA-RECURSOS ICBF'!$L$10:$L$1300,'2. INFORMACION GENERAL'!B36)) -> 0 | I36: 0 | J36: 0 | K36: =IF(OR(B36="",J36=0),0,SUMIFS('4. DETALLADA-RECURSOS ICBF'!$M$10:$M$1300,'4. DETALLADA-RECURSOS ICBF'!$B$10:$B$1300,'2. INFORMACION GENERAL'!$J$26,'4. DETALLADA-RECURSOS ICBF'!$K$10:$K$1300,'2. INFORMACION GENERAL'!$B$28,'4. DETALLADA-RECURSOS ICBF'!$L$10:$L$1300,'2. INFORMACION GENERAL'!B36)) -> 0 | L36: =IFERROR(J36-K36,0) -> 0 | M36: 0 | N36: =IF(OR(B36="",M36=0),0,SUMIFS('4. DETALLADA-RECURSOS ICBF'!$M$10:$M$1300,'4. DETALLADA-RECURSOS ICBF'!$B$10:$B$1300,'2. INFORMACION GENERAL'!$M$26,'4. DETALLADA-RECURSOS ICBF'!$K$10:$K$1300,'2. INFORMACION GENERAL'!$B$28,'4. DETALLADA-RECURSOS ICBF'!$L$10:$L$1300,'2. INFORMACION GENERAL'!B36)) -> 0 | O36: 0 | P36: 0 | Q36: =IF(OR(B36="",P36=0),0,SUMIFS('4. DETALLADA-RECURSOS ICBF'!$M$10:$M$1300,'4. DETALLADA-RECURSOS ICBF'!$B$10:$B$1300,'2. INFORMACION GENERAL'!$P$26,'4. DETALLADA-RECURSOS ICBF'!$K$10:$K$1300,'2. INFORMACION GENERAL'!$B$28,'4. DETALLADA-RECURSOS ICBF'!$L$10:$L$1300,'2. INFORMACION GENERAL'!B36)) -> 0 | R36: 0 | S36: 0 | T36: =IF(OR(B36="",S36=0),0,SUMIFS('4. DETALLADA-RECURSOS ICBF'!$M$10:$M$1300,'4. DETALLADA-RECURSOS ICBF'!$B$10:$B$1300,'2. INFORMACION GENERAL'!$S$26,'4. DETALLADA-RECURSOS ICBF'!$K$10:$K$1300,'2. INFORMACION GENERAL'!$B$28,'4. DETALLADA-RECURSOS ICBF'!$L$10:$L$1300,'2. INFORMACION GENERAL'!B36)) -> 0 | U36: 0 | V36: 0 | W36: =IF(OR(B36="",V36=0),0,SUMIFS('4. DETALLADA-RECURSOS ICBF'!$M$10:$M$1300,'4. DETALLADA-RECURSOS ICBF'!$B$10:$B$1300,'2. INFORMACION GENERAL'!$V$26,'4. DETALLADA-RECURSOS ICBF'!$K$10:$K$1300,'2. INFORMACION GENERAL'!$B$28,'4. DETALLADA-RECURSOS ICBF'!$L$10:$L$1300,'2. INFORMACION GENERAL'!B36)) -> 0 | X36: 0 | Y36: 0 | Z36: =IF(OR(B36="",Y36=0),0,SUMIFS('4. DETALLADA-RECURSOS ICBF'!$M$10:$M$1300,'4. DETALLADA-RECURSOS ICBF'!$B$10:$B$1300,'2. INFORMACION GENERAL'!$Y$26,'4. DETALLADA-RECURSOS ICBF'!$K$10:$K$1300,'2. INFORMACION GENERAL'!$B$28,'4. DETALLADA-RECURSOS ICBF'!$L$10:$L$1300,'2. INFORMACION GENERAL'!B36)) -> 0 | AA36: 0 | AB36: 0 | AC36: =IF(OR(B36="",AB36=0),0,SUMIFS('4. DETALLADA-RECURSOS ICBF'!$M$10:$M$1300,'4. DETALLADA-RECURSOS ICBF'!$B$10:$B$1300,'2. INFORMACION GENERAL'!$AB$26,'4. DETALLADA-RECURSOS ICBF'!$K$10:$K$1300,'2. INFORMACION GENERAL'!$B$28,'4. DETALLADA-RECURSOS ICBF'!$L$10:$L$1300,'2. INFORMACION GENERAL'!B36)) -> 0 | AD36: 0 | AE36: 0 | AF36: =IF(OR(B36="",AE36=0),0,SUMIFS('4. DETALLADA-RECURSOS ICBF'!$M$10:$M$1300,'4. DETALLADA-RECURSOS ICBF'!$B$10:$B$1300,'2. INFORMACION GENERAL'!$AE$26,'4. DETALLADA-RECURSOS ICBF'!$K$10:$K$1300,'2. INFORMACION GENERAL'!$B$28,'4. DETALLADA-RECURSOS ICBF'!$L$10:$L$1300,'2. INFORMACION GENERAL'!B36)) -> 0 | AG36: 0 | AH36: 0 | AI36: =IF(OR(B36="",AH36=0),0,SUMIFS('4. DETALLADA-RECURSOS ICBF'!$M$10:$M$1300,'4. DETALLADA-RECURSOS ICBF'!$B$10:$B$1300,'2. INFORMACION GENERAL'!$AH$26,'4. DETALLADA-RECURSOS ICBF'!$K$10:$K$1300,'2. INFORMACION GENERAL'!$B$28,'4. DETALLADA-RECURSOS ICBF'!$L$10:$L$1300,'2. INFORMACION GENERAL'!B36)) -> 0 | AJ36: 0 | AK36: 0 | AL36: =IF(OR(B36="",AK36=0),0,SUMIFS('4. DETALLADA-RECURSOS ICBF'!$M$10:$M$1300,'4. DETALLADA-RECURSOS ICBF'!$B$10:$B$1300,'2. INFORMACION GENERAL'!$AK$26,'4. DETALLADA-RECURSOS ICBF'!$K$10:$K$1300,'2. INFORMACION GENERAL'!$B$28,'4. DETALLADA-RECURSOS ICBF'!$L$10:$L$1300,'2. INFORMACION GENERAL'!B36)) -> 0 | AM36: 0 | AN36: 0 | AO36: =IF(OR(B36="",AN36=0),0,SUMIFS('4. DETALLADA-RECURSOS ICBF'!$M$10:$M$1300,'4. DETALLADA-RECURSOS ICBF'!$B$10:$B$1300,'2. INFORMACION GENERAL'!$AN$26,'4. DETALLADA-RECURSOS ICBF'!$K$10:$K$1300,'2. INFORMACION GENERAL'!$B$28,'4. DETALLADA-RECURSOS ICBF'!$L$10:$L$1300,'2. INFORMACION GENERAL'!B36)) -> 0 | AP36: 0 | AQ36: =IF('1. PRESUPUESTO INICIAL'!F39="",0,'1. PRESUPUESTO INICIAL'!F39) -> 0 | AR36: =IF(OR(B36="",AQ36=0),0,SUMIFS('4. DETALLADA-RECURSOS ICBF'!$M$10:$M$1300,'4. DETALLADA-RECURSOS ICBF'!$B$10:$B$1300,'2. INFORMACION GENERAL'!$AQ$26,'4. DETALLADA-RECURSOS ICBF'!$K$10:$K$1300,'2. INFORMACION GENERAL'!$B$28,'4. DETALLADA-RECURSOS ICBF'!$L$10:$L$1300,'2. INFORMACION GENERAL'!B36)) -> 0 | AS36: 0 | AT36: 0 | AU36: 0 | AV36: 0
A37: 2109 | B37: =IF('1. PRESUPUESTO INICIAL'!B40="","",'1. PRESUPUESTO INICIAL'!B40) -> Auxiliar Administrativo | D37: =IF('1. PRESUPUESTO INICIAL'!D40="",0,'1. PRESUPUESTO INICIAL'!D40) -> 0 | E37: =IF(OR(B37="",D37=0),0,SUMIFS('4. DETALLADA-RECURSOS ICBF'!$M$10:$M$1300,'4. DETALLADA-RECURSOS ICBF'!$B$10:$B$1300,'2. INFORMACION GENERAL'!$D$26,'4. DETALLADA-RECURSOS ICBF'!$K$10:$K$1300,'2. INFORMACION GENERAL'!$B$28,'4. DETALLADA-RECURSOS ICBF'!$L$10:$L$1300,'2. INFORMACION GENERAL'!B37)) -> 0 | F37: 0 | G37: 0 | H37: =IF(OR(B37="",G37=0),0,SUMIFS('4. DETALLADA-RECURSOS ICBF'!$M$10:$M$1300,'4. DETALLADA-RECURSOS ICBF'!$B$10:$B$1300,'2. INFORMACION GENERAL'!$G$26,'4. DETALLADA-RECURSOS ICBF'!$K$10:$K$1300,'2. INFORMACION GENERAL'!$B$28,'4. DETALLADA-RECURSOS ICBF'!$L$10:$L$1300,'2. INFORMACION GENERAL'!B37)) -> 0 | I37: 0 | K37: =IF(OR(B37="",J37=0),0,SUMIFS('4. DETALLADA-RECURSOS ICBF'!$M$10:$M$1300,'4. DETALLADA-RECURSOS ICBF'!$B$10:$B$1300,'2. INFORMACION GENERAL'!$J$26,'4. DETALLADA-RECURSOS ICBF'!$K$10:$K$1300,'2. INFORMACION GENERAL'!$B$28,'4. DETALLADA-RECURSOS ICBF'!$L$10:$L$1300,'2. INFORMACION GENERAL'!B37)) -> 0 | L37: 0 | N37: =IF(OR(B37="",M37=0),0,SUMIFS('4. DETALLADA-RECURSOS ICBF'!$M$10:$M$1300,'4. DETALLADA-RECURSOS ICBF'!$B$10:$B$1300,'2. INFORMACION GENERAL'!$M$26,'4. DETALLADA-RECURSOS ICBF'!$K$10:$K$1300,'2. INFORMACION GENERAL'!$B$28,'4. DETALLADA-RECURSOS ICBF'!$L$10:$L$1300,'2. INFORMACION GENERAL'!B37)) -> 0 | O37: 0 | P37: 0 | Q37: =IF(OR(B37="",P37=0),0,SUMIFS('4. DETALLADA-RECURSOS ICBF'!$M$10:$M$1300,'4. DETALLADA-RECURSOS ICBF'!$B$10:$B$1300,'2. INFORMACION GENERAL'!$P$26,'4. DETALLADA-RECURSOS ICBF'!$K$10:$K$1300,'2. INFORMACION GENERAL'!$B$28,'4. DETALLADA-RECURSOS ICBF'!$L$10:$L$1300,'2. INFORMACION GENERAL'!B37)) -> 0 | R37: 0 | T37: =IF(OR(B37="",S37=0),0,SUMIFS('4. DETALLADA-RECURSOS ICBF'!$M$10:$M$1300,'4. DETALLADA-RECURSOS ICBF'!$B$10:$B$1300,'2. INFORMACION GENERAL'!$S$26,'4. DETALLADA-RECURSOS ICBF'!$K$10:$K$1300,'2. INFORMACION GENERAL'!$B$28,'4. DETALLADA-RECURSOS ICBF'!$L$10:$L$1300,'2. INFORMACION GENERAL'!B37)) -> 0 | U37: 0 | W37: =IF(OR(B37="",V37=0),0,SUMIFS('4. DETALLADA-RECURSOS ICBF'!$M$10:$M$1300,'4. DETALLADA-RECURSOS ICBF'!$B$10:$B$1300,'2. INFORMACION GENERAL'!$V$26,'4. DETALLADA-RECURSOS ICBF'!$K$10:$K$1300,'2. INFORMACION GENERAL'!$B$28,'4. DETALLADA-RECURSOS ICBF'!$L$10:$L$1300,'2. INFORMACION GENERAL'!B37)) -> 0 | X37: 0 | Z37: =IF(OR(B37="",Y37=0),0,SUMIFS('4. DETALLADA-RECURSOS ICBF'!$M$10:$M$1300,'4. DETALLADA-RECURSOS ICBF'!$B$10:$B$1300,'2. INFORMACION GENERAL'!$Y$26,'4. DETALLADA-RECURSOS ICBF'!$K$10:$K$1300,'2. INFORMACION GENERAL'!$B$28,'4. DETALLADA-RECURSOS ICBF'!$L$10:$L$1300,'2. INFORMACION GENERAL'!B37)) -> 0 | AA37: 0 | AB37: 0 | AC37: =IF(OR(B37="",AB37=0),0,SUMIFS('4. DETALLADA-RECURSOS ICBF'!$M$10:$M$1300,'4. DETALLADA-RECURSOS ICBF'!$B$10:$B$1300,'2. INFORMACION GENERAL'!$AB$26,'4. DETALLADA-RECURSOS ICBF'!$K$10:$K$1300,'2. INFORMACION GENERAL'!$B$28,'4. DETALLADA-RECURSOS ICBF'!$L$10:$L$1300,'2. INFORMACION GENERAL'!B37)) -> 0 | AD37: 0 | AE37: 0 | AF37: =IF(OR(B37="",AE37=0),0,SUMIFS('4. DETALLADA-RECURSOS ICBF'!$M$10:$M$1300,'4. DETALLADA-RECURSOS ICBF'!$B$10:$B$1300,'2. INFORMACION GENERAL'!$AE$26,'4. DETALLADA-RECURSOS ICBF'!$K$10:$K$1300,'2. INFORMACION GENERAL'!$B$28,'4. DETALLADA-RECURSOS ICBF'!$L$10:$L$1300,'2. INFORMACION GENERAL'!B37)) -> 0 | AG37: 0 | AH37: 0 | AI37: =IF(OR(B37="",AH37=0),0,SUMIFS('4. DETALLADA-RECURSOS ICBF'!$M$10:$M$1300,'4. DETALLADA-RECURSOS ICBF'!$B$10:$B$1300,'2. INFORMACION GENERAL'!$AH$26,'4. DETALLADA-RECURSOS ICBF'!$K$10:$K$1300,'2. INFORMACION GENERAL'!$B$28,'4. DETALLADA-RECURSOS ICBF'!$L$10:$L$1300,'2. INFORMACION GENERAL'!B37)) -> 0 | AJ37: 0 | AK37: 0 | AL37: =IF(OR(B37="",AK37=0),0,SUMIFS('4. DETALLADA-RECURSOS ICBF'!$M$10:$M$1300,'4. DETALLADA-RECURSOS ICBF'!$B$10:$B$1300,'2. INFORMACION GENERAL'!$AK$26,'4. DETALLADA-RECURSOS ICBF'!$K$10:$K$1300,'2. INFORMACION GENERAL'!$B$28,'4. DETALLADA-RECURSOS ICBF'!$L$10:$L$1300,'2. INFORMACION GENERAL'!B37)) -> 0 | AM37: 0 | AN37: 0 | AO37: =IF(OR(B37="",AN37=0),0,SUMIFS('4. DETALLADA-RECURSOS ICBF'!$M$10:$M$1300,'4. DETALLADA-RECURSOS ICBF'!$B$10:$B$1300,'2. INFORMACION GENERAL'!$AN$26,'4. DETALLADA-RECURSOS ICBF'!$K$10:$K$1300,'2. INFORMACION GENERAL'!$B$28,'4. DETALLADA-RECURSOS ICBF'!$L$10:$L$1300,'2. INFORMACION GENERAL'!B37)) -> 0 | AP37: 0 | AQ37: =IF('1. PRESUPUESTO INICIAL'!F40="",0,'1. PRESUPUESTO INICIAL'!F40) -> 0 | AR37: =IF(OR(B37="",AQ37=0),0,SUMIFS('4. DETALLADA-RECURSOS ICBF'!$M$10:$M$1300,'4. DETALLADA-RECURSOS ICBF'!$B$10:$B$1300,'2. INFORMACION GENERAL'!$AQ$26,'4. DETALLADA-RECURSOS ICBF'!$K$10:$K$1300,'2. INFORMACION GENERAL'!$B$28,'4. DETALLADA-RECURSOS ICBF'!$L$10:$L$1300,'2. INFORMACION GENERAL'!B37)) -> 0 | AS37: 0 | AT37: 0 | AU37: 0 | AV37: 0
A38: 2110 | B38: =IF('1. PRESUPUESTO INICIAL'!B41="","",'1. PRESUPUESTO INICIAL'!B41) ->  | D38: =IF('1. PRESUPUESTO INICIAL'!D41="",0,'1. PRESUPUESTO INICIAL'!D41) -> 0 | E38: =IF(OR(B38="",D38=0),0,SUMIFS('4. DETALLADA-RECURSOS ICBF'!$M$10:$M$1300,'4. DETALLADA-RECURSOS ICBF'!$B$10:$B$1300,'2. INFORMACION GENERAL'!$D$26,'4. DETALLADA-RECURSOS ICBF'!$K$10:$K$1300,'2. INFORMACION GENERAL'!$B$28,'4. DETALLADA-RECURSOS ICBF'!$L$10:$L$1300,'2. INFORMACION GENERAL'!B38)) -> 0 | F38: =IFERROR(D38-E38,0) -> 0 | G38: 0 | H38: =IF(OR(B38="",G38=0),0,SUMIFS('4. DETALLADA-RECURSOS ICBF'!$M$10:$M$1300,'4. DETALLADA-RECURSOS ICBF'!$B$10:$B$1300,'2. INFORMACION GENERAL'!$G$26,'4. DETALLADA-RECURSOS ICBF'!$K$10:$K$1300,'2. INFORMACION GENERAL'!$B$28,'4. DETALLADA-RECURSOS ICBF'!$L$10:$L$1300,'2. INFORMACION GENERAL'!B38)) -> 0 | I38: =IFERROR(G38-H38,0) -> 0 | J38: 0 | K38: =IF(OR(B38="",J38=0),0,SUMIFS('4. DETALLADA-RECURSOS ICBF'!$M$10:$M$1300,'4. DETALLADA-RECURSOS ICBF'!$B$10:$B$1300,'2. INFORMACION GENERAL'!$J$26,'4. DETALLADA-RECURSOS ICBF'!$K$10:$K$1300,'2. INFORMACION GENERAL'!$B$28,'4. DETALLADA-RECURSOS ICBF'!$L$10:$L$1300,'2. INFORMACION GENERAL'!B38)) -> 0 | L38: 0 | M38: 0 | N38: =IF(OR(B38="",M38=0),0,SUMIFS('4. DETALLADA-RECURSOS ICBF'!$M$10:$M$1300,'4. DETALLADA-RECURSOS ICBF'!$B$10:$B$1300,'2. INFORMACION GENERAL'!$M$26,'4. DETALLADA-RECURSOS ICBF'!$K$10:$K$1300,'2. INFORMACION GENERAL'!$B$28,'4. DETALLADA-RECURSOS ICBF'!$L$10:$L$1300,'2. INFORMACION GENERAL'!B38)) -> 0 | O38: 0 | P38: 0 | Q38: =IF(OR(B38="",P38=0),0,SUMIFS('4. DETALLADA-RECURSOS ICBF'!$M$10:$M$1300,'4. DETALLADA-RECURSOS ICBF'!$B$10:$B$1300,'2. INFORMACION GENERAL'!$P$26,'4. DETALLADA-RECURSOS ICBF'!$K$10:$K$1300,'2. INFORMACION GENERAL'!$B$28,'4. DETALLADA-RECURSOS ICBF'!$L$10:$L$1300,'2. INFORMACION GENERAL'!B38)) -> 0 | R38: 0 | S38: 0 | T38: =IF(OR(B38="",S38=0),0,SUMIFS('4. DETALLADA-RECURSOS ICBF'!$M$10:$M$1300,'4. DETALLADA-RECURSOS ICBF'!$B$10:$B$1300,'2. INFORMACION GENERAL'!$S$26,'4. DETALLADA-RECURSOS ICBF'!$K$10:$K$1300,'2. INFORMACION GENERAL'!$B$28,'4. DETALLADA-RECURSOS ICBF'!$L$10:$L$1300,'2. INFORMACION GENERAL'!B38)) -> 0 | U38: 0 | V38: 0 | W38: =IF(OR(B38="",V38=0),0,SUMIFS('4. DETALLADA-RECURSOS ICBF'!$M$10:$M$1300,'4. DETALLADA-RECURSOS ICBF'!$B$10:$B$1300,'2. INFORMACION GENERAL'!$V$26,'4. DETALLADA-RECURSOS ICBF'!$K$10:$K$1300,'2. INFORMACION GENERAL'!$B$28,'4. DETALLADA-RECURSOS ICBF'!$L$10:$L$1300,'2. INFORMACION GENERAL'!B38)) -> 0 | X38: 0 | Y38: 0 | Z38: =IF(OR(B38="",Y38=0),0,SUMIFS('4. DETALLADA-RECURSOS ICBF'!$M$10:$M$1300,'4. DETALLADA-RECURSOS ICBF'!$B$10:$B$1300,'2. INFORMACION GENERAL'!$Y$26,'4. DETALLADA-RECURSOS ICBF'!$K$10:$K$1300,'2. INFORMACION GENERAL'!$B$28,'4. DETALLADA-RECURSOS ICBF'!$L$10:$L$1300,'2. INFORMACION GENERAL'!B38)) -> 0 | AA38: 0 | AB38: 0 | AC38: =IF(OR(B38="",AB38=0),0,SUMIFS('4. DETALLADA-RECURSOS ICBF'!$M$10:$M$1300,'4. DETALLADA-RECURSOS ICBF'!$B$10:$B$1300,'2. INFORMACION GENERAL'!$AB$26,'4. DETALLADA-RECURSOS ICBF'!$K$10:$K$1300,'2. INFORMACION GENERAL'!$B$28,'4. DETALLADA-RECURSOS ICBF'!$L$10:$L$1300,'2. INFORMACION GENERAL'!B38)) -> 0 | AD38: 0 | AE38: 0 | AF38: =IF(OR(B38="",AE38=0),0,SUMIFS('4. DETALLADA-RECURSOS ICBF'!$M$10:$M$1300,'4. DETALLADA-RECURSOS ICBF'!$B$10:$B$1300,'2. INFORMACION GENERAL'!$AE$26,'4. DETALLADA-RECURSOS ICBF'!$K$10:$K$1300,'2. INFORMACION GENERAL'!$B$28,'4. DETALLADA-RECURSOS ICBF'!$L$10:$L$1300,'2. INFORMACION GENERAL'!B38)) -> 0 | AG38: 0 | AH38: 0 | AI38: =IF(OR(B38="",AH38=0),0,SUMIFS('4. DETALLADA-RECURSOS ICBF'!$M$10:$M$1300,'4. DETALLADA-RECURSOS ICBF'!$B$10:$B$1300,'2. INFORMACION GENERAL'!$AH$26,'4. DETALLADA-RECURSOS ICBF'!$K$10:$K$1300,'2. INFORMACION GENERAL'!$B$28,'4. DETALLADA-RECURSOS ICBF'!$L$10:$L$1300,'2. INFORMACION GENERAL'!B38)) -> 0 | AJ38: 0 | AK38: 0 | AL38: =IF(OR(B38="",AK38=0),0,SUMIFS('4. DETALLADA-RECURSOS ICBF'!$M$10:$M$1300,'4. DETALLADA-RECURSOS ICBF'!$B$10:$B$1300,'2. INFORMACION GENERAL'!$AK$26,'4. DETALLADA-RECURSOS ICBF'!$K$10:$K$1300,'2. INFORMACION GENERAL'!$B$28,'4. DETALLADA-RECURSOS ICBF'!$L$10:$L$1300,'2. INFORMACION GENERAL'!B38)) -> 0 | AM38: 0 | AN38: 0 | AO38: =IF(OR(B38="",AN38=0),0,SUMIFS('4. DETALLADA-RECURSOS ICBF'!$M$10:$M$1300,'4. DETALLADA-RECURSOS ICBF'!$B$10:$B$1300,'2. INFORMACION GENERAL'!$AN$26,'4. DETALLADA-RECURSOS ICBF'!$K$10:$K$1300,'2. INFORMACION GENERAL'!$B$28,'4. DETALLADA-RECURSOS ICBF'!$L$10:$L$1300,'2. INFORMACION GENERAL'!B38)) -> 0 | AP38: 0 | AQ38: =IF('1. PRESUPUESTO INICIAL'!F41="",0,'1. PRESUPUESTO INICIAL'!F41) -> 0 | AR38: =IF(OR(B38="",AQ38=0),0,SUMIFS('4. DETALLADA-RECURSOS ICBF'!$M$10:$M$1300,'4. DETALLADA-RECURSOS ICBF'!$B$10:$B$1300,'2. INFORMACION GENERAL'!$AQ$26,'4. DETALLADA-RECURSOS ICBF'!$K$10:$K$1300,'2. INFORMACION GENERAL'!$B$28,'4. DETALLADA-RECURSOS ICBF'!$L$10:$L$1300,'2. INFORMACION GENERAL'!B38)) -> 0 | AS38: 0 | AT38: 0 | AU38: 0 | AV38: 0
A39: 2110 | B39: =IF('1. PRESUPUESTO INICIAL'!B45="","",'1. PRESUPUESTO INICIAL'!B45) -> TRANSPORTE Y VIAJES DEL TH | D39: =+SUM(D40:D43) -> 0 | E39: =+SUM(E40:E43) -> 0 | F39: 0 | G39: =+SUM(G40:G43) -> 0 | H39: 0 | I39: =+SUM(I40:I43) -> 0 | J39: =+SUM(J40:J43) -> 0 | K39: 0 | L39: =+SUM(L40:L43) -> 0 | M39: =+SUM(M40:M43) -> 0 | N39: 0 | O39: =+SUM(O40:O43) -> 0 | P39: 0 | Q39: 0 | R39: 0 | S39: =+SUM(S40:S43) -> 0 | T39: 0 | U39: 0 | V39: =+SUM(V40:V43) -> 0 | W39: 0 | X39: 0 | Y39: =+SUM(Y40:Y43) -> 0 | Z39: 0 | AA39: 0 | AB39: =+SUM(AB40:AB43) -> 0 | AC39: 0 | AD39: 0 | AE39: =+SUM(AE40:AE43) -> 0 | AF39: 0 | AG39: 0 | AH39: =+SUM(AH40:AH43) -> 0 | AI39: 0 | AJ39: 0 | AK39: =+SUM(AK40:AK43) -> 0 | AL39: 0 | AM39: 0 | AN39: =+SUM(AN40:AN43) -> 0 | AO39: 0 | AP39: 0 | AQ39: =+SUM(AQ40:AQ43) -> 0 | AR39: =+SUM(AR40:AR43) -> 0 | AS39: =+SUM(AS40:AS43) -> 0 | AT39: 0 | AU39: 0 | AV39: 0
A40: 2111 | B40: =IF('1. PRESUPUESTO INICIAL'!B46="","",'1. PRESUPUESTO INICIAL'!B46) -> Coordinador General | D40: =IF('1. PRESUPUESTO INICIAL'!D46="",0,'1. PRESUPUESTO INICIAL'!D46) -> 0 | E40: =IF(OR(B40="",D40=0),0,SUMIFS('4. DETALLADA-RECURSOS ICBF'!$M$10:$M$1300,'4. DETALLADA-RECURSOS ICBF'!$B$10:$B$1300,'2. INFORMACION GENERAL'!$D$26,'4. DETALLADA-RECURSOS ICBF'!$K$10:$K$1300,'2. INFORMACION GENERAL'!$B$39,'4. DETALLADA-RECURSOS ICBF'!$L$10:$L$1300,'2. INFORMACION GENERAL'!B40)) -> 0 | F40: 0 | H40: =IF(OR(B40="",G40=0),0,SUMIFS('4. DETALLADA-RECURSOS ICBF'!$M$10:$M$1300,'4. DETALLADA-RECURSOS ICBF'!$B$10:$B$1300,'2. INFORMACION GENERAL'!$G$26,'4. DETALLADA-RECURSOS ICBF'!$K$10:$K$1300,'2. INFORMACION GENERAL'!$B$39,'4. DETALLADA-RECURSOS ICBF'!$L$10:$L$1300,'2. INFORMACION GENERAL'!B40)) -> 0 | I40: =IFERROR(G40-H40,0) -> 0 | J40: 0 | K40: =IF(OR(B40="",J40=0),0,SUMIFS('4. DETALLADA-RECURSOS ICBF'!$M$10:$M$1300,'4. DETALLADA-RECURSOS ICBF'!$B$10:$B$1300,'2. INFORMACION GENERAL'!$J$26,'4. DETALLADA-RECURSOS ICBF'!$K$10:$K$1300,'2. INFORMACION GENERAL'!$B$39,'4. DETALLADA-RECURSOS ICBF'!$L$10:$L$1300,'2. INFORMACION GENERAL'!B40)) -> 0 | L40: =IFERROR(J40-K40,0) -> 0 | M40: 0 | N40: =IF(OR(B40="",M40=0),0,SUMIFS('4. DETALLADA-RECURSOS ICBF'!$M$10:$M$1300,'4. DETALLADA-RECURSOS ICBF'!$B$10:$B$1300,'2. INFORMACION GENERAL'!$M$26,'4. DETALLADA-RECURSOS ICBF'!$K$10:$K$1300,'2. INFORMACION GENERAL'!$B$39,'4. DETALLADA-RECURSOS ICBF'!$L$10:$L$1300,'2. INFORMACION GENERAL'!B40)) -> 0 | O40: =IFERROR(M40-N40,0) -> 0 | P40: 0 | Q40: =IF(OR(B40="",P40=0),0,SUMIFS('4. DETALLADA-RECURSOS ICBF'!$M$10:$M$1300,'4. DETALLADA-RECURSOS ICBF'!$B$10:$B$1300,'2. INFORMACION GENERAL'!$P$26,'4. DETALLADA-RECURSOS ICBF'!$K$10:$K$1300,'2. INFORMACION GENERAL'!$B$39,'4. DETALLADA-RECURSOS ICBF'!$L$10:$L$1300,'2. INFORMACION GENERAL'!B40)) -> 0 | R40: =IFERROR(P40-Q40,0) -> 0 | S40: 0 | T40: =IF(OR(B40="",S40=0),0,SUMIFS('4. DETALLADA-RECURSOS ICBF'!$M$10:$M$1300,'4. DETALLADA-RECURSOS ICBF'!$B$10:$B$1300,'2. INFORMACION GENERAL'!$S$26,'4. DETALLADA-RECURSOS ICBF'!$K$10:$K$1300,'2. INFORMACION GENERAL'!$B$39,'4. DETALLADA-RECURSOS ICBF'!$L$10:$L$1300,'2. INFORMACION GENERAL'!B40)) -> 0 | U40: =IFERROR(S40-T40,0) -> 0 | V40: 0 | W40: =IF(OR(B40="",V40=0),0,SUMIFS('4. DETALLADA-RECURSOS ICBF'!$M$10:$M$1300,'4. DETALLADA-RECURSOS ICBF'!$B$10:$B$1300,'2. INFORMACION GENERAL'!$V$26,'4. DETALLADA-RECURSOS ICBF'!$K$10:$K$1300,'2. INFORMACION GENERAL'!$B$39,'4. DETALLADA-RECURSOS ICBF'!$L$10:$L$1300,'2. INFORMACION GENERAL'!B40)) -> 0 | X40: =IFERROR(V40-W40,0) -> 0 | Y40: 0 | Z40: =IF(OR(B40="",Y40=0),0,SUMIFS('4. DETALLADA-RECURSOS ICBF'!$M$10:$M$1300,'4. DETALLADA-RECURSOS ICBF'!$B$10:$B$1300,'2. INFORMACION GENERAL'!$Y$26,'4. DETALLADA-RECURSOS ICBF'!$K$10:$K$1300,'2. INFORMACION GENERAL'!$B$39,'4. DETALLADA-RECURSOS ICBF'!$L$10:$L$1300,'2. INFORMACION GENERAL'!B40)) -> 0 | AA40: =IFERROR(Y40-Z40,0) -> 0 | AB40: 0 | AC40: =IF(OR(B40="",AB40=0),0,SUMIFS('4. DETALLADA-RECURSOS ICBF'!$M$10:$M$1300,'4. DETALLADA-RECURSOS ICBF'!$B$10:$B$1300,'2. INFORMACION GENERAL'!$AB$26,'4. DETALLADA-RECURSOS ICBF'!$K$10:$K$1300,'2. INFORMACION GENERAL'!$B$39,'4. DETALLADA-RECURSOS ICBF'!$L$10:$L$1300,'2. INFORMACION GENERAL'!B40)) -> 0 | AD40: =IFERROR(AB40-AC40,0) -> 0 | AE40: 0 | AF40: =IF(OR(B40="",AE40=0),0,SUMIFS('4. DETALLADA-RECURSOS ICBF'!$M$10:$M$1300,'4. DETALLADA-RECURSOS ICBF'!$B$10:$B$1300,'2. INFORMACION GENERAL'!$AE$26,'4. DETALLADA-RECURSOS ICBF'!$K$10:$K$1300,'2. INFORMACION GENERAL'!$B$39,'4. DETALLADA-RECURSOS ICBF'!$L$10:$L$1300,'2. INFORMACION GENERAL'!B40)) -> 0 | AG40: =IFERROR(AE40-AF40,0) -> 0 | AH40: 0 | AI40: =IF(OR(B40="",AH40=0),0,SUMIFS('4. DETALLADA-RECURSOS ICBF'!$M$10:$M$1300,'4. DETALLADA-RECURSOS ICBF'!$B$10:$B$1300,'2. INFORMACION GENERAL'!$AH$26,'4. DETALLADA-RECURSOS ICBF'!$K$10:$K$1300,'2. INFORMACION GENERAL'!$B$39,'4. DETALLADA-RECURSOS ICBF'!$L$10:$L$1300,'2. INFORMACION GENERAL'!B40)) -> 0 | AJ40: =IFERROR(AH40-AI40,0) -> 0 | AK40: 0 | AL40: =IF(OR(B40="",AK40=0),0,SUMIFS('4. DETALLADA-RECURSOS ICBF'!$M$10:$M$1300,'4. DETALLADA-RECURSOS ICBF'!$B$10:$B$1300,'2. INFORMACION GENERAL'!$AK$26,'4. DETALLADA-RECURSOS ICBF'!$K$10:$K$1300,'2. INFORMACION GENERAL'!$B$39,'4. DETALLADA-RECURSOS ICBF'!$L$10:$L$1300,'2. INFORMACION GENERAL'!B40)) -> 0 | AM40: =IFERROR(AK40-AL40,0) -> 0 | AN40: 0 | AO40: =IF(OR(B40="",AN40=0),0,SUMIFS('4. DETALLADA-RECURSOS ICBF'!$M$10:$M$1300,'4. DETALLADA-RECURSOS ICBF'!$B$10:$B$1300,'2. INFORMACION GENERAL'!$AN$26,'4. DETALLADA-RECURSOS ICBF'!$K$10:$K$1300,'2. INFORMACION GENERAL'!$B$39,'4. DETALLADA-RECURSOS ICBF'!$L$10:$L$1300,'2. INFORMACION GENERAL'!B40)) -> 0 | AP40: =IFERROR(AN40-AO40,0) -> 0 | AQ40: =IF('1. PRESUPUESTO INICIAL'!F46="",0,'1. PRESUPUESTO INICIAL'!F46) -> 0 | AR40: =IF(OR(B40="",AQ40=0),0,SUMIFS('4. DETALLADA-RECURSOS ICBF'!$M$10:$M$1300,'4. DETALLADA-RECURSOS ICBF'!$B$10:$B$1300,'2. INFORMACION GENERAL'!$AQ$26,'4. DETALLADA-RECURSOS ICBF'!$K$10:$K$1300,'2. INFORMACION GENERAL'!$B$39,'4. DETALLADA-RECURSOS ICBF'!$L$10:$L$1300,'2. INFORMACION GENERAL'!B40)) -> 0 | AS40: =IFERROR(AQ40-AR40,0) -> 0 | AT40: =+SUMIFS(D40:AS40,$D$27:$AS$27,$AT$27) -> 0 | AU40: =+SUMIFS(D40:AS40,$D$27:$AS$27,$AU$27) -> 0 | AV40: =+SUMIFS(D40:AS40,$D$27:$AS$27,$AV$27) -> 0
A41: 2112 | B41: =IF('1. PRESUPUESTO INICIAL'!B47="","",'1. PRESUPUESTO INICIAL'!B47) -> Pedagogo (a) | D41: =IF('1. PRESUPUESTO INICIAL'!D47="",0,'1. PRESUPUESTO INICIAL'!D47) -> 0 | E41: =IF(OR(B41="",D41=0),0,SUMIFS('4. DETALLADA-RECURSOS ICBF'!$M$10:$M$1300,'4. DETALLADA-RECURSOS ICBF'!$B$10:$B$1300,'2. INFORMACION GENERAL'!$D$26,'4. DETALLADA-RECURSOS ICBF'!$K$10:$K$1300,'2. INFORMACION GENERAL'!$B$39,'4. DETALLADA-RECURSOS ICBF'!$L$10:$L$1300,'2. INFORMACION GENERAL'!B41)) -> 0 | F41: 0 | G41: 0 | H41: =IF(OR(B41="",G41=0),0,SUMIFS('4. DETALLADA-RECURSOS ICBF'!$M$10:$M$1300,'4. DETALLADA-RECURSOS ICBF'!$B$10:$B$1300,'2. INFORMACION GENERAL'!$G$26,'4. DETALLADA-RECURSOS ICBF'!$K$10:$K$1300,'2. INFORMACION GENERAL'!$B$39,'4. DETALLADA-RECURSOS ICBF'!$L$10:$L$1300,'2. INFORMACION GENERAL'!B41)) -> 0 | I41: =IFERROR(G41-H41,0) -> 0 | J41: 0 | K41: =IF(OR(B41="",J41=0),0,SUMIFS('4. DETALLADA-RECURSOS ICBF'!$M$10:$M$1300,'4. DETALLADA-RECURSOS ICBF'!$B$10:$B$1300,'2. INFORMACION GENERAL'!$J$26,'4. DETALLADA-RECURSOS ICBF'!$K$10:$K$1300,'2. INFORMACION GENERAL'!$B$39,'4. DETALLADA-RECURSOS ICBF'!$L$10:$L$1300,'2. INFORMACION GENERAL'!B41)) -> 0 | L41: =IFERROR(J41-K41,0) -> 0 | M41: 0 | N41: =IF(OR(B41="",M41=0),0,SUMIFS('4. DETALLADA-RECURSOS ICBF'!$M$10:$M$1300,'4. DETALLADA-RECURSOS ICBF'!$B$10:$B$1300,'2. INFORMACION GENERAL'!$M$26,'4. DETALLADA-RECURSOS ICBF'!$K$10:$K$1300,'2. INFORMACION GENERAL'!$B$39,'4. DETALLADA-RECURSOS ICBF'!$L$10:$L$1300,'2. INFORMACION GENERAL'!B41)) -> 0 | O41: =IFERROR(M41-N41,0) -> 0 | P41: 0 | Q41: =IF(OR(B41="",P41=0),0,SUMIFS('4. DETALLADA-RECURSOS ICBF'!$M$10:$M$1300,'4. DETALLADA-RECURSOS ICBF'!$B$10:$B$1300,'2. INFORMACION GENERAL'!$P$26,'4. DETALLADA-RECURSOS ICBF'!$K$10:$K$1300,'2. INFORMACION GENERAL'!$B$39,'4. DETALLADA-RECURSOS ICBF'!$L$10:$L$1300,'2. INFORMACION GENERAL'!B41)) -> 0 | R41: =IFERROR(P41-Q41,0) -> 0 | S41: 0 | T41: =IF(OR(B41="",S41=0),0,SUMIFS('4. DETALLADA-RECURSOS ICBF'!$M$10:$M$1300,'4. DETALLADA-RECURSOS ICBF'!$B$10:$B$1300,'2. INFORMACION GENERAL'!$S$26,'4. DETALLADA-RECURSOS ICBF'!$K$10:$K$1300,'2. INFORMACION GENERAL'!$B$39,'4. DETALLADA-RECURSOS ICBF'!$L$10:$L$1300,'2. INFORMACION GENERAL'!B41)) -> 0 | U41: =IFERROR(S41-T41,0) -> 0 | V41: 0 | W41: =IF(OR(B41="",V41=0),0,SUMIFS('4. DETALLADA-RECURSOS ICBF'!$M$10:$M$1300,'4. DETALLADA-RECURSOS ICBF'!$B$10:$B$1300,'2. INFORMACION GENERAL'!$V$26,'4. DETALLADA-RECURSOS ICBF'!$K$10:$K$1300,'2. INFORMACION GENERAL'!$B$39,'4. DETALLADA-RECURSOS ICBF'!$L$10:$L$1300,'2. INFORMACION GENERAL'!B41)) -> 0 | X41: =IFERROR(V41-W41,0) -> 0 | Y41: 0 | Z41: =IF(OR(B41="",Y41=0),0,SUMIFS('4. DETALLADA-RECURSOS ICBF'!$M$10:$M$1300,'4. DETALLADA-RECURSOS ICBF'!$B$10:$B$1300,'2. INFORMACION GENERAL'!$Y$26,'4. DETALLADA-RECURSOS ICBF'!$K$10:$K$1300,'2. INFORMACION GENERAL'!$B$39,'4. DETALLADA-RECURSOS ICBF'!$L$10:$L$1300,'2. INFORMACION GENERAL'!B41)) -> 0 | AA41: =IFERROR(Y41-Z41,0) -> 0 | AB41: 0 | AC41: =IF(OR(B41="",AB41=0),0,SUMIFS('4. DETALLADA-RECURSOS ICBF'!$M$10:$M$1300,'4. DETALLADA-RECURSOS ICBF'!$B$10:$B$1300,'2. INFORMACION GENERAL'!$AB$26,'4. DETALLADA-RECURSOS ICBF'!$K$10:$K$1300,'2. INFORMACION GENERAL'!$B$39,'4. DETALLADA-RECURSOS ICBF'!$L$10:$L$1300,'2. INFORMACION GENERAL'!B41)) -> 0 | AD41: =IFERROR(AB41-AC41,0) -> 0 | AE41: 0 | AF41: =IF(OR(B41="",AE41=0),0,SUMIFS('4. DETALLADA-RECURSOS ICBF'!$M$10:$M$1300,'4. DETALLADA-RECURSOS ICBF'!$B$10:$B$1300,'2. INFORMACION GENERAL'!$AE$26,'4. DETALLADA-RECURSOS ICBF'!$K$10:$K$1300,'2. INFORMACION GENERAL'!$B$39,'4. DETALLADA-RECURSOS ICBF'!$L$10:$L$1300,'2. INFORMACION GENERAL'!B41)) -> 0 | AG41: =IFERROR(AE41-AF41,0) -> 0 | AH41: 0 | AI41: =IF(OR(B41="",AH41=0),0,SUMIFS('4. DETALLADA-RECURSOS ICBF'!$M$10:$M$1300,'4. DETALLADA-RECURSOS ICBF'!$B$10:$B$1300,'2. INFORMACION GENERAL'!$AH$26,'4. DETALLADA-RECURSOS ICBF'!$K$10:$K$1300,'2. INFORMACION GENERAL'!$B$39,'4. DETALLADA-RECURSOS ICBF'!$L$10:$L$1300,'2. INFORMACION GENERAL'!B41)) -> 0 | AJ41: =IFERROR(AH41-AI41,0) -> 0 | AK41: 0 | AL41: =IF(OR(B41="",AK41=0),0,SUMIFS('4. DETALLADA-RECURSOS ICBF'!$M$10:$M$1300,'4. DETALLADA-RECURSOS ICBF'!$B$10:$B$1300,'2. INFORMACION GENERAL'!$AK$26,'4. DETALLADA-RECURSOS ICBF'!$K$10:$K$1300,'2. INFORMACION GENERAL'!$B$39,'4. DETALLADA-RECURSOS ICBF'!$L$10:$L$1300,'2. INFORMACION GENERAL'!B41)) -> 0 | AM41: =IFERROR(AK41-AL41,0) -> 0 | AN41: 0 | AO41: =IF(OR(B41="",AN41=0),0,SUMIFS('4. DETALLADA-RECURSOS ICBF'!$M$10:$M$1300,'4. DETALLADA-RECURSOS ICBF'!$B$10:$B$1300,'2. INFORMACION GENERAL'!$AN$26,'4. DETALLADA-RECURSOS ICBF'!$K$10:$K$1300,'2. INFORMACION GENERAL'!$B$39,'4. DETALLADA-RECURSOS ICBF'!$L$10:$L$1300,'2. INFORMACION GENERAL'!B41)) -> 0 | AP41: =IFERROR(AN41-AO41,0) -> 0 | AQ41: =IF('1. PRESUPUESTO INICIAL'!F47="",0,'1. PRESUPUESTO INICIAL'!F47) -> 0 | AR41: =IF(OR(B41="",AQ41=0),0,SUMIFS('4. DETALLADA-RECURSOS ICBF'!$M$10:$M$1300,'4. DETALLADA-RECURSOS ICBF'!$B$10:$B$1300,'2. INFORMACION GENERAL'!$AQ$26,'4. DETALLADA-RECURSOS ICBF'!$K$10:$K$1300,'2. INFORMACION GENERAL'!$B$39,'4. DETALLADA-RECURSOS ICBF'!$L$10:$L$1300,'2. INFORMACION GENERAL'!B41)) -> 0 | AS41: =IFERROR(AQ41-AR41,0) -> 0 | AT41: =+SUMIFS(D41:AS41,$D$27:$AS$27,$AT$27) -> 0 | AU41: =+SUMIFS(D41:AS41,$D$27:$AS$27,$AU$27) -> 0 | AV41: =+SUMIFS(D41:AS41,$D$27:$AS$27,$AV$27) -> 0
A42: 2113 | B42: =IF('1. PRESUPUESTO INICIAL'!B48="","",'1. PRESUPUESTO INICIAL'!B48) -> Nutricionista Dietista | D42: =IF('1. PRESUPUESTO INICIAL'!D48="",0,'1. PRESUPUESTO INICIAL'!D48) -> 0 | E42: =IF(OR(B42="",D42=0),0,SUMIFS('4. DETALLADA-RECURSOS ICBF'!$M$10:$M$1300,'4. DETALLADA-RECURSOS ICBF'!$B$10:$B$1300,'2. INFORMACION GENERAL'!$D$26,'4. DETALLADA-RECURSOS ICBF'!$K$10:$K$1300,'2. INFORMACION GENERAL'!$B$39,'4. DETALLADA-RECURSOS ICBF'!$L$10:$L$1300,'2. INFORMACION GENERAL'!B42)) -> 0 | F42: 0 | G42: 0 | H42: =IF(OR(B42="",G42=0),0,SUMIFS('4. DETALLADA-RECURSOS ICBF'!$M$10:$M$1300,'4. DETALLADA-RECURSOS ICBF'!$B$10:$B$1300,'2. INFORMACION GENERAL'!$G$26,'4. DETALLADA-RECURSOS ICBF'!$K$10:$K$1300,'2. INFORMACION GENERAL'!$B$39,'4. DETALLADA-RECURSOS ICBF'!$L$10:$L$1300,'2. INFORMACION GENERAL'!B42)) -> 0 | I42: =IFERROR(G42-H42,0) -> 0 | J42: 0 | K42: =IF(OR(B42="",J42=0),0,SUMIFS('4. DETALLADA-RECURSOS ICBF'!$M$10:$M$1300,'4. DETALLADA-RECURSOS ICBF'!$B$10:$B$1300,'2. INFORMACION GENERAL'!$J$26,'4. DETALLADA-RECURSOS ICBF'!$K$10:$K$1300,'2. INFORMACION GENERAL'!$B$39,'4. DETALLADA-RECURSOS ICBF'!$L$10:$L$1300,'2. INFORMACION GENERAL'!B42)) -> 0 | L42: =IFERROR(J42-K42,0) -> 0 | M42: 0 | N42: =IF(OR(B42="",M42=0),0,SUMIFS('4. DETALLADA-RECURSOS ICBF'!$M$10:$M$1300,'4. DETALLADA-RECURSOS ICBF'!$B$10:$B$1300,'2. INFORMACION GENERAL'!$M$26,'4. DETALLADA-RECURSOS ICBF'!$K$10:$K$1300,'2. INFORMACION GENERAL'!$B$39,'4. DETALLADA-RECURSOS ICBF'!$L$10:$L$1300,'2. INFORMACION GENERAL'!B42)) -> 0 | O42: =IFERROR(M42-N42,0) -> 0 | P42: 0 | Q42: =IF(OR(B42="",P42=0),0,SUMIFS('4. DETALLADA-RECURSOS ICBF'!$M$10:$M$1300,'4. DETALLADA-RECURSOS ICBF'!$B$10:$B$1300,'2. INFORMACION GENERAL'!$P$26,'4. DETALLADA-RECURSOS ICBF'!$K$10:$K$1300,'2. INFORMACION GENERAL'!$B$39,'4. DETALLADA-RECURSOS ICBF'!$L$10:$L$1300,'2. INFORMACION GENERAL'!B42)) -> 0 | R42: =IFERROR(P42-Q42,0) -> 0 | S42: 0 | T42: =IF(OR(B42="",S42=0),0,SUMIFS('4. DETALLADA-RECURSOS ICBF'!$M$10:$M$1300,'4. DETALLADA-RECURSOS ICBF'!$B$10:$B$1300,'2. INFORMACION GENERAL'!$S$26,'4. DETALLADA-RECURSOS ICBF'!$K$10:$K$1300,'2. INFORMACION GENERAL'!$B$39,'4. DETALLADA-RECURSOS ICBF'!$L$10:$L$1300,'2. INFORMACION GENERAL'!B42)) -> 0 | U42: =IFERROR(S42-T42,0) -> 0 | V42: 0 | W42: =IF(OR(B42="",V42=0),0,SUMIFS('4. DETALLADA-RECURSOS ICBF'!$M$10:$M$1300,'4. DETALLADA-RECURSOS ICBF'!$B$10:$B$1300,'2. INFORMACION GENERAL'!$V$26,'4. DETALLADA-RECURSOS ICBF'!$K$10:$K$1300,'2. INFORMACION GENERAL'!$B$39,'4. DETALLADA-RECURSOS ICBF'!$L$10:$L$1300,'2. INFORMACION GENERAL'!B42)) -> 0 | X42: =IFERROR(V42-W42,0) -> 0 | Y42: 0 | Z42: =IF(OR(B42="",Y42=0),0,SUMIFS('4. DETALLADA-RECURSOS ICBF'!$M$10:$M$1300,'4. DETALLADA-RECURSOS ICBF'!$B$10:$B$1300,'2. INFORMACION GENERAL'!$Y$26,'4. DETALLADA-RECURSOS ICBF'!$K$10:$K$1300,'2. INFORMACION GENERAL'!$B$39,'4. DETALLADA-RECURSOS ICBF'!$L$10:$L$1300,'2. INFORMACION GENERAL'!B42)) -> 0 | AA42: =IFERROR(Y42-Z42,0) -> 0 | AB42: 0 | AC42: =IF(OR(B42="",AB42=0),0,SUMIFS('4. DETALLADA-RECURSOS ICBF'!$M$10:$M$1300,'4. DETALLADA-RECURSOS ICBF'!$B$10:$B$1300,'2. INFORMACION GENERAL'!$AB$26,'4. DETALLADA-RECURSOS ICBF'!$K$10:$K$1300,'2. INFORMACION GENERAL'!$B$39,'4. DETALLADA-RECURSOS ICBF'!$L$10:$L$1300,'2. INFORMACION GENERAL'!B42)) -> 0 | AD42: =IFERROR(AB42-AC42,0) -> 0 | AE42: 0 | AF42: =IF(OR(B42="",AE42=0),0,SUMIFS('4. DETALLADA-RECURSOS ICBF'!$M$10:$M$1300,'4. DETALLADA-RECURSOS ICBF'!$B$10:$B$1300,'2. INFORMACION GENERAL'!$AE$26,'4. DETALLADA-RECURSOS ICBF'!$K$10:$K$1300,'2. INFORMACION GENERAL'!$B$39,'4. DETALLADA-RECURSOS ICBF'!$L$10:$L$1300,'2. INFORMACION GENERAL'!B42)) -> 0 | AG42: =IFERROR(AE42-AF42,0) -> 0 | AH42: 0 | AI42: =IF(OR(B42="",AH42=0),0,SUMIFS('4. DETALLADA-RECURSOS ICBF'!$M$10:$M$1300,'4. DETALLADA-RECURSOS ICBF'!$B$10:$B$1300,'2. INFORMACION GENERAL'!$AH$26,'4. DETALLADA-RECURSOS ICBF'!$K$10:$K$1300,'2. INFORMACION GENERAL'!$B$39,'4. DETALLADA-RECURSOS ICBF'!$L$10:$L$1300,'2. INFORMACION GENERAL'!B42)) -> 0 | AJ42: =IFERROR(AH42-AI42,0) -> 0 | AK42: 0 | AL42: =IF(OR(B42="",AK42=0),0,SUMIFS('4. DETALLADA-RECURSOS ICBF'!$M$10:$M$1300,'4. DETALLADA-RECURSOS ICBF'!$B$10:$B$1300,'2. INFORMACION GENERAL'!$AK$26,'4. DETALLADA-RECURSOS ICBF'!$K$10:$K$1300,'2. INFORMACION GENERAL'!$B$39,'4. DETALLADA-RECURSOS ICBF'!$L$10:$L$1300,'2. INFORMACION GENERAL'!B42)) -> 0 | AM42: =IFERROR(AK42-AL42,0) -> 0 | AN42: 0 | AO42: =IF(OR(B42="",AN42=0),0,SUMIFS('4. DETALLADA-RECURSOS ICBF'!$M$10:$M$1300,'4. DETALLADA-RECURSOS ICBF'!$B$10:$B$1300,'2. INFORMACION GENERAL'!$AN$26,'4. DETALLADA-RECURSOS ICBF'!$K$10:$K$1300,'2. INFORMACION GENERAL'!$B$39,'4. DETALLADA-RECURSOS ICBF'!$L$10:$L$1300,'2. INFORMACION GENERAL'!B42)) -> 0 | AP42: =IFERROR(AN42-AO42,0) -> 0 | AQ42: =IF('1. PRESUPUESTO INICIAL'!F48="",0,'1. PRESUPUESTO INICIAL'!F48) -> 0 | AR42: =IF(OR(B42="",AQ42=0),0,SUMIFS('4. DETALLADA-RECURSOS ICBF'!$M$10:$M$1300,'4. DETALLADA-RECURSOS ICBF'!$B$10:$B$1300,'2. INFORMACION GENERAL'!$AQ$26,'4. DETALLADA-RECURSOS ICBF'!$K$10:$K$1300,'2. INFORMACION GENERAL'!$B$39,'4. DETALLADA-RECURSOS ICBF'!$L$10:$L$1300,'2. INFORMACION GENERAL'!B42)) -> 0 | AS42: =IFERROR(AQ42-AR42,0) -> 0 | AT42: =+SUMIFS(D42:AS42,$D$27:$AS$27,$AT$27) -> 0 | AU42: =+SUMIFS(D42:AS42,$D$27:$AS$27,$AU$27) -> 0 | AV42: =+SUMIFS(D42:AS42,$D$27:$AS$27,$AV$27) -> 0
A43: 2114 | B43: =IF('1. PRESUPUESTO INICIAL'!B49="","",'1. PRESUPUESTO INICIAL'!B49) -> Dinamizador(a) Comunitario | D43: =IF('1. PRESUPUESTO INICIAL'!D49="",0,'1. PRESUPUESTO INICIAL'!D49) -> 0 | E43: =IF(OR(B43="",D43=0),0,SUMIFS('4. DETALLADA-RECURSOS ICBF'!$M$10:$M$1300,'4. DETALLADA-RECURSOS ICBF'!$B$10:$B$1300,'2. INFORMACION GENERAL'!$D$26,'4. DETALLADA-RECURSOS ICBF'!$K$10:$K$1300,'2. INFORMACION GENERAL'!$B$39,'4. DETALLADA-RECURSOS ICBF'!$L$10:$L$1300,'2. INFORMACION GENERAL'!B43)) -> 0 | F43: 0 | G43: 0 | H43: =IF(OR(B43="",G43=0),0,SUMIFS('4. DETALLADA-RECURSOS ICBF'!$M$10:$M$1300,'4. DETALLADA-RECURSOS ICBF'!$B$10:$B$1300,'2. INFORMACION GENERAL'!$G$26,'4. DETALLADA-RECURSOS ICBF'!$K$10:$K$1300,'2. INFORMACION GENERAL'!$B$39,'4. DETALLADA-RECURSOS ICBF'!$L$10:$L$1300,'2. INFORMACION GENERAL'!B43)) -> 0 | I43: =IFERROR(G43-H43,0) -> 0 | J43: 0 | K43: =IF(OR(B43="",J43=0),0,SUMIFS('4. DETALLADA-RECURSOS ICBF'!$M$10:$M$1300,'4. DETALLADA-RECURSOS ICBF'!$B$10:$B$1300,'2. INFORMACION GENERAL'!$J$26,'4. DETALLADA-RECURSOS ICBF'!$K$10:$K$1300,'2. INFORMACION GENERAL'!$B$39,'4. DETALLADA-RECURSOS ICBF'!$L$10:$L$1300,'2. INFORMACION GENERAL'!B43)) -> 0 | L43: =IFERROR(J43-K43,0) -> 0 | M43: 0 | N43: =IF(OR(B43="",M43=0),0,SUMIFS('4. DETALLADA-RECURSOS ICBF'!$M$10:$M$1300,'4. DETALLADA-RECURSOS ICBF'!$B$10:$B$1300,'2. INFORMACION GENERAL'!$M$26,'4. DETALLADA-RECURSOS ICBF'!$K$10:$K$1300,'2. INFORMACION GENERAL'!$B$39,'4. DETALLADA-RECURSOS ICBF'!$L$10:$L$1300,'2. INFORMACION GENERAL'!B43)) -> 0 | O43: 0 | P43: 0 | Q43: =IF(OR(B43="",P43=0),0,SUMIFS('4. DETALLADA-RECURSOS ICBF'!$M$10:$M$1300,'4. DETALLADA-RECURSOS ICBF'!$B$10:$B$1300,'2. INFORMACION GENERAL'!$P$26,'4. DETALLADA-RECURSOS ICBF'!$K$10:$K$1300,'2. INFORMACION GENERAL'!$B$39,'4. DETALLADA-RECURSOS ICBF'!$L$10:$L$1300,'2. INFORMACION GENERAL'!B43)) -> 0 | R43: =IFERROR(P43-Q43,0) -> 0 | S43: 0 | T43: =IF(OR(B43="",S43=0),0,SUMIFS('4. DETALLADA-RECURSOS ICBF'!$M$10:$M$1300,'4. DETALLADA-RECURSOS ICBF'!$B$10:$B$1300,'2. INFORMACION GENERAL'!$S$26,'4. DETALLADA-RECURSOS ICBF'!$K$10:$K$1300,'2. INFORMACION GENERAL'!$B$39,'4. DETALLADA-RECURSOS ICBF'!$L$10:$L$1300,'2. INFORMACION GENERAL'!B43)) -> 0 | U43: =IFERROR(S43-T43,0) -> 0 | V43: 0 | W43: =IF(OR(B43="",V43=0),0,SUMIFS('4. DETALLADA-RECURSOS ICBF'!$M$10:$M$1300,'4. DETALLADA-RECURSOS ICBF'!$B$10:$B$1300,'2. INFORMACION GENERAL'!$V$26,'4. DETALLADA-RECURSOS ICBF'!$K$10:$K$1300,'2. INFORMACION GENERAL'!$B$39,'4. DETALLADA-RECURSOS ICBF'!$L$10:$L$1300,'2. INFORMACION GENERAL'!B43)) -> 0 | X43: =IFERROR(V43-W43,0) -> 0 | Y43: 0 | Z43: =IF(OR(B43="",Y43=0),0,SUMIFS('4. DETALLADA-RECURSOS ICBF'!$M$10:$M$1300,'4. DETALLADA-RECURSOS ICBF'!$B$10:$B$1300,'2. INFORMACION GENERAL'!$Y$26,'4. DETALLADA-RECURSOS ICBF'!$K$10:$K$1300,'2. INFORMACION GENERAL'!$B$39,'4. DETALLADA-RECURSOS ICBF'!$L$10:$L$1300,'2. INFORMACION GENERAL'!B43)) -> 0 | AA43: =IFERROR(Y43-Z43,0) -> 0 | AB43: 0 | AC43: =IF(OR(B43="",AB43=0),0,SUMIFS('4. DETALLADA-RECURSOS ICBF'!$M$10:$M$1300,'4. DETALLADA-RECURSOS ICBF'!$B$10:$B$1300,'2. INFORMACION GENERAL'!$AB$26,'4. DETALLADA-RECURSOS ICBF'!$K$10:$K$1300,'2. INFORMACION GENERAL'!$B$39,'4. DETALLADA-RECURSOS ICBF'!$L$10:$L$1300,'2. INFORMACION GENERAL'!B43)) -> 0 | AD43: =IFERROR(AB43-AC43,0) -> 0 | AE43: 0 | AF43: =IF(OR(B43="",AE43=0),0,SUMIFS('4. DETALLADA-RECURSOS ICBF'!$M$10:$M$1300,'4. DETALLADA-RECURSOS ICBF'!$B$10:$B$1300,'2. INFORMACION GENERAL'!$AE$26,'4. DETALLADA-RECURSOS ICBF'!$K$10:$K$1300,'2. INFORMACION GENERAL'!$B$39,'4. DETALLADA-RECURSOS ICBF'!$L$10:$L$1300,'2. INFORMACION GENERAL'!B43)) -> 0 | AG43: =IFERROR(AE43-AF43,0) -> 0 | AH43: 0 | AI43: =IF(OR(B43="",AH43=0),0,SUMIFS('4. DETALLADA-RECURSOS ICBF'!$M$10:$M$1300,'4. DETALLADA-RECURSOS ICBF'!$B$10:$B$1300,'2. INFORMACION GENERAL'!$AH$26,'4. DETALLADA-RECURSOS ICBF'!$K$10:$K$1300,'2. INFORMACION GENERAL'!$B$39,'4. DETALLADA-RECURSOS ICBF'!$L$10:$L$1300,'2. INFORMACION GENERAL'!B43)) -> 0 | AJ43: =IFERROR(AH43-AI43,0) -> 0 | AK43: 0 | AL43: =IF(OR(B43="",AK43=0),0,SUMIFS('4. DETALLADA-RECURSOS ICBF'!$M$10:$M$1300,'4. DETALLADA-RECURSOS ICBF'!$B$10:$B$1300,'2. INFORMACION GENERAL'!$AK$26,'4. DETALLADA-RECURSOS ICBF'!$K$10:$K$1300,'2. INFORMACION GENERAL'!$B$39,'4. DETALLADA-RECURSOS ICBF'!$L$10:$L$1300,'2. INFORMACION GENERAL'!B43)) -> 0 | AM43: =IFERROR(AK43-AL43,0) -> 0 | AN43: 0 | AO43: =IF(OR(B43="",AN43=0),0,SUMIFS('4. DETALLADA-RECURSOS ICBF'!$M$10:$M$1300,'4. DETALLADA-RECURSOS ICBF'!$B$10:$B$1300,'2. INFORMACION GENERAL'!$AN$26,'4. DETALLADA-RECURSOS ICBF'!$K$10:$K$1300,'2. INFORMACION GENERAL'!$B$39,'4. DETALLADA-RECURSOS ICBF'!$L$10:$L$1300,'2. INFORMACION GENERAL'!B43)) -> 0 | AP43: =IFERROR(AN43-AO43,0) -> 0 | AQ43: =IF('1. PRESUPUESTO INICIAL'!F49="",0,'1. PRESUPUESTO INICIAL'!F49) -> 0 | AR43: =IF(OR(B43="",AQ43=0),0,SUMIFS('4. DETALLADA-RECURSOS ICBF'!$M$10:$M$1300,'4. DETALLADA-RECURSOS ICBF'!$B$10:$B$1300,'2. INFORMACION GENERAL'!$AQ$26,'4. DETALLADA-RECURSOS ICBF'!$K$10:$K$1300,'2. INFORMACION GENERAL'!$B$39,'4. DETALLADA-RECURSOS ICBF'!$L$10:$L$1300,'2. INFORMACION GENERAL'!B43)) -> 0 | AS43: =IFERROR(AQ43-AR43,0) -> 0 | AT43: =+SUMIFS(D43:AS43,$D$27:$AS$27,$AT$27) -> 0 | AU43: =+SUMIFS(D43:AS43,$D$27:$AS$27,$AU$27) -> 0 | AV43: =+SUMIFS(D43:AS43,$D$27:$AS$27,$AV$27) -> 0
A44: 2200 | B44: =IF('1. PRESUPUESTO INICIAL'!B56="","",'1. PRESUPUESTO INICIAL'!B56) -> APOYOS NUTRICIONALES | D44: =+SUM(D45:D48) -> 0 | E44: =+SUM(E45:E48) -> 0 | F44: =+SUM(F45:F48) -> 0 | G44: =+SUM(G45:G48) -> 0 | H44: 0 | I44: 0 | J44: =+SUM(J45:J48) -> 0 | K44: 0 | L44: =+SUM(L45:L48) -> 0 | M44: =+SUM(M45:M48) -> 0 | N44: 0 | O44: =+SUM(O45:O48) -> 0 | P44: 0 | Q44: 0 | R44: 0 | S44: =+SUM(S45:S48) -> 0 | T44: 0 | U44: 0 | V44: =+SUM(V45:V48) -> 0 | W44: 0 | X44: 0 | Y44: =+SUM(Y45:Y48) -> 0 | Z44: 0 | AA44: 0 | AB44: =+SUM(AB45:AB48) -> 0 | AC44: 0 | AD44: 0 | AE44: =+SUM(AE45:AE48) -> 0 | AF44: 0 | AG44: 0 | AH44: =+SUM(AH45:AH48) -> 0 | AI44: 0 | AJ44: 0 | AK44: =+SUM(AK45:AK48) -> 0 | AL44: 0 | AM44: 0 | AN44: =+SUM(AN45:AN48) -> 0 | AO44: 0 | AP44: 0 | AQ44: =+SUM(AQ45:AQ48) -> 0 | AR44: 0 | AS44: =+SUM(AS45:AS48) -> 0 | AT44: 0 | AU44: 0 | AV44: 0
A45: 2201 | B45: =IF('1. PRESUPUESTO INICIAL'!B57="","",'1. PRESUPUESTO INICIAL'!B57) -> Refrigerio reforzado (Encuentros entre pares) | D45: =IF('1. PRESUPUESTO INICIAL'!D57="",0,'1. PRESUPUESTO INICIAL'!D57) -> 0 | E45: =IF(OR(B45="",D45=0),0,SUMIFS('4. DETALLADA-RECURSOS ICBF'!$M$10:$M$1300,'4. DETALLADA-RECURSOS ICBF'!$B$10:$B$1300,'2. INFORMACION GENERAL'!$D$26,'4. DETALLADA-RECURSOS ICBF'!$K$10:$K$1300,'2. INFORMACION GENERAL'!$B$44,'4. DETALLADA-RECURSOS ICBF'!$L$10:$L$1300,'2. INFORMACION GENERAL'!B45)) -> 0 | F45: =IFERROR(D45-E45,0) -> 0 | G45: 0 | H45: =IF(OR(B45="",G45=0),0,SUMIFS('4. DETALLADA-RECURSOS ICBF'!$M$10:$M$1300,'4. DETALLADA-RECURSOS ICBF'!$B$10:$B$1300,'2. INFORMACION GENERAL'!$G$26,'4. DETALLADA-RECURSOS ICBF'!$K$10:$K$1300,'2. INFORMACION GENERAL'!$B$44,'4. DETALLADA-RECURSOS ICBF'!$L$10:$L$1300,'2. INFORMACION GENERAL'!B45)) -> 0 | I45: =IFERROR(G45-H45,0) -> 0 | J45: 0 | K45: =IF(OR(B45="",J45=0),0,SUMIFS('4. DETALLADA-RECURSOS ICBF'!$M$10:$M$1300,'4. DETALLADA-RECURSOS ICBF'!$B$10:$B$1300,'2. INFORMACION GENERAL'!$J$26,'4. DETALLADA-RECURSOS ICBF'!$K$10:$K$1300,'2. INFORMACION GENERAL'!$B$44,'4. DETALLADA-RECURSOS ICBF'!$L$10:$L$1300,'2. INFORMACION GENERAL'!B45)) -> 0 | L45: =IFERROR(J45-K45,0) -> 0 | M45: 0 | N45: =IF(OR(B45="",M45=0),0,SUMIFS('4. DETALLADA-RECURSOS ICBF'!$M$10:$M$1300,'4. DETALLADA-RECURSOS ICBF'!$B$10:$B$1300,'2. INFORMACION GENERAL'!$M$26,'4. DETALLADA-RECURSOS ICBF'!$K$10:$K$1300,'2. INFORMACION GENERAL'!$B$44,'4. DETALLADA-RECURSOS ICBF'!$L$10:$L$1300,'2. INFORMACION GENERAL'!B45)) -> 0 | O45: =IFERROR(M45-N45,0) -> 0 | P45: 0 | Q45: =IF(OR(B45="",P45=0),0,SUMIFS('4. DETALLADA-RECURSOS ICBF'!$M$10:$M$1300,'4. DETALLADA-RECURSOS ICBF'!$B$10:$B$1300,'2. INFORMACION GENERAL'!$P$26,'4. DETALLADA-RECURSOS ICBF'!$K$10:$K$1300,'2. INFORMACION GENERAL'!$B$44,'4. DETALLADA-RECURSOS ICBF'!$L$10:$L$1300,'2. INFORMACION GENERAL'!B45)) -> 0 | R45: =IFERROR(P45-Q45,0) -> 0 | S45: 0 | T45: =IF(OR(B45="",S45=0),0,SUMIFS('4. DETALLADA-RECURSOS ICBF'!$M$10:$M$1300,'4. DETALLADA-RECURSOS ICBF'!$B$10:$B$1300,'2. INFORMACION GENERAL'!$S$26,'4. DETALLADA-RECURSOS ICBF'!$K$10:$K$1300,'2. INFORMACION GENERAL'!$B$44,'4. DETALLADA-RECURSOS ICBF'!$L$10:$L$1300,'2. INFORMACION GENERAL'!B45)) -> 0 | U45: =IFERROR(S45-T45,0) -> 0 | V45: 0 | W45: =IF(OR(B45="",V45=0),0,SUMIFS('4. DETALLADA-RECURSOS ICBF'!$M$10:$M$1300,'4. DETALLADA-RECURSOS ICBF'!$B$10:$B$1300,'2. INFORMACION GENERAL'!$V$26,'4. DETALLADA-RECURSOS ICBF'!$K$10:$K$1300,'2. INFORMACION GENERAL'!$B$44,'4. DETALLADA-RECURSOS ICBF'!$L$10:$L$1300,'2. INFORMACION GENERAL'!B45)) -> 0 | X45: =IFERROR(V45-W45,0) -> 0 | Y45: 0 | Z45: =IF(OR(B45="",Y45=0),0,SUMIFS('4. DETALLADA-RECURSOS ICBF'!$M$10:$M$1300,'4. DETALLADA-RECURSOS ICBF'!$B$10:$B$1300,'2. INFORMACION GENERAL'!$Y$26,'4. DETALLADA-RECURSOS ICBF'!$K$10:$K$1300,'2. INFORMACION GENERAL'!$B$44,'4. DETALLADA-RECURSOS ICBF'!$L$10:$L$1300,'2. INFORMACION GENERAL'!B45)) -> 0 | AA45: =IFERROR(Y45-Z45,0) -> 0 | AB45: 0 | AC45: =IF(OR(B45="",AB45=0),0,SUMIFS('4. DETALLADA-RECURSOS ICBF'!$M$10:$M$1300,'4. DETALLADA-RECURSOS ICBF'!$B$10:$B$1300,'2. INFORMACION GENERAL'!$AB$26,'4. DETALLADA-RECURSOS ICBF'!$K$10:$K$1300,'2. INFORMACION GENERAL'!$B$44,'4. DETALLADA-RECURSOS ICBF'!$L$10:$L$1300,'2. INFORMACION GENERAL'!B45)) -> 0 | AD45: =IFERROR(AB45-AC45,0) -> 0 | AE45: 0 | AF45: =IF(OR(B45="",AE45=0),0,SUMIFS('4. DETALLADA-RECURSOS ICBF'!$M$10:$M$1300,'4. DETALLADA-RECURSOS ICBF'!$B$10:$B$1300,'2. INFORMACION GENERAL'!$AE$26,'4. DETALLADA-RECURSOS ICBF'!$K$10:$K$1300,'2. INFORMACION GENERAL'!$B$44,'4. DETALLADA-RECURSOS ICBF'!$L$10:$L$1300,'2. INFORMACION GENERAL'!B45)) -> 0 | AG45: =IFERROR(AE45-AF45,0) -> 0 | AH45: 0 | AI45: =IF(OR(B45="",AH45=0),0,SUMIFS('4. DETALLADA-RECURSOS ICBF'!$M$10:$M$1300,'4. DETALLADA-RECURSOS ICBF'!$B$10:$B$1300,'2. INFORMACION GENERAL'!$AH$26,'4. DETALLADA-RECURSOS ICBF'!$K$10:$K$1300,'2. INFORMACION GENERAL'!$B$44,'4. DETALLADA-RECURSOS ICBF'!$L$10:$L$1300,'2. INFORMACION GENERAL'!B45)) -> 0 | AJ45: =IFERROR(AH45-AI45,0) -> 0 | AK45: 0 | AL45: =IF(OR(B45="",AK45=0),0,SUMIFS('4. DETALLADA-RECURSOS ICBF'!$M$10:$M$1300,'4. DETALLADA-RECURSOS ICBF'!$B$10:$B$1300,'2. INFORMACION GENERAL'!$AK$26,'4. DETALLADA-RECURSOS ICBF'!$K$10:$K$1300,'2. INFORMACION GENERAL'!$B$44,'4. DETALLADA-RECURSOS ICBF'!$L$10:$L$1300,'2. INFORMACION GENERAL'!B45)) -> 0 | AM45: =IFERROR(AK45-AL45,0) -> 0 | AN45: 0 | AO45: =IF(OR(B45="",AN45=0),0,SUMIFS('4. DETALLADA-RECURSOS ICBF'!$M$10:$M$1300,'4. DETALLADA-RECURSOS ICBF'!$B$10:$B$1300,'2. INFORMACION GENERAL'!$AN$26,'4. DETALLADA-RECURSOS ICBF'!$K$10:$K$1300,'2. INFORMACION GENERAL'!$B$44,'4. DETALLADA-RECURSOS ICBF'!$L$10:$L$1300,'2. INFORMACION GENERAL'!B45)) -> 0 | AP45: =IFERROR(AN45-AO45,0) -> 0 | AQ45: =IF('1. PRESUPUESTO INICIAL'!F57="",0,'1. PRESUPUESTO INICIAL'!F57) -> 0 | AR45: =IF(OR(B45="",AQ45=0),0,SUMIFS('4. DETALLADA-RECURSOS ICBF'!$M$10:$M$1300,'4. DETALLADA-RECURSOS ICBF'!$B$10:$B$1300,'2. INFORMACION GENERAL'!$AQ$26,'4. DETALLADA-RECURSOS ICBF'!$K$10:$K$1300,'2. INFORMACION GENERAL'!$B$44,'4. DETALLADA-RECURSOS ICBF'!$L$10:$L$1300,'2. INFORMACION GENERAL'!B45)) -> 0 | AS45: =IFERROR(AQ45-AR45,0) -> 0 | AT45: =+SUMIFS(D45:AS45,$D$27:$AS$27,$AT$27) -> 0 | AU45: =+SUMIFS(D45:AS45,$D$27:$AS$27,$AU$27) -> 0 | AV45: =+SUMIFS(D45:AS45,$D$27:$AS$27,$AV$27) -> 0
A46: 2202 | B46: =IF('1. PRESUPUESTO INICIAL'!B58="","",'1. PRESUPUESTO INICIAL'!B58) -> Refrigerio reforzado (Encuentros comunitarios) | D46: =IF('1. PRESUPUESTO INICIAL'!D58="",0,'1. PRESUPUESTO INICIAL'!D58) -> 0 | E46: =IF(OR(B46="",D46=0),0,SUMIFS('4. DETALLADA-RECURSOS ICBF'!$M$10:$M$1300,'4. DETALLADA-RECURSOS ICBF'!$B$10:$B$1300,'2. INFORMACION GENERAL'!$D$26,'4. DETALLADA-RECURSOS ICBF'!$K$10:$K$1300,'2. INFORMACION GENERAL'!$B$44,'4. DETALLADA-RECURSOS ICBF'!$L$10:$L$1300,'2. INFORMACION GENERAL'!B46)) -> 0 | F46: =IFERROR(D46-E46,0) -> 0 | G46: 0 | H46: =IF(OR(B46="",G46=0),0,SUMIFS('4. DETALLADA-RECURSOS ICBF'!$M$10:$M$1300,'4. DETALLADA-RECURSOS ICBF'!$B$10:$B$1300,'2. INFORMACION GENERAL'!$G$26,'4. DETALLADA-RECURSOS ICBF'!$K$10:$K$1300,'2. INFORMACION GENERAL'!$B$44,'4. DETALLADA-RECURSOS ICBF'!$L$10:$L$1300,'2. INFORMACION GENERAL'!B46)) -> 0 | I46: =IFERROR(G46-H46,0) -> 0 | J46: 0 | K46: =IF(OR(B46="",J46=0),0,SUMIFS('4. DETALLADA-RECURSOS ICBF'!$M$10:$M$1300,'4. DETALLADA-RECURSOS ICBF'!$B$10:$B$1300,'2. INFORMACION GENERAL'!$J$26,'4. DETALLADA-RECURSOS ICBF'!$K$10:$K$1300,'2. INFORMACION GENERAL'!$B$44,'4. DETALLADA-RECURSOS ICBF'!$L$10:$L$1300,'2. INFORMACION GENERAL'!B46)) -> 0 | L46: =IFERROR(J46-K46,0) -> 0 | M46: 0 | N46: =IF(OR(B46="",M46=0),0,SUMIFS('4. DETALLADA-RECURSOS ICBF'!$M$10:$M$1300,'4. DETALLADA-RECURSOS ICBF'!$B$10:$B$1300,'2. INFORMACION GENERAL'!$M$26,'4. DETALLADA-RECURSOS ICBF'!$K$10:$K$1300,'2. INFORMACION GENERAL'!$B$44,'4. DETALLADA-RECURSOS ICBF'!$L$10:$L$1300,'2. INFORMACION GENERAL'!B46)) -> 0 | O46: =IFERROR(M46-N46,0) -> 0 | P46: 0 | Q46: =IF(OR(B46="",P46=0),0,SUMIFS('4. DETALLADA-RECURSOS ICBF'!$M$10:$M$1300,'4. DETALLADA-RECURSOS ICBF'!$B$10:$B$1300,'2. INFORMACION GENERAL'!$P$26,'4. DETALLADA-RECURSOS ICBF'!$K$10:$K$1300,'2. INFORMACION GENERAL'!$B$44,'4. DETALLADA-RECURSOS ICBF'!$L$10:$L$1300,'2. INFORMACION GENERAL'!B46)) -> 0 | R46: =IFERROR(P46-Q46,0) -> 0 | S46: 0 | T46: =IF(OR(B46="",S46=0),0,SUMIFS('4. DETALLADA-RECURSOS ICBF'!$M$10:$M$1300,'4. DETALLADA-RECURSOS ICBF'!$B$10:$B$1300,'2. INFORMACION GENERAL'!$S$26,'4. DETALLADA-RECURSOS ICBF'!$K$10:$K$1300,'2. INFORMACION GENERAL'!$B$44,'4. DETALLADA-RECURSOS ICBF'!$L$10:$L$1300,'2. INFORMACION GENERAL'!B46)) -> 0 | U46: =IFERROR(S46-T46,0) -> 0 | V46: 0 | W46: =IF(OR(B46="",V46=0),0,SUMIFS('4. DETALLADA-RECURSOS ICBF'!$M$10:$M$1300,'4. DETALLADA-RECURSOS ICBF'!$B$10:$B$1300,'2. INFORMACION GENERAL'!$V$26,'4. DETALLADA-RECURSOS ICBF'!$K$10:$K$1300,'2. INFORMACION GENERAL'!$B$44,'4. DETALLADA-RECURSOS ICBF'!$L$10:$L$1300,'2. INFORMACION GENERAL'!B46)) -> 0 | X46: =IFERROR(V46-W46,0) -> 0 | Y46: 0 | Z46: =IF(OR(B46="",Y46=0),0,SUMIFS('4. DETALLADA-RECURSOS ICBF'!$M$10:$M$1300,'4. DETALLADA-RECURSOS ICBF'!$B$10:$B$1300,'2. INFORMACION GENERAL'!$Y$26,'4. DETALLADA-RECURSOS ICBF'!$K$10:$K$1300,'2. INFORMACION GENERAL'!$B$44,'4. DETALLADA-RECURSOS ICBF'!$L$10:$L$1300,'2. INFORMACION GENERAL'!B46)) -> 0 | AA46: =IFERROR(Y46-Z46,0) -> 0 | AB46: 0 | AC46: =IF(OR(B46="",AB46=0),0,SUMIFS('4. DETALLADA-RECURSOS ICBF'!$M$10:$M$1300,'4. DETALLADA-RECURSOS ICBF'!$B$10:$B$1300,'2. INFORMACION GENERAL'!$AB$26,'4. DETALLADA-RECURSOS ICBF'!$K$10:$K$1300,'2. INFORMACION GENERAL'!$B$44,'4. DETALLADA-RECURSOS ICBF'!$L$10:$L$1300,'2. INFORMACION GENERAL'!B46)) -> 0 | AD46: =IFERROR(AB46-AC46,0) -> 0 | AE46: 0 | AF46: =IF(OR(B46="",AE46=0),0,SUMIFS('4. DETALLADA-RECURSOS ICBF'!$M$10:$M$1300,'4. DETALLADA-RECURSOS ICBF'!$B$10:$B$1300,'2. INFORMACION GENERAL'!$AE$26,'4. DETALLADA-RECURSOS ICBF'!$K$10:$K$1300,'2. INFORMACION GENERAL'!$B$44,'4. DETALLADA-RECURSOS ICBF'!$L$10:$L$1300,'2. INFORMACION GENERAL'!B46)) -> 0 | AG46: =IFERROR(AE46-AF46,0) -> 0 | AH46: 0 | AI46: =IF(OR(B46="",AH46=0),0,SUMIFS('4. DETALLADA-RECURSOS ICBF'!$M$10:$M$1300,'4. DETALLADA-RECURSOS ICBF'!$B$10:$B$1300,'2. INFORMACION GENERAL'!$AH$26,'4. DETALLADA-RECURSOS ICBF'!$K$10:$K$1300,'2. INFORMACION GENERAL'!$B$44,'4. DETALLADA-RECURSOS ICBF'!$L$10:$L$1300,'2. INFORMACION GENERAL'!B46)) -> 0 | AJ46: =IFERROR(AH46-AI46,0) -> 0 | AK46: 0 | AL46: =IF(OR(B46="",AK46=0),0,SUMIFS('4. DETALLADA-RECURSOS ICBF'!$M$10:$M$1300,'4. DETALLADA-RECURSOS ICBF'!$B$10:$B$1300,'2. INFORMACION GENERAL'!$AK$26,'4. DETALLADA-RECURSOS ICBF'!$K$10:$K$1300,'2. INFORMACION GENERAL'!$B$44,'4. DETALLADA-RECURSOS ICBF'!$L$10:$L$1300,'2. INFORMACION GENERAL'!B46)) -> 0 | AM46: =IFERROR(AK46-AL46,0) -> 0 | AN46: 0 | AO46: =IF(OR(B46="",AN46=0),0,SUMIFS('4. DETALLADA-RECURSOS ICBF'!$M$10:$M$1300,'4. DETALLADA-RECURSOS ICBF'!$B$10:$B$1300,'2. INFORMACION GENERAL'!$AN$26,'4. DETALLADA-RECURSOS ICBF'!$K$10:$K$1300,'2. INFORMACION GENERAL'!$B$44,'4. DETALLADA-RECURSOS ICBF'!$L$10:$L$1300,'2. INFORMACION GENERAL'!B46)) -> 0 | AP46: =IFERROR(AN46-AO46,0) -> 0 | AQ46: =IF('1. PRESUPUESTO INICIAL'!F58="",0,'1. PRESUPUESTO INICIAL'!F58) -> 0 | AR46: =IF(OR(B46="",AQ46=0),0,SUMIFS('4. DETALLADA-RECURSOS ICBF'!$M$10:$M$1300,'4. DETALLADA-RECURSOS ICBF'!$B$10:$B$1300,'2. INFORMACION GENERAL'!$AQ$26,'4. DETALLADA-RECURSOS ICBF'!$K$10:$K$1300,'2. INFORMACION GENERAL'!$B$44,'4. DETALLADA-RECURSOS ICBF'!$L$10:$L$1300,'2. INFORMACION GENERAL'!B46)) -> 0 | AS46: =IFERROR(AQ46-AR46,0) -> 0 | AT46: =+SUMIFS(D46:AS46,$D$27:$AS$27,$AT$27) -> 0 | AU46: =+SUMIFS(D46:AS46,$D$27:$AS$27,$AU$27) -> 0 | AV46: =+SUMIFS(D46:AS46,$D$27:$AS$27,$AV$27) -> 0
A47: 2203 | B47: =IF('1. PRESUPUESTO INICIAL'!B59="","",'1. PRESUPUESTO INICIAL'!B59) -> Olla comunitaria | D47: =IF('1. PRESUPUESTO INICIAL'!D59="",0,'1. PRESUPUESTO INICIAL'!D59) -> 0 | E47: =IF(OR(B47="",D47=0),0,SUMIFS('4. DETALLADA-RECURSOS ICBF'!$M$10:$M$1300,'4. DETALLADA-RECURSOS ICBF'!$B$10:$B$1300,'2. INFORMACION GENERAL'!$D$26,'4. DETALLADA-RECURSOS ICBF'!$K$10:$K$1300,'2. INFORMACION GENERAL'!$B$44,'4. DETALLADA-RECURSOS ICBF'!$L$10:$L$1300,'2. INFORMACION GENERAL'!B47)) -> 0 | F47: =IFERROR(D47-E47,0) -> 0 | G47: 0 | H47: =IF(OR(B47="",G47=0),0,SUMIFS('4. DETALLADA-RECURSOS ICBF'!$M$10:$M$1300,'4. DETALLADA-RECURSOS ICBF'!$B$10:$B$1300,'2. INFORMACION GENERAL'!$G$26,'4. DETALLADA-RECURSOS ICBF'!$K$10:$K$1300,'2. INFORMACION GENERAL'!$B$44,'4. DETALLADA-RECURSOS ICBF'!$L$10:$L$1300,'2. INFORMACION GENERAL'!B47)) -> 0 | I47: =IFERROR(G47-H47,0) -> 0 | J47: 0 | K47: =IF(OR(B47="",J47=0),0,SUMIFS('4. DETALLADA-RECURSOS ICBF'!$M$10:$M$1300,'4. DETALLADA-RECURSOS ICBF'!$B$10:$B$1300,'2. INFORMACION GENERAL'!$J$26,'4. DETALLADA-RECURSOS ICBF'!$K$10:$K$1300,'2. INFORMACION GENERAL'!$B$44,'4. DETALLADA-RECURSOS ICBF'!$L$10:$L$1300,'2. INFORMACION GENERAL'!B47)) -> 0 | L47: =IFERROR(J47-K47,0) -> 0 | M47: 0 | N47: =IF(OR(B47="",M47=0),0,SUMIFS('4. DETALLADA-RECURSOS ICBF'!$M$10:$M$1300,'4. DETALLADA-RECURSOS ICBF'!$B$10:$B$1300,'2. INFORMACION GENERAL'!$M$26,'4. DETALLADA-RECURSOS ICBF'!$K$10:$K$1300,'2. INFORMACION GENERAL'!$B$44,'4. DETALLADA-RECURSOS ICBF'!$L$10:$L$1300,'2. INFORMACION GENERAL'!B47)) -> 0 | O47: =IFERROR(M47-N47,0) -> 0 | P47: 0 | Q47: =IF(OR(B47="",P47=0),0,SUMIFS('4. DETALLADA-RECURSOS ICBF'!$M$10:$M$1300,'4. DETALLADA-RECURSOS ICBF'!$B$10:$B$1300,'2. INFORMACION GENERAL'!$P$26,'4. DETALLADA-RECURSOS ICBF'!$K$10:$K$1300,'2. INFORMACION GENERAL'!$B$44,'4. DETALLADA-RECURSOS ICBF'!$L$10:$L$1300,'2. INFORMACION GENERAL'!B47)) -> 0 | R47: =IFERROR(P47-Q47,0) -> 0 | S47: 0 | T47: =IF(OR(B47="",S47=0),0,SUMIFS('4. DETALLADA-RECURSOS ICBF'!$M$10:$M$1300,'4. DETALLADA-RECURSOS ICBF'!$B$10:$B$1300,'2. INFORMACION GENERAL'!$S$26,'4. DETALLADA-RECURSOS ICBF'!$K$10:$K$1300,'2. INFORMACION GENERAL'!$B$44,'4. DETALLADA-RECURSOS ICBF'!$L$10:$L$1300,'2. INFORMACION GENERAL'!B47)) -> 0 | U47: =IFERROR(S47-T47,0) -> 0 | V47: 0 | W47: =IF(OR(B47="",V47=0),0,SUMIFS('4. DETALLADA-RECURSOS ICBF'!$M$10:$M$1300,'4. DETALLADA-RECURSOS ICBF'!$B$10:$B$1300,'2. INFORMACION GENERAL'!$V$26,'4. DETALLADA-RECURSOS ICBF'!$K$10:$K$1300,'2. INFORMACION GENERAL'!$B$44,'4. DETALLADA-RECURSOS ICBF'!$L$10:$L$1300,'2. INFORMACION GENERAL'!B47)) -> 0 | X47: =IFERROR(V47-W47,0) -> 0 | Y47: 0 | Z47: =IF(OR(B47="",Y47=0),0,SUMIFS('4. DETALLADA-RECURSOS ICBF'!$M$10:$M$1300,'4. DETALLADA-RECURSOS ICBF'!$B$10:$B$1300,'2. INFORMACION GENERAL'!$Y$26,'4. DETALLADA-RECURSOS ICBF'!$K$10:$K$1300,'2. INFORMACION GENERAL'!$B$44,'4. DETALLADA-RECURSOS ICBF'!$L$10:$L$1300,'2. INFORMACION GENERAL'!B47)) -> 0 | AA47: =IFERROR(Y47-Z47,0) -> 0 | AB47: 0 | AC47: =IF(OR(B47="",AB47=0),0,SUMIFS('4. DETALLADA-RECURSOS ICBF'!$M$10:$M$1300,'4. DETALLADA-RECURSOS ICBF'!$B$10:$B$1300,'2. INFORMACION GENERAL'!$AB$26,'4. DETALLADA-RECURSOS ICBF'!$K$10:$K$1300,'2. INFORMACION GENERAL'!$B$44,'4. DETALLADA-RECURSOS ICBF'!$L$10:$L$1300,'2. INFORMACION GENERAL'!B47)) -> 0 | AD47: =IFERROR(AB47-AC47,0) -> 0 | AE47: 0 | AF47: =IF(OR(B47="",AE47=0),0,SUMIFS('4. DETALLADA-RECURSOS ICBF'!$M$10:$M$1300,'4. DETALLADA-RECURSOS ICBF'!$B$10:$B$1300,'2. INFORMACION GENERAL'!$AE$26,'4. DETALLADA-RECURSOS ICBF'!$K$10:$K$1300,'2. INFORMACION GENERAL'!$B$44,'4. DETALLADA-RECURSOS ICBF'!$L$10:$L$1300,'2. INFORMACION GENERAL'!B47)) -> 0 | AG47: =IFERROR(AE47-AF47,0) -> 0 | AH47: 0 | AI47: =IF(OR(B47="",AH47=0),0,SUMIFS('4. DETALLADA-RECURSOS ICBF'!$M$10:$M$1300,'4. DETALLADA-RECURSOS ICBF'!$B$10:$B$1300,'2. INFORMACION GENERAL'!$AH$26,'4. DETALLADA-RECURSOS ICBF'!$K$10:$K$1300,'2. INFORMACION GENERAL'!$B$44,'4. DETALLADA-RECURSOS ICBF'!$L$10:$L$1300,'2. INFORMACION GENERAL'!B47)) -> 0 | AJ47: =IFERROR(AH47-AI47,0) -> 0 | AK47: 0 | AL47: =IF(OR(B47="",AK47=0),0,SUMIFS('4. DETALLADA-RECURSOS ICBF'!$M$10:$M$1300,'4. DETALLADA-RECURSOS ICBF'!$B$10:$B$1300,'2. INFORMACION GENERAL'!$AK$26,'4. DETALLADA-RECURSOS ICBF'!$K$10:$K$1300,'2. INFORMACION GENERAL'!$B$44,'4. DETALLADA-RECURSOS ICBF'!$L$10:$L$1300,'2. INFORMACION GENERAL'!B47)) -> 0 | AM47: =IFERROR(AK47-AL47,0) -> 0 | AN47: 0 | AO47: =IF(OR(B47="",AN47=0),0,SUMIFS('4. DETALLADA-RECURSOS ICBF'!$M$10:$M$1300,'4. DETALLADA-RECURSOS ICBF'!$B$10:$B$1300,'2. INFORMACION GENERAL'!$AN$26,'4. DETALLADA-RECURSOS ICBF'!$K$10:$K$1300,'2. INFORMACION GENERAL'!$B$44,'4. DETALLADA-RECURSOS ICBF'!$L$10:$L$1300,'2. INFORMACION GENERAL'!B47)) -> 0 | AP47: =IFERROR(AN47-AO47,0) -> 0 | AQ47: =IF('1. PRESUPUESTO INICIAL'!F59="",0,'1. PRESUPUESTO INICIAL'!F59) -> 0 | AR47: =IF(OR(B47="",AQ47=0),0,SUMIFS('4. DETALLADA-RECURSOS ICBF'!$M$10:$M$1300,'4. DETALLADA-RECURSOS ICBF'!$B$10:$B$1300,'2. INFORMACION GENERAL'!$AQ$26,'4. DETALLADA-RECURSOS ICBF'!$K$10:$K$1300,'2. INFORMACION GENERAL'!$B$44,'4. DETALLADA-RECURSOS ICBF'!$L$10:$L$1300,'2. INFORMACION GENERAL'!B47)) -> 0 | AS47: =IFERROR(AQ47-AR47,0) -> 0 | AT47: =+SUMIFS(D47:AS47,$D$27:$AS$27,$AT$27) -> 0 | AU47: =+SUMIFS(D47:AS47,$D$27:$AS$27,$AU$27) -> 0 | AV47: =+SUMIFS(D47:AS47,$D$27:$AS$27,$AV$27) -> 0
A48: 2204 | B48: =IF('1. PRESUPUESTO INICIAL'!B60="","",'1. PRESUPUESTO INICIAL'!B60) ->  | D48: =IF('1. PRESUPUESTO INICIAL'!D60="",0,'1. PRESUPUESTO INICIAL'!D60) -> 0 | E48: =IF(OR(B48="",D48=0),0,SUMIFS('4. DETALLADA-RECURSOS ICBF'!$M$10:$M$1300,'4. DETALLADA-RECURSOS ICBF'!$B$10:$B$1300,'2. INFORMACION GENERAL'!$D$26,'4. DETALLADA-RECURSOS ICBF'!$K$10:$K$1300,'2. INFORMACION GENERAL'!$B$44,'4. DETALLADA-RECURSOS ICBF'!$L$10:$L$1300,'2. INFORMACION GENERAL'!B48)) -> 0 | F48: =IFERROR(D48-E48,0) -> 0 | G48: 0 | H48: =IF(OR(B48="",G48=0),0,SUMIFS('4. DETALLADA-RECURSOS ICBF'!$M$10:$M$1300,'4. DETALLADA-RECURSOS ICBF'!$B$10:$B$1300,'2. INFORMACION GENERAL'!$G$26,'4. DETALLADA-RECURSOS ICBF'!$K$10:$K$1300,'2. INFORMACION GENERAL'!$B$44,'4. DETALLADA-RECURSOS ICBF'!$L$10:$L$1300,'2. INFORMACION GENERAL'!B48)) -> 0 | I48: =IFERROR(G48-H48,0) -> 0 | J48: 0 | K48: =IF(OR(B48="",J48=0),0,SUMIFS('4. DETALLADA-RECURSOS ICBF'!$M$10:$M$1300,'4. DETALLADA-RECURSOS ICBF'!$B$10:$B$1300,'2. INFORMACION GENERAL'!$J$26,'4. DETALLADA-RECURSOS ICBF'!$K$10:$K$1300,'2. INFORMACION GENERAL'!$B$44,'4. DETALLADA-RECURSOS ICBF'!$L$10:$L$1300,'2. INFORMACION GENERAL'!B48)) -> 0 | L48: =IFERROR(J48-K48,0) -> 0 | M48: 0 | N48: =IF(OR(B48="",M48=0),0,SUMIFS('4. DETALLADA-RECURSOS ICBF'!$M$10:$M$1300,'4. DETALLADA-RECURSOS ICBF'!$B$10:$B$1300,'2. INFORMACION GENERAL'!$M$26,'4. DETALLADA-RECURSOS ICBF'!$K$10:$K$1300,'2. INFORMACION GENERAL'!$B$44,'4. DETALLADA-RECURSOS ICBF'!$L$10:$L$1300,'2. INFORMACION GENERAL'!B48)) -> 0 | O48: =IFERROR(M48-N48,0) -> 0 | P48: 0 | Q48: =IF(OR(B48="",P48=0),0,SUMIFS('4. DETALLADA-RECURSOS ICBF'!$M$10:$M$1300,'4. DETALLADA-RECURSOS ICBF'!$B$10:$B$1300,'2. INFORMACION GENERAL'!$P$26,'4. DETALLADA-RECURSOS ICBF'!$K$10:$K$1300,'2. INFORMACION GENERAL'!$B$44,'4. DETALLADA-RECURSOS ICBF'!$L$10:$L$1300,'2. INFORMACION GENERAL'!B48)) -> 0 | R48: =IFERROR(P48-Q48,0) -> 0 | S48: 0 | T48: =IF(OR(B48="",S48=0),0,SUMIFS('4. DETALLADA-RECURSOS ICBF'!$M$10:$M$1300,'4. DETALLADA-RECURSOS ICBF'!$B$10:$B$1300,'2. INFORMACION GENERAL'!$S$26,'4. DETALLADA-RECURSOS ICBF'!$K$10:$K$1300,'2. INFORMACION GENERAL'!$B$44,'4. DETALLADA-RECURSOS ICBF'!$L$10:$L$1300,'2. INFORMACION GENERAL'!B48)) -> 0 | U48: =IFERROR(S48-T48,0) -> 0 | V48: 0 | W48: =IF(OR(B48="",V48=0),0,SUMIFS('4. DETALLADA-RECURSOS ICBF'!$M$10:$M$1300,'4. DETALLADA-RECURSOS ICBF'!$B$10:$B$1300,'2. INFORMACION GENERAL'!$V$26,'4. DETALLADA-RECURSOS ICBF'!$K$10:$K$1300,'2. INFORMACION GENERAL'!$B$44,'4. DETALLADA-RECURSOS ICBF'!$L$10:$L$1300,'2. INFORMACION GENERAL'!B48)) -> 0 | X48: =IFERROR(V48-W48,0) -> 0 | Y48: 0 | Z48: =IF(OR(B48="",Y48=0),0,SUMIFS('4. DETALLADA-RECURSOS ICBF'!$M$10:$M$1300,'4. DETALLADA-RECURSOS ICBF'!$B$10:$B$1300,'2. INFORMACION GENERAL'!$Y$26,'4. DETALLADA-RECURSOS ICBF'!$K$10:$K$1300,'2. INFORMACION GENERAL'!$B$44,'4. DETALLADA-RECURSOS ICBF'!$L$10:$L$1300,'2. INFORMACION GENERAL'!B48)) -> 0 | AA48: =IFERROR(Y48-Z48,0) -> 0 | AC48: =IF(OR(B48="",AB48=0),0,SUMIFS('4. DETALLADA-RECURSOS ICBF'!$M$10:$M$1300,'4. DETALLADA-RECURSOS ICBF'!$B$10:$B$1300,'2. INFORMACION GENERAL'!$AB$26,'4. DETALLADA-RECURSOS ICBF'!$K$10:$K$1300,'2. INFORMACION GENERAL'!$B$44,'4. DETALLADA-RECURSOS ICBF'!$L$10:$L$1300,'2. INFORMACION GENERAL'!B48)) -> 0 | AD48: =IFERROR(AB48-AC48,0) -> 0 | AE48: 0 | AF48: =IF(OR(B48="",AE48=0),0,SUMIFS('4. DETALLADA-RECURSOS ICBF'!$M$10:$M$1300,'4. DETALLADA-RECURSOS ICBF'!$B$10:$B$1300,'2. INFORMACION GENERAL'!$AE$26,'4. DETALLADA-RECURSOS ICBF'!$K$10:$K$1300,'2. INFORMACION GENERAL'!$B$44,'4. DETALLADA-RECURSOS ICBF'!$L$10:$L$1300,'2. INFORMACION GENERAL'!B48)) -> 0 | AG48: =IFERROR(AE48-AF48,0) -> 0 | AH48: 0 | AI48: =IF(OR(B48="",AH48=0),0,SUMIFS('4. DETALLADA-RECURSOS ICBF'!$M$10:$M$1300,'4. DETALLADA-RECURSOS ICBF'!$B$10:$B$1300,'2. INFORMACION GENERAL'!$AH$26,'4. DETALLADA-RECURSOS ICBF'!$K$10:$K$1300,'2. INFORMACION GENERAL'!$B$44,'4. DETALLADA-RECURSOS ICBF'!$L$10:$L$1300,'2. INFORMACION GENERAL'!B48)) -> 0 | AJ48: =IFERROR(AH48-AI48,0) -> 0 | AK48: 0 | AL48: =IF(OR(B48="",AK48=0),0,SUMIFS('4. DETALLADA-RECURSOS ICBF'!$M$10:$M$1300,'4. DETALLADA-RECURSOS ICBF'!$B$10:$B$1300,'2. INFORMACION GENERAL'!$AK$26,'4. DETALLADA-RECURSOS ICBF'!$K$10:$K$1300,'2. INFORMACION GENERAL'!$B$44,'4. DETALLADA-RECURSOS ICBF'!$L$10:$L$1300,'2. INFORMACION GENERAL'!B48)) -> 0 | AM48: =IFERROR(AK48-AL48,0) -> 0 | AN48: 0 | AO48: =IF(OR(B48="",AN48=0),0,SUMIFS('4. DETALLADA-RECURSOS ICBF'!$M$10:$M$1300,'4. DETALLADA-RECURSOS ICBF'!$B$10:$B$1300,'2. INFORMACION GENERAL'!$AN$26,'4. DETALLADA-RECURSOS ICBF'!$K$10:$K$1300,'2. INFORMACION GENERAL'!$B$44,'4. DETALLADA-RECURSOS ICBF'!$L$10:$L$1300,'2. INFORMACION GENERAL'!B48)) -> 0 | AP48: =IFERROR(AN48-AO48,0) -> 0 | AQ48: =IF('1. PRESUPUESTO INICIAL'!F60="",0,'1. PRESUPUESTO INICIAL'!F60) -> 0 | AR48: =IF(OR(B48="",AQ48=0),0,SUMIFS('4. DETALLADA-RECURSOS ICBF'!$M$10:$M$1300,'4. DETALLADA-RECURSOS ICBF'!$B$10:$B$1300,'2. INFORMACION GENERAL'!$AQ$26,'4. DETALLADA-RECURSOS ICBF'!$K$10:$K$1300,'2. INFORMACION GENERAL'!$B$44,'4. DETALLADA-RECURSOS ICBF'!$L$10:$L$1300,'2. INFORMACION GENERAL'!B48)) -> 0 | AS48: =IFERROR(AQ48-AR48,0) -> 0 | AT48: =+SUMIFS(D48:AS48,$D$27:$AS$27,$AT$27) -> 0 | AU48: =+SUMIFS(D48:AS48,$D$27:$AS$27,$AU$27) -> 0 | AV48: =+SUMIFS(D48:AS48,$D$27:$AS$27,$AV$27) -> 0
A49: 2203 | B49: =IF('1. PRESUPUESTO INICIAL'!B67="","",'1. PRESUPUESTO INICIAL'!B67) -> MATERIAL DE CONSUMO | D49: =IF('1. PRESUPUESTO INICIAL'!D67="",0,'1. PRESUPUESTO INICIAL'!D67) -> 0 | E49: =IF(OR(B49="",D49=0),0,SUMIFS('4. DETALLADA-RECURSOS ICBF'!$M$10:$M$1300,'4. DETALLADA-RECURSOS ICBF'!$B$10:$B$1300,'2. INFORMACION GENERAL'!$D$26,'4. DETALLADA-RECURSOS ICBF'!$K$10:$K$1300,'2. INFORMACION GENERAL'!$B$49)) -> 0 | F49: =IFERROR(D49-E49,0) -> 0 | G49: 0 | H49: =IF(OR(B49="",G49=0),0,SUMIFS('4. DETALLADA-RECURSOS ICBF'!$M$10:$M$1300,'4. DETALLADA-RECURSOS ICBF'!$B$10:$B$1300,'2. INFORMACION GENERAL'!$G$26,'4. DETALLADA-RECURSOS ICBF'!$K$10:$K$1300,'2. INFORMACION GENERAL'!$B$49)) -> 0 | I49: =IFERROR(G49-H49,0) -> 0 | J49: 0 | K49: =IF(OR(B49="",J49=0),0,SUMIFS('4. DETALLADA-RECURSOS ICBF'!$M$10:$M$1300,'4. DETALLADA-RECURSOS ICBF'!$B$10:$B$1300,'2. INFORMACION GENERAL'!$J$26,'4. DETALLADA-RECURSOS ICBF'!$K$10:$K$1300,'2. INFORMACION GENERAL'!$B$49)) -> 0 | L49: =IFERROR(J49-K49,0) -> 0 | M49: 0 | N49: =IF(OR(B49="",M49=0),0,SUMIFS('4. DETALLADA-RECURSOS ICBF'!$M$10:$M$1300,'4. DETALLADA-RECURSOS ICBF'!$B$10:$B$1300,'2. INFORMACION GENERAL'!$M$26,'4. DETALLADA-RECURSOS ICBF'!$K$10:$K$1300,'2. INFORMACION GENERAL'!$B$49)) -> 0 | O49: =IFERROR(M49-N49,0) -> 0 | P49: 0 | Q49: =IF(OR(B49="",P49=0),0,SUMIFS('4. DETALLADA-RECURSOS ICBF'!$M$10:$M$1300,'4. DETALLADA-RECURSOS ICBF'!$B$10:$B$1300,'2. INFORMACION GENERAL'!$P$26,'4. DETALLADA-RECURSOS ICBF'!$K$10:$K$1300,'2. INFORMACION GENERAL'!$B$49)) -> 0 | R49: =IFERROR(P49-Q49,0) -> 0 | S49: 0 | T49: =IF(OR(B49="",S49=0),0,SUMIFS('4. DETALLADA-RECURSOS ICBF'!$M$10:$M$1300,'4. DETALLADA-RECURSOS ICBF'!$B$10:$B$1300,'2. INFORMACION GENERAL'!$S$26,'4. DETALLADA-RECURSOS ICBF'!$K$10:$K$1300,'2. INFORMACION GENERAL'!$B$49)) -> 0 | U49: =IFERROR(S49-T49,0) -> 0 | V49: 0 | W49: =IF(OR(B49="",V49=0),0,SUMIFS('4. DETALLADA-RECURSOS ICBF'!$M$10:$M$1300,'4. DETALLADA-RECURSOS ICBF'!$B$10:$B$1300,'2. INFORMACION GENERAL'!$V$26,'4. DETALLADA-RECURSOS ICBF'!$K$10:$K$1300,'2. INFORMACION GENERAL'!$B$49)) -> 0 | X49: =IFERROR(V49-W49,0) -> 0 | Y49: 0 | Z49: =IF(OR(B49="",Y49=0),0,SUMIFS('4. DETALLADA-RECURSOS ICBF'!$M$10:$M$1300,'4. DETALLADA-RECURSOS ICBF'!$B$10:$B$1300,'2. INFORMACION GENERAL'!$Y$26,'4. DETALLADA-RECURSOS ICBF'!$K$10:$K$1300,'2. INFORMACION GENERAL'!$B$49)) -> 0 | AA49: =IFERROR(Y49-Z49,0) -> 0 | AB49: 0 | AC49: =IF(OR(B49="",AB49=0),0,SUMIFS('4. DETALLADA-RECURSOS ICBF'!$M$10:$M$1300,'4. DETALLADA-RECURSOS ICBF'!$B$10:$B$1300,'2. INFORMACION GENERAL'!$AB$26,'4. DETALLADA-RECURSOS ICBF'!$K$10:$K$1300,'2. INFORMACION GENERAL'!$B$49)) -> 0 | AD49: =IFERROR(AB49-AC49,0) -> 0 | AE49: 0 | AF49: =IF(OR(B49="",AE49=0),0,SUMIFS('4. DETALLADA-RECURSOS ICBF'!$M$10:$M$1300,'4. DETALLADA-RECURSOS ICBF'!$B$10:$B$1300,'2. INFORMACION GENERAL'!$AE$26,'4. DETALLADA-RECURSOS ICBF'!$K$10:$K$1300,'2. INFORMACION GENERAL'!$B$49)) -> 0 | AG49: =IFERROR(AE49-AF49,0) -> 0 | AH49: 0 | AI49: =IF(OR(B49="",AH49=0),0,SUMIFS('4. DETALLADA-RECURSOS ICBF'!$M$10:$M$1300,'4. DETALLADA-RECURSOS ICBF'!$B$10:$B$1300,'2. INFORMACION GENERAL'!$AH$26,'4. DETALLADA-RECURSOS ICBF'!$K$10:$K$1300,'2. INFORMACION GENERAL'!$B$49)) -> 0 | AJ49: =IFERROR(AH49-AI49,0) -> 0 | AK49: 0 | AL49: =IF(OR(B49="",AK49=0),0,SUMIFS('4. DETALLADA-RECURSOS ICBF'!$M$10:$M$1300,'4. DETALLADA-RECURSOS ICBF'!$B$10:$B$1300,'2. INFORMACION GENERAL'!$AK$26,'4. DETALLADA-RECURSOS ICBF'!$K$10:$K$1300,'2. INFORMACION GENERAL'!$B$49)) -> 0 | AM49: =IFERROR(AK49-AL49,0) -> 0 | AN49: 0 | AO49: =IF(OR(B49="",AN49=0),0,SUMIFS('4. DETALLADA-RECURSOS ICBF'!$M$10:$M$1300,'4. DETALLADA-RECURSOS ICBF'!$B$10:$B$1300,'2. INFORMACION GENERAL'!$AN$26,'4. DETALLADA-RECURSOS ICBF'!$K$10:$K$1300,'2. INFORMACION GENERAL'!$B$49)) -> 0 | AP49: =IFERROR(AN49-AO49,0) -> 0 | AQ49: =IF('1. PRESUPUESTO INICIAL'!F67="",0,'1. PRESUPUESTO INICIAL'!F67) -> 0 | AR49: =IF(OR(B49="",AQ49=0),0,SUMIFS('4. DETALLADA-RECURSOS ICBF'!$M$10:$M$1300,'4. DETALLADA-RECURSOS ICBF'!$B$10:$B$1300,'2. INFORMACION GENERAL'!$AQ$26,'4. DETALLADA-RECURSOS ICBF'!$K$10:$K$1300,'2. INFORMACION GENERAL'!$B$49)) -> 0 | AS49: =IFERROR(AQ49-AR49,0) -> 0 | AT49: =+SUMIFS(D49:AS49,$D$27:$AS$27,$AT$27) -> 0 | AU49: =+SUMIFS(D49:AS49,$D$27:$AS$27,$AU$27) -> 0 | AV49: =+SUMIFS(D49:AS49,$D$27:$AS$27,$AV$27) -> 0
A50: 2204 | B50: =IF('1. PRESUPUESTO INICIAL'!B70="","",'1. PRESUPUESTO INICIAL'!B70) -> DOTACIÓN | D50: =+SUM(D51:D52) -> 0 | E50: 0 | F50: 0 | G50: =SUM(G51:G52) -> 0 | H50: 0 | I50: 0 | J50: =SUM(J51:J52) -> 0 | K50: 0 | L50: 0 | M50: =SUM(M51:M52) -> 0 | N50: 0 | O50: =SUM(O51:O52) -> 0 | P50: =SUM(P51:P52) -> 0 | Q50: 0 | R50: 0 | S50: =SUM(S51:S52) -> 0 | T50: 0 | U50: 0 | V50: =SUM(V51:V52) -> 0 | W50: 0 | X50: 0 | Y50: =SUM(Y51:Y52) -> 0 | Z50: 0 | AA50: 0 | AB50: 0 | AC50: 0 | AD50: 0 | AE50: 0 | AF50: 0 | AG50: 0 | AH50: 0 | AI50: 0 | AJ50: 0 | AK50: 0 | AL50: 0 | AM50: 0 | AN50: 0 | AO50: 0 | AP50: 0 | AQ50: 0 | AR50: 0 | AS50: 0 | AT50: 0 | AU50: 0 | AV50: 0
A51: 220401 | B51: =IF('1. PRESUPUESTO INICIAL'!B71="","",'1. PRESUPUESTO INICIAL'!B71) -> Botiquín | D51: =IF('1. PRESUPUESTO INICIAL'!D71="",0,'1. PRESUPUESTO INICIAL'!D71) -> 0 | E51: =IF(OR(B51="",D51=0),0,SUMIFS('4. DETALLADA-RECURSOS ICBF'!$M$10:$M$1300,'4. DETALLADA-RECURSOS ICBF'!$B$10:$B$1300,'2. INFORMACION GENERAL'!$D$26,'4. DETALLADA-RECURSOS ICBF'!$K$10:$K$1300,'2. INFORMACION GENERAL'!$B$50,'4. DETALLADA-RECURSOS ICBF'!$L$10:$L$1300,'2. INFORMACION GENERAL'!B51)) -> 0 | F51: =IFERROR(D51-E51,0) -> 0 | G51: 0 | H51: =IF(OR(B51="",G51=0),0,SUMIFS('4. DETALLADA-RECURSOS ICBF'!$M$10:$M$1300,'4. DETALLADA-RECURSOS ICBF'!$B$10:$B$1300,'2. INFORMACION GENERAL'!$G$26,'4. DETALLADA-RECURSOS ICBF'!$K$10:$K$1300,'2. INFORMACION GENERAL'!$B$50,'4. DETALLADA-RECURSOS ICBF'!$L$10:$L$1300,'2. INFORMACION GENERAL'!B51)) -> 0 | I51: =IFERROR(G51-H51,0) -> 0 | J51: 0 | K51: =IF(OR(B51="",J51=0),0,SUMIFS('4. DETALLADA-RECURSOS ICBF'!$M$10:$M$1300,'4. DETALLADA-RECURSOS ICBF'!$B$10:$B$1300,'2. INFORMACION GENERAL'!$J$26,'4. DETALLADA-RECURSOS ICBF'!$K$10:$K$1300,'2. INFORMACION GENERAL'!$B$50,'4. DETALLADA-RECURSOS ICBF'!$L$10:$L$1300,'2. INFORMACION GENERAL'!B51)) -> 0 | L51: =IFERROR(J51-K51,0) -> 0 | M51: 0 | N51: =IF(OR(B51="",M51=0),0,SUMIFS('4. DETALLADA-RECURSOS ICBF'!$M$10:$M$1300,'4. DETALLADA-RECURSOS ICBF'!$B$10:$B$1300,'2. INFORMACION GENERAL'!$M$26,'4. DETALLADA-RECURSOS ICBF'!$K$10:$K$1300,'2. INFORMACION GENERAL'!$B$50,'4. DETALLADA-RECURSOS ICBF'!$L$10:$L$1300,'2. INFORMACION GENERAL'!B51)) -> 0 | O51: =IFERROR(M51-N51,0) -> 0 | P51: 0 | Q51: =IF(OR(B51="",P51=0),0,SUMIFS('4. DETALLADA-RECURSOS ICBF'!$M$10:$M$1300,'4. DETALLADA-RECURSOS ICBF'!$B$10:$B$1300,'2. INFORMACION GENERAL'!$P$26,'4. DETALLADA-RECURSOS ICBF'!$K$10:$K$1300,'2. INFORMACION GENERAL'!$B$50,'4. DETALLADA-RECURSOS ICBF'!$L$10:$L$1300,'2. INFORMACION GENERAL'!B51)) -> 0 | R51: =IFERROR(P51-Q51,0) -> 0 | S51: 0 | T51: =IF(OR(B51="",S51=0),0,SUMIFS('4. DETALLADA-RECURSOS ICBF'!$M$10:$M$1300,'4. DETALLADA-RECURSOS ICBF'!$B$10:$B$1300,'2. INFORMACION GENERAL'!$S$26,'4. DETALLADA-RECURSOS ICBF'!$K$10:$K$1300,'2. INFORMACION GENERAL'!$B$50,'4. DETALLADA-RECURSOS ICBF'!$L$10:$L$1300,'2. INFORMACION GENERAL'!B51)) -> 0 | U51: =IFERROR(S51-T51,0) -> 0 | V51: 0 | W51: =IF(OR(B51="",V51=0),0,SUMIFS('4. DETALLADA-RECURSOS ICBF'!$M$10:$M$1300,'4. DETALLADA-RECURSOS ICBF'!$B$10:$B$1300,'2. INFORMACION GENERAL'!$V$26,'4. DETALLADA-RECURSOS ICBF'!$K$10:$K$1300,'2. INFORMACION GENERAL'!$B$50,'4. DETALLADA-RECURSOS ICBF'!$L$10:$L$1300,'2. INFORMACION GENERAL'!B51)) -> 0 | X51: =IFERROR(V51-W51,0) -> 0 | Y51: 0 | Z51: =IF(OR(B51="",Y51=0),0,SUMIFS('4. DETALLADA-RECURSOS ICBF'!$M$10:$M$1300,'4. DETALLADA-RECURSOS ICBF'!$B$10:$B$1300,'2. INFORMACION GENERAL'!$Y$26,'4. DETALLADA-RECURSOS ICBF'!$K$10:$K$1300,'2. INFORMACION GENERAL'!$B$50,'4. DETALLADA-RECURSOS ICBF'!$L$10:$L$1300,'2. INFORMACION GENERAL'!B51)) -> 0 | AA51: =IFERROR(Y51-Z51,0) -> 0 | AB51: 0 | AC51: =IF(OR(B51="",AB51=0),0,SUMIFS('4. DETALLADA-RECURSOS ICBF'!$M$10:$M$1300,'4. DETALLADA-RECURSOS ICBF'!$B$10:$B$1300,'2. INFORMACION GENERAL'!$AB$26,'4. DETALLADA-RECURSOS ICBF'!$K$10:$K$1300,'2. INFORMACION GENERAL'!$B$50,'4. DETALLADA-RECURSOS ICBF'!$L$10:$L$1300,'2. INFORMACION GENERAL'!B51)) -> 0 | AD51: =IFERROR(AB51-AC51,0) -> 0 | AE51: 0 | AF51: =IF(OR(B51="",AE51=0),0,SUMIFS('4. DETALLADA-RECURSOS ICBF'!$M$10:$M$1300,'4. DETALLADA-RECURSOS ICBF'!$B$10:$B$1300,'2. INFORMACION GENERAL'!$AE$26,'4. DETALLADA-RECURSOS ICBF'!$K$10:$K$1300,'2. INFORMACION GENERAL'!$B$50,'4. DETALLADA-RECURSOS ICBF'!$L$10:$L$1300,'2. INFORMACION GENERAL'!B51)) -> 0 | AG51: =IFERROR(AE51-AF51,0) -> 0 | AH51: 0 | AI51: =IF(OR(B51="",AH51=0),0,SUMIFS('4. DETALLADA-RECURSOS ICBF'!$M$10:$M$1300,'4. DETALLADA-RECURSOS ICBF'!$B$10:$B$1300,'2. INFORMACION GENERAL'!$AH$26,'4. DETALLADA-RECURSOS ICBF'!$K$10:$K$1300,'2. INFORMACION GENERAL'!$B$50,'4. DETALLADA-RECURSOS ICBF'!$L$10:$L$1300,'2. INFORMACION GENERAL'!B51)) -> 0 | AJ51: =IFERROR(AH51-AI51,0) -> 0 | AK51: 0 | AL51: =IF(OR(B51="",AK51=0),0,SUMIFS('4. DETALLADA-RECURSOS ICBF'!$M$10:$M$1300,'4. DETALLADA-RECURSOS ICBF'!$B$10:$B$1300,'2. INFORMACION GENERAL'!$AK$26,'4. DETALLADA-RECURSOS ICBF'!$K$10:$K$1300,'2. INFORMACION GENERAL'!$B$50,'4. DETALLADA-RECURSOS ICBF'!$L$10:$L$1300,'2. INFORMACION GENERAL'!B51)) -> 0 | AM51: =IFERROR(AK51-AL51,0) -> 0 | AN51: 0 | AO51: =IF(OR(B51="",AN51=0),0,SUMIFS('4. DETALLADA-RECURSOS ICBF'!$M$10:$M$1300,'4. DETALLADA-RECURSOS ICBF'!$B$10:$B$1300,'2. INFORMACION GENERAL'!$AN$26,'4. DETALLADA-RECURSOS ICBF'!$K$10:$K$1300,'2. INFORMACION GENERAL'!$B$50,'4. DETALLADA-RECURSOS ICBF'!$L$10:$L$1300,'2. INFORMACION GENERAL'!B51)) -> 0 | AP51: =IFERROR(AN51-AO51,0) -> 0 | AQ51: =IF('1. PRESUPUESTO INICIAL'!F71="",0,'1. PRESUPUESTO INICIAL'!F71) -> 0 | AR51: =IF(OR(B51="",AQ51=0),0,SUMIFS('4. DETALLADA-RECURSOS ICBF'!$M$10:$M$1300,'4. DETALLADA-RECURSOS ICBF'!$B$10:$B$1300,'2. INFORMACION GENERAL'!$AQ$26,'4. DETALLADA-RECURSOS ICBF'!$K$10:$K$1300,'2. INFORMACION GENERAL'!$B$50,'4. DETALLADA-RECURSOS ICBF'!$L$10:$L$1300,'2. INFORMACION GENERAL'!B51)) -> 0 | AS51: =IFERROR(AQ51-AR51,0) -> 0 | AT51: =+SUMIFS(D51:AS51,$D$27:$AS$27,$AT$27) -> 0 | AU51: =+SUMIFS(D51:AS51,$D$27:$AS$27,$AU$27) -> 0 | AV51: =+SUMIFS(D51:AS51,$D$27:$AS$27,$AV$27) -> 0
A52: 220402 | B52: =IF('1. PRESUPUESTO INICIAL'!B72="","",'1. PRESUPUESTO INICIAL'!B72) -> Kit de aseo personal | D52: =IF('1. PRESUPUESTO INICIAL'!D72="",0,'1. PRESUPUESTO INICIAL'!D72) -> 0 | E52: =IF(OR(B52="",D52=0),0,SUMIFS('4. DETALLADA-RECURSOS ICBF'!$M$10:$M$1300,'4. DETALLADA-RECURSOS ICBF'!$B$10:$B$1300,'2. INFORMACION GENERAL'!$D$26,'4. DETALLADA-RECURSOS ICBF'!$K$10:$K$1300,'2. INFORMACION GENERAL'!$B$50,'4. DETALLADA-RECURSOS ICBF'!$L$10:$L$1300,'2. INFORMACION GENERAL'!B52)) -> 0 | F52: =IFERROR(D52-E52,0) -> 0 | G52: 0 | H52: =IF(OR(B52="",G52=0),0,SUMIFS('4. DETALLADA-RECURSOS ICBF'!$M$10:$M$1300,'4. DETALLADA-RECURSOS ICBF'!$B$10:$B$1300,'2. INFORMACION GENERAL'!$G$26,'4. DETALLADA-RECURSOS ICBF'!$K$10:$K$1300,'2. INFORMACION GENERAL'!$B$50,'4. DETALLADA-RECURSOS ICBF'!$L$10:$L$1300,'2. INFORMACION GENERAL'!B52)) -> 0 | I52: =IFERROR(G52-H52,0) -> 0 | J52: 0 | K52: =IF(OR(B52="",J52=0),0,SUMIFS('4. DETALLADA-RECURSOS ICBF'!$M$10:$M$1300,'4. DETALLADA-RECURSOS ICBF'!$B$10:$B$1300,'2. INFORMACION GENERAL'!$J$26,'4. DETALLADA-RECURSOS ICBF'!$K$10:$K$1300,'2. INFORMACION GENERAL'!$B$50,'4. DETALLADA-RECURSOS ICBF'!$L$10:$L$1300,'2. INFORMACION GENERAL'!B52)) -> 0 | L52: =IFERROR(J52-K52,0) -> 0 | M52: 0 | N52: =IF(OR(B52="",M52=0),0,SUMIFS('4. DETALLADA-RECURSOS ICBF'!$M$10:$M$1300,'4. DETALLADA-RECURSOS ICBF'!$B$10:$B$1300,'2. INFORMACION GENERAL'!$M$26,'4. DETALLADA-RECURSOS ICBF'!$K$10:$K$1300,'2. INFORMACION GENERAL'!$B$50,'4. DETALLADA-RECURSOS ICBF'!$L$10:$L$1300,'2. INFORMACION GENERAL'!B52)) -> 0 | O52: =IFERROR(M52-N52,0) -> 0 | P52: 0 | Q52: =IF(OR(B52="",P52=0),0,SUMIFS('4. DETALLADA-RECURSOS ICBF'!$M$10:$M$1300,'4. DETALLADA-RECURSOS ICBF'!$B$10:$B$1300,'2. INFORMACION GENERAL'!$P$26,'4. DETALLADA-RECURSOS ICBF'!$K$10:$K$1300,'2. INFORMACION GENERAL'!$B$50,'4. DETALLADA-RECURSOS ICBF'!$L$10:$L$1300,'2. INFORMACION GENERAL'!B52)) -> 0 | R52: =IFERROR(P52-Q52,0) -> 0 | S52: 0 | T52: =IF(OR(B52="",S52=0),0,SUMIFS('4. DETALLADA-RECURSOS ICBF'!$M$10:$M$1300,'4. DETALLADA-RECURSOS ICBF'!$B$10:$B$1300,'2. INFORMACION GENERAL'!$S$26,'4. DETALLADA-RECURSOS ICBF'!$K$10:$K$1300,'2. INFORMACION GENERAL'!$B$50,'4. DETALLADA-RECURSOS ICBF'!$L$10:$L$1300,'2. INFORMACION GENERAL'!B52)) -> 0 | U52: =IFERROR(S52-T52,0) -> 0 | V52: 0 | W52: =IF(OR(B52="",V52=0),0,SUMIFS('4. DETALLADA-RECURSOS ICBF'!$M$10:$M$1300,'4. DETALLADA-RECURSOS ICBF'!$B$10:$B$1300,'2. INFORMACION GENERAL'!$V$26,'4. DETALLADA-RECURSOS ICBF'!$K$10:$K$1300,'2. INFORMACION GENERAL'!$B$50,'4. DETALLADA-RECURSOS ICBF'!$L$10:$L$1300,'2. INFORMACION GENERAL'!B52)) -> 0 | X52: =IFERROR(V52-W52,0) -> 0 | Y52: 0 | Z52: =IF(OR(B52="",Y52=0),0,SUMIFS('4. DETALLADA-RECURSOS ICBF'!$M$10:$M$1300,'4. DETALLADA-RECURSOS ICBF'!$B$10:$B$1300,'2. INFORMACION GENERAL'!$Y$26,'4. DETALLADA-RECURSOS ICBF'!$K$10:$K$1300,'2. INFORMACION GENERAL'!$B$50,'4. DETALLADA-RECURSOS ICBF'!$L$10:$L$1300,'2. INFORMACION GENERAL'!B52)) -> 0 | AA52: =IFERROR(Y52-Z52,0) -> 0 | AB52: 0 | AC52: =IF(OR(B52="",AB52=0),0,SUMIFS('4. DETALLADA-RECURSOS ICBF'!$M$10:$M$1300,'4. DETALLADA-RECURSOS ICBF'!$B$10:$B$1300,'2. INFORMACION GENERAL'!$AB$26,'4. DETALLADA-RECURSOS ICBF'!$K$10:$K$1300,'2. INFORMACION GENERAL'!$B$50,'4. DETALLADA-RECURSOS ICBF'!$L$10:$L$1300,'2. INFORMACION GENERAL'!B52)) -> 0 | AD52: =IFERROR(AB52-AC52,0) -> 0 | AE52: 0 | AF52: =IF(OR(B52="",AE52=0),0,SUMIFS('4. DETALLADA-RECURSOS ICBF'!$M$10:$M$1300,'4. DETALLADA-RECURSOS ICBF'!$B$10:$B$1300,'2. INFORMACION GENERAL'!$AE$26,'4. DETALLADA-RECURSOS ICBF'!$K$10:$K$1300,'2. INFORMACION GENERAL'!$B$50,'4. DETALLADA-RECURSOS ICBF'!$L$10:$L$1300,'2. INFORMACION GENERAL'!B52)) -> 0 | AG52: =IFERROR(AE52-AF52,0) -> 0 | AH52: 0 | AI52: =IF(OR(B52="",AH52=0),0,SUMIFS('4. DETALLADA-RECURSOS ICBF'!$M$10:$M$1300,'4. DETALLADA-RECURSOS ICBF'!$B$10:$B$1300,'2. INFORMACION GENERAL'!$AH$26,'4. DETALLADA-RECURSOS ICBF'!$K$10:$K$1300,'2. INFORMACION GENERAL'!$B$50,'4. DETALLADA-RECURSOS ICBF'!$L$10:$L$1300,'2. INFORMACION GENERAL'!B52)) -> 0 | AJ52: =IFERROR(AH52-AI52,0) -> 0 | AK52: 0 | AL52: =IF(OR(B52="",AK52=0),0,SUMIFS('4. DETALLADA-RECURSOS ICBF'!$M$10:$M$1300,'4. DETALLADA-RECURSOS ICBF'!$B$10:$B$1300,'2. INFORMACION GENERAL'!$AK$26,'4. DETALLADA-RECURSOS ICBF'!$K$10:$K$1300,'2. INFORMACION GENERAL'!$B$50,'4. DETALLADA-RECURSOS ICBF'!$L$10:$L$1300,'2. INFORMACION GENERAL'!B52)) -> 0 | AM52: =IFERROR(AK52-AL52,0) -> 0 | AN52: 0 | AO52: =IF(OR(B52="",AN52=0),0,SUMIFS('4. DETALLADA-RECURSOS ICBF'!$M$10:$M$1300,'4. DETALLADA-RECURSOS ICBF'!$B$10:$B$1300,'2. INFORMACION GENERAL'!$AN$26,'4. DETALLADA-RECURSOS ICBF'!$K$10:$K$1300,'2. INFORMACION GENERAL'!$B$50,'4. DETALLADA-RECURSOS ICBF'!$L$10:$L$1300,'2. INFORMACION GENERAL'!B52)) -> 0 | AP52: =IFERROR(AN52-AO52,0) -> 0 | AQ52: =IF('1. PRESUPUESTO INICIAL'!F72="",0,'1. PRESUPUESTO INICIAL'!F72) -> 0 | AR52: =IF(OR(B52="",AQ52=0),0,SUMIFS('4. DETALLADA-RECURSOS ICBF'!$M$10:$M$1300,'4. DETALLADA-RECURSOS ICBF'!$B$10:$B$1300,'2. INFORMACION GENERAL'!$AQ$26,'4. DETALLADA-RECURSOS ICBF'!$K$10:$K$1300,'2. INFORMACION GENERAL'!$B$50,'4. DETALLADA-RECURSOS ICBF'!$L$10:$L$1300,'2. INFORMACION GENERAL'!B52)) -> 0 | AS52: =IFERROR(AQ52-AR52,0) -> 0 | AT52: =+SUMIFS(D52:AS52,$D$27:$AS$27,$AT$27) -> 0 | AU52: =+SUMIFS(D52:AS52,$D$27:$AS$27,$AU$27) -> 0 | AV52: =+SUMIFS(D52:AS52,$D$27:$AS$27,$AV$27) -> 0
A53: 2205 | B53: =IF('1. PRESUPUESTO INICIAL'!B76="","",'1. PRESUPUESTO INICIAL'!B76) -> SERVICIO DE COMUNICACIÓN MÓBIL E NTERNET | D53: =IF('1. PRESUPUESTO INICIAL'!D76="",0,'1. PRESUPUESTO INICIAL'!D76) -> 0 | E53: =IF(OR(B53="",D53=0),0,SUMIFS('4. DETALLADA-RECURSOS ICBF'!$M$10:$M$1300,'4. DETALLADA-RECURSOS ICBF'!$B$10:$B$1300,'2. INFORMACION GENERAL'!$D$26,'4. DETALLADA-RECURSOS ICBF'!$K$10:$K$1300,'2. INFORMACION GENERAL'!$B$53)) -> 0 | F53: =IFERROR(D53-E53,0) -> 0 | G53: 0 | H53: =IF(OR(B53="",G53=0),0,SUMIFS('4. DETALLADA-RECURSOS ICBF'!$M$10:$M$1300,'4. DETALLADA-RECURSOS ICBF'!$B$10:$B$1300,'2. INFORMACION GENERAL'!$G$26,'4. DETALLADA-RECURSOS ICBF'!$K$10:$K$1300,'2. INFORMACION GENERAL'!$B$53)) -> 0 | I53: =IFERROR(G53-H53,0) -> 0 | J53: 0 | K53: =IF(OR(B53="",J53=0),0,SUMIFS('4. DETALLADA-RECURSOS ICBF'!$M$10:$M$1300,'4. DETALLADA-RECURSOS ICBF'!$B$10:$B$1300,'2. INFORMACION GENERAL'!$J$26,'4. DETALLADA-RECURSOS ICBF'!$K$10:$K$1300,'2. INFORMACION GENERAL'!$B$53)) -> 0 | L53: =IFERROR(J53-K53,0) -> 0 | M53: 0 | N53: =IF(OR(B53="",M53=0),0,SUMIFS('4. DETALLADA-RECURSOS ICBF'!$M$10:$M$1300,'4. DETALLADA-RECURSOS ICBF'!$B$10:$B$1300,'2. INFORMACION GENERAL'!$M$26,'4. DETALLADA-RECURSOS ICBF'!$K$10:$K$1300,'2. INFORMACION GENERAL'!$B$53)) -> 0 | O53: =IFERROR(M53-N53,0) -> 0 | P53: 0 | Q53: =IF(OR(B53="",P53=0),0,SUMIFS('4. DETALLADA-RECURSOS ICBF'!$M$10:$M$1300,'4. DETALLADA-RECURSOS ICBF'!$B$10:$B$1300,'2. INFORMACION GENERAL'!$P$26,'4. DETALLADA-RECURSOS ICBF'!$K$10:$K$1300,'2. INFORMACION GENERAL'!$B$53)) -> 0 | R53: =IFERROR(P53-Q53,0) -> 0 | S53: 0 | T53: =IF(OR(B53="",S53=0),0,SUMIFS('4. DETALLADA-RECURSOS ICBF'!$M$10:$M$1300,'4. DETALLADA-RECURSOS ICBF'!$B$10:$B$1300,'2. INFORMACION GENERAL'!$S$26,'4. DETALLADA-RECURSOS ICBF'!$K$10:$K$1300,'2. INFORMACION GENERAL'!$B$53)) -> 0 | U53: =IFERROR(S53-T53,0) -> 0 | V53: 0 | W53: =IF(OR(B53="",V53=0),0,SUMIFS('4. DETALLADA-RECURSOS ICBF'!$M$10:$M$1300,'4. DETALLADA-RECURSOS ICBF'!$B$10:$B$1300,'2. INFORMACION GENERAL'!$V$26,'4. DETALLADA-RECURSOS ICBF'!$K$10:$K$1300,'2. INFORMACION GENERAL'!$B$53)) -> 0 | X53: =IFERROR(V53-W53,0) -> 0 | Y53: 0 | Z53: =IF(OR(B53="",Y53=0),0,SUMIFS('4. DETALLADA-RECURSOS ICBF'!$M$10:$M$1300,'4. DETALLADA-RECURSOS ICBF'!$B$10:$B$1300,'2. INFORMACION GENERAL'!$Y$26,'4. DETALLADA-RECURSOS ICBF'!$K$10:$K$1300,'2. INFORMACION GENERAL'!$B$53)) -> 0 | AA53: =IFERROR(Y53-Z53,0) -> 0 | AB53: 0 | AC53: =IF(OR(B53="",AB53=0),0,SUMIFS('4. DETALLADA-RECURSOS ICBF'!$M$10:$M$1300,'4. DETALLADA-RECURSOS ICBF'!$B$10:$B$1300,'2. INFORMACION GENERAL'!$AB$26,'4. DETALLADA-RECURSOS ICBF'!$K$10:$K$1300,'2. INFORMACION GENERAL'!$B$53)) -> 0 | AD53: =IFERROR(AB53-AC53,0) -> 0 | AE53: 0 | AF53: =IF(OR(B53="",AE53=0),0,SUMIFS('4. DETALLADA-RECURSOS ICBF'!$M$10:$M$1300,'4. DETALLADA-RECURSOS ICBF'!$B$10:$B$1300,'2. INFORMACION GENERAL'!$AE$26,'4. DETALLADA-RECURSOS ICBF'!$K$10:$K$1300,'2. INFORMACION GENERAL'!$B$53)) -> 0 | AG53: =IFERROR(AE53-AF53,0) -> 0 | AH53: 0 | AI53: =IF(OR(B53="",AH53=0),0,SUMIFS('4. DETALLADA-RECURSOS ICBF'!$M$10:$M$1300,'4. DETALLADA-RECURSOS ICBF'!$B$10:$B$1300,'2. INFORMACION GENERAL'!$AH$26,'4. DETALLADA-RECURSOS ICBF'!$K$10:$K$1300,'2. INFORMACION GENERAL'!$B$53)) -> 0 | AJ53: =IFERROR(AH53-AI53,0) -> 0 | AK53: 0 | AL53: =IF(OR(B53="",AK53=0),0,SUMIFS('4. DETALLADA-RECURSOS ICBF'!$M$10:$M$1300,'4. DETALLADA-RECURSOS ICBF'!$B$10:$B$1300,'2. INFORMACION GENERAL'!$AK$26,'4. DETALLADA-RECURSOS ICBF'!$K$10:$K$1300,'2. INFORMACION GENERAL'!$B$53)) -> 0 | AM53: =IFERROR(AK53-AL53,0) -> 0 | AN53: 0 | AO53: =IF(OR(B53="",AN53=0),0,SUMIFS('4. DETALLADA-RECURSOS ICBF'!$M$10:$M$1300,'4. DETALLADA-RECURSOS ICBF'!$B$10:$B$1300,'2. INFORMACION GENERAL'!$AN$26,'4. DETALLADA-RECURSOS ICBF'!$K$10:$K$1300,'2. INFORMACION GENERAL'!$B$53)) -> 0 | AP53: =IFERROR(AN53-AO53,0) -> 0 | AQ53: =IF('1. PRESUPUESTO INICIAL'!F76="",0,'1. PRESUPUESTO INICIAL'!F76) -> 0 | AR53: =IF(OR(B53="",AQ53=0),0,SUMIFS('4. DETALLADA-RECURSOS ICBF'!$M$10:$M$1300,'4. DETALLADA-RECURSOS ICBF'!$B$10:$B$1300,'2. INFORMACION GENERAL'!$AQ$26,'4. DETALLADA-RECURSOS ICBF'!$K$10:$K$1300,'2. INFORMACION GENERAL'!$B$53)) -> 0 | AS53: =IFERROR(AQ53-AR53,0) -> 0 | AT53: =+SUMIFS(D53:AS53,$D$27:$AS$27,$AT$27) -> 0 | AU53: =+SUMIFS(D53:AS53,$D$27:$AS$27,$AU$27) -> 0 | AV53: =+SUMIFS(D53:AS53,$D$27:$AS$27,$AV$27) -> 0
A54: 2206 | B54: =IF('1. PRESUPUESTO INICIAL'!B79="","",'1. PRESUPUESTO INICIAL'!B79) -> MATERIAL IDENTIFICACIÓN | D54: =+SUM(D55:D59) -> 0 | E54: =+SUM(E55:E59) -> 0 | F54: =+SUM(F55:F59) -> 0 | G54: 0 | H54: 0 | I54: =+SUM(I55:I59) -> 0 | J54: =+SUM(J55:J59) -> 0 | K54: 0 | L54: =+SUM(L55:L59) -> 0 | M54: =+SUM(M55:M59) -> 0 | N54: 0 | O54: =+SUM(O55:O59) -> 0 | P54: 0 | Q54: 0 | R54: 0 | S54: =+SUM(S55:S59) -> 0 | T54: 0 | U54: 0 | V54: =+SUM(V55:V59) -> 0 | W54: 0 | X54: 0 | Y54: =+SUM(Y55:Y59) -> 0 | Z54: 0 | AA54: 0 | AB54: =+SUM(AB55:AB59) -> 0 | AC54: 0 | AD54: 0 | AE54: =+SUM(AE55:AE59) -> 0 | AF54: 0 | AG54: 0 | AH54: =+SUM(AH55:AH59) -> 0 | AI54: 0 | AJ54: 0 | AK54: =+SUM(AK55:AK59) -> 0 | AL54: 0 | AM54: 0 | AN54: =+SUM(AN55:AN59) -> 0 | AO54: 0 | AP54: 0 | AQ54: =+SUM(AQ55:AQ59) -> 0 | AR54: =+SUM(AR55:AR59) -> 0 | AS54: =+SUM(AS55:AS59) -> 0 | AT54: 0 | AU54: 0 | AV54: 0
A55: 220601 | B55: =IF('1. PRESUPUESTO INICIAL'!B80="","",'1. PRESUPUESTO INICIAL'!B80) -> Chalecos | D55: =IF('1. PRESUPUESTO INICIAL'!D80="",0,'1. PRESUPUESTO INICIAL'!D80) -> 0 | E55: =IF(OR(B55="",D55=0),0,SUMIFS('4. DETALLADA-RECURSOS ICBF'!$M$10:$M$1300,'4. DETALLADA-RECURSOS ICBF'!$B$10:$B$1300,'2. INFORMACION GENERAL'!$D$26,'4. DETALLADA-RECURSOS ICBF'!$K$10:$K$1300,'2. INFORMACION GENERAL'!$B$54,'4. DETALLADA-RECURSOS ICBF'!$L$10:$L$1300,'2. INFORMACION GENERAL'!B55)) -> 0 | F55: =IFERROR(D55-E55,0) -> 0 | G55: 0 | H55: =IF(OR(B55="",G55=0),0,SUMIFS('4. DETALLADA-RECURSOS ICBF'!$M$10:$M$1300,'4. DETALLADA-RECURSOS ICBF'!$B$10:$B$1300,'2. INFORMACION GENERAL'!$G$26,'4. DETALLADA-RECURSOS ICBF'!$K$10:$K$1300,'2. INFORMACION GENERAL'!$B$54,'4. DETALLADA-RECURSOS ICBF'!$L$10:$L$1300,'2. INFORMACION GENERAL'!B55)) -> 0 | I55: =IFERROR(G55-H55,0) -> 0 | J55: 0 | K55: =IF(OR(B55="",J55=0),0,SUMIFS('4. DETALLADA-RECURSOS ICBF'!$M$10:$M$1300,'4. DETALLADA-RECURSOS ICBF'!$B$10:$B$1300,'2. INFORMACION GENERAL'!$J$26,'4. DETALLADA-RECURSOS ICBF'!$K$10:$K$1300,'2. INFORMACION GENERAL'!$B$54,'4. DETALLADA-RECURSOS ICBF'!$L$10:$L$1300,'2. INFORMACION GENERAL'!B55)) -> 0 | L55: =IFERROR(J55-K55,0) -> 0 | M55: 0 | N55: =IF(OR(B55="",M55=0),0,SUMIFS('4. DETALLADA-RECURSOS ICBF'!$M$10:$M$1300,'4. DETALLADA-RECURSOS ICBF'!$B$10:$B$1300,'2. INFORMACION GENERAL'!$M$26,'4. DETALLADA-RECURSOS ICBF'!$K$10:$K$1300,'2. INFORMACION GENERAL'!$B$54,'4. DETALLADA-RECURSOS ICBF'!$L$10:$L$1300,'2. INFORMACION GENERAL'!B55)) -> 0 | O55: =IFERROR(M55-N55,0) -> 0 | P55: 0 | Q55: =IF(OR(B55="",P55=0),0,SUMIFS('4. DETALLADA-RECURSOS ICBF'!$M$10:$M$1300,'4. DETALLADA-RECURSOS ICBF'!$B$10:$B$1300,'2. INFORMACION GENERAL'!$P$26,'4. DETALLADA-RECURSOS ICBF'!$K$10:$K$1300,'2. INFORMACION GENERAL'!$B$54,'4. DETALLADA-RECURSOS ICBF'!$L$10:$L$1300,'2. INFORMACION GENERAL'!B55)) -> 0 | R55: =IFERROR(P55-Q55,0) -> 0 | S55: 0 | T55: =IF(OR(B55="",S55=0),0,SUMIFS('4. DETALLADA-RECURSOS ICBF'!$M$10:$M$1300,'4. DETALLADA-RECURSOS ICBF'!$B$10:$B$1300,'2. INFORMACION GENERAL'!$S$26,'4. DETALLADA-RECURSOS ICBF'!$K$10:$K$1300,'2. INFORMACION GENERAL'!$B$54,'4. DETALLADA-RECURSOS ICBF'!$L$10:$L$1300,'2. INFORMACION GENERAL'!B55)) -> 0 | U55: =IFERROR(S55-T55,0) -> 0 | V55: 0 | W55: =IF(OR(B55="",V55=0),0,SUMIFS('4. DETALLADA-RECURSOS ICBF'!$M$10:$M$1300,'4. DETALLADA-RECURSOS ICBF'!$B$10:$B$1300,'2. INFORMACION GENERAL'!$V$26,'4. DETALLADA-RECURSOS ICBF'!$K$10:$K$1300,'2. INFORMACION GENERAL'!$B$54,'4. DETALLADA-RECURSOS ICBF'!$L$10:$L$1300,'2. INFORMACION GENERAL'!B55)) -> 0 | X55: =IFERROR(V55-W55,0) -> 0 | Y55: 0 | Z55: =IF(OR(B55="",Y55=0),0,SUMIFS('4. DETALLADA-RECURSOS ICBF'!$M$10:$M$1300,'4. DETALLADA-RECURSOS ICBF'!$B$10:$B$1300,'2. INFORMACION GENERAL'!$Y$26,'4. DETALLADA-RECURSOS ICBF'!$K$10:$K$1300,'2. INFORMACION GENERAL'!$B$54,'4. DETALLADA-RECURSOS ICBF'!$L$10:$L$1300,'2. INFORMACION GENERAL'!B55)) -> 0 | AA55: =IFERROR(Y55-Z55,0) -> 0 | AB55: 0 | AC55: =IF(OR(B55="",AB55=0),0,SUMIFS('4. DETALLADA-RECURSOS ICBF'!$M$10:$M$1300,'4. DETALLADA-RECURSOS ICBF'!$B$10:$B$1300,'2. INFORMACION GENERAL'!$AB$26,'4. DETALLADA-RECURSOS ICBF'!$K$10:$K$1300,'2. INFORMACION GENERAL'!$B$54,'4. DETALLADA-RECURSOS ICBF'!$L$10:$L$1300,'2. INFORMACION GENERAL'!B55)) -> 0 | AD55: =IFERROR(AB55-AC55,0) -> 0 | AE55: 0 | AF55: =IF(OR(B55="",AE55=0),0,SUMIFS('4. DETALLADA-RECURSOS ICBF'!$M$10:$M$1300,'4. DETALLADA-RECURSOS ICBF'!$B$10:$B$1300,'2. INFORMACION GENERAL'!$AE$26,'4. DETALLADA-RECURSOS ICBF'!$K$10:$K$1300,'2. INFORMACION GENERAL'!$B$54,'4. DETALLADA-RECURSOS ICBF'!$L$10:$L$1300,'2. INFORMACION GENERAL'!B55)) -> 0 | AG55: =IFERROR(AE55-AF55,0) -> 0 | AH55: 0 | AI55: =IF(OR(B55="",AH55=0),0,SUMIFS('4. DETALLADA-RECURSOS ICBF'!$M$10:$M$1300,'4. DETALLADA-RECURSOS ICBF'!$B$10:$B$1300,'2. INFORMACION GENERAL'!$AH$26,'4. DETALLADA-RECURSOS ICBF'!$K$10:$K$1300,'2. INFORMACION GENERAL'!$B$54,'4. DETALLADA-RECURSOS ICBF'!$L$10:$L$1300,'2. INFORMACION GENERAL'!B55)) -> 0 | AJ55: =IFERROR(AH55-AI55,0) -> 0 | AK55: 0 | AL55: =IF(OR(B55="",AK55=0),0,SUMIFS('4. DETALLADA-RECURSOS ICBF'!$M$10:$M$1300,'4. DETALLADA-RECURSOS ICBF'!$B$10:$B$1300,'2. INFORMACION GENERAL'!$AK$26,'4. DETALLADA-RECURSOS ICBF'!$K$10:$K$1300,'2. INFORMACION GENERAL'!$B$54,'4. DETALLADA-RECURSOS ICBF'!$L$10:$L$1300,'2. INFORMACION GENERAL'!B55)) -> 0 | AM55: =IFERROR(AK55-AL55,0) -> 0 | AN55: 0 | AO55: =IF(OR(B55="",AN55=0),0,SUMIFS('4. DETALLADA-RECURSOS ICBF'!$M$10:$M$1300,'4. DETALLADA-RECURSOS ICBF'!$B$10:$B$1300,'2. INFORMACION GENERAL'!$AN$26,'4. DETALLADA-RECURSOS ICBF'!$K$10:$K$1300,'2. INFORMACION GENERAL'!$B$54,'4. DETALLADA-RECURSOS ICBF'!$L$10:$L$1300,'2. INFORMACION GENERAL'!B55)) -> 0 | AP55: =IFERROR(AN55-AO55,0) -> 0 | AQ55: =IF('1. PRESUPUESTO INICIAL'!F80="",0,'1. PRESUPUESTO INICIAL'!F80) -> 0 | AR55: =IF(OR(B55="",AQ55=0),0,SUMIFS('4. DETALLADA-RECURSOS ICBF'!$M$10:$M$1300,'4. DETALLADA-RECURSOS ICBF'!$B$10:$B$1300,'2. INFORMACION GENERAL'!$AQ$26,'4. DETALLADA-RECURSOS ICBF'!$K$10:$K$1300,'2. INFORMACION GENERAL'!$B$54,'4. DETALLADA-RECURSOS ICBF'!$L$10:$L$1300,'2. INFORMACION GENERAL'!B55)) -> 0 | AS55: =IFERROR(AQ55-AR55,0) -> 0 | AT55: =+SUMIFS(D55:AS55,$D$27:$AS$27,$AT$27) -> 0 | AU55: =+SUMIFS(D55:AS55,$D$27:$AS$27,$AU$27) -> 0 | AV55: =+SUMIFS(D55:AS55,$D$27:$AS$27,$AV$27) -> 0
A56: 220602 | B56: =IF('1. PRESUPUESTO INICIAL'!B81="","",'1. PRESUPUESTO INICIAL'!B81) -> Gorras | D56: =IF('1. PRESUPUESTO INICIAL'!D81="",0,'1. PRESUPUESTO INICIAL'!D81) -> 0 | E56: =IF(OR(B56="",D56=0),0,SUMIFS('4. DETALLADA-RECURSOS ICBF'!$M$10:$M$1300,'4. DETALLADA-RECURSOS ICBF'!$B$10:$B$1300,'2. INFORMACION GENERAL'!$D$26,'4. DETALLADA-RECURSOS ICBF'!$K$10:$K$1300,'2. INFORMACION GENERAL'!$B$54,'4. DETALLADA-RECURSOS ICBF'!$L$10:$L$1300,'2. INFORMACION GENERAL'!B56)) -> 0 | F56: 0 | G56: 0 | H56: =IF(OR(B56="",G56=0),0,SUMIFS('4. DETALLADA-RECURSOS ICBF'!$M$10:$M$1300,'4. DETALLADA-RECURSOS ICBF'!$B$10:$B$1300,'2. INFORMACION GENERAL'!$G$26,'4. DETALLADA-RECURSOS ICBF'!$K$10:$K$1300,'2. INFORMACION GENERAL'!$B$54,'4. DETALLADA-RECURSOS ICBF'!$L$10:$L$1300,'2. INFORMACION GENERAL'!B56)) -> 0 | I56: 0 | J56: 0 | K56: =IF(OR(B56="",J56=0),0,SUMIFS('4. DETALLADA-RECURSOS ICBF'!$M$10:$M$1300,'4. DETALLADA-RECURSOS ICBF'!$B$10:$B$1300,'2. INFORMACION GENERAL'!$J$26,'4. DETALLADA-RECURSOS ICBF'!$K$10:$K$1300,'2. INFORMACION GENERAL'!$B$54,'4. DETALLADA-RECURSOS ICBF'!$L$10:$L$1300,'2. INFORMACION GENERAL'!B56)) -> 0 | L56: 0 | M56: 0 | N56: =IF(OR(B56="",M56=0),0,SUMIFS('4. DETALLADA-RECURSOS ICBF'!$M$10:$M$1300,'4. DETALLADA-RECURSOS ICBF'!$B$10:$B$1300,'2. INFORMACION GENERAL'!$M$26,'4. DETALLADA-RECURSOS ICBF'!$K$10:$K$1300,'2. INFORMACION GENERAL'!$B$54,'4. DETALLADA-RECURSOS ICBF'!$L$10:$L$1300,'2. INFORMACION GENERAL'!B56)) -> 0 | O56: =IFERROR(M56-N56,0) -> 0 | P56: 0 | Q56: =IF(OR(B56="",P56=0),0,SUMIFS('4. DETALLADA-RECURSOS ICBF'!$M$10:$M$1300,'4. DETALLADA-RECURSOS ICBF'!$B$10:$B$1300,'2. INFORMACION GENERAL'!$P$26,'4. DETALLADA-RECURSOS ICBF'!$K$10:$K$1300,'2. INFORMACION GENERAL'!$B$54,'4. DETALLADA-RECURSOS ICBF'!$L$10:$L$1300,'2. INFORMACION GENERAL'!B56)) -> 0 | R56: 0 | S56: 0 | T56: =IF(OR(B56="",S56=0),0,SUMIFS('4. DETALLADA-RECURSOS ICBF'!$M$10:$M$1300,'4. DETALLADA-RECURSOS ICBF'!$B$10:$B$1300,'2. INFORMACION GENERAL'!$S$26,'4. DETALLADA-RECURSOS ICBF'!$K$10:$K$1300,'2. INFORMACION GENERAL'!$B$54,'4. DETALLADA-RECURSOS ICBF'!$L$10:$L$1300,'2. INFORMACION GENERAL'!B56)) -> 0 | U56: 0 | V56: 0 | W56: =IF(OR(B56="",V56=0),0,SUMIFS('4. DETALLADA-RECURSOS ICBF'!$M$10:$M$1300,'4. DETALLADA-RECURSOS ICBF'!$B$10:$B$1300,'2. INFORMACION GENERAL'!$V$26,'4. DETALLADA-RECURSOS ICBF'!$K$10:$K$1300,'2. INFORMACION GENERAL'!$B$54,'4. DETALLADA-RECURSOS ICBF'!$L$10:$L$1300,'2. INFORMACION GENERAL'!B56)) -> 0 | X56: 0 | Y56: 0 | Z56: =IF(OR(B56="",Y56=0),0,SUMIFS('4. DETALLADA-RECURSOS ICBF'!$M$10:$M$1300,'4. DETALLADA-RECURSOS ICBF'!$B$10:$B$1300,'2. INFORMACION GENERAL'!$Y$26,'4. DETALLADA-RECURSOS ICBF'!$K$10:$K$1300,'2. INFORMACION GENERAL'!$B$54,'4. DETALLADA-RECURSOS ICBF'!$L$10:$L$1300,'2. INFORMACION GENERAL'!B56)) -> 0 | AA56: 0 | AB56: 0 | AC56: =IF(OR(B56="",AB56=0),0,SUMIFS('4. DETALLADA-RECURSOS ICBF'!$M$10:$M$1300,'4. DETALLADA-RECURSOS ICBF'!$B$10:$B$1300,'2. INFORMACION GENERAL'!$AB$26,'4. DETALLADA-RECURSOS ICBF'!$K$10:$K$1300,'2. INFORMACION GENERAL'!$B$54,'4. DETALLADA-RECURSOS ICBF'!$L$10:$L$1300,'2. INFORMACION GENERAL'!B56)) -> 0 | AD56: 0 | AE56: 0 | AF56: =IF(OR(B56="",AE56=0),0,SUMIFS('4. DETALLADA-RECURSOS ICBF'!$M$10:$M$1300,'4. DETALLADA-RECURSOS ICBF'!$B$10:$B$1300,'2. INFORMACION GENERAL'!$AE$26,'4. DETALLADA-RECURSOS ICBF'!$K$10:$K$1300,'2. INFORMACION GENERAL'!$B$54,'4. DETALLADA-RECURSOS ICBF'!$L$10:$L$1300,'2. INFORMACION GENERAL'!B56)) -> 0 | AG56: 0 | AH56: 0 | AI56: =IF(OR(B56="",AH56=0),0,SUMIFS('4. DETALLADA-RECURSOS ICBF'!$M$10:$M$1300,'4. DETALLADA-RECURSOS ICBF'!$B$10:$B$1300,'2. INFORMACION GENERAL'!$AH$26,'4. DETALLADA-RECURSOS ICBF'!$K$10:$K$1300,'2. INFORMACION GENERAL'!$B$54,'4. DETALLADA-RECURSOS ICBF'!$L$10:$L$1300,'2. INFORMACION GENERAL'!B56)) -> 0 | AJ56: 0 | AK56: 0 | AL56: =IF(OR(B56="",AK56=0),0,SUMIFS('4. DETALLADA-RECURSOS ICBF'!$M$10:$M$1300,'4. DETALLADA-RECURSOS ICBF'!$B$10:$B$1300,'2. INFORMACION GENERAL'!$AK$26,'4. DETALLADA-RECURSOS ICBF'!$K$10:$K$1300,'2. INFORMACION GENERAL'!$B$54,'4. DETALLADA-RECURSOS ICBF'!$L$10:$L$1300,'2. INFORMACION GENERAL'!B56)) -> 0 | AM56: 0 | AN56: 0 | AO56: =IF(OR(B56="",AN56=0),0,SUMIFS('4. DETALLADA-RECURSOS ICBF'!$M$10:$M$1300,'4. DETALLADA-RECURSOS ICBF'!$B$10:$B$1300,'2. INFORMACION GENERAL'!$AN$26,'4. DETALLADA-RECURSOS ICBF'!$K$10:$K$1300,'2. INFORMACION GENERAL'!$B$54,'4. DETALLADA-RECURSOS ICBF'!$L$10:$L$1300,'2. INFORMACION GENERAL'!B56)) -> 0 | AP56: 0 | AQ56: =IF('1. PRESUPUESTO INICIAL'!F81="",0,'1. PRESUPUESTO INICIAL'!F81) -> 0 | AR56: =IF(OR(B56="",AQ56=0),0,SUMIFS('4. DETALLADA-RECURSOS ICBF'!$M$10:$M$1300,'4. DETALLADA-RECURSOS ICBF'!$B$10:$B$1300,'2. INFORMACION GENERAL'!$AQ$26,'4. DETALLADA-RECURSOS ICBF'!$K$10:$K$1300,'2. INFORMACION GENERAL'!$B$54,'4. DETALLADA-RECURSOS ICBF'!$L$10:$L$1300,'2. INFORMACION GENERAL'!B56)) -> 0 | AS56: 0 | AT56: 0 | AU56: 0 | AV56: 0
A57: 220603 | B57: =IF('1. PRESUPUESTO INICIAL'!B82="","",'1. PRESUPUESTO INICIAL'!B82) -> Camisetas | D57: =IF('1. PRESUPUESTO INICIAL'!D82="",0,'1. PRESUPUESTO INICIAL'!D82) -> 0 | E57: =IF(OR(B57="",D57=0),0,SUMIFS('4. DETALLADA-RECURSOS ICBF'!$M$10:$M$1300,'4. DETALLADA-RECURSOS ICBF'!$B$10:$B$1300,'2. INFORMACION GENERAL'!$D$26,'4. DETALLADA-RECURSOS ICBF'!$K$10:$K$1300,'2. INFORMACION GENERAL'!$B$54,'4. DETALLADA-RECURSOS ICBF'!$L$10:$L$1300,'2. INFORMACION GENERAL'!B57)) -> 0 | F57: 0 | G57: 0 | H57: =IF(OR(B57="",G57=0),0,SUMIFS('4. DETALLADA-RECURSOS ICBF'!$M$10:$M$1300,'4. DETALLADA-RECURSOS ICBF'!$B$10:$B$1300,'2. INFORMACION GENERAL'!$G$26,'4. DETALLADA-RECURSOS ICBF'!$K$10:$K$1300,'2. INFORMACION GENERAL'!$B$54,'4. DETALLADA-RECURSOS ICBF'!$L$10:$L$1300,'2. INFORMACION GENERAL'!B57)) -> 0 | I57: 0 | J57: 0 | K57: =IF(OR(B57="",J57=0),0,SUMIFS('4. DETALLADA-RECURSOS ICBF'!$M$10:$M$1300,'4. DETALLADA-RECURSOS ICBF'!$B$10:$B$1300,'2. INFORMACION GENERAL'!$J$26,'4. DETALLADA-RECURSOS ICBF'!$K$10:$K$1300,'2. INFORMACION GENERAL'!$B$54,'4. DETALLADA-RECURSOS ICBF'!$L$10:$L$1300,'2. INFORMACION GENERAL'!B57)) -> 0 | L57: 0 | M57: 0 | N57: =IF(OR(B57="",M57=0),0,SUMIFS('4. DETALLADA-RECURSOS ICBF'!$M$10:$M$1300,'4. DETALLADA-RECURSOS ICBF'!$B$10:$B$1300,'2. INFORMACION GENERAL'!$M$26,'4. DETALLADA-RECURSOS ICBF'!$K$10:$K$1300,'2. INFORMACION GENERAL'!$B$54,'4. DETALLADA-RECURSOS ICBF'!$L$10:$L$1300,'2. INFORMACION GENERAL'!B57)) -> 0 | O57: 0 | P57: 0 | Q57: =IF(OR(B57="",P57=0),0,SUMIFS('4. DETALLADA-RECURSOS ICBF'!$M$10:$M$1300,'4. DETALLADA-RECURSOS ICBF'!$B$10:$B$1300,'2. INFORMACION GENERAL'!$P$26,'4. DETALLADA-RECURSOS ICBF'!$K$10:$K$1300,'2. INFORMACION GENERAL'!$B$54,'4. DETALLADA-RECURSOS ICBF'!$L$10:$L$1300,'2. INFORMACION GENERAL'!B57)) -> 0 | R57: 0 | S57: 0 | T57: =IF(OR(B57="",S57=0),0,SUMIFS('4. DETALLADA-RECURSOS ICBF'!$M$10:$M$1300,'4. DETALLADA-RECURSOS ICBF'!$B$10:$B$1300,'2. INFORMACION GENERAL'!$S$26,'4. DETALLADA-RECURSOS ICBF'!$K$10:$K$1300,'2. INFORMACION GENERAL'!$B$54,'4. DETALLADA-RECURSOS ICBF'!$L$10:$L$1300,'2. INFORMACION GENERAL'!B57)) -> 0 | U57: 0 | V57: 0 | W57: =IF(OR(B57="",V57=0),0,SUMIFS('4. DETALLADA-RECURSOS ICBF'!$M$10:$M$1300,'4. DETALLADA-RECURSOS ICBF'!$B$10:$B$1300,'2. INFORMACION GENERAL'!$V$26,'4. DETALLADA-RECURSOS ICBF'!$K$10:$K$1300,'2. INFORMACION GENERAL'!$B$54,'4. DETALLADA-RECURSOS ICBF'!$L$10:$L$1300,'2. INFORMACION GENERAL'!B57)) -> 0 | X57: 0 | Y57: 0 | Z57: =IF(OR(B57="",Y57=0),0,SUMIFS('4. DETALLADA-RECURSOS ICBF'!$M$10:$M$1300,'4. DETALLADA-RECURSOS ICBF'!$B$10:$B$1300,'2. INFORMACION GENERAL'!$Y$26,'4. DETALLADA-RECURSOS ICBF'!$K$10:$K$1300,'2. INFORMACION GENERAL'!$B$54,'4. DETALLADA-RECURSOS ICBF'!$L$10:$L$1300,'2. INFORMACION GENERAL'!B57)) -> 0 | AA57: 0 | AB57: 0 | AC57: =IF(OR(B57="",AB57=0),0,SUMIFS('4. DETALLADA-RECURSOS ICBF'!$M$10:$M$1300,'4. DETALLADA-RECURSOS ICBF'!$B$10:$B$1300,'2. INFORMACION GENERAL'!$AB$26,'4. DETALLADA-RECURSOS ICBF'!$K$10:$K$1300,'2. INFORMACION GENERAL'!$B$54,'4. DETALLADA-RECURSOS ICBF'!$L$10:$L$1300,'2. INFORMACION GENERAL'!B57)) -> 0 | AD57: 0 | AE57: 0 | AF57: =IF(OR(B57="",AE57=0),0,SUMIFS('4. DETALLADA-RECURSOS ICBF'!$M$10:$M$1300,'4. DETALLADA-RECURSOS ICBF'!$B$10:$B$1300,'2. INFORMACION GENERAL'!$AE$26,'4. DETALLADA-RECURSOS ICBF'!$K$10:$K$1300,'2. INFORMACION GENERAL'!$B$54,'4. DETALLADA-RECURSOS ICBF'!$L$10:$L$1300,'2. INFORMACION GENERAL'!B57)) -> 0 | AG57: 0 | AH57: 0 | AI57: =IF(OR(B57="",AH57=0),0,SUMIFS('4. DETALLADA-RECURSOS ICBF'!$M$10:$M$1300,'4. DETALLADA-RECURSOS ICBF'!$B$10:$B$1300,'2. INFORMACION GENERAL'!$AH$26,'4. DETALLADA-RECURSOS ICBF'!$K$10:$K$1300,'2. INFORMACION GENERAL'!$B$54,'4. DETALLADA-RECURSOS ICBF'!$L$10:$L$1300,'2. INFORMACION GENERAL'!B57)) -> 0 | AJ57: 0 | AK57: 0 | AL57: =IF(OR(B57="",AK57=0),0,SUMIFS('4. DETALLADA-RECURSOS ICBF'!$M$10:$M$1300,'4. DETALLADA-RECURSOS ICBF'!$B$10:$B$1300,'2. INFORMACION GENERAL'!$AK$26,'4. DETALLADA-RECURSOS ICBF'!$K$10:$K$1300,'2. INFORMACION GENERAL'!$B$54,'4. DETALLADA-RECURSOS ICBF'!$L$10:$L$1300,'2. INFORMACION GENERAL'!B57)) -> 0 | AM57: 0 | AN57: 0 | AO57: =IF(OR(B57="",AN57=0),0,SUMIFS('4. DETALLADA-RECURSOS ICBF'!$M$10:$M$1300,'4. DETALLADA-RECURSOS ICBF'!$B$10:$B$1300,'2. INFORMACION GENERAL'!$AN$26,'4. DETALLADA-RECURSOS ICBF'!$K$10:$K$1300,'2. INFORMACION GENERAL'!$B$54,'4. DETALLADA-RECURSOS ICBF'!$L$10:$L$1300,'2. INFORMACION GENERAL'!B57)) -> 0 | AP57: 0 | AQ57: =IF('1. PRESUPUESTO INICIAL'!F82="",0,'1. PRESUPUESTO INICIAL'!F82) -> 0 | AR57: =IF(OR(B57="",AQ57=0),0,SUMIFS('4. DETALLADA-RECURSOS ICBF'!$M$10:$M$1300,'4. DETALLADA-RECURSOS ICBF'!$B$10:$B$1300,'2. INFORMACION GENERAL'!$AQ$26,'4. DETALLADA-RECURSOS ICBF'!$K$10:$K$1300,'2. INFORMACION GENERAL'!$B$54,'4. DETALLADA-RECURSOS ICBF'!$L$10:$L$1300,'2. INFORMACION GENERAL'!B57)) -> 0 | AS57: 0 | AT57: 0 | AU57: 0 | AV57: 0
A58: 220604 | B58: =IF('1. PRESUPUESTO INICIAL'!B83="","",'1. PRESUPUESTO INICIAL'!B83) -> Carné | D58: =IF('1. PRESUPUESTO INICIAL'!D83="",0,'1. PRESUPUESTO INICIAL'!D83) -> 0 | E58: =IF(OR(B58="",D58=0),0,SUMIFS('4. DETALLADA-RECURSOS ICBF'!$M$10:$M$1300,'4. DETALLADA-RECURSOS ICBF'!$B$10:$B$1300,'2. INFORMACION GENERAL'!$D$26,'4. DETALLADA-RECURSOS ICBF'!$K$10:$K$1300,'2. INFORMACION GENERAL'!$B$54,'4. DETALLADA-RECURSOS ICBF'!$L$10:$L$1300,'2. INFORMACION GENERAL'!B58)) -> 0 | F58: 0 | G58: 0 | H58: =IF(OR(B58="",G58=0),0,SUMIFS('4. DETALLADA-RECURSOS ICBF'!$M$10:$M$1300,'4. DETALLADA-RECURSOS ICBF'!$B$10:$B$1300,'2. INFORMACION GENERAL'!$G$26,'4. DETALLADA-RECURSOS ICBF'!$K$10:$K$1300,'2. INFORMACION GENERAL'!$B$54,'4. DETALLADA-RECURSOS ICBF'!$L$10:$L$1300,'2. INFORMACION GENERAL'!B58)) -> 0 | I58: 0 | J58: 0 | K58: =IF(OR(B58="",J58=0),0,SUMIFS('4. DETALLADA-RECURSOS ICBF'!$M$10:$M$1300,'4. DETALLADA-RECURSOS ICBF'!$B$10:$B$1300,'2. INFORMACION GENERAL'!$J$26,'4. DETALLADA-RECURSOS ICBF'!$K$10:$K$1300,'2. INFORMACION GENERAL'!$B$54,'4. DETALLADA-RECURSOS ICBF'!$L$10:$L$1300,'2. INFORMACION GENERAL'!B58)) -> 0 | L58: 0 | M58: 0 | N58: =IF(OR(B58="",M58=0),0,SUMIFS('4. DETALLADA-RECURSOS ICBF'!$M$10:$M$1300,'4. DETALLADA-RECURSOS ICBF'!$B$10:$B$1300,'2. INFORMACION GENERAL'!$M$26,'4. DETALLADA-RECURSOS ICBF'!$K$10:$K$1300,'2. INFORMACION GENERAL'!$B$54,'4. DETALLADA-RECURSOS ICBF'!$L$10:$L$1300,'2. INFORMACION GENERAL'!B58)) -> 0 | O58: 0 | P58: 0 | Q58: =IF(OR(B58="",P58=0),0,SUMIFS('4. DETALLADA-RECURSOS ICBF'!$M$10:$M$1300,'4. DETALLADA-RECURSOS ICBF'!$B$10:$B$1300,'2. INFORMACION GENERAL'!$P$26,'4. DETALLADA-RECURSOS ICBF'!$K$10:$K$1300,'2. INFORMACION GENERAL'!$B$54,'4. DETALLADA-RECURSOS ICBF'!$L$10:$L$1300,'2. INFORMACION GENERAL'!B58)) -> 0 | R58: 0 | S58: 0 | T58: =IF(OR(B58="",S58=0),0,SUMIFS('4. DETALLADA-RECURSOS ICBF'!$M$10:$M$1300,'4. DETALLADA-RECURSOS ICBF'!$B$10:$B$1300,'2. INFORMACION GENERAL'!$S$26,'4. DETALLADA-RECURSOS ICBF'!$K$10:$K$1300,'2. INFORMACION GENERAL'!$B$54,'4. DETALLADA-RECURSOS ICBF'!$L$10:$L$1300,'2. INFORMACION GENERAL'!B58)) -> 0 | U58: 0 | V58: 0 | W58: =IF(OR(B58="",V58=0),0,SUMIFS('4. DETALLADA-RECURSOS ICBF'!$M$10:$M$1300,'4. DETALLADA-RECURSOS ICBF'!$B$10:$B$1300,'2. INFORMACION GENERAL'!$V$26,'4. DETALLADA-RECURSOS ICBF'!$K$10:$K$1300,'2. INFORMACION GENERAL'!$B$54,'4. DETALLADA-RECURSOS ICBF'!$L$10:$L$1300,'2. INFORMACION GENERAL'!B58)) -> 0 | X58: 0 | Y58: 0 | Z58: =IF(OR(B58="",Y58=0),0,SUMIFS('4. DETALLADA-RECURSOS ICBF'!$M$10:$M$1300,'4. DETALLADA-RECURSOS ICBF'!$B$10:$B$1300,'2. INFORMACION GENERAL'!$Y$26,'4. DETALLADA-RECURSOS ICBF'!$K$10:$K$1300,'2. INFORMACION GENERAL'!$B$54,'4. DETALLADA-RECURSOS ICBF'!$L$10:$L$1300,'2. INFORMACION GENERAL'!B58)) -> 0 | AA58: 0 | AB58: 0 | AC58: =IF(OR(B58="",AB58=0),0,SUMIFS('4. DETALLADA-RECURSOS ICBF'!$M$10:$M$1300,'4. DETALLADA-RECURSOS ICBF'!$B$10:$B$1300,'2. INFORMACION GENERAL'!$AB$26,'4. DETALLADA-RECURSOS ICBF'!$K$10:$K$1300,'2. INFORMACION GENERAL'!$B$54,'4. DETALLADA-RECURSOS ICBF'!$L$10:$L$1300,'2. INFORMACION GENERAL'!B58)) -> 0 | AD58: 0 | AE58: 0 | AF58: =IF(OR(B58="",AE58=0),0,SUMIFS('4. DETALLADA-RECURSOS ICBF'!$M$10:$M$1300,'4. DETALLADA-RECURSOS ICBF'!$B$10:$B$1300,'2. INFORMACION GENERAL'!$AE$26,'4. DETALLADA-RECURSOS ICBF'!$K$10:$K$1300,'2. INFORMACION GENERAL'!$B$54,'4. DETALLADA-RECURSOS ICBF'!$L$10:$L$1300,'2. INFORMACION GENERAL'!B58)) -> 0 | AG58: 0 | AH58: 0 | AI58: =IF(OR(B58="",AH58=0),0,SUMIFS('4. DETALLADA-RECURSOS ICBF'!$M$10:$M$1300,'4. DETALLADA-RECURSOS ICBF'!$B$10:$B$1300,'2. INFORMACION GENERAL'!$AH$26,'4. DETALLADA-RECURSOS ICBF'!$K$10:$K$1300,'2. INFORMACION GENERAL'!$B$54,'4. DETALLADA-RECURSOS ICBF'!$L$10:$L$1300,'2. INFORMACION GENERAL'!B58)) -> 0 | AJ58: 0 | AK58: 0 | AL58: =IF(OR(B58="",AK58=0),0,SUMIFS('4. DETALLADA-RECURSOS ICBF'!$M$10:$M$1300,'4. DETALLADA-RECURSOS ICBF'!$B$10:$B$1300,'2. INFORMACION GENERAL'!$AK$26,'4. DETALLADA-RECURSOS ICBF'!$K$10:$K$1300,'2. INFORMACION GENERAL'!$B$54,'4. DETALLADA-RECURSOS ICBF'!$L$10:$L$1300,'2. INFORMACION GENERAL'!B58)) -> 0 | AM58: 0 | AN58: 0 | AO58: =IF(OR(B58="",AN58=0),0,SUMIFS('4. DETALLADA-RECURSOS ICBF'!$M$10:$M$1300,'4. DETALLADA-RECURSOS ICBF'!$B$10:$B$1300,'2. INFORMACION GENERAL'!$AN$26,'4. DETALLADA-RECURSOS ICBF'!$K$10:$K$1300,'2. INFORMACION GENERAL'!$B$54,'4. DETALLADA-RECURSOS ICBF'!$L$10:$L$1300,'2. INFORMACION GENERAL'!B58)) -> 0 | AP58: 0 | AQ58: =IF('1. PRESUPUESTO INICIAL'!F83="",0,'1. PRESUPUESTO INICIAL'!F83) -> 0 | AR58: =IF(OR(B58="",AQ58=0),0,SUMIFS('4. DETALLADA-RECURSOS ICBF'!$M$10:$M$1300,'4. DETALLADA-RECURSOS ICBF'!$B$10:$B$1300,'2. INFORMACION GENERAL'!$AQ$26,'4. DETALLADA-RECURSOS ICBF'!$K$10:$K$1300,'2. INFORMACION GENERAL'!$B$54,'4. DETALLADA-RECURSOS ICBF'!$L$10:$L$1300,'2. INFORMACION GENERAL'!B58)) -> 0 | AS58: 0 | AT58: 0 | AU58: 0 | AV58: 0
A59: 220605 | B59: =IF('1. PRESUPUESTO INICIAL'!B84="","",'1. PRESUPUESTO INICIAL'!B84) -> Pendón | D59: =IF('1. PRESUPUESTO INICIAL'!D84="",0,'1. PRESUPUESTO INICIAL'!D84) -> 0 | E59: =IF(OR(B59="",D59=0),0,SUMIFS('4. DETALLADA-RECURSOS ICBF'!$M$10:$M$1300,'4. DETALLADA-RECURSOS ICBF'!$B$10:$B$1300,'2. INFORMACION GENERAL'!$D$26,'4. DETALLADA-RECURSOS ICBF'!$K$10:$K$1300,'2. INFORMACION GENERAL'!$B$54,'4. DETALLADA-RECURSOS ICBF'!$L$10:$L$1300,'2. INFORMACION GENERAL'!B59)) -> 0 | F59: 0 | G59: 0 | H59: =IF(OR(B59="",G59=0),0,SUMIFS('4. DETALLADA-RECURSOS ICBF'!$M$10:$M$1300,'4. DETALLADA-RECURSOS ICBF'!$B$10:$B$1300,'2. INFORMACION GENERAL'!$G$26,'4. DETALLADA-RECURSOS ICBF'!$K$10:$K$1300,'2. INFORMACION GENERAL'!$B$54,'4. DETALLADA-RECURSOS ICBF'!$L$10:$L$1300,'2. INFORMACION GENERAL'!B59)) -> 0 | I59: 0 | J59: 0 | K59: =IF(OR(B59="",J59=0),0,SUMIFS('4. DETALLADA-RECURSOS ICBF'!$M$10:$M$1300,'4. DETALLADA-RECURSOS ICBF'!$B$10:$B$1300,'2. INFORMACION GENERAL'!$J$26,'4. DETALLADA-RECURSOS ICBF'!$K$10:$K$1300,'2. INFORMACION GENERAL'!$B$54,'4. DETALLADA-RECURSOS ICBF'!$L$10:$L$1300,'2. INFORMACION GENERAL'!B59)) -> 0 | L59: 0 | M59: 0 | N59: =IF(OR(B59="",M59=0),0,SUMIFS('4. DETALLADA-RECURSOS ICBF'!$M$10:$M$1300,'4. DETALLADA-RECURSOS ICBF'!$B$10:$B$1300,'2. INFORMACION GENERAL'!$M$26,'4. DETALLADA-RECURSOS ICBF'!$K$10:$K$1300,'2. INFORMACION GENERAL'!$B$54,'4. DETALLADA-RECURSOS ICBF'!$L$10:$L$1300,'2. INFORMACION GENERAL'!B59)) -> 0 | O59: 0 | P59: 0 | Q59: =IF(OR(B59="",P59=0),0,SUMIFS('4. DETALLADA-RECURSOS ICBF'!$M$10:$M$1300,'4. DETALLADA-RECURSOS ICBF'!$B$10:$B$1300,'2. INFORMACION GENERAL'!$P$26,'4. DETALLADA-RECURSOS ICBF'!$K$10:$K$1300,'2. INFORMACION GENERAL'!$B$54,'4. DETALLADA-RECURSOS ICBF'!$L$10:$L$1300,'2. INFORMACION GENERAL'!B59)) -> 0 | R59: 0 | S59: 0 | T59: =IF(OR(B59="",S59=0),0,SUMIFS('4. DETALLADA-RECURSOS ICBF'!$M$10:$M$1300,'4. DETALLADA-RECURSOS ICBF'!$B$10:$B$1300,'2. INFORMACION GENERAL'!$S$26,'4. DETALLADA-RECURSOS ICBF'!$K$10:$K$1300,'2. INFORMACION GENERAL'!$B$54,'4. DETALLADA-RECURSOS ICBF'!$L$10:$L$1300,'2. INFORMACION GENERAL'!B59)) -> 0 | U59: 0 | V59: 0 | W59: =IF(OR(B59="",V59=0),0,SUMIFS('4. DETALLADA-RECURSOS ICBF'!$M$10:$M$1300,'4. DETALLADA-RECURSOS ICBF'!$B$10:$B$1300,'2. INFORMACION GENERAL'!$V$26,'4. DETALLADA-RECURSOS ICBF'!$K$10:$K$1300,'2. INFORMACION GENERAL'!$B$54,'4. DETALLADA-RECURSOS ICBF'!$L$10:$L$1300,'2. INFORMACION GENERAL'!B59)) -> 0 | X59: 0 | Y59: 0 | Z59: =IF(OR(B59="",Y59=0),0,SUMIFS('4. DETALLADA-RECURSOS ICBF'!$M$10:$M$1300,'4. DETALLADA-RECURSOS ICBF'!$B$10:$B$1300,'2. INFORMACION GENERAL'!$Y$26,'4. DETALLADA-RECURSOS ICBF'!$K$10:$K$1300,'2. INFORMACION GENERAL'!$B$54,'4. DETALLADA-RECURSOS ICBF'!$L$10:$L$1300,'2. INFORMACION GENERAL'!B59)) -> 0 | AA59: 0 | AB59: 0 | AC59: =IF(OR(B59="",AB59=0),0,SUMIFS('4. DETALLADA-RECURSOS ICBF'!$M$10:$M$1300,'4. DETALLADA-RECURSOS ICBF'!$B$10:$B$1300,'2. INFORMACION GENERAL'!$AB$26,'4. DETALLADA-RECURSOS ICBF'!$K$10:$K$1300,'2. INFORMACION GENERAL'!$B$54,'4. DETALLADA-RECURSOS ICBF'!$L$10:$L$1300,'2. INFORMACION GENERAL'!B59)) -> 0 | AD59: 0 | AE59: 0 | AF59: =IF(OR(B59="",AE59=0),0,SUMIFS('4. DETALLADA-RECURSOS ICBF'!$M$10:$M$1300,'4. DETALLADA-RECURSOS ICBF'!$B$10:$B$1300,'2. INFORMACION GENERAL'!$AE$26,'4. DETALLADA-RECURSOS ICBF'!$K$10:$K$1300,'2. INFORMACION GENERAL'!$B$54,'4. DETALLADA-RECURSOS ICBF'!$L$10:$L$1300,'2. INFORMACION GENERAL'!B59)) -> 0 | AG59: 0 | AH59: 0 | AI59: =IF(OR(B59="",AH59=0),0,SUMIFS('4. DETALLADA-RECURSOS ICBF'!$M$10:$M$1300,'4. DETALLADA-RECURSOS ICBF'!$B$10:$B$1300,'2. INFORMACION GENERAL'!$AH$26,'4. DETALLADA-RECURSOS ICBF'!$K$10:$K$1300,'2. INFORMACION GENERAL'!$B$54,'4. DETALLADA-RECURSOS ICBF'!$L$10:$L$1300,'2. INFORMACION GENERAL'!B59)) -> 0 | AJ59: 0 | AK59: 0 | AL59: =IF(OR(B59="",AK59=0),0,SUMIFS('4. DETALLADA-RECURSOS ICBF'!$M$10:$M$1300,'4. DETALLADA-RECURSOS ICBF'!$B$10:$B$1300,'2. INFORMACION GENERAL'!$AK$26,'4. DETALLADA-RECURSOS ICBF'!$K$10:$K$1300,'2. INFORMACION GENERAL'!$B$54,'4. DETALLADA-RECURSOS ICBF'!$L$10:$L$1300,'2. INFORMACION GENERAL'!B59)) -> 0 | AM59: 0 | AN59: 0 | AO59: =IF(OR(B59="",AN59=0),0,SUMIFS('4. DETALLADA-RECURSOS ICBF'!$M$10:$M$1300,'4. DETALLADA-RECURSOS ICBF'!$B$10:$B$1300,'2. INFORMACION GENERAL'!$AN$26,'4. DETALLADA-RECURSOS ICBF'!$K$10:$K$1300,'2. INFORMACION GENERAL'!$B$54,'4. DETALLADA-RECURSOS ICBF'!$L$10:$L$1300,'2. INFORMACION GENERAL'!B59)) -> 0 | AP59: 0 | AQ59: =IF('1. PRESUPUESTO INICIAL'!F84="",0,'1. PRESUPUESTO INICIAL'!F84) -> 0 | AR59: =IF(OR(B59="",AQ59=0),0,SUMIFS('4. DETALLADA-RECURSOS ICBF'!$M$10:$M$1300,'4. DETALLADA-RECURSOS ICBF'!$B$10:$B$1300,'2. INFORMACION GENERAL'!$AQ$26,'4. DETALLADA-RECURSOS ICBF'!$K$10:$K$1300,'2. INFORMACION GENERAL'!$B$54,'4. DETALLADA-RECURSOS ICBF'!$L$10:$L$1300,'2. INFORMACION GENERAL'!B59)) -> 0 | AS59: 0 | AT59: 0 | AU59: 0 | AV59: 0
A60: 2207 | B60: =IF('1. PRESUPUESTO INICIAL'!B88="","",'1. PRESUPUESTO INICIAL'!B88) -> SEGURO | D60: =IF('1. PRESUPUESTO INICIAL'!D88="",0,'1. PRESUPUESTO INICIAL'!D88) -> 0 | E60: =IF(OR(B60="",D60=0),0,SUMIFS('4. DETALLADA-RECURSOS ICBF'!$M$10:$M$1300,'4. DETALLADA-RECURSOS ICBF'!$B$10:$B$1300,'2. INFORMACION GENERAL'!$D$26,'4. DETALLADA-RECURSOS ICBF'!$K$10:$K$1300,'2. INFORMACION GENERAL'!$B$54,'4. DETALLADA-RECURSOS ICBF'!$L$10:$L$1300,'2. INFORMACION GENERAL'!B60)) -> 0 | F60: 0 | G60: 0 | H60: =IF(OR(B60="",G60=0),0,SUMIFS('4. DETALLADA-RECURSOS ICBF'!$M$10:$M$1300,'4. DETALLADA-RECURSOS ICBF'!$B$10:$B$1300,'2. INFORMACION GENERAL'!$G$26,'4. DETALLADA-RECURSOS ICBF'!$K$10:$K$1300,'2. INFORMACION GENERAL'!$B$60)) -> 0 | I60: 0 | J60: 0 | K60: =IF(OR(B60="",J60=0),0,SUMIFS('4. DETALLADA-RECURSOS ICBF'!$M$10:$M$1300,'4. DETALLADA-RECURSOS ICBF'!$B$10:$B$1300,'2. INFORMACION GENERAL'!$J$26,'4. DETALLADA-RECURSOS ICBF'!$K$10:$K$1300,'2. INFORMACION GENERAL'!$B$60)) -> 0 | L60: 0 | M60: 0 | N60: =IF(OR(B60="",M60=0),0,SUMIFS('4. DETALLADA-RECURSOS ICBF'!$M$10:$M$1300,'4. DETALLADA-RECURSOS ICBF'!$B$10:$B$1300,'2. INFORMACION GENERAL'!$M$26,'4. DETALLADA-RECURSOS ICBF'!$K$10:$K$1300,'2. INFORMACION GENERAL'!$B$60)) -> 0 | O60: =IFERROR(M60-N60,0) -> 0 | P60: 0 | Q60: =IF(OR(B60="",P60=0),0,SUMIFS('4. DETALLADA-RECURSOS ICBF'!$M$10:$M$1300,'4. DETALLADA-RECURSOS ICBF'!$B$10:$B$1300,'2. INFORMACION GENERAL'!$P$26,'4. DETALLADA-RECURSOS ICBF'!$K$10:$K$1300,'2. INFORMACION GENERAL'!$B$60)) -> 0 | R60: 0 | S60: 0 | T60: =IF(OR(B60="",S60=0),0,SUMIFS('4. DETALLADA-RECURSOS ICBF'!$M$10:$M$1300,'4. DETALLADA-RECURSOS ICBF'!$B$10:$B$1300,'2. INFORMACION GENERAL'!$S$26,'4. DETALLADA-RECURSOS ICBF'!$K$10:$K$1300,'2. INFORMACION GENERAL'!$B$60)) -> 0 | U60: 0 | V60: 0 | W60: =IF(OR(B60="",V60=0),0,SUMIFS('4. DETALLADA-RECURSOS ICBF'!$M$10:$M$1300,'4. DETALLADA-RECURSOS ICBF'!$B$10:$B$1300,'2. INFORMACION GENERAL'!$V$26,'4. DETALLADA-RECURSOS ICBF'!$K$10:$K$1300,'2. INFORMACION GENERAL'!$B$60)) -> 0 | X60: 0 | Y60: 0 | Z60: =IF(OR(B60="",Y60=0),0,SUMIFS('4. DETALLADA-RECURSOS ICBF'!$M$10:$M$1300,'4. DETALLADA-RECURSOS ICBF'!$B$10:$B$1300,'2. INFORMACION GENERAL'!$Y$26,'4. DETALLADA-RECURSOS ICBF'!$K$10:$K$1300,'2. INFORMACION GENERAL'!$B$60)) -> 0 | AA60: 0 | AB60: 0 | AC60: =IF(OR(B60="",AB60=0),0,SUMIFS('4. DETALLADA-RECURSOS ICBF'!$M$10:$M$1300,'4. DETALLADA-RECURSOS ICBF'!$B$10:$B$1300,'2. INFORMACION GENERAL'!$AB$26,'4. DETALLADA-RECURSOS ICBF'!$K$10:$K$1300,'2. INFORMACION GENERAL'!$B$60)) -> 0 | AD60: 0 | AE60: 0 | AF60: =IF(OR(B60="",AE60=0),0,SUMIFS('4. DETALLADA-RECURSOS ICBF'!$M$10:$M$1300,'4. DETALLADA-RECURSOS ICBF'!$B$10:$B$1300,'2. INFORMACION GENERAL'!$AE$26,'4. DETALLADA-RECURSOS ICBF'!$K$10:$K$1300,'2. INFORMACION GENERAL'!$B$60)) -> 0 | AG60: 0 | AH60: 0 | AI60: =IF(OR(B60="",AH60=0),0,SUMIFS('4. DETALLADA-RECURSOS ICBF'!$M$10:$M$1300,'4. DETALLADA-RECURSOS ICBF'!$B$10:$B$1300,'2. INFORMACION GENERAL'!$AH$26,'4. DETALLADA-RECURSOS ICBF'!$K$10:$K$1300,'2. INFORMACION GENERAL'!$B$60)) -> 0 | AJ60: 0 | AK60: 0 | AL60: =IF(OR(B60="",AK60=0),0,SUMIFS('4. DETALLADA-RECURSOS ICBF'!$M$10:$M$1300,'4. DETALLADA-RECURSOS ICBF'!$B$10:$B$1300,'2. INFORMACION GENERAL'!$AK$26,'4. DETALLADA-RECURSOS ICBF'!$K$10:$K$1300,'2. INFORMACION GENERAL'!$B$60)) -> 0 | AM60: 0 | AN60: 0 | AO60: =IF(OR(B60="",AN60=0),0,SUMIFS('4. DETALLADA-RECURSOS ICBF'!$M$10:$M$1300,'4. DETALLADA-RECURSOS ICBF'!$B$10:$B$1300,'2. INFORMACION GENERAL'!$AN$26,'4. DETALLADA-RECURSOS ICBF'!$K$10:$K$1300,'2. INFORMACION GENERAL'!$B$60)) -> 0 | AP60: 0 | AQ60: =IF('1. PRESUPUESTO INICIAL'!F88="",0,'1. PRESUPUESTO INICIAL'!F88) -> 0 | AR60: =IF(OR(B60="",AQ60=0),0,SUMIFS('4. DETALLADA-RECURSOS ICBF'!$M$10:$M$1300,'4. DETALLADA-RECURSOS ICBF'!$B$10:$B$1300,'2. INFORMACION GENERAL'!$AQ$26,'4. DETALLADA-RECURSOS ICBF'!$K$10:$K$1300,'2. INFORMACION GENERAL'!$B$60)) -> 0 | AS60: 0 | AT60: 0 | AU60: 0 | AV60: 0
A61: 2208 | B61: =IF('1. PRESUPUESTO INICIAL'!B91="","",'1. PRESUPUESTO INICIAL'!B91) -> APOYO A INICIATIVAS | D61: =+SUM(D62:D63) -> 0 | E61: 0 | F61: 0 | G61: =SUM(G62:G63) -> 0 | H61: 0 | I61: 0 | J61: =SUM(J62:J63) -> 0 | K61: 0 | L61: 0 | M61: =SUM(M62:M63) -> 0 | N61: 0 | O61: =SUM(O62:O63) -> 0 | P61: =SUM(P62:P63) -> 0 | Q61: 0 | R61: 0 | S61: =SUM(S62:S63) -> 0 | T61: 0 | U61: 0 | V61: =SUM(V62:V63) -> 0 | W61: 0 | X61: 0 | Y61: =SUM(Y62:Y63) -> 0 | Z61: 0 | AA61: 0 | AB61: 0 | AC61: 0 | AD61: 0 | AE61: 0 | AF61: 0 | AG61: 0 | AH61: 0 | AI61: 0 | AJ61: 0 | AK61: 0 | AL61: 0 | AM61: 0 | AN61: 0 | AO61: 0 | AP61: 0 | AQ61: 0 | AR61: 0 | AS61: 0 | AT61: 0 | AU61: 0 | AV61: 0
A62: 220801 | B62: =IF('1. PRESUPUESTO INICIAL'!B92="","",'1. PRESUPUESTO INICIAL'!B92) -> Apoyo Iniciativas | D62: =IF('1. PRESUPUESTO INICIAL'!D92="",0,'1. PRESUPUESTO INICIAL'!D92) -> 0 | E62: =IF(OR(B62="",D62=0),0,SUMIFS('4. DETALLADA-RECURSOS ICBF'!$M$10:$M$1300,'4. DETALLADA-RECURSOS ICBF'!$B$10:$B$1300,'2. INFORMACION GENERAL'!$D$26,'4. DETALLADA-RECURSOS ICBF'!$K$10:$K$1300,'2. INFORMACION GENERAL'!$B$61,'4. DETALLADA-RECURSOS ICBF'!$L$10:$L$1300,'2. INFORMACION GENERAL'!B62)) -> 0 | F62: =IFERROR(D62-E62,0) -> 0 | G62: 0 | H62: =IF(OR(B62="",G62=0),0,SUMIFS('4. DETALLADA-RECURSOS ICBF'!$M$10:$M$1300,'4. DETALLADA-RECURSOS ICBF'!$B$10:$B$1300,'2. INFORMACION GENERAL'!$G$26,'4. DETALLADA-RECURSOS ICBF'!$K$10:$K$1300,'2. INFORMACION GENERAL'!$B$61,'4. DETALLADA-RECURSOS ICBF'!$L$10:$L$1300,'2. INFORMACION GENERAL'!B62)) -> 0 | I62: =IFERROR(G62-H62,0) -> 0 | J62: 0 | K62: =IF(OR(B62="",J62=0),0,SUMIFS('4. DETALLADA-RECURSOS ICBF'!$M$10:$M$1300,'4. DETALLADA-RECURSOS ICBF'!$B$10:$B$1300,'2. INFORMACION GENERAL'!$J$26,'4. DETALLADA-RECURSOS ICBF'!$K$10:$K$1300,'2. INFORMACION GENERAL'!$B$61,'4. DETALLADA-RECURSOS ICBF'!$L$10:$L$1300,'2. INFORMACION GENERAL'!B62)) -> 0 | L62: =IFERROR(J62-K62,0) -> 0 | M62: 0 | N62: =IF(OR(B62="",M62=0),0,SUMIFS('4. DETALLADA-RECURSOS ICBF'!$M$10:$M$1300,'4. DETALLADA-RECURSOS ICBF'!$B$10:$B$1300,'2. INFORMACION GENERAL'!$M$26,'4. DETALLADA-RECURSOS ICBF'!$K$10:$K$1300,'2. INFORMACION GENERAL'!$B$61,'4. DETALLADA-RECURSOS ICBF'!$L$10:$L$1300,'2. INFORMACION GENERAL'!B62)) -> 0 | O62: =IFERROR(M62-N62,0) -> 0 | P62: 0 | Q62: =IF(OR(B62="",P62=0),0,SUMIFS('4. DETALLADA-RECURSOS ICBF'!$M$10:$M$1300,'4. DETALLADA-RECURSOS ICBF'!$B$10:$B$1300,'2. INFORMACION GENERAL'!$P$26,'4. DETALLADA-RECURSOS ICBF'!$K$10:$K$1300,'2. INFORMACION GENERAL'!$B$61,'4. DETALLADA-RECURSOS ICBF'!$L$10:$L$1300,'2. INFORMACION GENERAL'!B62)) -> 0 | R62: =IFERROR(P62-Q62,0) -> 0 | S62: 0 | T62: =IF(OR(B62="",S62=0),0,SUMIFS('4. DETALLADA-RECURSOS ICBF'!$M$10:$M$1300,'4. DETALLADA-RECURSOS ICBF'!$B$10:$B$1300,'2. INFORMACION GENERAL'!$S$26,'4. DETALLADA-RECURSOS ICBF'!$K$10:$K$1300,'2. INFORMACION GENERAL'!$B$61,'4. DETALLADA-RECURSOS ICBF'!$L$10:$L$1300,'2. INFORMACION GENERAL'!B62)) -> 0 | U62: =IFERROR(S62-T62,0) -> 0 | V62: 0 | W62: =IF(OR(B62="",V62=0),0,SUMIFS('4. DETALLADA-RECURSOS ICBF'!$M$10:$M$1300,'4. DETALLADA-RECURSOS ICBF'!$B$10:$B$1300,'2. INFORMACION GENERAL'!$V$26,'4. DETALLADA-RECURSOS ICBF'!$K$10:$K$1300,'2. INFORMACION GENERAL'!$B$61,'4. DETALLADA-RECURSOS ICBF'!$L$10:$L$1300,'2. INFORMACION GENERAL'!B62)) -> 0 | X62: =IFERROR(V62-W62,0) -> 0 | Y62: 0 | Z62: =IF(OR(B62="",Y62=0),0,SUMIFS('4. DETALLADA-RECURSOS ICBF'!$M$10:$M$1300,'4. DETALLADA-RECURSOS ICBF'!$B$10:$B$1300,'2. INFORMACION GENERAL'!$Y$26,'4. DETALLADA-RECURSOS ICBF'!$K$10:$K$1300,'2. INFORMACION GENERAL'!$B$61,'4. DETALLADA-RECURSOS ICBF'!$L$10:$L$1300,'2. INFORMACION GENERAL'!B62)) -> 0 | AA62: =IFERROR(Y62-Z62,0) -> 0 | AB62: 0 | AC62: =IF(OR(B62="",AB62=0),0,SUMIFS('4. DETALLADA-RECURSOS ICBF'!$M$10:$M$1300,'4. DETALLADA-RECURSOS ICBF'!$B$10:$B$1300,'2. INFORMACION GENERAL'!$AB$26,'4. DETALLADA-RECURSOS ICBF'!$K$10:$K$1300,'2. INFORMACION GENERAL'!$B$61,'4. DETALLADA-RECURSOS ICBF'!$L$10:$L$1300,'2. INFORMACION GENERAL'!B62)) -> 0 | AD62: =IFERROR(AB62-AC62,0) -> 0 | AE62: 0 | AF62: =IF(OR(B62="",AE62=0),0,SUMIFS('4. DETALLADA-RECURSOS ICBF'!$M$10:$M$1300,'4. DETALLADA-RECURSOS ICBF'!$B$10:$B$1300,'2. INFORMACION GENERAL'!$AE$26,'4. DETALLADA-RECURSOS ICBF'!$K$10:$K$1300,'2. INFORMACION GENERAL'!$B$61,'4. DETALLADA-RECURSOS ICBF'!$L$10:$L$1300,'2. INFORMACION GENERAL'!B62)) -> 0 | AG62: =IFERROR(AE62-AF62,0) -> 0 | AH62: 0 | AI62: =IF(OR(B62="",AH62=0),0,SUMIFS('4. DETALLADA-RECURSOS ICBF'!$M$10:$M$1300,'4. DETALLADA-RECURSOS ICBF'!$B$10:$B$1300,'2. INFORMACION GENERAL'!$AH$26,'4. DETALLADA-RECURSOS ICBF'!$K$10:$K$1300,'2. INFORMACION GENERAL'!$B$61,'4. DETALLADA-RECURSOS ICBF'!$L$10:$L$1300,'2. INFORMACION GENERAL'!B62)) -> 0 | AJ62: =IFERROR(AH62-AI62,0) -> 0 | AK62: 0 | AL62: =IF(OR(B62="",AK62=0),0,SUMIFS('4. DETALLADA-RECURSOS ICBF'!$M$10:$M$1300,'4. DETALLADA-RECURSOS ICBF'!$B$10:$B$1300,'2. INFORMACION GENERAL'!$AK$26,'4. DETALLADA-RECURSOS ICBF'!$K$10:$K$1300,'2. INFORMACION GENERAL'!$B$61,'4. DETALLADA-RECURSOS ICBF'!$L$10:$L$1300,'2. INFORMACION GENERAL'!B62)) -> 0 | AM62: =IFERROR(AK62-AL62,0) -> 0 | AN62: 0 | AO62: =IF(OR(B62="",AN62=0),0,SUMIFS('4. DETALLADA-RECURSOS ICBF'!$M$10:$M$1300,'4. DETALLADA-RECURSOS ICBF'!$B$10:$B$1300,'2. INFORMACION GENERAL'!$AN$26,'4. DETALLADA-RECURSOS ICBF'!$K$10:$K$1300,'2. INFORMACION GENERAL'!$B$61,'4. DETALLADA-RECURSOS ICBF'!$L$10:$L$1300,'2. INFORMACION GENERAL'!B62)) -> 0 | AP62: =IFERROR(AN62-AO62,0) -> 0 | AQ62: =IF('1. PRESUPUESTO INICIAL'!F92="",0,'1. PRESUPUESTO INICIAL'!F92) -> 0 | AR62: =IF(OR(B62="",AQ62=0),0,SUMIFS('4. DETALLADA-RECURSOS ICBF'!$M$10:$M$1300,'4. DETALLADA-RECURSOS ICBF'!$B$10:$B$1300,'2. INFORMACION GENERAL'!$AQ$26,'4. DETALLADA-RECURSOS ICBF'!$K$10:$K$1300,'2. INFORMACION GENERAL'!$B$61,'4. DETALLADA-RECURSOS ICBF'!$L$10:$L$1300,'2. INFORMACION GENERAL'!B62)) -> 0 | AS62: =IFERROR(AQ62-AR62,0) -> 0 | AT62: =+SUMIFS(D62:AS62,$D$27:$AS$27,$AT$27) -> 0 | AU62: =+SUMIFS(D62:AS62,$D$27:$AS$27,$AU$27) -> 0 | AV62: =+SUMIFS(D62:AS62,$D$27:$AS$27,$AV$27) -> 0
O63: =IFERROR(M63-N63,0) -> 0 | P63: 0 | R63: =IFERROR(P63-Q63,0) -> 0 | S63: 0
A64: 2300 | B64: =IF('1. PRESUPUESTO INICIAL'!B99="","",'1. PRESUPUESTO INICIAL'!B99) -> GASTOS OPERATIVOS | D64: =+SUM(D65:D66) -> 0 | E64: 0 | F64: 0 | G64: 0 | H64: 0 | I64: 0 | J64: =+SUM(J65:J66) -> 0 | K64: 0 | L64: 0 | M64: =+SUM(M65:M66) -> 0 | N64: 0 | O64: =+SUM(O65:O66) -> 0 | P64: 0 | Q64: 0 | R64: 0 | S64: =+SUM(S65:S66) -> 0 | T64: 0 | U64: 0 | V64: =+SUM(V65:V66) -> 0 | W64: 0 | X64: 0 | Y64: =+SUM(Y65:Y66) -> 0 | Z64: 0 | AA64: 0 | AB64: 0 | AC64: 0 | AD64: 0 | AE64: 0 | AF64: 0 | AG64: 0 | AH64: 0 | AI64: 0 | AJ64: 0 | AK64: 0 | AL64: 0 | AM64: 0 | AN64: 0 | AO64: 0 | AP64: 0 | AQ64: 0 | AR64: 0 | AS64: 0 | AT64: 0 | AU64: 0 | AV64: 0
A65: 230001 | B65: =IF('1. PRESUPUESTO INICIAL'!B100="","",'1. PRESUPUESTO INICIAL'!B100) -> GASTOS OPERATIVOS | D65: =IF('1. PRESUPUESTO INICIAL'!D100="",0,'1. PRESUPUESTO INICIAL'!D100) -> 0 | E65: =IF(OR(B65="",D65=0),0,SUMIFS('4. DETALLADA-RECURSOS ICBF'!$M$10:$M$1300,'4. DETALLADA-RECURSOS ICBF'!$B$10:$B$1300,'2. INFORMACION GENERAL'!$D$26,'4. DETALLADA-RECURSOS ICBF'!$K$10:$K$1300,'2. INFORMACION GENERAL'!$B$64,'4. DETALLADA-RECURSOS ICBF'!$L$10:$L$1300,'2. INFORMACION GENERAL'!B65)) -> 0 | F65: =IFERROR(D65-E65,0) -> 0 | G65: 0 | H65: =IF(OR(B65="",G65=0),0,SUMIFS('4. DETALLADA-RECURSOS ICBF'!$M$10:$M$1300,'4. DETALLADA-RECURSOS ICBF'!$B$10:$B$1300,'2. INFORMACION GENERAL'!$G$26,'4. DETALLADA-RECURSOS ICBF'!$K$10:$K$1300,'2. INFORMACION GENERAL'!$B$64,'4. DETALLADA-RECURSOS ICBF'!$L$10:$L$1300,'2. INFORMACION GENERAL'!B65)) -> 0 | I65: =IFERROR(G65-H65,0) -> 0 | J65: 0 | K65: =IF(OR(B65="",J65=0),0,SUMIFS('4. DETALLADA-RECURSOS ICBF'!$M$10:$M$1300,'4. DETALLADA-RECURSOS ICBF'!$B$10:$B$1300,'2. INFORMACION GENERAL'!$J$26,'4. DETALLADA-RECURSOS ICBF'!$K$10:$K$1300,'2. INFORMACION GENERAL'!$B$64,'4. DETALLADA-RECURSOS ICBF'!$L$10:$L$1300,'2. INFORMACION GENERAL'!B65)) -> 0 | L65: =IFERROR(J65-K65,0) -> 0 | M65: 0 | N65: =IF(OR(B65="",M65=0),0,SUMIFS('4. DETALLADA-RECURSOS ICBF'!$M$10:$M$1300,'4. DETALLADA-RECURSOS ICBF'!$B$10:$B$1300,'2. INFORMACION GENERAL'!$M$26,'4. DETALLADA-RECURSOS ICBF'!$K$10:$K$1300,'2. INFORMACION GENERAL'!$B$64,'4. DETALLADA-RECURSOS ICBF'!$L$10:$L$1300,'2. INFORMACION GENERAL'!B65)) -> 0 | O65: =IFERROR(M65-N65,0) -> 0 | P65: 0 | Q65: =IF(OR(B65="",P65=0),0,SUMIFS('4. DETALLADA-RECURSOS ICBF'!$M$10:$M$1300,'4. DETALLADA-RECURSOS ICBF'!$B$10:$B$1300,'2. INFORMACION GENERAL'!$P$26,'4. DETALLADA-RECURSOS ICBF'!$K$10:$K$1300,'2. INFORMACION GENERAL'!$B$64,'4. DETALLADA-RECURSOS ICBF'!$L$10:$L$1300,'2. INFORMACION GENERAL'!B65)) -> 0 | R65: =IFERROR(P65-Q65,0) -> 0 | S65: 0 | T65: =IF(OR(B65="",S65=0),0,SUMIFS('4. DETALLADA-RECURSOS ICBF'!$M$10:$M$1300,'4. DETALLADA-RECURSOS ICBF'!$B$10:$B$1300,'2. INFORMACION GENERAL'!$S$26,'4. DETALLADA-RECURSOS ICBF'!$K$10:$K$1300,'2. INFORMACION GENERAL'!$B$64,'4. DETALLADA-RECURSOS ICBF'!$L$10:$L$1300,'2. INFORMACION GENERAL'!B65)) -> 0 | U65: =IFERROR(S65-T65,0) -> 0 | V65: 0 | W65: =IF(OR(B65="",V65=0),0,SUMIFS('4. DETALLADA-RECURSOS ICBF'!$M$10:$M$1300,'4. DETALLADA-RECURSOS ICBF'!$B$10:$B$1300,'2. INFORMACION GENERAL'!$V$26,'4. DETALLADA-RECURSOS ICBF'!$K$10:$K$1300,'2. INFORMACION GENERAL'!$B$64,'4. DETALLADA-RECURSOS ICBF'!$L$10:$L$1300,'2. INFORMACION GENERAL'!B65)) -> 0 | X65: =IFERROR(V65-W65,0) -> 0 | Y65: 0 | Z65: =IF(OR(B65="",Y65=0),0,SUMIFS('4. DETALLADA-RECURSOS ICBF'!$M$10:$M$1300,'4. DETALLADA-RECURSOS ICBF'!$B$10:$B$1300,'2. INFORMACION GENERAL'!$Y$26,'4. DETALLADA-RECURSOS ICBF'!$K$10:$K$1300,'2. INFORMACION GENERAL'!$B$64,'4. DETALLADA-RECURSOS ICBF'!$L$10:$L$1300,'2. INFORMACION GENERAL'!B65)) -> 0 | AA65: =IFERROR(Y65-Z65,0) -> 0 | AB65: 0 | AC65: =IF(OR(B65="",AB65=0),0,SUMIFS('4. DETALLADA-RECURSOS ICBF'!$M$10:$M$1300,'4. DETALLADA-RECURSOS ICBF'!$B$10:$B$1300,'2. INFORMACION GENERAL'!$AB$26,'4. DETALLADA-RECURSOS ICBF'!$K$10:$K$1300,'2. INFORMACION GENERAL'!$B$64,'4. DETALLADA-RECURSOS ICBF'!$L$10:$L$1300,'2. INFORMACION GENERAL'!B65)) -> 0 | AD65: =IFERROR(AB65-AC65,0) -> 0 | AE65: 0 | AF65: =IF(OR(B65="",AE65=0),0,SUMIFS('4. DETALLADA-RECURSOS ICBF'!$M$10:$M$1300,'4. DETALLADA-RECURSOS ICBF'!$B$10:$B$1300,'2. INFORMACION GENERAL'!$AE$26,'4. DETALLADA-RECURSOS ICBF'!$K$10:$K$1300,'2. INFORMACION GENERAL'!$B$64,'4. DETALLADA-RECURSOS ICBF'!$L$10:$L$1300,'2. INFORMACION GENERAL'!B65)) -> 0 | AG65: =IFERROR(AE65-AF65,0) -> 0 | AH65: 0 | AI65: =IF(OR(B65="",AH65=0),0,SUMIFS('4. DETALLADA-RECURSOS ICBF'!$M$10:$M$1300,'4. DETALLADA-RECURSOS ICBF'!$B$10:$B$1300,'2. INFORMACION GENERAL'!$AH$26,'4. DETALLADA-RECURSOS ICBF'!$K$10:$K$1300,'2. INFORMACION GENERAL'!$B$64,'4. DETALLADA-RECURSOS ICBF'!$L$10:$L$1300,'2. INFORMACION GENERAL'!B65)) -> 0 | AJ65: =IFERROR(AH65-AI65,0) -> 0 | AK65: 0 | AL65: =IF(OR(B65="",AK65=0),0,SUMIFS('4. DETALLADA-RECURSOS ICBF'!$M$10:$M$1300,'4. DETALLADA-RECURSOS ICBF'!$B$10:$B$1300,'2. INFORMACION GENERAL'!$AK$26,'4. DETALLADA-RECURSOS ICBF'!$K$10:$K$1300,'2. INFORMACION GENERAL'!$B$64,'4. DETALLADA-RECURSOS ICBF'!$L$10:$L$1300,'2. INFORMACION GENERAL'!B65)) -> 0 | AM65: =IFERROR(AK65-AL65,0) -> 0 | AN65: 0 | AO65: =IF(OR(B65="",AN65=0),0,SUMIFS('4. DETALLADA-RECURSOS ICBF'!$M$10:$M$1300,'4. DETALLADA-RECURSOS ICBF'!$B$10:$B$1300,'2. INFORMACION GENERAL'!$AN$26,'4. DETALLADA-RECURSOS ICBF'!$K$10:$K$1300,'2. INFORMACION GENERAL'!$B$64,'4. DETALLADA-RECURSOS ICBF'!$L$10:$L$1300,'2. INFORMACION GENERAL'!B65)) -> 0 | AP65: =IFERROR(AN65-AO65,0) -> 0 | AQ65: =IF('1. PRESUPUESTO INICIAL'!F100="",0,'1. PRESUPUESTO INICIAL'!F100) -> 0 | AR65: =IF(OR(B65="",AQ65=0),0,SUMIFS('4. DETALLADA-RECURSOS ICBF'!$M$10:$M$1300,'4. DETALLADA-RECURSOS ICBF'!$B$10:$B$1300,'2. INFORMACION GENERAL'!$AQ$26,'4. DETALLADA-RECURSOS ICBF'!$K$10:$K$1300,'2. INFORMACION GENERAL'!$B$64,'4. DETALLADA-RECURSOS ICBF'!$L$10:$L$1300,'2. INFORMACION GENERAL'!B65)) -> 0 | AS65: =IFERROR(AQ65-AR65,0) -> 0 | AT65: =+SUMIFS(D65:AS65,$D$27:$AS$27,$AT$27) -> 0 | AU65: =+SUMIFS(D65:AS65,$D$27:$AS$27,$AU$27) -> 0 | AV65: =+SUMIFS(D65:AS65,$D$27:$AS$27,$AV$27) -> 0
O66: =IFERROR(M66-N66,0) -> 0 | P66: 0
A67: 2303 | B67: =IF('1. PRESUPUESTO INICIAL'!B104="","",'1. PRESUPUESTO INICIAL'!B104) -> GRAVAMEN MOVIMIENTOS FINANCIEROS GMF | D67: =IF('1. PRESUPUESTO INICIAL'!D104="",0,'1. PRESUPUESTO INICIAL'!D104) -> 0 | E67: =IF(OR(B67="",D67=0),0,SUMIFS('4. DETALLADA-RECURSOS ICBF'!$M$10:$M$1300,'4. DETALLADA-RECURSOS ICBF'!$B$10:$B$1300,'2. INFORMACION GENERAL'!$D$26,'4. DETALLADA-RECURSOS ICBF'!$K$10:$K$1300,'2. INFORMACION GENERAL'!$B$67,'4. DETALLADA-RECURSOS ICBF'!$L$10:$L$1300,'2. INFORMACION GENERAL'!B67)) -> 0 | F67: =IFERROR(D67-E67,0) -> 0 | G67: 0 | H67: =IF(OR(B67="",G67=0),0,SUMIFS('4. DETALLADA-RECURSOS ICBF'!$M$10:$M$1300,'4. DETALLADA-RECURSOS ICBF'!$B$10:$B$1300,'2. INFORMACION GENERAL'!$G$26,'4. DETALLADA-RECURSOS ICBF'!$K$10:$K$1300,'2. INFORMACION GENERAL'!$B$67,'4. DETALLADA-RECURSOS ICBF'!$L$10:$L$1300,'2. INFORMACION GENERAL'!B67)) -> 0 | I67: =IFERROR(G67-H67,0) -> 0 | J67: 0 | K67: =IF(OR(B67="",J67=0),0,SUMIFS('4. DETALLADA-RECURSOS ICBF'!$M$10:$M$1300,'4. DETALLADA-RECURSOS ICBF'!$B$10:$B$1300,'2. INFORMACION GENERAL'!$J$26,'4. DETALLADA-RECURSOS ICBF'!$K$10:$K$1300,'2. INFORMACION GENERAL'!$B$67,'4. DETALLADA-RECURSOS ICBF'!$L$10:$L$1300,'2. INFORMACION GENERAL'!B67)) -> 0 | L67: =IFERROR(J67-K67,0) -> 0 | M67: 0 | N67: =IF(OR(B67="",M67=0),0,SUMIFS('4. DETALLADA-RECURSOS ICBF'!$M$10:$M$1300,'4. DETALLADA-RECURSOS ICBF'!$B$10:$B$1300,'2. INFORMACION GENERAL'!$M$26,'4. DETALLADA-RECURSOS ICBF'!$K$10:$K$1300,'2. INFORMACION GENERAL'!$B$67,'4. DETALLADA-RECURSOS ICBF'!$L$10:$L$1300,'2. INFORMACION GENERAL'!B67)) -> 0 | O67: =IFERROR(M67-N67,0) -> 0 | P67: 0 | Q67: =IF(OR(B67="",P67=0),0,SUMIFS('4. DETALLADA-RECURSOS ICBF'!$M$10:$M$1300,'4. DETALLADA-RECURSOS ICBF'!$B$10:$B$1300,'2. INFORMACION GENERAL'!$P$26,'4. DETALLADA-RECURSOS ICBF'!$K$10:$K$1300,'2. INFORMACION GENERAL'!$B$67,'4. DETALLADA-RECURSOS ICBF'!$L$10:$L$1300,'2. INFORMACION GENERAL'!B67)) -> 0 | R67: =IFERROR(P67-Q67,0) -> 0 | S67: 0 | T67: =IF(OR(B67="",S67=0),0,SUMIFS('4. DETALLADA-RECURSOS ICBF'!$M$10:$M$1300,'4. DETALLADA-RECURSOS ICBF'!$B$10:$B$1300,'2. INFORMACION GENERAL'!$S$26,'4. DETALLADA-RECURSOS ICBF'!$K$10:$K$1300,'2. INFORMACION GENERAL'!$B$67,'4. DETALLADA-RECURSOS ICBF'!$L$10:$L$1300,'2. INFORMACION GENERAL'!B67)) -> 0 | U67: =IFERROR(S67-T67,0) -> 0 | V67: 0 | W67: =IF(OR(B67="",V67=0),0,SUMIFS('4. DETALLADA-RECURSOS ICBF'!$M$10:$M$1300,'4. DETALLADA-RECURSOS ICBF'!$B$10:$B$1300,'2. INFORMACION GENERAL'!$V$26,'4. DETALLADA-RECURSOS ICBF'!$K$10:$K$1300,'2. INFORMACION GENERAL'!$B$67,'4. DETALLADA-RECURSOS ICBF'!$L$10:$L$1300,'2. INFORMACION GENERAL'!B67)) -> 0 | X67: =IFERROR(V67-W67,0) -> 0 | Y67: 0 | Z67: =IF(OR(B67="",Y67=0),0,SUMIFS('4. DETALLADA-RECURSOS ICBF'!$M$10:$M$1300,'4. DETALLADA-RECURSOS ICBF'!$B$10:$B$1300,'2. INFORMACION GENERAL'!$Y$26,'4. DETALLADA-RECURSOS ICBF'!$K$10:$K$1300,'2. INFORMACION GENERAL'!$B$67,'4. DETALLADA-RECURSOS ICBF'!$L$10:$L$1300,'2. INFORMACION GENERAL'!B67)) -> 0 | AA67: =IFERROR(Y67-Z67,0) -> 0 | AB67: 0 | AC67: =IF(OR(B67="",AB67=0),0,SUMIFS('4. DETALLADA-RECURSOS ICBF'!$M$10:$M$1300,'4. DETALLADA-RECURSOS ICBF'!$B$10:$B$1300,'2. INFORMACION GENERAL'!$AB$26,'4. DETALLADA-RECURSOS ICBF'!$K$10:$K$1300,'2. INFORMACION GENERAL'!$B$67,'4. DETALLADA-RECURSOS ICBF'!$L$10:$L$1300,'2. INFORMACION GENERAL'!B67)) -> 0 | AD67: =IFERROR(AB67-AC67,0) -> 0 | AE67: 0 | AF67: =IF(OR(B67="",AE67=0),0,SUMIFS('4. DETALLADA-RECURSOS ICBF'!$M$10:$M$1300,'4. DETALLADA-RECURSOS ICBF'!$B$10:$B$1300,'2. INFORMACION GENERAL'!$AE$26,'4. DETALLADA-RECURSOS ICBF'!$K$10:$K$1300,'2. INFORMACION GENERAL'!$B$67,'4. DETALLADA-RECURSOS ICBF'!$L$10:$L$1300,'2. INFORMACION GENERAL'!B67)) -> 0 | AG67: =IFERROR(AE67-AF67,0) -> 0 | AH67: 0 | AI67: =IF(OR(B67="",AH67=0),0,SUMIFS('4. DETALLADA-RECURSOS ICBF'!$M$10:$M$1300,'4. DETALLADA-RECURSOS ICBF'!$B$10:$B$1300,'2. INFORMACION GENERAL'!$AH$26,'4. DETALLADA-RECURSOS ICBF'!$K$10:$K$1300,'2. INFORMACION GENERAL'!$B$67,'4. DETALLADA-RECURSOS ICBF'!$L$10:$L$1300,'2. INFORMACION GENERAL'!B67)) -> 0 | AJ67: =IFERROR(AH67-AI67,0) -> 0 | AK67: 0 | AL67: =IF(OR(B67="",AK67=0),0,SUMIFS('4. DETALLADA-RECURSOS ICBF'!$M$10:$M$1300,'4. DETALLADA-RECURSOS ICBF'!$B$10:$B$1300,'2. INFORMACION GENERAL'!$AK$26,'4. DETALLADA-RECURSOS ICBF'!$K$10:$K$1300,'2. INFORMACION GENERAL'!$B$67,'4. DETALLADA-RECURSOS ICBF'!$L$10:$L$1300,'2. INFORMACION GENERAL'!B67)) -> 0 | AM67: =IFERROR(AK67-AL67,0) -> 0 | AN67: 0 | AO67: =IF(OR(B67="",AN67=0),0,SUMIFS('4. DETALLADA-RECURSOS ICBF'!$M$10:$M$1300,'4. DETALLADA-RECURSOS ICBF'!$B$10:$B$1300,'2. INFORMACION GENERAL'!$AN$26,'4. DETALLADA-RECURSOS ICBF'!$K$10:$K$1300,'2. INFORMACION GENERAL'!$B$67,'4. DETALLADA-RECURSOS ICBF'!$L$10:$L$1300,'2. INFORMACION GENERAL'!B67)) -> 0 | AP67: =IFERROR(AN67-AO67,0) -> 0 | AQ67: =IF('1. PRESUPUESTO INICIAL'!F104="",0,'1. PRESUPUESTO INICIAL'!F104) -> 0 | AR67: =IF(OR(B67="",AQ67=0),0,SUMIFS('4. DETALLADA-RECURSOS ICBF'!$M$10:$M$1300,'4. DETALLADA-RECURSOS ICBF'!$B$10:$B$1300,'2. INFORMACION GENERAL'!$AQ$26,'4. DETALLADA-RECURSOS ICBF'!$K$10:$K$1300,'2. INFORMACION GENERAL'!$B$67,'4. DETALLADA-RECURSOS ICBF'!$L$10:$L$1300,'2. INFORMACION GENERAL'!B67)) -> 0 | AS67: =IFERROR(AQ67-AR67,0) -> 0 | AT67: =+SUMIFS(D67:AS67,$D$27:$AS$27,$AT$27) -> 0 | AU67: =+SUMIFS(D67:AS67,$D$27:$AS$27,$AU$27) -> 0 | AV67: =+SUMIFS(D67:AS67,$D$27:$AS$27,$AV$27) -> 0
B68: TOTAL | D68: =+D28+D39+D44+D49+D50+D53+D54+D60+D61+D64+D67 -> 0 | E68: =+E28+E39+E44+E49+E50+E53+E54+E60+E61+E64+E67 -> 0 | F68: 0 | G68: 0 | H68: 0 | I68: 0 | J68: 0 | K68: 0 | L68: 0 | M68: 0 | N68: 0 | O68: 0 | P68: 0 | Q68: 0 | R68: 0 | S68: 0 | T68: 0 | U68: 0 | V68: 0 | W68: 0 | X68: 0 | Y68: 0 | Z68: 0 | AA68: 0 | AB68: 0 | AC68: 0 | AD68: 0 | AE68: 0 | AF68: 0 | AG68: 0 | AH68: 0 | AI68: 0 | AJ68: 0 | AK68: 0 | AL68: 0 | AM68: 0 | AN68: 0 | AO68: 0 | AP68: 0 | AQ68: =+AQ28+AQ39+AQ44+AQ49+AQ50+AQ53+AQ54+AQ60+AQ61+AQ64+AQ67 -> 0 | AR68: 0 | AS68: 0 | AT68: 0 | AU68: 0 | AV68: 0
B69: DIFERENCIA SOPORTES
B70: TOTAL INEJECUCIONES MES (Inasistencias+No ejeutado+Diferencia Soportes) | D70: inasistencias no se ejecuto en el mes y diferencias en soportes | F70: =+D20+F68+E69 -> 0 | G70: inasistencias no se ejecuto en el mes y diferencias en soportes | I70: =+G20+I68+H69 -> 0 | J70: inasistencias no se ejecuto en el mes y diferencias en soportes | L70: =+J20+L68+K69 -> 0 | M70: inasistencias no se ejecuto en el mes y diferencias en soportes | O70: =+M20+O68+N69 -> 0 | P70: inasistencias no se ejecuto en el mes y diferencias en soportes | R70: =+P20+R68+Q69 -> 0 | S70: inasistencias no se ejecuto en el mes y diferencias en soportes | U70: =+S20+U68+T69 -> 0 | V70: inasistencias no se ejecuto en el mes y diferencias en soportes | X70: =+V20+X68+W69 -> 0 | Y70: inasistencias no se ejecuto en el mes y diferencias en soportes | AA70: =+Y20+AA68+Z69 -> 0 | AB70: inasistencias no se ejecuto en el mes y diferencias en soportes | AD70: =+AB20+AD68+AC69 -> 0 | AE70: inasistencias no se ejecuto en el mes y diferencias en soportes | AG70: =+AE20+AG68+AF69 -> 0 | AH70: inasistencias no se ejecuto en el mes y diferencias en soportes | AJ70: =+AH20+AJ68+AI69 -> 0 | AK70: inasistencias no se ejecuto en el mes y diferencias en soportes | AM70: =+AK20+AM68+AL69 -> 0 | AN70: inasistencias no se ejecuto en el mes y diferencias en soportes | AP70: =+AN20+AP68+AO69 -> 0 | AQ70: inasistencias no se ejecuto en el mes y diferencias en soportes | AS70: =+AQ20+AS68+AR69 -> 0 | AT70: TOTAL
B71: VALOR A DESEMBOLSAR | D71: =+D68-F70 -> 0 | G71: =+G68-I70 -> 0 | J71: =+J68-L70 -> 0 | M71: =+M68-O70 -> 0 | P71: =+P68-R70 -> 0 | S71: =+S68-U70 -> 0 | V71: =+V68-X70 -> 0 | Y71: =+Y68-AA70 -> 0 | AB71: =+AB68-AD70 -> 0 | AE71: =+AE68-AG70 -> 0 | AH71: =+AH68-AJ70 -> 0 | AK71: =+AK68-AM70 -> 0 | AN71: =+AN68-AP70 -> 0 | AQ71: =+AQ68-AS70 -> 0 | AT71: TOTAL VALOR A DESEMBOLSAR | AU71: =+SUM(D71:AS71) -> 0
B72: 5. RENDIMIENTOS FINANCIEROS/REINTEGROS | AT72: TOTAL RENDIMIENTOS FINANCIEROS/REINTEGROS
D73: El Convenio/Contrato generó rendimientos financieros: | G73: SÍ | H73: NO | I73: La entidad generó reintegros: | L73: SÍ | M73: NO
C76: FECHA DE INICIO (Extracto Bancario) | D76: FECHA DE CORTE (Extracto Bancario) | E76: VALOR RENDIMIENTOS FINANCIEROS | G76: FECHA CONSIGNACIÓN | J76: ANEXA RECIBO (SÍ/NO) | K76: VALOR REINTEGROS
C77: DD/MM/AAAA | D77: DD/MM/AAAA | E77: 0 | G77: DD/MM/AAAA | K77: 0
C78: DD/MM/AAAA | D78: DD/MM/AAAA | E78: 0 | G78: DD/MM/AAAA | K78: 0
C79: DD/MM/AAAA | D79: DD/MM/AAAA | E79: 0 | G79: DD/MM/AAAA | K79: 0
C80: DD/MM/AAAA | D80: DD/MM/AAAA | E80: 0 | G80: DD/MM/AAAA | K80: 0
G83: Para constancia de lo anterior, se firma el presente informe a los | H83: DD/MM/AAAA
G91: Contador/Revisor Fiscal (según aplique) | R91: Representante Legal
G92: Nombre: | R92: Nombre:
G93: C.C.: | R93: C.C.:
G94: Tarjeta Profesional:
B97: ¡Antes de imprimir este documento… piense en el medio ambiente! Cualquier copia impresa de este documento se considera como COPIA NO CONTROLADA. LOS DATOS PROPORCIONADOS SERÁN TRATADOS DE ACUERDO A LA POLÍTICA DE TRATAMIENTO DE DATOS PERSONALES DEL ICBF Y A LA LEY 1581 DE 2012

Sheet 3. CONTRAPARTIDA
C1: PROCESO | P1: F18.GO1.MT4.PP | R1: =+'2. INFORMACION GENERAL'!AD2 -> 2025-11-25
C2: PROMOCIÓN Y PREVENCIÓN
P3: =+'2. INFORMACION GENERAL'!AA3 -> Versión 1 | R3: =+'2. INFORMACION GENERAL'!AD3+1 -> 3
C4: FORMATO SEGUIMIENTO FINANCIERO ATRAPASUEÑOS | P4: Clasificación de la Información
P5: PÚBLICA
A6: 3. CONTRAPARTIDA
A7: DETALLES DE LA EJECUCIÓN DE LA CONTRAPARTIDA
A8: CODIGO | B8: LINEAS DE INVERSION | C8: DESCRIPCIÓN | D8: VALOR PRESUPUESTADO | E8: ENERO | F8: FEBRERO | G8: MARZO | H8: ABRIL | I8: MAYO | J8: JUNIO | K8: JULIO | L8: AGOSTO | M8: SEPTIEMBRE | N8: OCTUBRE | O8: NOVIEMBRE | P8: DICIEMBRE | Q8: VALOR EJECUTADO A LA FECHA | R8: SALDO POR EJECUTAR
A9: 1301 | B9: MATERIALES O IMPLEMENTOS | C9: PERMITAN CUALIFICAR EL DESARROLLO DE LAS ACTIVIDADES PROPUESTAS, DE ACUERDO CON LA METODOLOGÍA IMPLEMENTADA EN EL MANUAL TECNICO Y GUIA(S) OPERATIVA(S) DE LA MODALIDAD PARA EL RECONOCIMINETO , LA GARANTIA Y LA PROTECION INTEGRAL DE DERECHOS, EL BUEN VIVIR Y LA PARTICIPACION DE NIÑAS NIÑOS Y ADOLESCENTES | D9: 0 | E9: 0 | F9: 0 | Q9: =+SUM(E9:P9) -> 0 | R9: =+D9-Q9 -> 0
A10: 1302 | B10: ACTIVIDADES DE MOVILIZACIÓN SOCIAL | C10: PARA EL RECONOCIMIENTO Y GARANTÍA DE LOS DERECHOS DE NIÑAS, NIÑOS Y ADOLESCENTES. | Q10: =+SUM(E10:P10) -> 0 | R10: =+D10-Q10 -> 0
A11: 1303 | B11: ACTIVIDADES DE ARTICULACION INTERSECTORIAL | C11: A NIVEL TERRITORIAL, Y DE PARTICIPACIÓN CONJUNTA CON LA SOCIEDAD CIVIL, LA FAMILIA, EL SECTOR PRIVADO, LAS AGENCIAS DE COOPERACIÓN INTERNACIONAL, LAS ORGANIZACIONES O COLECTIVOS DE BASE COMUNITARIA, Y LOS DIVERSOS SECTORES SOCIALES EN EL MARCO DEL SISTEMA NACIONAL DE BIENESTAR FAMILIAR (SNBF). | Q11: =+SUM(E11:P11) -> 0 | R11: =+D11-Q11 -> 0
A12: 1304 | B12: EJERCICIOS DE PARTICIPACIÓN Y CONTROL SOCIAL | C12: PERMITAN FORTALECER LA GESTIÓN PÚBLICA, A PARTIR DEL RECONOCIMIENTO DE LAS VIVENCIAS, REFLEXIONES, Y EXPERIENCIAS DE NIÑAS, NIÑOS Y ADOLESCENTES. | Q12: =+SUM(E12:P12) -> 0 | R12: =+D12-Q12 -> 0
A13: 1305 | B13: ACCIONES DE GESTIÓN | C13: SISTEMAS DE APOYO Y DE CUIDADO EN EL PROCESO DE ATENCIÓN DE NIÑAS, NIÑOS, Y ADOLESCENTES CON DISCAPACIDAD
A14: 1306 | B14: ACCIONES DE ACTIVACIÓN DE RUTAS | C14: FRENTE A POSIBLE INOBSERVANCIA, AMENAZA O VULNERACIÓN DE LOS DERECHOS DE NIÑAS, NIÑOS, Y ADOLESCENTES
Q15: =+SUM(E15:P15) -> 0 | R15: =+D15-Q15 -> 0
A16: TOTAL APORTE | D16: =+SUM(D9:D15) -> 0 | E16: =+SUM(E9:E15) -> 0 | F16: 0 | G16: 0 | H16: 0 | I16: 0 | J16: 0 | K16: 0 | L16: 0 | M16: 0 | N16: 0 | O16: 0 | P16: 0 | Q16: 0 | R16: 0
G20: Firma del Representante Legal
A22: ¡Antes de imprimir este documento… piense en el medio ambiente!
A23: Cualquier copia impresa de este documento se considera como COPIA NO CONTROLADA
A24: LOS DATOS PROPORCIONADOS SERÁN TRATADOS DE ACUERDO A LA POLÌTICA DE TRATAMIENTO DE DATOS PERSONALES DEL ICBF Y A LA LEY 1581 DE 2012

Sheet 4. DETALLADA-RECURSOS ICBF
D2: PROCESO PROMOCIÓN Y PREVENCIÓN FORMATO SEGUIMIENTO FINANCIERO ATRAPASUEÑOS | M2: F18.GO1.MT4.PP | N2: =+'3. CONTRAPARTIDA'!R1 -> 2025-11-25
M3: =+'3. CONTRAPARTIDA'!P3 -> Versión 1 | N3: =+'3. CONTRAPARTIDA'!R3+1 -> 4
M4: Clasificación de la Información PÚBLICA
B7: 4. RELACIÓN DE EGRESOS (COSTOS-GASTOS) EJECUTADOS
B8: REGISTRAR ÚNICAMENTE LOS EGRESOS EJECUTADOS *Para insertar filas: Primero copie la fila y continúe con el comando "Insertar celdas copiadas" | L8: Total ejecución del periodo | M8: =SUM(M10:M1300) -> 0
B9: Etapa | C9: Fecha del soporte | D9: Proveedor | E9: Tipo de identificación | F9: Número de identificación proveedor | G9: Soporte | H9: N° de registro contable | I9: N° de registro Egreso (Tesorería) | J9: Descripción soporte | K9: Componente de Egreso (Costo-Gasto) | L9: Subcomponente de Egreso (Costo-Gasto) | M9: Valor total pagado | N9: Pago SÍ / NO
K10: TALENTO HUMANO
B1301: Para constancia de lo anterior, se firma el presente documento a los
B1307: Contador/Revisor Fiscal (según aplique)
B1309: Nombre:
B1310: C.C.:
B1311: Tarjeta profesional:
A1315: ¡Antes de imprimir este documento… piense en el medio ambiente! Cualquier copia impresa de este documento se considera como COPIA NO CONTROLADA. LOS DATOS PROPORCIONADOS SERÁN TRATADOS DE ACUERDO A LA POLÍTICA DE TRATAMIENTO DE DATOS PERSONALES DEL ICBF Y A LA LEY 1581 DE 2012

Sheet 5. TABLA TOTALES EJECUTADOS
D2: PROCESO PROMOCIÓN Y PREVENCIÓN FORMATO SEGUIMIENTO FINANCIERO ATRAPASUEÑOS | M2: F18.GO1.MT4.PP | N2: =+'1. PRESUPUESTO INICIAL'!F2 -> 2025-11-25
M3: =+'3. CONTRAPARTIDA'!P3 -> Versión 1 | N3: =+'4. DETALLADA-RECURSOS ICBF'!N3+1 -> 5
M4: Clasificación de la Información PÚBLICA
B7: TABLA VALORES TOTALES EJECUTADOS DEL PERIODO
B9: Pago SÍ / NO | C9: (Todas)
B11: Suma de Valor total pagado | C11: Etiquetas de columna
B12: Etiquetas de fila | C12: (en blanco) | D12: Total general
B13: (en blanco)
B14: Total general
B15: ¡Antes de imprimir este documento… piense en el medio ambiente! Cualquier copia impresa de este documento se considera como COPIA NO CONTROLADA LOS DATOS PROPORCIONADOS SERÁN TRATADOS DE ACUERDO A LA POLÍTICA DE TRATAMIENTO DE DATOS PERSONALES DEL ICBF Y A LA LEY 1581 DE 2012
